Workbook

Sheet data (hidden)
A1: Recors of 100 Mts SPRINT (Men) at Olympics | R1: Year Runner Mapping | Y1: Year Distance Mapping | AD1: Year Medal Mapping | AI1: Selected Runner | AM1: Selected Country | AO1: 1 | AQ1: =IF(AO1>19,"",INDEX($AM$2:$AM$20,AO1)) -> Country code | AS1: Year Hightlight Mapping
A2: SNO | B2: Medal | C2: Name | D2: Country | E2: Seconds | F2: Dist. Behind Usain Bolt | G2: Year | H2: Venue | I2: year.m | J2: cDistance | K2: Highlight? | L2: OR? | M2: mtype | N2: Defended? | O2: Prior Medal year | P2: final highlight | R2: Year | S2: M1 | T2: M2 | U2: M3 | V2: M4 | W2: Venue | Y2: D1 | Z2: D2 | AA2: D3 | AB2: D4 | AD2: T1 | AE2: T2 | AF2: T3 | AG2: T4 | AI2: 83 | AM2: Country code | AN2: Name | AO2: Medal Count | AP2: Nothing | AS2: M1 | AT2: M2 | AU2: M3 | AV2: M4
A3: 1 | B3: GOLD | C3: Thomas Burke | D3: USA | E3: 12 | F3: 19.7 | G3: 1896 | H3: Athens | I3: =G3&".M"&COUNTIFS($G$3:G3,G3) -> 1896.M1 | J3: =MROUND(Table1[[#This Row],[Dist. Behind Usain Bolt]]*10,2) -> 198 | K3: =Table1[[#This Row],[Country]]=selCountry -> FALSE | L3: TRUE | M3: =VLOOKUP(Table1[[#This Row],[Medal]],$R$34:$S$36,2,FALSE) -> 1 | N3: =COUNTIFS($C$3:C3,C3,$M$3:M3,">="&M3)>1 -> FALSE | O3: =IF(Table1[[#This Row],[Defended?]],VLOOKUP(Table1[[#This Row],[Name]],$C$3:M3,5,FALSE)&" - "&INDEX($R$34:$R$36,VLOOKUP(Table1[[#This Row],[Name]],$C$3:M3,11,FALSE)),"") ->  | P3: =IF($AO$1<20,Table1[[#This Row],[Highlight?]],IF($AO$1=20,Table1[[#This Row],[OR?]],Table1[[#This Row],[Defended?]])) -> FALSE | R3: 2012 | S3: =IFERROR(INDEX(Table1[SNO],MATCH($R3&"."&S$2,Table1[year.m],0)),"") -> 83 | T3: =IFERROR(INDEX(Table1[SNO],MATCH($R3&"."&T$2,Table1[year.m],0)),"") -> 84 | U3: =IFERROR(INDEX(Table1[SNO],MATCH($R3&"."&U$2,Table1[year.m],0)),"") -> 85 | V3: =IFERROR(INDEX(Table1[SNO],MATCH($R3&"."&V$2,Table1[year.m],0)),"") ->  | W3: =INDEX(Table1[Venue],S3) -> London | Y3: =IFERROR(INDEX(Table1[cDistance],S3),"") -> 0 | Z3: =IFERROR(INDEX(Table1[cDistance],T3),"") -> 12 | AA3: =IFERROR(INDEX(Table1[cDistance],U3),"") -> 16 | AB3: =IFERROR(INDEX(Table1[cDistance],V3),"") ->  | AD3: =IFERROR(VLOOKUP(INDEX(Table1[Medal],S3),$R$34:$T$36,2,FALSE),0) -> 1 | AE3: =IFERROR(VLOOKUP(INDEX(Table1[Medal],T3),$R$34:$T$36,2,FALSE),0) -> 2 | AF3: =IFERROR(VLOOKUP(INDEX(Table1[Medal],U3),$R$34:$T$36,2,FALSE),0) -> 3 | AG3: =IFERROR(VLOOKUP(INDEX(Table1[Medal],V3),$R$34:$T$36,2,FALSE),0) -> 0 | AI3: Name | AJ3: =INDEX(Table1[Name],valSelRunner) -> Usain Bolt | AM3: USA | AN3: USA | AO3: =COUNTIF(Table1[Country],AM3) -> 40 | AP3: =AN3&" - "&AO3&" medals" -> USA - 40 medals | AS3: =IFERROR(INDEX(Table1[final highlight],S3),FALSE) -> FALSE | AT3: =IFERROR(INDEX(Table1[final highlight],T3),FALSE) -> FALSE | AU3: =IFERROR(INDEX(Table1[final highlight],U3),FALSE) -> FALSE | AV3: =IFERROR(INDEX(Table1[final highlight],V3),FALSE) -> FALSE
A4: =A3+1 -> 2 | B4: SILVER | C4: Fritz Hofmann | D4: GER | E4: 12.2 | F4: 21.1 | G4: 1896 | H4: Athens | I4: =G4&".M"&COUNTIFS($G$3:G4,G4) -> 1896.M2 | J4: =MROUND(Table1[[#This Row],[Dist. Behind Usain Bolt]]*10,2) -> 212 | K4: =Table1[[#This Row],[Country]]=selCountry -> FALSE | L4: =MIN($E$3:E3)>E4 -> FALSE | M4: =VLOOKUP(Table1[[#This Row],[Medal]],$R$34:$S$36,2,FALSE) -> 2 | N4: =COUNTIFS($C$3:C4,C4,$M$3:M4,">="&M4)>1 -> FALSE | O4: =IF(Table1[[#This Row],[Defended?]],VLOOKUP(Table1[[#This Row],[Name]],$C$3:M4,5,FALSE)&" - "&INDEX($R$34:$R$36,VLOOKUP(Table1[[#This Row],[Name]],$C$3:M4,11,FALSE)),"") ->  | P4: =IF($AO$1<20,Table1[[#This Row],[Highlight?]],IF($AO$1=20,Table1[[#This Row],[OR?]],Table1[[#This Row],[Defended?]])) -> FALSE | R4: 2008 | S4: =IFERROR(INDEX(Table1[SNO],MATCH($R4&"."&S$2,Table1[year.m],0)),"") -> 80 | T4: =IFERROR(INDEX(Table1[SNO],MATCH($R4&"."&T$2,Table1[year.m],0)),"") -> 81 | U4: =IFERROR(INDEX(Table1[SNO],MATCH($R4&"."&U$2,Table1[year.m],0)),"") -> 82 | V4: =IFERROR(INDEX(Table1[SNO],MATCH($R4&"."&V$2,Table1[year.m],0)),"") ->  | W4: =INDEX(Table1[Venue],S4) -> Beijing | Y4: =IFERROR(INDEX(Table1[cDistance],S4),"") -> 6 | Z4: =IFERROR(INDEX(Table1[cDistance],T4),"") -> 26 | AA4: =IFERROR(INDEX(Table1[cDistance],U4),"") -> 28 | AB4: =IFERROR(INDEX(Table1[cDistance],V4),"") ->  | AD4: =IFERROR(VLOOKUP(INDEX(Table1[Medal],S4),$R$34:$T$36,2,FALSE),0) -> 1 | AE4: =IFERROR(VLOOKUP(INDEX(Table1[Medal],T4),$R$34:$T$36,2,FALSE),0) -> 2 | AF4: =IFERROR(VLOOKUP(INDEX(Table1[Medal],U4),$R$34:$T$36,2,FALSE),0) -> 3 | AG4: =IFERROR(VLOOKUP(INDEX(Table1[Medal],V4),$R$34:$T$36,2,FALSE),0) -> 0 | AI4: Country | AJ4: ="("&INDEX(Table1[Country],valSelRunner)&")" -> (JAM) | AM4: GBR | AN4: Great Britian | AO4: =COUNTIF(Table1[Country],AM4) -> 8 | AP4: =AN4&" - "&AO4&" medals" -> Great Britian - 8 medals | AS4: =IFERROR(INDEX(Table1[final highlight],S4),FALSE) -> FALSE | AT4: =IFERROR(INDEX(Table1[final highlight],T4),FALSE) -> FALSE | AU4: =IFERROR(INDEX(Table1[final highlight],U4),FALSE) -> FALSE | AV4: =IFERROR(INDEX(Table1[final highlight],V4),FALSE) -> FALSE
A5: =A4+1 -> 3 | B5: BRONZE | C5: Francis Lane | D5: USA | E5: 12.6 | F5: 23.6 | G5: 1896 | H5: Athens | I5: =G5&".M"&COUNTIFS($G$3:G5,G5) -> 1896.M3 | J5: =MROUND(Table1[[#This Row],[Dist. Behind Usain Bolt]]*10,2) -> 236 | K5: =Table1[[#This Row],[Country]]=selCountry -> FALSE | L5: =MIN($E$3:E4)>E5 -> FALSE | M5: =VLOOKUP(Table1[[#This Row],[Medal]],$R$34:$S$36,2,FALSE) -> 3 | N5: =COUNTIFS($C$3:C5,C5,$M$3:M5,">="&M5)>1 -> FALSE | O5: =IF(Table1[[#This Row],[Defended?]],VLOOKUP(Table1[[#This Row],[Name]],$C$3:M5,5,FALSE)&" - "&INDEX($R$34:$R$36,VLOOKUP(Table1[[#This Row],[Name]],$C$3:M5,11,FALSE)),"") ->  | P5: =IF($AO$1<20,Table1[[#This Row],[Highlight?]],IF($AO$1=20,Table1[[#This Row],[OR?]],Table1[[#This Row],[Defended?]])) -> FALSE | R5: 2004 | S5: =IFERROR(INDEX(Table1[SNO],MATCH($R5&"."&S$2,Table1[year.m],0)),"") -> 77 | T5: =IFERROR(INDEX(Table1[SNO],MATCH($R5&"."&T$2,Table1[year.m],0)),"") -> 78 | U5: =IFERROR(INDEX(Table1[SNO],MATCH($R5&"."&U$2,Table1[year.m],0)),"") -> 79 | V5: =IFERROR(INDEX(Table1[SNO],MATCH($R5&"."&V$2,Table1[year.m],0)),"") ->  | W5: =INDEX(Table1[Venue],S5) -> Athens | Y5: =IFERROR(INDEX(Table1[cDistance],S5),"") -> 22 | Z5: =IFERROR(INDEX(Table1[cDistance],T5),"") -> 24 | AA5: =IFERROR(INDEX(Table1[cDistance],U5),"") -> 24 | AB5: =IFERROR(INDEX(Table1[cDistance],V5),"") ->  | AD5: =IFERROR(VLOOKUP(INDEX(Table1[Medal],S5),$R$34:$T$36,2,FALSE),0) -> 1 | AE5: =IFERROR(VLOOKUP(INDEX(Table1[Medal],T5),$R$34:$T$36,2,FALSE),0) -> 2 | AF5: =IFERROR(VLOOKUP(INDEX(Table1[Medal],U5),$R$34:$T$36,2,FALSE),0) -> 3 | AG5: =IFERROR(VLOOKUP(INDEX(Table1[Medal],V5),$R$34:$T$36,2,FALSE),0) -> 0 | AI5: Seconds | AJ5: =INDEX(Table1[Seconds],valSelRunner)&" seconds" -> 9.63 seconds | AM5: JAM | AN5: Jamaica | AO5: =COUNTIF(Table1[Country],AM5) -> 7 | AP5: Jamaica - 7 medals | AS5: =IFERROR(INDEX(Table1[final highlight],S5),FALSE) -> FALSE | AT5: =IFERROR(INDEX(Table1[final highlight],T5),FALSE) -> FALSE | AU5: =IFERROR(INDEX(Table1[final highlight],U5),FALSE) -> FALSE | AV5: =IFERROR(INDEX(Table1[final highlight],V5),FALSE) -> FALSE
A6: 4 | B6: BRONZE | C6: Alojz Sokol | D6: HUN | E6: 12.6 | F6: 23.6 | G6: 1896 | H6: Athens | I6: =G6&".M"&COUNTIFS($G$3:G6,G6) -> 1896.M4 | J6: =MROUND(Table1[[#This Row],[Dist. Behind Usain Bolt]]*10,2) -> 236 | K6: =Table1[[#This Row],[Country]]=selCountry -> FALSE | L6: =MIN($E$3:E5)>E6 -> FALSE | M6: =VLOOKUP(Table1[[#This Row],[Medal]],$R$34:$S$36,2,FALSE) -> 3 | N6: =COUNTIFS($C$3:C6,C6,$M$3:M6,">="&M6)>1 -> FALSE | O6: =IF(Table1[[#This Row],[Defended?]],VLOOKUP(Table1[[#This Row],[Name]],$C$3:M6,5,FALSE)&" - "&INDEX($R$34:$R$36,VLOOKUP(Table1[[#This Row],[Name]],$C$3:M6,11,FALSE)),"") ->  | P6: =IF($AO$1<20,Table1[[#This Row],[Highlight?]],IF($AO$1=20,Table1[[#This Row],[OR?]],Table1[[#This Row],[Defended?]])) -> FALSE | R6: 2000 | S6: =IFERROR(INDEX(Table1[SNO],MATCH($R6&"."&S$2,Table1[year.m],0)),"") -> 74 | T6: =IFERROR(INDEX(Table1[SNO],MATCH($R6&"."&T$2,Table1[year.m],0)),"") -> 75 | U6: =IFERROR(INDEX(Table1[SNO],MATCH($R6&"."&U$2,Table1[year.m],0)),"") -> 76 | V6: =IFERROR(INDEX(Table1[SNO],MATCH($R6&"."&V$2,Table1[year.m],0)),"") ->  | W6: =INDEX(Table1[Venue],S6) -> Sydney | Y6: =IFERROR(INDEX(Table1[cDistance],S6),"") -> 24 | Z6: =IFERROR(INDEX(Table1[cDistance],T6),"") -> 36 | AA6: =IFERROR(INDEX(Table1[cDistance],U6),"") -> 42 | AB6: =IFERROR(INDEX(Table1[cDistance],V6),"") ->  | AD6: =IFERROR(VLOOKUP(INDEX(Table1[Medal],S6),$R$34:$T$36,2,FALSE),0) -> 1 | AE6: =IFERROR(VLOOKUP(INDEX(Table1[Medal],T6),$R$34:$T$36,2,FALSE),0) -> 2 | AF6: =IFERROR(VLOOKUP(INDEX(Table1[Medal],U6),$R$34:$T$36,2,FALSE),0) -> 3 | AG6: =IFERROR(VLOOKUP(INDEX(Table1[Medal],V6),$R$34:$T$36,2,FALSE),0) -> 0 | AI6: Year | AJ6: =INDEX(Table1[Year],valSelRunner) -> 2012 | AK6: =IF(AO1=21,IF(INDEX(Table1[Defended?],valSelRunner),"("&INDEX(Table1[Prior Medal year],valSelRunner)&")",""),"") ->  | AM6: CAN | AN6: Canada | AO6: =COUNTIF(Table1[Country],AM6) -> 5 | AP6: Canada - 5 medals | AS6: =IFERROR(INDEX(Table1[final highlight],S6),FALSE) -> FALSE | AT6: =IFERROR(INDEX(Table1[final highlight],T6),FALSE) -> FALSE | AU6: =IFERROR(INDEX(Table1[final highlight],U6),FALSE) -> FALSE | AV6: =IFERROR(INDEX(Table1[final highlight],V6),FALSE) -> FALSE
A7: 5 | B7: GOLD | C7: Frank Jarvis | D7: USA | E7: 11 | F7: 12.5 | G7: 1900 | H7: Paris | I7: =G7&".M"&COUNTIFS($G$3:G7,G7) -> 1900.M1 | J7: =MROUND(Table1[[#This Row],[Dist. Behind Usain Bolt]]*10,2) -> 126 | K7: =Table1[[#This Row],[Country]]=selCountry -> FALSE | L7: =MIN($E$3:E6)>E7 -> TRUE | M7: =VLOOKUP(Table1[[#This Row],[Medal]],$R$34:$S$36,2,FALSE) -> 1 | N7: =COUNTIFS($C$3:C7,C7,$M$3:M7,">="&M7)>1 -> FALSE | O7: =IF(Table1[[#This Row],[Defended?]],VLOOKUP(Table1[[#This Row],[Name]],$C$3:M7,5,FALSE)&" - "&INDEX($R$34:$R$36,VLOOKUP(Table1[[#This Row],[Name]],$C$3:M7,11,FALSE)),"") ->  | P7: =IF($AO$1<20,Table1[[#This Row],[Highlight?]],IF($AO$1=20,Table1[[#This Row],[OR?]],Table1[[#This Row],[Defended?]])) -> FALSE | R7: 1996 | S7: =IFERROR(INDEX(Table1[SNO],MATCH($R7&"."&S$2,Table1[year.m],0)),"") -> 71 | T7: =IFERROR(INDEX(Table1[SNO],MATCH($R7&"."&T$2,Table1[year.m],0)),"") -> 72 | U7: =IFERROR(INDEX(Table1[SNO],MATCH($R7&"."&U$2,Table1[year.m],0)),"") -> 73 | V7: =IFERROR(INDEX(Table1[SNO],MATCH($R7&"."&V$2,Table1[year.m],0)),"") ->  | W7: =INDEX(Table1[Venue],S7) -> Atlanta | Y7: =IFERROR(INDEX(Table1[cDistance],S7),"") -> 22 | Z7: =IFERROR(INDEX(Table1[cDistance],T7),"") -> 26 | AA7: =IFERROR(INDEX(Table1[cDistance],U7),"") -> 28 | AB7: =IFERROR(INDEX(Table1[cDistance],V7),"") ->  | AD7: =IFERROR(VLOOKUP(INDEX(Table1[Medal],S7),$R$34:$T$36,2,FALSE),0) -> 1 | AE7: =IFERROR(VLOOKUP(INDEX(Table1[Medal],T7),$R$34:$T$36,2,FALSE),0) -> 2 | AF7: =IFERROR(VLOOKUP(INDEX(Table1[Medal],U7),$R$34:$T$36,2,FALSE),0) -> 3 | AG7: =IFERROR(VLOOKUP(INDEX(Table1[Medal],V7),$R$34:$T$36,2,FALSE),0) -> 0 | AI7: Distance behind: | AJ7: =INDEX(Table1[Dist. Behind Usain Bolt],valSelRunner)&" meters behind" -> 0 meters behind | AM7: GER | AN7: Germany | AO7: =COUNTIF(Table1[Country],AM7) -> 4 | AP7: Germany - 4 medals | AS7: =IFERROR(INDEX(Table1[final highlight],S7),FALSE) -> FALSE | AT7: =IFERROR(INDEX(Table1[final highlight],T7),FALSE) -> FALSE | AU7: =IFERROR(INDEX(Table1[final highlight],U7),FALSE) -> FALSE | AV7: =IFERROR(INDEX(Table1[final highlight],V7),FALSE) -> FALSE
A8: 6 | B8: SILVER | C8: Walter Tewksbury | D8: USA | E8: 11.1 | F8: 13.2 | G8: 1900 | H8: Paris | I8: =G8&".M"&COUNTIFS($G$3:G8,G8) -> 1900.M2 | J8: =MROUND(Table1[[#This Row],[Dist. Behind Usain Bolt]]*10,2) -> 132 | K8: =Table1[[#This Row],[Country]]=selCountry -> FALSE | L8: =MIN($E$3:E7)>E8 -> FALSE | M8: =VLOOKUP(Table1[[#This Row],[Medal]],$R$34:$S$36,2,FALSE) -> 2 | N8: =COUNTIFS($C$3:C8,C8,$M$3:M8,">="&M8)>1 -> FALSE | O8: =IF(Table1[[#This Row],[Defended?]],VLOOKUP(Table1[[#This Row],[Name]],$C$3:M8,5,FALSE)&" - "&INDEX($R$34:$R$36,VLOOKUP(Table1[[#This Row],[Name]],$C$3:M8,11,FALSE)),"") ->  | P8: =IF($AO$1<20,Table1[[#This Row],[Highlight?]],IF($AO$1=20,Table1[[#This Row],[OR?]],Table1[[#This Row],[Defended?]])) -> FALSE | R8: 1992 | S8: =IFERROR(INDEX(Table1[SNO],MATCH($R8&"."&S$2,Table1[year.m],0)),"") -> 68 | T8: =IFERROR(INDEX(Table1[SNO],MATCH($R8&"."&T$2,Table1[year.m],0)),"") -> 69 | U8: =IFERROR(INDEX(Table1[SNO],MATCH($R8&"."&U$2,Table1[year.m],0)),"") -> 70 | V8: =IFERROR(INDEX(Table1[SNO],MATCH($R8&"."&V$2,Table1[year.m],0)),"") ->  | W8: =INDEX(Table1[Venue],S8) -> Barcelona | Y8: =IFERROR(INDEX(Table1[cDistance],S8),"") -> 34 | Z8: =IFERROR(INDEX(Table1[cDistance],T8),"") -> 40 | AA8: =IFERROR(INDEX(Table1[cDistance],U8),"") -> 42 | AB8: =IFERROR(INDEX(Table1[cDistance],V8),"") ->  | AD8: =IFERROR(VLOOKUP(INDEX(Table1[Medal],S8),$R$34:$T$36,2,FALSE),0) -> 1 | AE8: =IFERROR(VLOOKUP(INDEX(Table1[Medal],T8),$R$34:$T$36,2,FALSE),0) -> 2 | AF8: =IFERROR(VLOOKUP(INDEX(Table1[Medal],U8),$R$34:$T$36,2,FALSE),0) -> 3 | AG8: =IFERROR(VLOOKUP(INDEX(Table1[Medal],V8),$R$34:$T$36,2,FALSE),0) -> 0 | AI8: Medal type | AJ8: =VLOOKUP(INDEX(Table1[Medal],valSelRunner),$R$34:$S$36,2,FALSE) -> 1 | AM8: TRI | AN8: Trinidad & Tobago | AO8: =COUNTIF(Table1[Country],AM8) -> 4 | AP8: Trinidad & Tobago - 4 medals | AS8: =IFERROR(INDEX(Table1[final highlight],S8),FALSE) -> FALSE | AT8: =IFERROR(INDEX(Table1[final highlight],T8),FALSE) -> FALSE | AU8: =IFERROR(INDEX(Table1[final highlight],U8),FALSE) -> FALSE | AV8: =IFERROR(INDEX(Table1[final highlight],V8),FALSE) -> FALSE
A9: 7 | B9: BRONZE | C9: Stan Rowley | D9: AUS | E9: 11.2 | F9: 14 | G9: 1900 | H9: Paris | I9: =G9&".M"&COUNTIFS($G$3:G9,G9) -> 1900.M3 | J9: =MROUND(Table1[[#This Row],[Dist. Behind Usain Bolt]]*10,2) -> 140 | K9: =Table1[[#This Row],[Country]]=selCountry -> FALSE | L9: =MIN($E$3:E8)>E9 -> FALSE | M9: =VLOOKUP(Table1[[#This Row],[Medal]],$R$34:$S$36,2,FALSE) -> 3 | N9: =COUNTIFS($C$3:C9,C9,$M$3:M9,">="&M9)>1 -> FALSE | O9: =IF(Table1[[#This Row],[Defended?]],VLOOKUP(Table1[[#This Row],[Name]],$C$3:M9,5,FALSE)&" - "&INDEX($R$34:$R$36,VLOOKUP(Table1[[#This Row],[Name]],$C$3:M9,11,FALSE)),"") ->  | P9: =IF($AO$1<20,Table1[[#This Row],[Highlight?]],IF($AO$1=20,Table1[[#This Row],[OR?]],Table1[[#This Row],[Defended?]])) -> FALSE | R9: 1988 | S9: =IFERROR(INDEX(Table1[SNO],MATCH($R9&"."&S$2,Table1[year.m],0)),"") -> 65 | T9: =IFERROR(INDEX(Table1[SNO],MATCH($R9&"."&T$2,Table1[year.m],0)),"") -> 66 | U9: =IFERROR(INDEX(Table1[SNO],MATCH($R9&"."&U$2,Table1[year.m],0)),"") -> 67 | V9: =IFERROR(INDEX(Table1[SNO],MATCH($R9&"."&V$2,Table1[year.m],0)),"") ->  | W9: =INDEX(Table1[Venue],S9) -> Seoul | Y9: =IFERROR(INDEX(Table1[cDistance],S9),"") -> 30 | Z9: =IFERROR(INDEX(Table1[cDistance],T9),"") -> 34 | AA9: =IFERROR(INDEX(Table1[cDistance],U9),"") -> 36 | AB9: =IFERROR(INDEX(Table1[cDistance],V9),"") ->  | AD9: =IFERROR(VLOOKUP(INDEX(Table1[Medal],S9),$R$34:$T$36,2,FALSE),0) -> 1 | AE9: =IFERROR(VLOOKUP(INDEX(Table1[Medal],T9),$R$34:$T$36,2,FALSE),0) -> 2 | AF9: =IFERROR(VLOOKUP(INDEX(Table1[Medal],U9),$R$34:$T$36,2,FALSE),0) -> 3 | AG9: =IFERROR(VLOOKUP(INDEX(Table1[Medal],V9),$R$34:$T$36,2,FALSE),0) -> 0 | AM9: AUS | AN9: Australia | AO9: =COUNTIF(Table1[Country],AM9) -> 3 | AP9: Australia - 3 medals | AS9: =IFERROR(INDEX(Table1[final highlight],S9),FALSE) -> FALSE | AT9: =IFERROR(INDEX(Table1[final highlight],T9),FALSE) -> FALSE | AU9: =IFERROR(INDEX(Table1[final highlight],U9),FALSE) -> FALSE | AV9: =IFERROR(INDEX(Table1[final highlight],V9),FALSE) -> FALSE
A10: 8 | B10: GOLD | C10: Archie Hahn | D10: USA | E10: 11 | F10: 12.5 | G10: 1904 | H10: St. Louis | I10: =G10&".M"&COUNTIFS($G$3:G10,G10) -> 1904.M1 | J10: =MROUND(Table1[[#This Row],[Dist. Behind Usain Bolt]]*10,2) -> 126 | K10: =Table1[[#This Row],[Country]]=selCountry -> FALSE | L10: =MIN($E$3:E9)>E10 -> FALSE | M10: =VLOOKUP(Table1[[#This Row],[Medal]],$R$34:$S$36,2,FALSE) -> 1 | N10: =COUNTIFS($C$3:C10,C10,$M$3:M10,">="&M10)>1 -> FALSE | O10: =IF(Table1[[#This Row],[Defended?]],VLOOKUP(Table1[[#This Row],[Name]],$C$3:M10,5,FALSE)&" - "&INDEX($R$34:$R$36,VLOOKUP(Table1[[#This Row],[Name]],$C$3:M10,11,FALSE)),"") ->  | P10: =IF($AO$1<20,Table1[[#This Row],[Highlight?]],IF($AO$1=20,Table1[[#This Row],[OR?]],Table1[[#This Row],[Defended?]])) -> FALSE | R10: 1984 | S10: =IFERROR(INDEX(Table1[SNO],MATCH($R10&"."&S$2,Table1[year.m],0)),"") -> 62 | T10: =IFERROR(INDEX(Table1[SNO],MATCH($R10&"."&T$2,Table1[year.m],0)),"") -> 63 | U10: =IFERROR(INDEX(Table1[SNO],MATCH($R10&"."&U$2,Table1[year.m],0)),"") -> 64 | V10: =IFERROR(INDEX(Table1[SNO],MATCH($R10&"."&V$2,Table1[year.m],0)),"") ->  | W10: =INDEX(Table1[Venue],S10) -> Los Angeles | Y10: =IFERROR(INDEX(Table1[cDistance],S10),"") -> 36 | Z10: =IFERROR(INDEX(Table1[cDistance],T10),"") -> 56 | AA10: =IFERROR(INDEX(Table1[cDistance],U10),"") -> 58 | AB10: =IFERROR(INDEX(Table1[cDistance],V10),"") ->  | AD10: =IFERROR(VLOOKUP(INDEX(Table1[Medal],S10),$R$34:$T$36,2,FALSE),0) -> 1 | AE10: =IFERROR(VLOOKUP(INDEX(Table1[Medal],T10),$R$34:$T$36,2,FALSE),0) -> 2 | AF10: =IFERROR(VLOOKUP(INDEX(Table1[Medal],U10),$R$34:$T$36,2,FALSE),0) -> 3 | AG10: =IFERROR(VLOOKUP(INDEX(Table1[Medal],V10),$R$34:$T$36,2,FALSE),0) -> 0 | AI10: Pic link | AM10: CUB | AN10: Cuba | AO10: =COUNTIF(Table1[Country],AM10) -> 2 | AP10: Cuba - 2 medals | AS10: =IFERROR(INDEX(Table1[final highlight],S10),FALSE) -> FALSE | AT10: =IFERROR(INDEX(Table1[final highlight],T10),FALSE) -> FALSE | AU10: =IFERROR(INDEX(Table1[final highlight],U10),FALSE) -> FALSE | AV10: =IFERROR(INDEX(Table1[final highlight],V10),FALSE) -> FALSE
A11: 9 | B11: SILVER | C11: Nate Cartmell | D11: USA | E11: 11.2 | F11: 14 | G11: 1904 | H11: St. Louis | I11: =G11&".M"&COUNTIFS($G$3:G11,G11) -> 1904.M2 | J11: =MROUND(Table1[[#This Row],[Dist. Behind Usain Bolt]]*10,2) -> 140 | K11: =Table1[[#This Row],[Country]]=selCountry -> FALSE | L11: =MIN($E$3:E10)>E11 -> FALSE | M11: =VLOOKUP(Table1[[#This Row],[Medal]],$R$34:$S$36,2,FALSE) -> 2 | N11: =COUNTIFS($C$3:C11,C11,$M$3:M11,">="&M11)>1 -> FALSE | O11: =IF(Table1[[#This Row],[Defended?]],VLOOKUP(Table1[[#This Row],[Name]],$C$3:M11,5,FALSE)&" - "&INDEX($R$34:$R$36,VLOOKUP(Table1[[#This Row],[Name]],$C$3:M11,11,FALSE)),"") ->  | P11: =IF($AO$1<20,Table1[[#This Row],[Highlight?]],IF($AO$1=20,Table1[[#This Row],[OR?]],Table1[[#This Row],[Defended?]])) -> FALSE | R11: 1980 | S11: =IFERROR(INDEX(Table1[SNO],MATCH($R11&"."&S$2,Table1[year.m],0)),"") -> 59 | T11: =IFERROR(INDEX(Table1[SNO],MATCH($R11&"."&T$2,Table1[year.m],0)),"") -> 60 | U11: =IFERROR(INDEX(Table1[SNO],MATCH($R11&"."&U$2,Table1[year.m],0)),"") -> 61 | V11: =IFERROR(INDEX(Table1[SNO],MATCH($R11&"."&V$2,Table1[year.m],0)),"") ->  | W11: =INDEX(Table1[Venue],S11) -> Moscow | Y11: =IFERROR(INDEX(Table1[cDistance],S11),"") -> 60 | Z11: =IFERROR(INDEX(Table1[cDistance],T11),"") -> 60 | AA11: =IFERROR(INDEX(Table1[cDistance],U11),"") -> 74 | AB11: =IFERROR(INDEX(Table1[cDistance],V11),"") ->  | AD11: =IFERROR(VLOOKUP(INDEX(Table1[Medal],S11),$R$34:$T$36,2,FALSE),0) -> 1 | AE11: =IFERROR(VLOOKUP(INDEX(Table1[Medal],T11),$R$34:$T$36,2,FALSE),0) -> 2 | AF11: =IFERROR(VLOOKUP(INDEX(Table1[Medal],U11),$R$34:$T$36,2,FALSE),0) -> 3 | AG11: =IFERROR(VLOOKUP(INDEX(Table1[Medal],V11),$R$34:$T$36,2,FALSE),0) -> 0 | AM11: NAM | AN11: Namibia | AO11: =COUNTIF(Table1[Country],AM11) -> 2 | AP11: Namibia - 2 medals | AS11: =IFERROR(INDEX(Table1[final highlight],S11),FALSE) -> FALSE | AT11: =IFERROR(INDEX(Table1[final highlight],T11),FALSE) -> FALSE | AU11: =IFERROR(INDEX(Table1[final highlight],U11),FALSE) -> FALSE | AV11: =IFERROR(INDEX(Table1[final highlight],V11),FALSE) -> FALSE
A12: 10 | B12: BRONZE | C12: William Hogenson | D12: USA | E12: 11.2 | F12: 14 | G12: 1904 | H12: St. Louis | I12: =G12&".M"&COUNTIFS($G$3:G12,G12) -> 1904.M3 | J12: =MROUND(Table1[[#This Row],[Dist. Behind Usain Bolt]]*10,2) -> 140 | K12: =Table1[[#This Row],[Country]]=selCountry -> FALSE | L12: =MIN($E$3:E11)>E12 -> FALSE | M12: =VLOOKUP(Table1[[#This Row],[Medal]],$R$34:$S$36,2,FALSE) -> 3 | N12: =COUNTIFS($C$3:C12,C12,$M$3:M12,">="&M12)>1 -> FALSE | O12: =IF(Table1[[#This Row],[Defended?]],VLOOKUP(Table1[[#This Row],[Name]],$C$3:M12,5,FALSE)&" - "&INDEX($R$34:$R$36,VLOOKUP(Table1[[#This Row],[Name]],$C$3:M12,11,FALSE)),"") ->  | P12: =IF($AO$1<20,Table1[[#This Row],[Highlight?]],IF($AO$1=20,Table1[[#This Row],[OR?]],Table1[[#This Row],[Defended?]])) -> FALSE | R12: 1976 | S12: =IFERROR(INDEX(Table1[SNO],MATCH($R12&"."&S$2,Table1[year.m],0)),"") -> 56 | T12: =IFERROR(INDEX(Table1[SNO],MATCH($R12&"."&T$2,Table1[year.m],0)),"") -> 57 | U12: =IFERROR(INDEX(Table1[SNO],MATCH($R12&"."&U$2,Table1[year.m],0)),"") -> 58 | V12: =IFERROR(INDEX(Table1[SNO],MATCH($R12&"."&V$2,Table1[year.m],0)),"") ->  | W12: =INDEX(Table1[Venue],S12) -> Montreal | Y12: =IFERROR(INDEX(Table1[cDistance],S12),"") -> 44 | Z12: =IFERROR(INDEX(Table1[cDistance],T12),"") -> 46 | AA12: =IFERROR(INDEX(Table1[cDistance],U12),"") -> 50 | AB12: =IFERROR(INDEX(Table1[cDistance],V12),"") ->  | AD12: =IFERROR(VLOOKUP(INDEX(Table1[Medal],S12),$R$34:$T$36,2,FALSE),0) -> 1 | AE12: =IFERROR(VLOOKUP(INDEX(Table1[Medal],T12),$R$34:$T$36,2,FALSE),0) -> 2 | AF12: =IFERROR(VLOOKUP(INDEX(Table1[Medal],U12),$R$34:$T$36,2,FALSE),0) -> 3 | AG12: =IFERROR(VLOOKUP(INDEX(Table1[Medal],V12),$R$34:$T$36,2,FALSE),0) -> 0 | AI12: =AJ3 -> Usain Bolt | AJ12: =AJ4 -> (JAM) | AM12: URS | AN12: Soviet Union | AO12: =COUNTIF(Table1[Country],AM12) -> 2 | AP12: Soviet Union - 2 medals | AS12: =IFERROR(INDEX(Table1[final highlight],S12),FALSE) -> FALSE | AT12: =IFERROR(INDEX(Table1[final highlight],T12),FALSE) -> FALSE | AU12: =IFERROR(INDEX(Table1[final highlight],U12),FALSE) -> FALSE | AV12: =IFERROR(INDEX(Table1[final highlight],V12),FALSE) -> FALSE
A13: 11 | B13: GOLD | C13: Archie Hahn | D13: USA | E13: 11.2 | F13: 14 | G13: 1906 | H13: Athens | I13: =G13&".M"&COUNTIFS($G$3:G13,G13) -> 1906.M1 | J13: =MROUND(Table1[[#This Row],[Dist. Behind Usain Bolt]]*10,2) -> 140 | K13: =Table1[[#This Row],[Country]]=selCountry -> FALSE | L13: =MIN($E$3:E12)>E13 -> FALSE | M13: =VLOOKUP(Table1[[#This Row],[Medal]],$R$34:$S$36,2,FALSE) -> 1 | N13: =COUNTIFS($C$3:C13,C13,$M$3:M13,">="&M13)>1 -> TRUE | O13: =IF(Table1[[#This Row],[Defended?]],VLOOKUP(Table1[[#This Row],[Name]],$C$3:M13,5,FALSE)&" - "&INDEX($R$34:$R$36,VLOOKUP(Table1[[#This Row],[Name]],$C$3:M13,11,FALSE)),"") -> 1904 - Gold | P13: =IF($AO$1<20,Table1[[#This Row],[Highlight?]],IF($AO$1=20,Table1[[#This Row],[OR?]],Table1[[#This Row],[Defended?]])) -> FALSE | R13: 1972 | S13: =IFERROR(INDEX(Table1[SNO],MATCH($R13&"."&S$2,Table1[year.m],0)),"") -> 53 | T13: =IFERROR(INDEX(Table1[SNO],MATCH($R13&"."&T$2,Table1[year.m],0)),"") -> 54 | U13: =IFERROR(INDEX(Table1[SNO],MATCH($R13&"."&U$2,Table1[year.m],0)),"") -> 55 | V13: =IFERROR(INDEX(Table1[SNO],MATCH($R13&"."&V$2,Table1[year.m],0)),"") ->  | W13: =INDEX(Table1[Venue],S13) -> Munich | Y13: =IFERROR(INDEX(Table1[cDistance],S13),"") -> 50 | Z13: =IFERROR(INDEX(Table1[cDistance],T13),"") -> 60 | AA13: =IFERROR(INDEX(Table1[cDistance],U13),"") -> 68 | AB13: =IFERROR(INDEX(Table1[cDistance],V13),"") ->  | AD13: =IFERROR(VLOOKUP(INDEX(Table1[Medal],S13),$R$34:$T$36,2,FALSE),0) -> 1 | AE13: =IFERROR(VLOOKUP(INDEX(Table1[Medal],T13),$R$34:$T$36,2,FALSE),0) -> 2 | AF13: =IFERROR(VLOOKUP(INDEX(Table1[Medal],U13),$R$34:$T$36,2,FALSE),0) -> 3 | AG13: =IFERROR(VLOOKUP(INDEX(Table1[Medal],V13),$R$34:$T$36,2,FALSE),0) -> 0 | AI13: =AJ5 -> 9.63 seconds | AJ13: =AJ6 -> 2012 | AM13: BAR | AN13: Barbados | AO13: =COUNTIF(Table1[Country],AM13) -> 1 | AP13: =AN13&" - "&AO13&" medal" -> Barbados - 1 medal | AS13: =IFERROR(INDEX(Table1[final highlight],S13),FALSE) -> FALSE | AT13: =IFERROR(INDEX(Table1[final highlight],T13),FALSE) -> FALSE | AU13: =IFERROR(INDEX(Table1[final highlight],U13),FALSE) -> FALSE | AV13: =IFERROR(INDEX(Table1[final highlight],V13),FALSE) -> FALSE
A14: 12 | B14: SILVER | C14: Fay Foulton | D14: USA | E14: 11.3 | F14: 14.8 | G14: 1906 | H14: Athens | I14: =G14&".M"&COUNTIFS($G$3:G14,G14) -> 1906.M2 | J14: =MROUND(Table1[[#This Row],[Dist. Behind Usain Bolt]]*10,2) -> 148 | K14: =Table1[[#This Row],[Country]]=selCountry -> FALSE | L14: =MIN($E$3:E13)>E14 -> FALSE | M14: =VLOOKUP(Table1[[#This Row],[Medal]],$R$34:$S$36,2,FALSE) -> 2 | N14: =COUNTIFS($C$3:C14,C14,$M$3:M14,">="&M14)>1 -> FALSE | O14: =IF(Table1[[#This Row],[Defended?]],VLOOKUP(Table1[[#This Row],[Name]],$C$3:M14,5,FALSE)&" - "&INDEX($R$34:$R$36,VLOOKUP(Table1[[#This Row],[Name]],$C$3:M14,11,FALSE)),"") ->  | P14: =IF($AO$1<20,Table1[[#This Row],[Highlight?]],IF($AO$1=20,Table1[[#This Row],[OR?]],Table1[[#This Row],[Defended?]])) -> FALSE | R14: 1968 | S14: =IFERROR(INDEX(Table1[SNO],MATCH($R14&"."&S$2,Table1[year.m],0)),"") -> 50 | T14: =IFERROR(INDEX(Table1[SNO],MATCH($R14&"."&T$2,Table1[year.m],0)),"") -> 51 | U14: =IFERROR(INDEX(Table1[SNO],MATCH($R14&"."&U$2,Table1[year.m],0)),"") -> 52 | V14: =IFERROR(INDEX(Table1[SNO],MATCH($R14&"."&V$2,Table1[year.m],0)),"") ->  | W14: =INDEX(Table1[Venue],S14) -> Mexico City | Y14: =IFERROR(INDEX(Table1[cDistance],S14),"") -> 32 | Z14: =IFERROR(INDEX(Table1[cDistance],T14),"") -> 42 | AA14: =IFERROR(INDEX(Table1[cDistance],U14),"") -> 44 | AB14: =IFERROR(INDEX(Table1[cDistance],V14),"") ->  | AD14: =IFERROR(VLOOKUP(INDEX(Table1[Medal],S14),$R$34:$T$36,2,FALSE),0) -> 1 | AE14: =IFERROR(VLOOKUP(INDEX(Table1[Medal],T14),$R$34:$T$36,2,FALSE),0) -> 2 | AF14: =IFERROR(VLOOKUP(INDEX(Table1[Medal],U14),$R$34:$T$36,2,FALSE),0) -> 3 | AG14: =IFERROR(VLOOKUP(INDEX(Table1[Medal],V14),$R$34:$T$36,2,FALSE),0) -> 0 | AI14: =AJ7 -> 0 meters behind | AJ14: =AK6 ->  | AM14: BUL | AN14: Bulgaria | AO14: =COUNTIF(Table1[Country],AM14) -> 1 | AP14: =AN14&" - "&AO14&" medal" -> Bulgaria - 1 medal | AS14: =IFERROR(INDEX(Table1[final highlight],S14),FALSE) -> FALSE | AT14: =IFERROR(INDEX(Table1[final highlight],T14),FALSE) -> FALSE | AU14: =IFERROR(INDEX(Table1[final highlight],U14),FALSE) -> FALSE | AV14: =IFERROR(INDEX(Table1[final highlight],V14),FALSE) -> FALSE
A15: 13 | B15: BRONZE | C15: Nigel Barker | D15: AUS | E15: 11.3 | F15: 14.8 | G15: 1906 | H15: Athens | I15: =G15&".M"&COUNTIFS($G$3:G15,G15) -> 1906.M3 | J15: =MROUND(Table1[[#This Row],[Dist. Behind Usain Bolt]]*10,2) -> 148 | K15: =Table1[[#This Row],[Country]]=selCountry -> FALSE | L15: =MIN($E$3:E14)>E15 -> FALSE | M15: =VLOOKUP(Table1[[#This Row],[Medal]],$R$34:$S$36,2,FALSE) -> 3 | N15: =COUNTIFS($C$3:C15,C15,$M$3:M15,">="&M15)>1 -> FALSE | O15: =IF(Table1[[#This Row],[Defended?]],VLOOKUP(Table1[[#This Row],[Name]],$C$3:M15,5,FALSE)&" - "&INDEX($R$34:$R$36,VLOOKUP(Table1[[#This Row],[Name]],$C$3:M15,11,FALSE)),"") ->  | P15: =IF($AO$1<20,Table1[[#This Row],[Highlight?]],IF($AO$1=20,Table1[[#This Row],[OR?]],Table1[[#This Row],[Defended?]])) -> FALSE | R15: 1964 | S15: =IFERROR(INDEX(Table1[SNO],MATCH($R15&"."&S$2,Table1[year.m],0)),"") -> 47 | T15: =IFERROR(INDEX(Table1[SNO],MATCH($R15&"."&T$2,Table1[year.m],0)),"") -> 48 | U15: =IFERROR(INDEX(Table1[SNO],MATCH($R15&"."&U$2,Table1[year.m],0)),"") -> 49 | V15: =IFERROR(INDEX(Table1[SNO],MATCH($R15&"."&V$2,Table1[year.m],0)),"") ->  | W15: =INDEX(Table1[Venue],S15) -> Tokyo | Y15: =IFERROR(INDEX(Table1[cDistance],S15),"") -> 44 | Z15: =IFERROR(INDEX(Table1[cDistance],T15),"") -> 60 | AA15: =IFERROR(INDEX(Table1[cDistance],U15),"") -> 62 | AB15: =IFERROR(INDEX(Table1[cDistance],V15),"") ->  | AD15: =IFERROR(VLOOKUP(INDEX(Table1[Medal],S15),$R$34:$T$36,2,FALSE),0) -> 1 | AE15: =IFERROR(VLOOKUP(INDEX(Table1[Medal],T15),$R$34:$T$36,2,FALSE),0) -> 2 | AF15: =IFERROR(VLOOKUP(INDEX(Table1[Medal],U15),$R$34:$T$36,2,FALSE),0) -> 3 | AG15: =IFERROR(VLOOKUP(INDEX(Table1[Medal],V15),$R$34:$T$36,2,FALSE),0) -> 0 | AM15: HOL | AN15: Holland | AO15: =COUNTIF(Table1[Country],AM15) -> 1 | AP15: Holland - 1 medal | AS15: =IFERROR(INDEX(Table1[final highlight],S15),FALSE) -> FALSE | AT15: =IFERROR(INDEX(Table1[final highlight],T15),FALSE) -> FALSE | AU15: =IFERROR(INDEX(Table1[final highlight],U15),FALSE) -> FALSE | AV15: =IFERROR(INDEX(Table1[final highlight],V15),FALSE) -> FALSE
A16: 14 | B16: GOLD | C16: Reggie Walker | D16: SAF | E16: 10.8 | F16: 10.8 | G16: 1908 | H16: London | I16: =G16&".M"&COUNTIFS($G$3:G16,G16) -> 1908.M1 | J16: =MROUND(Table1[[#This Row],[Dist. Behind Usain Bolt]]*10,2) -> 108 | K16: =Table1[[#This Row],[Country]]=selCountry -> FALSE | L16: =MIN($E$3:E15)>E16 -> TRUE | M16: =VLOOKUP(Table1[[#This Row],[Medal]],$R$34:$S$36,2,FALSE) -> 1 | N16: =COUNTIFS($C$3:C16,C16,$M$3:M16,">="&M16)>1 -> FALSE | O16: =IF(Table1[[#This Row],[Defended?]],VLOOKUP(Table1[[#This Row],[Name]],$C$3:M16,5,FALSE)&" - "&INDEX($R$34:$R$36,VLOOKUP(Table1[[#This Row],[Name]],$C$3:M16,11,FALSE)),"") ->  | P16: =IF($AO$1<20,Table1[[#This Row],[Highlight?]],IF($AO$1=20,Table1[[#This Row],[OR?]],Table1[[#This Row],[Defended?]])) -> FALSE | R16: 1960 | S16: =IFERROR(INDEX(Table1[SNO],MATCH($R16&"."&S$2,Table1[year.m],0)),"") -> 44 | T16: =IFERROR(INDEX(Table1[SNO],MATCH($R16&"."&T$2,Table1[year.m],0)),"") -> 45 | U16: =IFERROR(INDEX(Table1[SNO],MATCH($R16&"."&U$2,Table1[year.m],0)),"") -> 46 | V16: =IFERROR(INDEX(Table1[SNO],MATCH($R16&"."&V$2,Table1[year.m],0)),"") ->  | W16: =INDEX(Table1[Venue],S16) -> Rome | Y16: =IFERROR(INDEX(Table1[cDistance],S16),"") -> 68 | Z16: =IFERROR(INDEX(Table1[cDistance],T16),"") -> 70 | AA16: =IFERROR(INDEX(Table1[cDistance],U16),"") -> 76 | AB16: =IFERROR(INDEX(Table1[cDistance],V16),"") ->  | AD16: =IFERROR(VLOOKUP(INDEX(Table1[Medal],S16),$R$34:$T$36,2,FALSE),0) -> 1 | AE16: =IFERROR(VLOOKUP(INDEX(Table1[Medal],T16),$R$34:$T$36,2,FALSE),0) -> 2 | AF16: =IFERROR(VLOOKUP(INDEX(Table1[Medal],U16),$R$34:$T$36,2,FALSE),0) -> 3 | AG16: =IFERROR(VLOOKUP(INDEX(Table1[Medal],V16),$R$34:$T$36,2,FALSE),0) -> 0 | AI16: callerRow | AJ16: 5 | AM16: HUN | AN16: Hungary | AO16: =COUNTIF(Table1[Country],AM16) -> 1 | AP16: Hungary - 1 medal | AS16: =IFERROR(INDEX(Table1[final highlight],S16),FALSE) -> FALSE | AT16: =IFERROR(INDEX(Table1[final highlight],T16),FALSE) -> FALSE | AU16: =IFERROR(INDEX(Table1[final highlight],U16),FALSE) -> FALSE | AV16: =IFERROR(INDEX(Table1[final highlight],V16),FALSE) -> FALSE
A17: 15 | B17: SILVER | C17: James Rector | D17: USA | E17: 11 | F17: 12.5 | G17: 1908 | H17: London | I17: =G17&".M"&COUNTIFS($G$3:G17,G17) -> 1908.M2 | J17: =MROUND(Table1[[#This Row],[Dist. Behind Usain Bolt]]*10,2) -> 126 | K17: =Table1[[#This Row],[Country]]=selCountry -> FALSE | L17: =MIN($E$3:E16)>E17 -> FALSE | M17: =VLOOKUP(Table1[[#This Row],[Medal]],$R$34:$S$36,2,FALSE) -> 2 | N17: =COUNTIFS($C$3:C17,C17,$M$3:M17,">="&M17)>1 -> FALSE | O17: =IF(Table1[[#This Row],[Defended?]],VLOOKUP(Table1[[#This Row],[Name]],$C$3:M17,5,FALSE)&" - "&INDEX($R$34:$R$36,VLOOKUP(Table1[[#This Row],[Name]],$C$3:M17,11,FALSE)),"") ->  | P17: =IF($AO$1<20,Table1[[#This Row],[Highlight?]],IF($AO$1=20,Table1[[#This Row],[OR?]],Table1[[#This Row],[Defended?]])) -> FALSE | R17: 1956 | S17: =IFERROR(INDEX(Table1[SNO],MATCH($R17&"."&S$2,Table1[year.m],0)),"") -> 41 | T17: =IFERROR(INDEX(Table1[SNO],MATCH($R17&"."&T$2,Table1[year.m],0)),"") -> 42 | U17: =IFERROR(INDEX(Table1[SNO],MATCH($R17&"."&U$2,Table1[year.m],0)),"") -> 43 | V17: =IFERROR(INDEX(Table1[SNO],MATCH($R17&"."&V$2,Table1[year.m],0)),"") ->  | W17: =INDEX(Table1[Venue],S17) -> Melbourne | Y17: =IFERROR(INDEX(Table1[cDistance],S17),"") -> 94 | Z17: =IFERROR(INDEX(Table1[cDistance],T17),"") -> 106 | AA17: =IFERROR(INDEX(Table1[cDistance],U17),"") -> 106 | AB17: =IFERROR(INDEX(Table1[cDistance],V17),"") ->  | AD17: =IFERROR(VLOOKUP(INDEX(Table1[Medal],S17),$R$34:$T$36,2,FALSE),0) -> 1 | AE17: =IFERROR(VLOOKUP(INDEX(Table1[Medal],T17),$R$34:$T$36,2,FALSE),0) -> 2 | AF17: =IFERROR(VLOOKUP(INDEX(Table1[Medal],U17),$R$34:$T$36,2,FALSE),0) -> 3 | AG17: =IFERROR(VLOOKUP(INDEX(Table1[Medal],V17),$R$34:$T$36,2,FALSE),0) -> 0 | AI17: callerCol | AJ17: 123 | AM17: NZL | AN17: New Zealand | AO17: =COUNTIF(Table1[Country],AM17) -> 1 | AP17: New Zealand - 1 medal | AS17: =IFERROR(INDEX(Table1[final highlight],S17),FALSE) -> FALSE | AT17: =IFERROR(INDEX(Table1[final highlight],T17),FALSE) -> FALSE | AU17: =IFERROR(INDEX(Table1[final highlight],U17),FALSE) -> FALSE | AV17: =IFERROR(INDEX(Table1[final highlight],V17),FALSE) -> FALSE
A18: 16 | B18: BRONZE | C18: Robert Kerr | D18: CAN | E18: 11 | F18: 12.5 | G18: 1908 | H18: London | I18: =G18&".M"&COUNTIFS($G$3:G18,G18) -> 1908.M3 | J18: =MROUND(Table1[[#This Row],[Dist. Behind Usain Bolt]]*10,2) -> 126 | K18: =Table1[[#This Row],[Country]]=selCountry -> FALSE | L18: =MIN($E$3:E17)>E18 -> FALSE | M18: =VLOOKUP(Table1[[#This Row],[Medal]],$R$34:$S$36,2,FALSE) -> 3 | N18: =COUNTIFS($C$3:C18,C18,$M$3:M18,">="&M18)>1 -> FALSE | O18: =IF(Table1[[#This Row],[Defended?]],VLOOKUP(Table1[[#This Row],[Name]],$C$3:M18,5,FALSE)&" - "&INDEX($R$34:$R$36,VLOOKUP(Table1[[#This Row],[Name]],$C$3:M18,11,FALSE)),"") ->  | P18: =IF($AO$1<20,Table1[[#This Row],[Highlight?]],IF($AO$1=20,Table1[[#This Row],[OR?]],Table1[[#This Row],[Defended?]])) -> FALSE | R18: 1952 | S18: =IFERROR(INDEX(Table1[SNO],MATCH($R18&"."&S$2,Table1[year.m],0)),"") -> 38 | T18: =IFERROR(INDEX(Table1[SNO],MATCH($R18&"."&T$2,Table1[year.m],0)),"") -> 39 | U18: =IFERROR(INDEX(Table1[SNO],MATCH($R18&"."&U$2,Table1[year.m],0)),"") -> 40 | V18: =IFERROR(INDEX(Table1[SNO],MATCH($R18&"."&V$2,Table1[year.m],0)),"") ->  | W18: =INDEX(Table1[Venue],S18) -> Helsinki | Y18: =IFERROR(INDEX(Table1[cDistance],S18),"") -> 108 | Z18: =IFERROR(INDEX(Table1[cDistance],T18),"") -> 108 | AA18: =IFERROR(INDEX(Table1[cDistance],U18),"") -> 112 | AB18: =IFERROR(INDEX(Table1[cDistance],V18),"") ->  | AD18: =IFERROR(VLOOKUP(INDEX(Table1[Medal],S18),$R$34:$T$36,2,FALSE),0) -> 1 | AE18: =IFERROR(VLOOKUP(INDEX(Table1[Medal],T18),$R$34:$T$36,2,FALSE),0) -> 2 | AF18: =IFERROR(VLOOKUP(INDEX(Table1[Medal],U18),$R$34:$T$36,2,FALSE),0) -> 3 | AG18: =IFERROR(VLOOKUP(INDEX(Table1[Medal],V18),$R$34:$T$36,2,FALSE),0) -> 0 | AM18: PAN | AN18: Panama | AO18: =COUNTIF(Table1[Country],AM18) -> 1 | AP18: Panama - 1 medal | AS18: =IFERROR(INDEX(Table1[final highlight],S18),FALSE) -> FALSE | AT18: =IFERROR(INDEX(Table1[final highlight],T18),FALSE) -> FALSE | AU18: =IFERROR(INDEX(Table1[final highlight],U18),FALSE) -> FALSE | AV18: =IFERROR(INDEX(Table1[final highlight],V18),FALSE) -> FALSE
A19: 17 | B19: GOLD | C19: Ralph Craig | D19: USA | E19: 10.8 | F19: 10.8 | G19: 1912 | H19: Stockholm | I19: =G19&".M"&COUNTIFS($G$3:G19,G19) -> 1912.M1 | J19: =MROUND(Table1[[#This Row],[Dist. Behind Usain Bolt]]*10,2) -> 108 | K19: =Table1[[#This Row],[Country]]=selCountry -> FALSE | L19: =MIN($E$3:E18)>E19 -> FALSE | M19: =VLOOKUP(Table1[[#This Row],[Medal]],$R$34:$S$36,2,FALSE) -> 1 | N19: =COUNTIFS($C$3:C19,C19,$M$3:M19,">="&M19)>1 -> FALSE | O19: =IF(Table1[[#This Row],[Defended?]],VLOOKUP(Table1[[#This Row],[Name]],$C$3:M19,5,FALSE)&" - "&INDEX($R$34:$R$36,VLOOKUP(Table1[[#This Row],[Name]],$C$3:M19,11,FALSE)),"") ->  | P19: =IF($AO$1<20,Table1[[#This Row],[Highlight?]],IF($AO$1=20,Table1[[#This Row],[OR?]],Table1[[#This Row],[Defended?]])) -> FALSE | R19: 1948 | S19: =IFERROR(INDEX(Table1[SNO],MATCH($R19&"."&S$2,Table1[year.m],0)),"") -> 35 | T19: =IFERROR(INDEX(Table1[SNO],MATCH($R19&"."&T$2,Table1[year.m],0)),"") -> 36 | U19: =IFERROR(INDEX(Table1[SNO],MATCH($R19&"."&U$2,Table1[year.m],0)),"") -> 37 | V19: =IFERROR(INDEX(Table1[SNO],MATCH($R19&"."&V$2,Table1[year.m],0)),"") ->  | W19: =INDEX(Table1[Venue],S19) -> London | Y19: =IFERROR(INDEX(Table1[cDistance],S19),"") -> 66 | Z19: =IFERROR(INDEX(Table1[cDistance],T19),"") -> 74 | AA19: =IFERROR(INDEX(Table1[cDistance],U19),"") -> 74 | AB19: =IFERROR(INDEX(Table1[cDistance],V19),"") ->  | AD19: =IFERROR(VLOOKUP(INDEX(Table1[Medal],S19),$R$34:$T$36,2,FALSE),0) -> 1 | AE19: =IFERROR(VLOOKUP(INDEX(Table1[Medal],T19),$R$34:$T$36,2,FALSE),0) -> 2 | AF19: =IFERROR(VLOOKUP(INDEX(Table1[Medal],U19),$R$34:$T$36,2,FALSE),0) -> 3 | AG19: =IFERROR(VLOOKUP(INDEX(Table1[Medal],V19),$R$34:$T$36,2,FALSE),0) -> 0 | AM19: POR | AN19: Portugal | AO19: =COUNTIF(Table1[Country],AM19) -> 1 | AP19: Portugal - 1 medal | AS19: =IFERROR(INDEX(Table1[final highlight],S19),FALSE) -> FALSE | AT19: =IFERROR(INDEX(Table1[final highlight],T19),FALSE) -> FALSE | AU19: =IFERROR(INDEX(Table1[final highlight],U19),FALSE) -> FALSE | AV19: =IFERROR(INDEX(Table1[final highlight],V19),FALSE) -> FALSE
A20: 18 | B20: SILVER | C20: Alvah Meyer | D20: USA | E20: 10.9 | F20: 11.7 | G20: 1912 | H20: Stockholm | I20: =G20&".M"&COUNTIFS($G$3:G20,G20) -> 1912.M2 | J20: =MROUND(Table1[[#This Row],[Dist. Behind Usain Bolt]]*10,2) -> 118 | K20: =Table1[[#This Row],[Country]]=selCountry -> FALSE | L20: =MIN($E$3:E19)>E20 -> FALSE | M20: =VLOOKUP(Table1[[#This Row],[Medal]],$R$34:$S$36,2,FALSE) -> 2 | N20: =COUNTIFS($C$3:C20,C20,$M$3:M20,">="&M20)>1 -> FALSE | O20: =IF(Table1[[#This Row],[Defended?]],VLOOKUP(Table1[[#This Row],[Name]],$C$3:M20,5,FALSE)&" - "&INDEX($R$34:$R$36,VLOOKUP(Table1[[#This Row],[Name]],$C$3:M20,11,FALSE)),"") ->  | P20: =IF($AO$1<20,Table1[[#This Row],[Highlight?]],IF($AO$1=20,Table1[[#This Row],[OR?]],Table1[[#This Row],[Defended?]])) -> FALSE | R20: 1936 | S20: =IFERROR(INDEX(Table1[SNO],MATCH($R20&"."&S$2,Table1[year.m],0)),"") -> 32 | T20: =IFERROR(INDEX(Table1[SNO],MATCH($R20&"."&T$2,Table1[year.m],0)),"") -> 33 | U20: =IFERROR(INDEX(Table1[SNO],MATCH($R20&"."&U$2,Table1[year.m],0)),"") -> 34 | V20: =IFERROR(INDEX(Table1[SNO],MATCH($R20&"."&V$2,Table1[year.m],0)),"") ->  | W20: =INDEX(Table1[Venue],S20) -> Berlin | Y20: =IFERROR(INDEX(Table1[cDistance],S20),"") -> 66 | Z20: =IFERROR(INDEX(Table1[cDistance],T20),"") -> 74 | AA20: =IFERROR(INDEX(Table1[cDistance],U20),"") -> 84 | AB20: =IFERROR(INDEX(Table1[cDistance],V20),"") ->  | AD20: =IFERROR(VLOOKUP(INDEX(Table1[Medal],S20),$R$34:$T$36,2,FALSE),0) -> 1 | AE20: =IFERROR(VLOOKUP(INDEX(Table1[Medal],T20),$R$34:$T$36,2,FALSE),0) -> 2 | AF20: =IFERROR(VLOOKUP(INDEX(Table1[Medal],U20),$R$34:$T$36,2,FALSE),0) -> 3 | AG20: =IFERROR(VLOOKUP(INDEX(Table1[Medal],V20),$R$34:$T$36,2,FALSE),0) -> 0 | AM20: SAF | AN20: South Africa | AO20: =COUNTIF(Table1[Country],AM20) -> 1 | AP20: South Africa - 1 medal | AS20: =IFERROR(INDEX(Table1[final highlight],S20),FALSE) -> FALSE | AT20: =IFERROR(INDEX(Table1[final highlight],T20),FALSE) -> FALSE | AU20: =IFERROR(INDEX(Table1[final highlight],U20),FALSE) -> FALSE | AV20: =IFERROR(INDEX(Table1[final highlight],V20),FALSE) -> FALSE
A21: 19 | B21: BRONZE | C21: Donald Lippincott | D21: USA | E21: 10.9 | F21: 11.7 | G21: 1912 | H21: Stockholm | I21: =G21&".M"&COUNTIFS($G$3:G21,G21) -> 1912.M3 | J21: =MROUND(Table1[[#This Row],[Dist. Behind Usain Bolt]]*10,2) -> 118 | K21: =Table1[[#This Row],[Country]]=selCountry -> FALSE | L21: =MIN($E$3:E20)>E21 -> FALSE | M21: =VLOOKUP(Table1[[#This Row],[Medal]],$R$34:$S$36,2,FALSE) -> 3 | N21: =COUNTIFS($C$3:C21,C21,$M$3:M21,">="&M21)>1 -> FALSE | O21: =IF(Table1[[#This Row],[Defended?]],VLOOKUP(Table1[[#This Row],[Name]],$C$3:M21,5,FALSE)&" - "&INDEX($R$34:$R$36,VLOOKUP(Table1[[#This Row],[Name]],$C$3:M21,11,FALSE)),"") ->  | P21: =IF($AO$1<20,Table1[[#This Row],[Highlight?]],IF($AO$1=20,Table1[[#This Row],[OR?]],Table1[[#This Row],[Defended?]])) -> FALSE | R21: 1932 | S21: =IFERROR(INDEX(Table1[SNO],MATCH($R21&"."&S$2,Table1[year.m],0)),"") -> 29 | T21: =IFERROR(INDEX(Table1[SNO],MATCH($R21&"."&T$2,Table1[year.m],0)),"") -> 30 | U21: =IFERROR(INDEX(Table1[SNO],MATCH($R21&"."&U$2,Table1[year.m],0)),"") -> 31 | V21: =IFERROR(INDEX(Table1[SNO],MATCH($R21&"."&V$2,Table1[year.m],0)),"") ->  | W21: =INDEX(Table1[Venue],S21) -> Los Angeles | Y21: =IFERROR(INDEX(Table1[cDistance],S21),"") -> 66 | Z21: =IFERROR(INDEX(Table1[cDistance],T21),"") -> 66 | AA21: =IFERROR(INDEX(Table1[cDistance],U21),"") -> 74 | AB21: =IFERROR(INDEX(Table1[cDistance],V21),"") ->  | AD21: =IFERROR(VLOOKUP(INDEX(Table1[Medal],S21),$R$34:$T$36,2,FALSE),0) -> 1 | AE21: =IFERROR(VLOOKUP(INDEX(Table1[Medal],T21),$R$34:$T$36,2,FALSE),0) -> 2 | AF21: =IFERROR(VLOOKUP(INDEX(Table1[Medal],U21),$R$34:$T$36,2,FALSE),0) -> 3 | AG21: =IFERROR(VLOOKUP(INDEX(Table1[Medal],V21),$R$34:$T$36,2,FALSE),0) -> 0 | AN21: Nothing | AP21: New Olympic Records | AS21: =IFERROR(INDEX(Table1[final highlight],S21),FALSE) -> FALSE | AT21: =IFERROR(INDEX(Table1[final highlight],T21),FALSE) -> FALSE | AU21: =IFERROR(INDEX(Table1[final highlight],U21),FALSE) -> FALSE | AV21: =IFERROR(INDEX(Table1[final highlight],V21),FALSE) -> FALSE
A22: 20 | B22: GOLD | C22: Charles Paddock | D22: USA | E22: 10.8 | F22: 10.8 | G22: 1920 | H22: Antwerp | I22: =G22&".M"&COUNTIFS($G$3:G22,G22) -> 1920.M1 | J22: =MROUND(Table1[[#This Row],[Dist. Behind Usain Bolt]]*10,2) -> 108 | K22: =Table1[[#This Row],[Country]]=selCountry -> FALSE | L22: =MIN($E$3:E21)>E22 -> FALSE | M22: =VLOOKUP(Table1[[#This Row],[Medal]],$R$34:$S$36,2,FALSE) -> 1 | N22: =COUNTIFS($C$3:C22,C22,$M$3:M22,">="&M22)>1 -> FALSE | O22: =IF(Table1[[#This Row],[Defended?]],VLOOKUP(Table1[[#This Row],[Name]],$C$3:M22,5,FALSE)&" - "&INDEX($R$34:$R$36,VLOOKUP(Table1[[#This Row],[Name]],$C$3:M22,11,FALSE)),"") ->  | P22: =IF($AO$1<20,Table1[[#This Row],[Highlight?]],IF($AO$1=20,Table1[[#This Row],[OR?]],Table1[[#This Row],[Defended?]])) -> FALSE | R22: 1928 | S22: =IFERROR(INDEX(Table1[SNO],MATCH($R22&"."&S$2,Table1[year.m],0)),"") -> 26 | T22: =IFERROR(INDEX(Table1[SNO],MATCH($R22&"."&T$2,Table1[year.m],0)),"") -> 27 | U22: =IFERROR(INDEX(Table1[SNO],MATCH($R22&"."&U$2,Table1[year.m],0)),"") -> 28 | V22: =IFERROR(INDEX(Table1[SNO],MATCH($R22&"."&V$2,Table1[year.m],0)),"") ->  | W22: =INDEX(Table1[Venue],S22) -> Amsterdam | Y22: =IFERROR(INDEX(Table1[cDistance],S22),"") -> 108 | Z22: =IFERROR(INDEX(Table1[cDistance],T22),"") -> 118 | AA22: =IFERROR(INDEX(Table1[cDistance],U22),"") -> 118 | AB22: =IFERROR(INDEX(Table1[cDistance],V22),"") ->  | AD22: =IFERROR(VLOOKUP(INDEX(Table1[Medal],S22),$R$34:$T$36,2,FALSE),0) -> 1 | AE22: =IFERROR(VLOOKUP(INDEX(Table1[Medal],T22),$R$34:$T$36,2,FALSE),0) -> 2 | AF22: =IFERROR(VLOOKUP(INDEX(Table1[Medal],U22),$R$34:$T$36,2,FALSE),0) -> 3 | AG22: =IFERROR(VLOOKUP(INDEX(Table1[Medal],V22),$R$34:$T$36,2,FALSE),0) -> 0 | AP22: Medal Defenders | AS22: =IFERROR(INDEX(Table1[final highlight],S22),FALSE) -> FALSE | AT22: =IFERROR(INDEX(Table1[final highlight],T22),FALSE) -> FALSE | AU22: =IFERROR(INDEX(Table1[final highlight],U22),FALSE) -> FALSE | AV22: =IFERROR(INDEX(Table1[final highlight],V22),FALSE) -> FALSE
A23: 21 | B23: SILVER | C23: Morris Kirksey | D23: USA | E23: 10.9 | F23: 11.7 | G23: 1920 | H23: Antwerp | I23: =G23&".M"&COUNTIFS($G$3:G23,G23) -> 1920.M2 | J23: =MROUND(Table1[[#This Row],[Dist. Behind Usain Bolt]]*10,2) -> 118 | K23: =Table1[[#This Row],[Country]]=selCountry -> FALSE | L23: =MIN($E$3:E22)>E23 -> FALSE | M23: =VLOOKUP(Table1[[#This Row],[Medal]],$R$34:$S$36,2,FALSE) -> 2 | N23: =COUNTIFS($C$3:C23,C23,$M$3:M23,">="&M23)>1 -> FALSE | O23: =IF(Table1[[#This Row],[Defended?]],VLOOKUP(Table1[[#This Row],[Name]],$C$3:M23,5,FALSE)&" - "&INDEX($R$34:$R$36,VLOOKUP(Table1[[#This Row],[Name]],$C$3:M23,11,FALSE)),"") ->  | P23: =IF($AO$1<20,Table1[[#This Row],[Highlight?]],IF($AO$1=20,Table1[[#This Row],[OR?]],Table1[[#This Row],[Defended?]])) -> FALSE | R23: 1924 | S23: =IFERROR(INDEX(Table1[SNO],MATCH($R23&"."&S$2,Table1[year.m],0)),"") -> 23 | T23: =IFERROR(INDEX(Table1[SNO],MATCH($R23&"."&T$2,Table1[year.m],0)),"") -> 24 | U23: =IFERROR(INDEX(Table1[SNO],MATCH($R23&"."&U$2,Table1[year.m],0)),"") -> 25 | V23: =IFERROR(INDEX(Table1[SNO],MATCH($R23&"."&V$2,Table1[year.m],0)),"") ->  | W23: =INDEX(Table1[Venue],S23) -> Paris | Y23: =IFERROR(INDEX(Table1[cDistance],S23),"") -> 92 | Z23: =IFERROR(INDEX(Table1[cDistance],T23),"") -> 108 | AA23: =IFERROR(INDEX(Table1[cDistance],U23),"") -> 118 | AB23: =IFERROR(INDEX(Table1[cDistance],V23),"") ->  | AD23: =IFERROR(VLOOKUP(INDEX(Table1[Medal],S23),$R$34:$T$36,2,FALSE),0) -> 1 | AE23: =IFERROR(VLOOKUP(INDEX(Table1[Medal],T23),$R$34:$T$36,2,FALSE),0) -> 2 | AF23: =IFERROR(VLOOKUP(INDEX(Table1[Medal],U23),$R$34:$T$36,2,FALSE),0) -> 3 | AG23: =IFERROR(VLOOKUP(INDEX(Table1[Medal],V23),$R$34:$T$36,2,FALSE),0) -> 0 | AS23: =IFERROR(INDEX(Table1[final highlight],S23),FALSE) -> FALSE | AT23: =IFERROR(INDEX(Table1[final highlight],T23),FALSE) -> FALSE | AU23: =IFERROR(INDEX(Table1[final highlight],U23),FALSE) -> FALSE | AV23: =IFERROR(INDEX(Table1[final highlight],V23),FALSE) -> FALSE
A24: 22 | B24: BRONZE | C24: Harry Edward | D24: GBR | E24: 10.9 | F24: 11.7 | G24: 1920 | H24: Antwerp | I24: =G24&".M"&COUNTIFS($G$3:G24,G24) -> 1920.M3 | J24: =MROUND(Table1[[#This Row],[Dist. Behind Usain Bolt]]*10,2) -> 118 | K24: =Table1[[#This Row],[Country]]=selCountry -> FALSE | L24: =MIN($E$3:E23)>E24 -> FALSE | M24: =VLOOKUP(Table1[[#This Row],[Medal]],$R$34:$S$36,2,FALSE) -> 3 | N24: =COUNTIFS($C$3:C24,C24,$M$3:M24,">="&M24)>1 -> FALSE | O24: =IF(Table1[[#This Row],[Defended?]],VLOOKUP(Table1[[#This Row],[Name]],$C$3:M24,5,FALSE)&" - "&INDEX($R$34:$R$36,VLOOKUP(Table1[[#This Row],[Name]],$C$3:M24,11,FALSE)),"") ->  | P24: =IF($AO$1<20,Table1[[#This Row],[Highlight?]],IF($AO$1=20,Table1[[#This Row],[OR?]],Table1[[#This Row],[Defended?]])) -> FALSE | R24: 1920 | S24: =IFERROR(INDEX(Table1[SNO],MATCH($R24&"."&S$2,Table1[year.m],0)),"") -> 20 | T24: =IFERROR(INDEX(Table1[SNO],MATCH($R24&"."&T$2,Table1[year.m],0)),"") -> 21 | U24: =IFERROR(INDEX(Table1[SNO],MATCH($R24&"."&U$2,Table1[year.m],0)),"") -> 22 | V24: =IFERROR(INDEX(Table1[SNO],MATCH($R24&"."&V$2,Table1[year.m],0)),"") ->  | W24: =INDEX(Table1[Venue],S24) -> Antwerp | Y24: =IFERROR(INDEX(Table1[cDistance],S24),"") -> 108 | Z24: =IFERROR(INDEX(Table1[cDistance],T24),"") -> 118 | AA24: =IFERROR(INDEX(Table1[cDistance],U24),"") -> 118 | AB24: =IFERROR(INDEX(Table1[cDistance],V24),"") ->  | AD24: =IFERROR(VLOOKUP(INDEX(Table1[Medal],S24),$R$34:$T$36,2,FALSE),0) -> 1 | AE24: =IFERROR(VLOOKUP(INDEX(Table1[Medal],T24),$R$34:$T$36,2,FALSE),0) -> 2 | AF24: =IFERROR(VLOOKUP(INDEX(Table1[Medal],U24),$R$34:$T$36,2,FALSE),0) -> 3 | AG24: =IFERROR(VLOOKUP(INDEX(Table1[Medal],V24),$R$34:$T$36,2,FALSE),0) -> 0 | AS24: =IFERROR(INDEX(Table1[final highlight],S24),FALSE) -> FALSE | AT24: =IFERROR(INDEX(Table1[final highlight],T24),FALSE) -> FALSE | AU24: =IFERROR(INDEX(Table1[final highlight],U24),FALSE) -> FALSE | AV24: =IFERROR(INDEX(Table1[final highlight],V24),FALSE) -> FALSE
A25: 23 | B25: GOLD | C25: Harold Abrahams | D25: GBR | E25: 10.6 | F25: 9.2 | G25: 1924 | H25: Paris | I25: =G25&".M"&COUNTIFS($G$3:G25,G25) -> 1924.M1 | J25: =MROUND(Table1[[#This Row],[Dist. Behind Usain Bolt]]*10,2) -> 92 | K25: =Table1[[#This Row],[Country]]=selCountry -> FALSE | L25: =MIN($E$3:E24)>E25 -> TRUE | M25: =VLOOKUP(Table1[[#This Row],[Medal]],$R$34:$S$36,2,FALSE) -> 1 | N25: =COUNTIFS($C$3:C25,C25,$M$3:M25,">="&M25)>1 -> FALSE | O25: =IF(Table1[[#This Row],[Defended?]],VLOOKUP(Table1[[#This Row],[Name]],$C$3:M25,5,FALSE)&" - "&INDEX($R$34:$R$36,VLOOKUP(Table1[[#This Row],[Name]],$C$3:M25,11,FALSE)),"") ->  | P25: =IF($AO$1<20,Table1[[#This Row],[Highlight?]],IF($AO$1=20,Table1[[#This Row],[OR?]],Table1[[#This Row],[Defended?]])) -> FALSE | R25: 1912 | S25: =IFERROR(INDEX(Table1[SNO],MATCH($R25&"."&S$2,Table1[year.m],0)),"") -> 17 | T25: =IFERROR(INDEX(Table1[SNO],MATCH($R25&"."&T$2,Table1[year.m],0)),"") -> 18 | U25: =IFERROR(INDEX(Table1[SNO],MATCH($R25&"."&U$2,Table1[year.m],0)),"") -> 19 | V25: =IFERROR(INDEX(Table1[SNO],MATCH($R25&"."&V$2,Table1[year.m],0)),"") ->  | W25: =INDEX(Table1[Venue],S25) -> Stockholm | Y25: =IFERROR(INDEX(Table1[cDistance],S25),"") -> 108 | Z25: =IFERROR(INDEX(Table1[cDistance],T25),"") -> 118 | AA25: =IFERROR(INDEX(Table1[cDistance],U25),"") -> 118 | AB25: =IFERROR(INDEX(Table1[cDistance],V25),"") ->  | AD25: =IFERROR(VLOOKUP(INDEX(Table1[Medal],S25),$R$34:$T$36,2,FALSE),0) -> 1 | AE25: =IFERROR(VLOOKUP(INDEX(Table1[Medal],T25),$R$34:$T$36,2,FALSE),0) -> 2 | AF25: =IFERROR(VLOOKUP(INDEX(Table1[Medal],U25),$R$34:$T$36,2,FALSE),0) -> 3 | AG25: =IFERROR(VLOOKUP(INDEX(Table1[Medal],V25),$R$34:$T$36,2,FALSE),0) -> 0 | AS25: =IFERROR(INDEX(Table1[final highlight],S25),FALSE) -> FALSE | AT25: =IFERROR(INDEX(Table1[final highlight],T25),FALSE) -> FALSE | AU25: =IFERROR(INDEX(Table1[final highlight],U25),FALSE) -> FALSE | AV25: =IFERROR(INDEX(Table1[final highlight],V25),FALSE) -> FALSE
A26: 24 | B26: SILVER | C26: Jackson Scholz | D26: USA | E26: 10.8 | F26: 10.8 | G26: 1924 | H26: Paris | I26: =G26&".M"&COUNTIFS($G$3:G26,G26) -> 1924.M2 | J26: =MROUND(Table1[[#This Row],[Dist. Behind Usain Bolt]]*10,2) -> 108 | K26: =Table1[[#This Row],[Country]]=selCountry -> FALSE | L26: =MIN($E$3:E25)>E26 -> FALSE | M26: =VLOOKUP(Table1[[#This Row],[Medal]],$R$34:$S$36,2,FALSE) -> 2 | N26: =COUNTIFS($C$3:C26,C26,$M$3:M26,">="&M26)>1 -> FALSE | O26: =IF(Table1[[#This Row],[Defended?]],VLOOKUP(Table1[[#This Row],[Name]],$C$3:M26,5,FALSE)&" - "&INDEX($R$34:$R$36,VLOOKUP(Table1[[#This Row],[Name]],$C$3:M26,11,FALSE)),"") ->  | P26: =IF($AO$1<20,Table1[[#This Row],[Highlight?]],IF($AO$1=20,Table1[[#This Row],[OR?]],Table1[[#This Row],[Defended?]])) -> FALSE | R26: 1908 | S26: =IFERROR(INDEX(Table1[SNO],MATCH($R26&"."&S$2,Table1[year.m],0)),"") -> 14 | T26: =IFERROR(INDEX(Table1[SNO],MATCH($R26&"."&T$2,Table1[year.m],0)),"") -> 15 | U26: =IFERROR(INDEX(Table1[SNO],MATCH($R26&"."&U$2,Table1[year.m],0)),"") -> 16 | V26: =IFERROR(INDEX(Table1[SNO],MATCH($R26&"."&V$2,Table1[year.m],0)),"") ->  | W26: =INDEX(Table1[Venue],S26) -> London | Y26: =IFERROR(INDEX(Table1[cDistance],S26),"") -> 108 | Z26: =IFERROR(INDEX(Table1[cDistance],T26),"") -> 126 | AA26: =IFERROR(INDEX(Table1[cDistance],U26),"") -> 126 | AB26: =IFERROR(INDEX(Table1[cDistance],V26),"") ->  | AD26: =IFERROR(VLOOKUP(INDEX(Table1[Medal],S26),$R$34:$T$36,2,FALSE),0) -> 1 | AE26: =IFERROR(VLOOKUP(INDEX(Table1[Medal],T26),$R$34:$T$36,2,FALSE),0) -> 2 | AF26: =IFERROR(VLOOKUP(INDEX(Table1[Medal],U26),$R$34:$T$36,2,FALSE),0) -> 3 | AG26: =IFERROR(VLOOKUP(INDEX(Table1[Medal],V26),$R$34:$T$36,2,FALSE),0) -> 0 | AS26: =IFERROR(INDEX(Table1[final highlight],S26),FALSE) -> FALSE | AT26: =IFERROR(INDEX(Table1[final highlight],T26),FALSE) -> FALSE | AU26: =IFERROR(INDEX(Table1[final highlight],U26),FALSE) -> FALSE | AV26: =IFERROR(INDEX(Table1[final highlight],V26),FALSE) -> FALSE
A27: 25 | B27: BRONZE | C27: Arthur Porritt | D27: NZL | E27: 10.9 | F27: 11.7 | G27: 1924 | H27: Paris | I27: =G27&".M"&COUNTIFS($G$3:G27,G27) -> 1924.M3 | J27: =MROUND(Table1[[#This Row],[Dist. Behind Usain Bolt]]*10,2) -> 118 | K27: =Table1[[#This Row],[Country]]=selCountry -> FALSE | L27: =MIN($E$3:E26)>E27 -> FALSE | M27: =VLOOKUP(Table1[[#This Row],[Medal]],$R$34:$S$36,2,FALSE) -> 3 | N27: =COUNTIFS($C$3:C27,C27,$M$3:M27,">="&M27)>1 -> FALSE | O27: =IF(Table1[[#This Row],[Defended?]],VLOOKUP(Table1[[#This Row],[Name]],$C$3:M27,5,FALSE)&" - "&INDEX($R$34:$R$36,VLOOKUP(Table1[[#This Row],[Name]],$C$3:M27,11,FALSE)),"") ->  | P27: =IF($AO$1<20,Table1[[#This Row],[Highlight?]],IF($AO$1=20,Table1[[#This Row],[OR?]],Table1[[#This Row],[Defended?]])) -> FALSE | R27: 1906 | S27: =IFERROR(INDEX(Table1[SNO],MATCH($R27&"."&S$2,Table1[year.m],0)),"") -> 11 | T27: =IFERROR(INDEX(Table1[SNO],MATCH($R27&"."&T$2,Table1[year.m],0)),"") -> 12 | U27: =IFERROR(INDEX(Table1[SNO],MATCH($R27&"."&U$2,Table1[year.m],0)),"") -> 13 | V27: =IFERROR(INDEX(Table1[SNO],MATCH($R27&"."&V$2,Table1[year.m],0)),"") ->  | W27: =INDEX(Table1[Venue],S27) -> Athens | Y27: =IFERROR(INDEX(Table1[cDistance],S27),"") -> 140 | Z27: =IFERROR(INDEX(Table1[cDistance],T27),"") -> 148 | AA27: =IFERROR(INDEX(Table1[cDistance],U27),"") -> 148 | AB27: =IFERROR(INDEX(Table1[cDistance],V27),"") ->  | AD27: =IFERROR(VLOOKUP(INDEX(Table1[Medal],S27),$R$34:$T$36,2,FALSE),0) -> 1 | AE27: =IFERROR(VLOOKUP(INDEX(Table1[Medal],T27),$R$34:$T$36,2,FALSE),0) -> 2 | AF27: =IFERROR(VLOOKUP(INDEX(Table1[Medal],U27),$R$34:$T$36,2,FALSE),0) -> 3 | AG27: =IFERROR(VLOOKUP(INDEX(Table1[Medal],V27),$R$34:$T$36,2,FALSE),0) -> 0 | AS27: =IFERROR(INDEX(Table1[final highlight],S27),FALSE) -> FALSE | AT27: =IFERROR(INDEX(Table1[final highlight],T27),FALSE) -> FALSE | AU27: =IFERROR(INDEX(Table1[final highlight],U27),FALSE) -> FALSE | AV27: =IFERROR(INDEX(Table1[final highlight],V27),FALSE) -> FALSE
A28: 26 | B28: GOLD | C28: Percy Williams | D28: CAN | E28: 10.8 | F28: 10.8 | G28: 1928 | H28: Amsterdam | I28: =G28&".M"&COUNTIFS($G$3:G28,G28) -> 1928.M1 | J28: =MROUND(Table1[[#This Row],[Dist. Behind Usain Bolt]]*10,2) -> 108 | K28: =Table1[[#This Row],[Country]]=selCountry -> FALSE | L28: =MIN($E$3:E27)>E28 -> FALSE | M28: =VLOOKUP(Table1[[#This Row],[Medal]],$R$34:$S$36,2,FALSE) -> 1 | N28: =COUNTIFS($C$3:C28,C28,$M$3:M28,">="&M28)>1 -> FALSE | O28: =IF(Table1[[#This Row],[Defended?]],VLOOKUP(Table1[[#This Row],[Name]],$C$3:M28,5,FALSE)&" - "&INDEX($R$34:$R$36,VLOOKUP(Table1[[#This Row],[Name]],$C$3:M28,11,FALSE)),"") ->  | P28: =IF($AO$1<20,Table1[[#This Row],[Highlight?]],IF($AO$1=20,Table1[[#This Row],[OR?]],Table1[[#This Row],[Defended?]])) -> FALSE | R28: 1904 | S28: =IFERROR(INDEX(Table1[SNO],MATCH($R28&"."&S$2,Table1[year.m],0)),"") -> 8 | T28: =IFERROR(INDEX(Table1[SNO],MATCH($R28&"."&T$2,Table1[year.m],0)),"") -> 9 | U28: =IFERROR(INDEX(Table1[SNO],MATCH($R28&"."&U$2,Table1[year.m],0)),"") -> 10 | V28: =IFERROR(INDEX(Table1[SNO],MATCH($R28&"."&V$2,Table1[year.m],0)),"") ->  | W28: =INDEX(Table1[Venue],S28) -> St. Louis | Y28: =IFERROR(INDEX(Table1[cDistance],S28),"") -> 126 | Z28: =IFERROR(INDEX(Table1[cDistance],T28),"") -> 140 | AA28: =IFERROR(INDEX(Table1[cDistance],U28),"") -> 140 | AB28: =IFERROR(INDEX(Table1[cDistance],V28),"") ->  | AD28: =IFERROR(VLOOKUP(INDEX(Table1[Medal],S28),$R$34:$T$36,2,FALSE),0) -> 1 | AE28: =IFERROR(VLOOKUP(INDEX(Table1[Medal],T28),$R$34:$T$36,2,FALSE),0) -> 2 | AF28: =IFERROR(VLOOKUP(INDEX(Table1[Medal],U28),$R$34:$T$36,2,FALSE),0) -> 3 | AG28: =IFERROR(VLOOKUP(INDEX(Table1[Medal],V28),$R$34:$T$36,2,FALSE),0) -> 0 | AS28: =IFERROR(INDEX(Table1[final highlight],S28),FALSE) -> FALSE | AT28: =IFERROR(INDEX(Table1[final highlight],T28),FALSE) -> FALSE | AU28: =IFERROR(INDEX(Table1[final highlight],U28),FALSE) -> FALSE | AV28: =IFERROR(INDEX(Table1[final highlight],V28),FALSE) -> FALSE
A29: 27 | B29: SILVER | C29: Jack London | D29: GBR | E29: 10.9 | F29: 11.7 | G29: 1928 | H29: Amsterdam | I29: =G29&".M"&COUNTIFS($G$3:G29,G29) -> 1928.M2 | J29: =MROUND(Table1[[#This Row],[Dist. Behind Usain Bolt]]*10,2) -> 118 | K29: =Table1[[#This Row],[Country]]=selCountry -> FALSE | L29: =MIN($E$3:E28)>E29 -> FALSE | M29: =VLOOKUP(Table1[[#This Row],[Medal]],$R$34:$S$36,2,FALSE) -> 2 | N29: =COUNTIFS($C$3:C29,C29,$M$3:M29,">="&M29)>1 -> FALSE | O29: =IF(Table1[[#This Row],[Defended?]],VLOOKUP(Table1[[#This Row],[Name]],$C$3:M29,5,FALSE)&" - "&INDEX($R$34:$R$36,VLOOKUP(Table1[[#This Row],[Name]],$C$3:M29,11,FALSE)),"") ->  | P29: =IF($AO$1<20,Table1[[#This Row],[Highlight?]],IF($AO$1=20,Table1[[#This Row],[OR?]],Table1[[#This Row],[Defended?]])) -> FALSE | R29: 1900 | S29: =IFERROR(INDEX(Table1[SNO],MATCH($R29&"."&S$2,Table1[year.m],0)),"") -> 5 | T29: =IFERROR(INDEX(Table1[SNO],MATCH($R29&"."&T$2,Table1[year.m],0)),"") -> 6 | U29: =IFERROR(INDEX(Table1[SNO],MATCH($R29&"."&U$2,Table1[year.m],0)),"") -> 7 | V29: =IFERROR(INDEX(Table1[SNO],MATCH($R29&"."&V$2,Table1[year.m],0)),"") ->  | W29: =INDEX(Table1[Venue],S29) -> Paris | Y29: =IFERROR(INDEX(Table1[cDistance],S29),"") -> 126 | Z29: =IFERROR(INDEX(Table1[cDistance],T29),"") -> 132 | AA29: =IFERROR(INDEX(Table1[cDistance],U29),"") -> 140 | AB29: =IFERROR(INDEX(Table1[cDistance],V29),"") ->  | AD29: =IFERROR(VLOOKUP(INDEX(Table1[Medal],S29),$R$34:$T$36,2,FALSE),0) -> 1 | AE29: =IFERROR(VLOOKUP(INDEX(Table1[Medal],T29),$R$34:$T$36,2,FALSE),0) -> 2 | AF29: =IFERROR(VLOOKUP(INDEX(Table1[Medal],U29),$R$34:$T$36,2,FALSE),0) -> 3 | AG29: =IFERROR(VLOOKUP(INDEX(Table1[Medal],V29),$R$34:$T$36,2,FALSE),0) -> 0 | AS29: =IFERROR(INDEX(Table1[final highlight],S29),FALSE) -> FALSE | AT29: =IFERROR(INDEX(Table1[final highlight],T29),FALSE) -> FALSE | AU29: =IFERROR(INDEX(Table1[final highlight],U29),FALSE) -> FALSE | AV29: =IFERROR(INDEX(Table1[final highlight],V29),FALSE) -> FALSE
A30: 28 | B30: BRONZE | C30: Georg Lammers | D30: GER | E30: 10.9 | F30: 11.7 | G30: 1928 | H30: Amsterdam | I30: =G30&".M"&COUNTIFS($G$3:G30,G30) -> 1928.M3 | J30: =MROUND(Table1[[#This Row],[Dist. Behind Usain Bolt]]*10,2) -> 118 | K30: =Table1[[#This Row],[Country]]=selCountry -> FALSE | L30: =MIN($E$3:E29)>E30 -> FALSE | M30: =VLOOKUP(Table1[[#This Row],[Medal]],$R$34:$S$36,2,FALSE) -> 3 | N30: =COUNTIFS($C$3:C30,C30,$M$3:M30,">="&M30)>1 -> FALSE | O30: =IF(Table1[[#This Row],[Defended?]],VLOOKUP(Table1[[#This Row],[Name]],$C$3:M30,5,FALSE)&" - "&INDEX($R$34:$R$36,VLOOKUP(Table1[[#This Row],[Name]],$C$3:M30,11,FALSE)),"") ->  | P30: =IF($AO$1<20,Table1[[#This Row],[Highlight?]],IF($AO$1=20,Table1[[#This Row],[OR?]],Table1[[#This Row],[Defended?]])) -> FALSE | R30: 1896 | S30: =IFERROR(INDEX(Table1[SNO],MATCH($R30&"."&S$2,Table1[year.m],0)),"") -> 1 | T30: =IFERROR(INDEX(Table1[SNO],MATCH($R30&"."&T$2,Table1[year.m],0)),"") -> 2 | U30: =IFERROR(INDEX(Table1[SNO],MATCH($R30&"."&U$2,Table1[year.m],0)),"") -> 3 | V30: =IFERROR(INDEX(Table1[SNO],MATCH($R30&"."&V$2,Table1[year.m],0)),"") -> 4 | W30: =INDEX(Table1[Venue],S30) -> Athens | Y30: =IFERROR(INDEX(Table1[cDistance],S30),"") -> 198 | Z30: =IFERROR(INDEX(Table1[cDistance],T30),"") -> 212 | AA30: =IFERROR(INDEX(Table1[cDistance],U30),"") -> 236 | AB30: =IFERROR(INDEX(Table1[cDistance],V30),"") -> 236 | AD30: =IFERROR(VLOOKUP(INDEX(Table1[Medal],S30),$R$34:$T$36,2,FALSE),0) -> 1 | AE30: =IFERROR(VLOOKUP(INDEX(Table1[Medal],T30),$R$34:$T$36,2,FALSE),0) -> 2 | AF30: =IFERROR(VLOOKUP(INDEX(Table1[Medal],U30),$R$34:$T$36,2,FALSE),0) -> 3 | AG30: =IFERROR(VLOOKUP(INDEX(Table1[Medal],V30),$R$34:$T$36,2,FALSE),0) -> 3 | AS30: =IFERROR(INDEX(Table1[final highlight],S30),FALSE) -> FALSE | AT30: =IFERROR(INDEX(Table1[final highlight],T30),FALSE) -> FALSE | AU30: =IFERROR(INDEX(Table1[final highlight],U30),FALSE) -> FALSE | AV30: =IFERROR(INDEX(Table1[final highlight],V30),FALSE) -> FALSE
A31: 29 | B31: GOLD | C31: Eddie Tolan | D31: USA | E31: 10.3 | F31: 6.5 | G31: 1932 | H31: Los Angeles | I31: =G31&".M"&COUNTIFS($G$3:G31,G31) -> 1932.M1 | J31: =MROUND(Table1[[#This Row],[Dist. Behind Usain Bolt]]*10,2) -> 66 | K31: =Table1[[#This Row],[Country]]=selCountry -> FALSE | L31: =MIN($E$3:E30)>E31 -> TRUE | M31: =VLOOKUP(Table1[[#This Row],[Medal]],$R$34:$S$36,2,FALSE) -> 1 | N31: =COUNTIFS($C$3:C31,C31,$M$3:M31,">="&M31)>1 -> FALSE | O31: =IF(Table1[[#This Row],[Defended?]],VLOOKUP(Table1[[#This Row],[Name]],$C$3:M31,5,FALSE)&" - "&INDEX($R$34:$R$36,VLOOKUP(Table1[[#This Row],[Name]],$C$3:M31,11,FALSE)),"") ->  | P31: =IF($AO$1<20,Table1[[#This Row],[Highlight?]],IF($AO$1=20,Table1[[#This Row],[OR?]],Table1[[#This Row],[Defended?]])) -> FALSE
A32: 30 | B32: SILVER | C32: Ralph Metcalfe | D32: USA | E32: 10.3 | F32: 6.5 | G32: 1932 | H32: Los Angeles | I32: =G32&".M"&COUNTIFS($G$3:G32,G32) -> 1932.M2 | J32: =MROUND(Table1[[#This Row],[Dist. Behind Usain Bolt]]*10,2) -> 66 | K32: =Table1[[#This Row],[Country]]=selCountry -> FALSE | L32: =MIN($E$3:E31)>E32 -> FALSE | M32: =VLOOKUP(Table1[[#This Row],[Medal]],$R$34:$S$36,2,FALSE) -> 2 | N32: =COUNTIFS($C$3:C32,C32,$M$3:M32,">="&M32)>1 -> FALSE | O32: =IF(Table1[[#This Row],[Defended?]],VLOOKUP(Table1[[#This Row],[Name]],$C$3:M32,5,FALSE)&" - "&INDEX($R$34:$R$36,VLOOKUP(Table1[[#This Row],[Name]],$C$3:M32,11,FALSE)),"") ->  | P32: =IF($AO$1<20,Table1[[#This Row],[Highlight?]],IF($AO$1=20,Table1[[#This Row],[OR?]],Table1[[#This Row],[Defended?]])) -> FALSE | R32: =COUNT(lstYears) -> 28 | T32: •●
A33: 31 | B33: BRONZE | C33: Arthur Jonath | D33: GER | E33: 10.4 | F33: 7.4 | G33: 1932 | H33: Los Angeles | I33: =G33&".M"&COUNTIFS($G$3:G33,G33) -> 1932.M3 | J33: =MROUND(Table1[[#This Row],[Dist. Behind Usain Bolt]]*10,2) -> 74 | K33: =Table1[[#This Row],[Country]]=selCountry -> FALSE | L33: =MIN($E$3:E32)>E33 -> FALSE | M33: =VLOOKUP(Table1[[#This Row],[Medal]],$R$34:$S$36,2,FALSE) -> 3 | N33: =COUNTIFS($C$3:C33,C33,$M$3:M33,">="&M33)>1 -> FALSE | O33: =IF(Table1[[#This Row],[Defended?]],VLOOKUP(Table1[[#This Row],[Name]],$C$3:M33,5,FALSE)&" - "&INDEX($R$34:$R$36,VLOOKUP(Table1[[#This Row],[Name]],$C$3:M33,11,FALSE)),"") ->  | P33: =IF($AO$1<20,Table1[[#This Row],[Highlight?]],IF($AO$1=20,Table1[[#This Row],[OR?]],Table1[[#This Row],[Defended?]])) -> FALSE | AM33: Summary | AO33: Text | AP33: Count | AR33: =AP36 -> 0
A34: 32 | B34: GOLD | C34: Jesse Owens | D34: USA | E34: 10.3 | F34: 6.5 | G34: 1936 | H34: Berlin | I34: =G34&".M"&COUNTIFS($G$3:G34,G34) -> 1936.M1 | J34: =MROUND(Table1[[#This Row],[Dist. Behind Usain Bolt]]*10,2) -> 66 | K34: =Table1[[#This Row],[Country]]=selCountry -> FALSE | L34: =MIN($E$3:E33)>E34 -> FALSE | M34: =VLOOKUP(Table1[[#This Row],[Medal]],$R$34:$S$36,2,FALSE) -> 1 | N34: =COUNTIFS($C$3:C34,C34,$M$3:M34,">="&M34)>1 -> FALSE | O34: =IF(Table1[[#This Row],[Defended?]],VLOOKUP(Table1[[#This Row],[Name]],$C$3:M34,5,FALSE)&" - "&INDEX($R$34:$R$36,VLOOKUP(Table1[[#This Row],[Name]],$C$3:M34,11,FALSE)),"") ->  | P34: =IF($AO$1<20,Table1[[#This Row],[Highlight?]],IF($AO$1=20,Table1[[#This Row],[OR?]],Table1[[#This Row],[Defended?]])) -> FALSE | R34: Gold | S34: 1 | T34: ❶ | AM34: Gold | AN34: =COUNTIFS(Table1[Country],selCountry,Table1[Medal],AM34) -> 0 | AO34: =IF(AN34>0,AN34&" gold ","") ->  | AP34: =IF(AO34<>"",1,0) -> 0 | AR34: 1 | AS34: =IFERROR(INDEX($AO$34:$AO$36,MATCH(AR34,$AP$34:$AP$36,0)),"") ->  | AT34: =IFERROR(TRIM(CHOOSE(AR33,AS34&" medal",AS34&" and "&AS35&" medals",AS34&", "&AS35&" and "&AS36&" medals")),"") -> 
A35: 33 | B35: SILVER | C35: Ralph Metcalfe | D35: USA | E35: 10.4 | F35: 7.4 | G35: 1936 | H35: Berlin | I35: =G35&".M"&COUNTIFS($G$3:G35,G35) -> 1936.M2 | J35: =MROUND(Table1[[#This Row],[Dist. Behind Usain Bolt]]*10,2) -> 74 | K35: =Table1[[#This Row],[Country]]=selCountry -> FALSE | L35: =MIN($E$3:E34)>E35 -> FALSE | M35: =VLOOKUP(Table1[[#This Row],[Medal]],$R$34:$S$36,2,FALSE) -> 2 | N35: =COUNTIFS($C$3:C35,C35,$M$3:M35,">="&M35)>1 -> TRUE | O35: =IF(Table1[[#This Row],[Defended?]],VLOOKUP(Table1[[#This Row],[Name]],$C$3:M35,5,FALSE)&" - "&INDEX($R$34:$R$36,VLOOKUP(Table1[[#This Row],[Name]],$C$3:M35,11,FALSE)),"") -> 1932 - Silver | P35: =IF($AO$1<20,Table1[[#This Row],[Highlight?]],IF($AO$1=20,Table1[[#This Row],[OR?]],Table1[[#This Row],[Defended?]])) -> FALSE | R35: Silver | S35: 2 | T35: ❷ | AM35: Silver | AN35: =COUNTIFS(Table1[Country],selCountry,Table1[Medal],AM35) -> 0 | AO35: =IF(AN35>0,AN35&" silver ","") ->  | AP35: =IF(AO35<>"",AP34+1,AP34) -> 0 | AR35: 2 | AS35: =IFERROR(INDEX($AO$34:$AO$36,MATCH(AR35,$AP$34:$AP$36,0)),"") -> 
A36: 34 | B36: BRONZE | C36: Martinus Osendarp | D36: HOL | E36: 10.5 | F36: 8.3 | G36: 1936 | H36: Berlin | I36: =G36&".M"&COUNTIFS($G$3:G36,G36) -> 1936.M3 | J36: =MROUND(Table1[[#This Row],[Dist. Behind Usain Bolt]]*10,2) -> 84 | K36: =Table1[[#This Row],[Country]]=selCountry -> FALSE | L36: =MIN($E$3:E35)>E36 -> FALSE | M36: =VLOOKUP(Table1[[#This Row],[Medal]],$R$34:$S$36,2,FALSE) -> 3 | N36: =COUNTIFS($C$3:C36,C36,$M$3:M36,">="&M36)>1 -> FALSE | O36: =IF(Table1[[#This Row],[Defended?]],VLOOKUP(Table1[[#This Row],[Name]],$C$3:M36,5,FALSE)&" - "&INDEX($R$34:$R$36,VLOOKUP(Table1[[#This Row],[Name]],$C$3:M36,11,FALSE)),"") ->  | P36: =IF($AO$1<20,Table1[[#This Row],[Highlight?]],IF($AO$1=20,Table1[[#This Row],[OR?]],Table1[[#This Row],[Defended?]])) -> FALSE | R36: Bronze | S36: 3 | T36: ❸ | AM36: Bronze | AN36: =COUNTIFS(Table1[Country],selCountry,Table1[Medal],AM36) -> 0 | AO36: =IF(AN36>0,AN36&" bronze ","") ->  | AP36: =IF(AO36<>"",AP35+1,AP35) -> 0 | AR36: 3
A37: 35 | B37: GOLD | C37: Harrison Dillard | D37: USA | E37: 10.3 | F37: 6.5 | G37: 1948 | H37: London | I37: =G37&".M"&COUNTIFS($G$3:G37,G37) -> 1948.M1 | J37: =MROUND(Table1[[#This Row],[Dist. Behind Usain Bolt]]*10,2) -> 66 | K37: =Table1[[#This Row],[Country]]=selCountry -> FALSE | L37: =MIN($E$3:E36)>E37 -> FALSE | M37: =VLOOKUP(Table1[[#This Row],[Medal]],$R$34:$S$36,2,FALSE) -> 1 | N37: =COUNTIFS($C$3:C37,C37,$M$3:M37,">="&M37)>1 -> FALSE | O37: =IF(Table1[[#This Row],[Defended?]],VLOOKUP(Table1[[#This Row],[Name]],$C$3:M37,5,FALSE)&" - "&INDEX($R$34:$R$36,VLOOKUP(Table1[[#This Row],[Name]],$C$3:M37,11,FALSE)),"") ->  | P37: =IF($AO$1<20,Table1[[#This Row],[Highlight?]],IF($AO$1=20,Table1[[#This Row],[OR?]],Table1[[#This Row],[Defended?]])) -> FALSE | AO37: =selCountry&" won "&AT34 -> Country code won
A38: 36 | B38: SILVER | C38: Barney Ewell | D38: USA | E38: 10.4 | F38: 7.4 | G38: 1948 | H38: London | I38: =G38&".M"&COUNTIFS($G$3:G38,G38) -> 1948.M2 | J38: =MROUND(Table1[[#This Row],[Dist. Behind Usain Bolt]]*10,2) -> 74 | K38: =Table1[[#This Row],[Country]]=selCountry -> FALSE | L38: =MIN($E$3:E37)>E38 -> FALSE | M38: =VLOOKUP(Table1[[#This Row],[Medal]],$R$34:$S$36,2,FALSE) -> 2 | N38: =COUNTIFS($C$3:C38,C38,$M$3:M38,">="&M38)>1 -> FALSE | O38: =IF(Table1[[#This Row],[Defended?]],VLOOKUP(Table1[[#This Row],[Name]],$C$3:M38,5,FALSE)&" - "&INDEX($R$34:$R$36,VLOOKUP(Table1[[#This Row],[Name]],$C$3:M38,11,FALSE)),"") ->  | P38: =IF($AO$1<20,Table1[[#This Row],[Highlight?]],IF($AO$1=20,Table1[[#This Row],[OR?]],Table1[[#This Row],[Defended?]])) -> FALSE | AM38: New Olympic Records | AN38: =COUNTIF(Table1[OR?],TRUE) -> 11 | AO38: ="New Olympic records were established "&AN38&" times."&CHAR(10)&"Recently in year 2012 by Usain Bolt at 9.63 seconds." -> New Olympic records were established 11 times. Recently in year 2012 by Usain Bolt at 9.63 seconds.
A39: 37 | B39: BRONZE | C39: Lloyd LaBeach | D39: PAN | E39: 10.4 | F39: 7.4 | G39: 1948 | H39: London | I39: =G39&".M"&COUNTIFS($G$3:G39,G39) -> 1948.M3 | J39: =MROUND(Table1[[#This Row],[Dist. Behind Usain Bolt]]*10,2) -> 74 | K39: =Table1[[#This Row],[Country]]=selCountry -> FALSE | L39: =MIN($E$3:E38)>E39 -> FALSE | M39: =VLOOKUP(Table1[[#This Row],[Medal]],$R$34:$S$36,2,FALSE) -> 3 | N39: =COUNTIFS($C$3:C39,C39,$M$3:M39,">="&M39)>1 -> FALSE | O39: =IF(Table1[[#This Row],[Defended?]],VLOOKUP(Table1[[#This Row],[Name]],$C$3:M39,5,FALSE)&" - "&INDEX($R$34:$R$36,VLOOKUP(Table1[[#This Row],[Name]],$C$3:M39,11,FALSE)),"") ->  | P39: =IF($AO$1<20,Table1[[#This Row],[Highlight?]],IF($AO$1=20,Table1[[#This Row],[OR?]],Table1[[#This Row],[Defended?]])) -> FALSE | AM39: Medal Defenders | AN39: =COUNTIF(Table1[Defended?],TRUE) -> 7 | AO39: =AN39&" times, Olympic sprinters have defended their medals."&CHAR(10)&"Recently in year 2012 by Usain Bolt (Gold Medal)." -> 7 times, Olympic sprinters have defended their medals. Recently in year 2012 by Usain Bolt (Gold Medal).
A40: 38 | B40: GOLD | C40: Lindy Remigino | D40: USA | E40: 10.79 | F40: 10.8 | G40: 1952 | H40: Helsinki | I40: =G40&".M"&COUNTIFS($G$3:G40,G40) -> 1952.M1 | J40: =MROUND(Table1[[#This Row],[Dist. Behind Usain Bolt]]*10,2) -> 108 | K40: =Table1[[#This Row],[Country]]=selCountry -> FALSE | L40: =MIN($E$3:E39)>E40 -> FALSE | M40: =VLOOKUP(Table1[[#This Row],[Medal]],$R$34:$S$36,2,FALSE) -> 1 | N40: =COUNTIFS($C$3:C40,C40,$M$3:M40,">="&M40)>1 -> FALSE | O40: =IF(Table1[[#This Row],[Defended?]],VLOOKUP(Table1[[#This Row],[Name]],$C$3:M40,5,FALSE)&" - "&INDEX($R$34:$R$36,VLOOKUP(Table1[[#This Row],[Name]],$C$3:M40,11,FALSE)),"") ->  | P40: =IF($AO$1<20,Table1[[#This Row],[Highlight?]],IF($AO$1=20,Table1[[#This Row],[OR?]],Table1[[#This Row],[Defended?]])) -> FALSE
A41: 39 | B41: SILVER | C41: Herbert McKenley | D41: JAM | E41: 10.8 | F41: 10.8 | G41: 1952 | H41: Helsinki | I41: =G41&".M"&COUNTIFS($G$3:G41,G41) -> 1952.M2 | J41: =MROUND(Table1[[#This Row],[Dist. Behind Usain Bolt]]*10,2) -> 108 | K41: =Table1[[#This Row],[Country]]=selCountry -> FALSE | L41: =MIN($E$3:E40)>E41 -> FALSE | M41: =VLOOKUP(Table1[[#This Row],[Medal]],$R$34:$S$36,2,FALSE) -> 2 | N41: =COUNTIFS($C$3:C41,C41,$M$3:M41,">="&M41)>1 -> FALSE | O41: =IF(Table1[[#This Row],[Defended?]],VLOOKUP(Table1[[#This Row],[Name]],$C$3:M41,5,FALSE)&" - "&INDEX($R$34:$R$36,VLOOKUP(Table1[[#This Row],[Name]],$C$3:M41,11,FALSE)),"") ->  | P41: =IF($AO$1<20,Table1[[#This Row],[Highlight?]],IF($AO$1=20,Table1[[#This Row],[OR?]],Table1[[#This Row],[Defended?]])) -> FALSE | AM41: Final Text | AO41: =IF(AO1=1,"",IF(AO1<20,AO37,IF(AO1=20,AO38,AO39))) -> 
A42: 40 | B42: BRONZE | C42: McDonald Bailey | D42: GBR | E42: 10.83 | F42: 11.1 | G42: 1952 | H42: Helsinki | I42: =G42&".M"&COUNTIFS($G$3:G42,G42) -> 1952.M3 | J42: =MROUND(Table1[[#This Row],[Dist. Behind Usain Bolt]]*10,2) -> 112 | K42: =Table1[[#This Row],[Country]]=selCountry -> FALSE | L42: =MIN($E$3:E41)>E42 -> FALSE | M42: =VLOOKUP(Table1[[#This Row],[Medal]],$R$34:$S$36,2,FALSE) -> 3 | N42: =COUNTIFS($C$3:C42,C42,$M$3:M42,">="&M42)>1 -> FALSE | O42: =IF(Table1[[#This Row],[Defended?]],VLOOKUP(Table1[[#This Row],[Name]],$C$3:M42,5,FALSE)&" - "&INDEX($R$34:$R$36,VLOOKUP(Table1[[#This Row],[Name]],$C$3:M42,11,FALSE)),"") ->  | P42: =IF($AO$1<20,Table1[[#This Row],[Highlight?]],IF($AO$1=20,Table1[[#This Row],[OR?]],Table1[[#This Row],[Defended?]])) -> FALSE
A43: 41 | B43: GOLD | C43: Bobby Morrow | D43: USA | E43: 10.62 | F43: 9.3 | G43: 1956 | H43: Melbourne | I43: =G43&".M"&COUNTIFS($G$3:G43,G43) -> 1956.M1 | J43: =MROUND(Table1[[#This Row],[Dist. Behind Usain Bolt]]*10,2) -> 94 | K43: =Table1[[#This Row],[Country]]=selCountry -> FALSE | L43: =MIN($E$3:E42)>E43 -> FALSE | M43: =VLOOKUP(Table1[[#This Row],[Medal]],$R$34:$S$36,2,FALSE) -> 1 | N43: =COUNTIFS($C$3:C43,C43,$M$3:M43,">="&M43)>1 -> FALSE | O43: =IF(Table1[[#This Row],[Defended?]],VLOOKUP(Table1[[#This Row],[Name]],$C$3:M43,5,FALSE)&" - "&INDEX($R$34:$R$36,VLOOKUP(Table1[[#This Row],[Name]],$C$3:M43,11,FALSE)),"") ->  | P43: =IF($AO$1<20,Table1[[#This Row],[Highlight?]],IF($AO$1=20,Table1[[#This Row],[OR?]],Table1[[#This Row],[Defended?]])) -> FALSE
A44: 42 | B44: SILVER | C44: Thane Baker | D44: USA | E44: 10.77 | F44: 10.6 | G44: 1956 | H44: Melbourne | I44: =G44&".M"&COUNTIFS($G$3:G44,G44) -> 1956.M2 | J44: =MROUND(Table1[[#This Row],[Dist. Behind Usain Bolt]]*10,2) -> 106 | K44: =Table1[[#This Row],[Country]]=selCountry -> FALSE | L44: =MIN($E$3:E43)>E44 -> FALSE | M44: =VLOOKUP(Table1[[#This Row],[Medal]],$R$34:$S$36,2,FALSE) -> 2 | N44: =COUNTIFS($C$3:C44,C44,$M$3:M44,">="&M44)>1 -> FALSE | O44: =IF(Table1[[#This Row],[Defended?]],VLOOKUP(Table1[[#This Row],[Name]],$C$3:M44,5,FALSE)&" - "&INDEX($R$34:$R$36,VLOOKUP(Table1[[#This Row],[Name]],$C$3:M44,11,FALSE)),"") ->  | P44: =IF($AO$1<20,Table1[[#This Row],[Highlight?]],IF($AO$1=20,Table1[[#This Row],[OR?]],Table1[[#This Row],[Defended?]])) -> FALSE
A45: 43 | B45: BRONZE | C45: Hector Hogan | D45: AUS | E45: 10.77 | F45: 10.6 | G45: 1956 | H45: Melbourne | I45: =G45&".M"&COUNTIFS($G$3:G45,G45) -> 1956.M3 | J45: =MROUND(Table1[[#This Row],[Dist. Behind Usain Bolt]]*10,2) -> 106 | K45: =Table1[[#This Row],[Country]]=selCountry -> FALSE | L45: =MIN($E$3:E44)>E45 -> FALSE | M45: =VLOOKUP(Table1[[#This Row],[Medal]],$R$34:$S$36,2,FALSE) -> 3 | N45: =COUNTIFS($C$3:C45,C45,$M$3:M45,">="&M45)>1 -> FALSE | O45: =IF(Table1[[#This Row],[Defended?]],VLOOKUP(Table1[[#This Row],[Name]],$C$3:M45,5,FALSE)&" - "&INDEX($R$34:$R$36,VLOOKUP(Table1[[#This Row],[Name]],$C$3:M45,11,FALSE)),"") ->  | P45: =IF($AO$1<20,Table1[[#This Row],[Highlight?]],IF($AO$1=20,Table1[[#This Row],[OR?]],Table1[[#This Row],[Defended?]])) -> FALSE
A46: 44 | B46: GOLD | C46: Armin Hary | D46: GER | E46: 10.32 | F46: 6.7 | G46: 1960 | H46: Rome | I46: =G46&".M"&COUNTIFS($G$3:G46,G46) -> 1960.M1 | J46: =MROUND(Table1[[#This Row],[Dist. Behind Usain Bolt]]*10,2) -> 68 | K46: =Table1[[#This Row],[Country]]=selCountry -> FALSE | L46: =MIN($E$3:E45)>E46 -> FALSE | M46: =VLOOKUP(Table1[[#This Row],[Medal]],$R$34:$S$36,2,FALSE) -> 1 | N46: =COUNTIFS($C$3:C46,C46,$M$3:M46,">="&M46)>1 -> FALSE | O46: =IF(Table1[[#This Row],[Defended?]],VLOOKUP(Table1[[#This Row],[Name]],$C$3:M46,5,FALSE)&" - "&INDEX($R$34:$R$36,VLOOKUP(Table1[[#This Row],[Name]],$C$3:M46,11,FALSE)),"") ->  | P46: =IF($AO$1<20,Table1[[#This Row],[Highlight?]],IF($AO$1=20,Table1[[#This Row],[OR?]],Table1[[#This Row],[Defended?]])) -> FALSE
A47: 45 | B47: SILVER | C47: David Sime | D47: USA | E47: 10.35 | F47: 7 | G47: 1960 | H47: Rome | I47: =G47&".M"&COUNTIFS($G$3:G47,G47) -> 1960.M2 | J47: =MROUND(Table1[[#This Row],[Dist. Behind Usain Bolt]]*10,2) -> 70 | K47: =Table1[[#This Row],[Country]]=selCountry -> FALSE | L47: =MIN($E$3:E46)>E47 -> FALSE | M47: =VLOOKUP(Table1[[#This Row],[Medal]],$R$34:$S$36,2,FALSE) -> 2 | N47: =COUNTIFS($C$3:C47,C47,$M$3:M47,">="&M47)>1 -> FALSE | O47: =IF(Table1[[#This Row],[Defended?]],VLOOKUP(Table1[[#This Row],[Name]],$C$3:M47,5,FALSE)&" - "&INDEX($R$34:$R$36,VLOOKUP(Table1[[#This Row],[Name]],$C$3:M47,11,FALSE)),"") ->  | P47: =IF($AO$1<20,Table1[[#This Row],[Highlight?]],IF($AO$1=20,Table1[[#This Row],[OR?]],Table1[[#This Row],[Defended?]])) -> FALSE
A48: 46 | B48: BRONZE | C48: Peter Radford | D48: GBR | E48: 10.42 | F48: 7.6 | G48: 1960 | H48: Rome | I48: =G48&".M"&COUNTIFS($G$3:G48,G48) -> 1960.M3 | J48: =MROUND(Table1[[#This Row],[Dist. Behind Usain Bolt]]*10,2) -> 76 | K48: =Table1[[#This Row],[Country]]=selCountry -> FALSE | L48: =MIN($E$3:E47)>E48 -> FALSE | M48: =VLOOKUP(Table1[[#This Row],[Medal]],$R$34:$S$36,2,FALSE) -> 3 | N48: =COUNTIFS($C$3:C48,C48,$M$3:M48,">="&M48)>1 -> FALSE | O48: =IF(Table1[[#This Row],[Defended?]],VLOOKUP(Table1[[#This Row],[Name]],$C$3:M48,5,FALSE)&" - "&INDEX($R$34:$R$36,VLOOKUP(Table1[[#This Row],[Name]],$C$3:M48,11,FALSE)),"") ->  | P48: =IF($AO$1<20,Table1[[#This Row],[Highlight?]],IF($AO$1=20,Table1[[#This Row],[OR?]],Table1[[#This Row],[Defended?]])) -> FALSE
A49: 47 | B49: GOLD | C49: Bob Hayes | D49: USA | E49: 10.06 | F49: 4.3 | G49: 1964 | H49: Tokyo | I49: =G49&".M"&COUNTIFS($G$3:G49,G49) -> 1964.M1 | J49: =MROUND(Table1[[#This Row],[Dist. Behind Usain Bolt]]*10,2) -> 44 | K49: =Table1[[#This Row],[Country]]=selCountry -> FALSE | L49: =MIN($E$3:E48)>E49 -> TRUE | M49: =VLOOKUP(Table1[[#This Row],[Medal]],$R$34:$S$36,2,FALSE) -> 1 | N49: =COUNTIFS($C$3:C49,C49,$M$3:M49,">="&M49)>1 -> FALSE | O49: =IF(Table1[[#This Row],[Defended?]],VLOOKUP(Table1[[#This Row],[Name]],$C$3:M49,5,FALSE)&" - "&INDEX($R$34:$R$36,VLOOKUP(Table1[[#This Row],[Name]],$C$3:M49,11,FALSE)),"") ->  | P49: =IF($AO$1<20,Table1[[#This Row],[Highlight?]],IF($AO$1=20,Table1[[#This Row],[OR?]],Table1[[#This Row],[Defended?]])) -> FALSE
A50: 48 | B50: SILVER | C50: Enrique Figuerola | D50: CUB | E50: 10.25 | F50: 6 | G50: 1964 | H50: Tokyo | I50: =G50&".M"&COUNTIFS($G$3:G50,G50) -> 1964.M2 | J50: =MROUND(Table1[[#This Row],[Dist. Behind Usain Bolt]]*10,2) -> 60 | K50: =Table1[[#This Row],[Country]]=selCountry -> FALSE | L50: =MIN($E$3:E49)>E50 -> FALSE | M50: =VLOOKUP(Table1[[#This Row],[Medal]],$R$34:$S$36,2,FALSE) -> 2 | N50: =COUNTIFS($C$3:C50,C50,$M$3:M50,">="&M50)>1 -> FALSE | O50: =IF(Table1[[#This Row],[Defended?]],VLOOKUP(Table1[[#This Row],[Name]],$C$3:M50,5,FALSE)&" - "&INDEX($R$34:$R$36,VLOOKUP(Table1[[#This Row],[Name]],$C$3:M50,11,FALSE)),"") ->  | P50: =IF($AO$1<20,Table1[[#This Row],[Highlight?]],IF($AO$1=20,Table1[[#This Row],[OR?]],Table1[[#This Row],[Defended?]])) -> FALSE
A51: 49 | B51: BRONZE | C51: Harry Jerome | D51: CAN | E51: 10.27 | F51: 6.2 | G51: 1964 | H51: Tokyo | I51: =G51&".M"&COUNTIFS($G$3:G51,G51) -> 1964.M3 | J51: =MROUND(Table1[[#This Row],[Dist. Behind Usain Bolt]]*10,2) -> 62 | K51: =Table1[[#This Row],[Country]]=selCountry -> FALSE | L51: =MIN($E$3:E50)>E51 -> FALSE | M51: =VLOOKUP(Table1[[#This Row],[Medal]],$R$34:$S$36,2,FALSE) -> 3 | N51: =COUNTIFS($C$3:C51,C51,$M$3:M51,">="&M51)>1 -> FALSE | O51: =IF(Table1[[#This Row],[Defended?]],VLOOKUP(Table1[[#This Row],[Name]],$C$3:M51,5,FALSE)&" - "&INDEX($R$34:$R$36,VLOOKUP(Table1[[#This Row],[Name]],$C$3:M51,11,FALSE)),"") ->  | P51: =IF($AO$1<20,Table1[[#This Row],[Highlight?]],IF($AO$1=20,Table1[[#This Row],[OR?]],Table1[[#This Row],[Defended?]])) -> FALSE
A52: 50 | B52: GOLD | C52: James Hines | D52: USA | E52: 9.95 | F52: 3.2 | G52: 1968 | H52: Mexico City | I52: =G52&".M"&COUNTIFS($G$3:G52,G52) -> 1968.M1 | J52: =MROUND(Table1[[#This Row],[Dist. Behind Usain Bolt]]*10,2) -> 32 | K52: =Table1[[#This Row],[Country]]=selCountry -> FALSE | L52: =MIN($E$3:E51)>E52 -> TRUE | M52: =VLOOKUP(Table1[[#This Row],[Medal]],$R$34:$S$36,2,FALSE) -> 1 | N52: =COUNTIFS($C$3:C52,C52,$M$3:M52,">="&M52)>1 -> FALSE | O52: =IF(Table1[[#This Row],[Defended?]],VLOOKUP(Table1[[#This Row],[Name]],$C$3:M52,5,FALSE)&" - "&INDEX($R$34:$R$36,VLOOKUP(Table1[[#This Row],[Name]],$C$3:M52,11,FALSE)),"") ->  | P52: =IF($AO$1<20,Table1[[#This Row],[Highlight?]],IF($AO$1=20,Table1[[#This Row],[OR?]],Table1[[#This Row],[Defended?]])) -> FALSE
A53: 51 | B53: SILVER | C53: Lennox Miller | D53: JAM | E53: 10.04 | F53: 4.1 | G53: 1968 | H53: Mexico City | I53: =G53&".M"&COUNTIFS($G$3:G53,G53) -> 1968.M2 | J53: =MROUND(Table1[[#This Row],[Dist. Behind Usain Bolt]]*10,2) -> 42 | K53: =Table1[[#This Row],[Country]]=selCountry -> FALSE | L53: =MIN($E$3:E52)>E53 -> FALSE | M53: =VLOOKUP(Table1[[#This Row],[Medal]],$R$34:$S$36,2,FALSE) -> 2 | N53: =COUNTIFS($C$3:C53,C53,$M$3:M53,">="&M53)>1 -> FALSE | O53: =IF(Table1[[#This Row],[Defended?]],VLOOKUP(Table1[[#This Row],[Name]],$C$3:M53,5,FALSE)&" - "&INDEX($R$34:$R$36,VLOOKUP(Table1[[#This Row],[Name]],$C$3:M53,11,FALSE)),"") ->  | P53: =IF($AO$1<20,Table1[[#This Row],[Highlight?]],IF($AO$1=20,Table1[[#This Row],[OR?]],Table1[[#This Row],[Defended?]])) -> FALSE
A54: 52 | B54: BRONZE | C54: Charlie Greene | D54: USA | E54: 10.07 | F54: 4.4 | G54: 1968 | H54: Mexico City | I54: =G54&".M"&COUNTIFS($G$3:G54,G54) -> 1968.M3 | J54: =MROUND(Table1[[#This Row],[Dist. Behind Usain Bolt]]*10,2) -> 44 | K54: =Table1[[#This Row],[Country]]=selCountry -> FALSE | L54: =MIN($E$3:E53)>E54 -> FALSE | M54: =VLOOKUP(Table1[[#This Row],[Medal]],$R$34:$S$36,2,FALSE) -> 3 | N54: =COUNTIFS($C$3:C54,C54,$M$3:M54,">="&M54)>1 -> FALSE | O54: =IF(Table1[[#This Row],[Defended?]],VLOOKUP(Table1[[#This Row],[Name]],$C$3:M54,5,FALSE)&" - "&INDEX($R$34:$R$36,VLOOKUP(Table1[[#This Row],[Name]],$C$3:M54,11,FALSE)),"") ->  | P54: =IF($AO$1<20,Table1[[#This Row],[Highlight?]],IF($AO$1=20,Table1[[#This Row],[OR?]],Table1[[#This Row],[Defended?]])) -> FALSE
A55: 53 | B55: GOLD | C55: Valeriy Borzov | D55: URS | E55: 10.14 | F55: 5 | G55: 1972 | H55: Munich | I55: =G55&".M"&COUNTIFS($G$3:G55,G55) -> 1972.M1 | J55: =MROUND(Table1[[#This Row],[Dist. Behind Usain Bolt]]*10,2) -> 50 | K55: =Table1[[#This Row],[Country]]=selCountry -> FALSE | L55: =MIN($E$3:E54)>E55 -> FALSE | M55: =VLOOKUP(Table1[[#This Row],[Medal]],$R$34:$S$36,2,FALSE) -> 1 | N55: =COUNTIFS($C$3:C55,C55,$M$3:M55,">="&M55)>1 -> FALSE | O55: =IF(Table1[[#This Row],[Defended?]],VLOOKUP(Table1[[#This Row],[Name]],$C$3:M55,5,FALSE)&" - "&INDEX($R$34:$R$36,VLOOKUP(Table1[[#This Row],[Name]],$C$3:M55,11,FALSE)),"") ->  | P55: =IF($AO$1<20,Table1[[#This Row],[Highlight?]],IF($AO$1=20,Table1[[#This Row],[OR?]],Table1[[#This Row],[Defended?]])) -> FALSE
A56: 54 | B56: SILVER | C56: Robert Taylor | D56: USA | E56: 10.24 | F56: 6 | G56: 1972 | H56: Munich | I56: =G56&".M"&COUNTIFS($G$3:G56,G56) -> 1972.M2 | J56: =MROUND(Table1[[#This Row],[Dist. Behind Usain Bolt]]*10,2) -> 60 | K56: =Table1[[#This Row],[Country]]=selCountry -> FALSE | L56: =MIN($E$3:E55)>E56 -> FALSE | M56: =VLOOKUP(Table1[[#This Row],[Medal]],$R$34:$S$36,2,FALSE) -> 2 | N56: =COUNTIFS($C$3:C56,C56,$M$3:M56,">="&M56)>1 -> FALSE | O56: =IF(Table1[[#This Row],[Defended?]],VLOOKUP(Table1[[#This Row],[Name]],$C$3:M56,5,FALSE)&" - "&INDEX($R$34:$R$36,VLOOKUP(Table1[[#This Row],[Name]],$C$3:M56,11,FALSE)),"") ->  | P56: =IF($AO$1<20,Table1[[#This Row],[Highlight?]],IF($AO$1=20,Table1[[#This Row],[OR?]],Table1[[#This Row],[Defended?]])) -> FALSE
A57: 55 | B57: BRONZE | C57: Lennox Miller | D57: JAM | E57: 10.33 | F57: 6.8 | G57: 1972 | H57: Munich | I57: =G57&".M"&COUNTIFS($G$3:G57,G57) -> 1972.M3 | J57: =MROUND(Table1[[#This Row],[Dist. Behind Usain Bolt]]*10,2) -> 68 | K57: =Table1[[#This Row],[Country]]=selCountry -> FALSE | L57: =MIN($E$3:E56)>E57 -> FALSE | M57: =VLOOKUP(Table1[[#This Row],[Medal]],$R$34:$S$36,2,FALSE) -> 3 | N57: =COUNTIFS($C$3:C57,C57,$M$3:M57,">="&M57)>1 -> FALSE | O57: =IF(Table1[[#This Row],[Defended?]],VLOOKUP(Table1[[#This Row],[Name]],$C$3:M57,5,FALSE)&" - "&INDEX($R$34:$R$36,VLOOKUP(Table1[[#This Row],[Name]],$C$3:M57,11,FALSE)),"") ->  | P57: =IF($AO$1<20,Table1[[#This Row],[Highlight?]],IF($AO$1=20,Table1[[#This Row],[OR?]],Table1[[#This Row],[Defended?]])) -> FALSE
A58: 56 | B58: GOLD | C58: Hasely Crawford | D58: TRI | E58: 10.06 | F58: 4.3 | G58: 1976 | H58: Montreal | I58: =G58&".M"&COUNTIFS($G$3:G58,G58) -> 1976.M1 | J58: =MROUND(Table1[[#This Row],[Dist. Behind Usain Bolt]]*10,2) -> 44 | K58: =Table1[[#This Row],[Country]]=selCountry -> FALSE | L58: =MIN($E$3:E57)>E58 -> FALSE | M58: =VLOOKUP(Table1[[#This Row],[Medal]],$R$34:$S$36,2,FALSE) -> 1 | N58: =COUNTIFS($C$3:C58,C58,$M$3:M58,">="&M58)>1 -> FALSE | O58: =IF(Table1[[#This Row],[Defended?]],VLOOKUP(Table1[[#This Row],[Name]],$C$3:M58,5,FALSE)&" - "&INDEX($R$34:$R$36,VLOOKUP(Table1[[#This Row],[Name]],$C$3:M58,11,FALSE)),"") ->  | P58: =IF($AO$1<20,Table1[[#This Row],[Highlight?]],IF($AO$1=20,Table1[[#This Row],[OR?]],Table1[[#This Row],[Defended?]])) -> FALSE
A59: 57 | B59: SILVER | C59: Don Quarrie | D59: JAM | E59: 10.08 | F59: 4.5 | G59: 1976 | H59: Montreal | I59: =G59&".M"&COUNTIFS($G$3:G59,G59) -> 1976.M2 | J59: =MROUND(Table1[[#This Row],[Dist. Behind Usain Bolt]]*10,2) -> 46 | K59: =Table1[[#This Row],[Country]]=selCountry -> FALSE | L59: =MIN($E$3:E58)>E59 -> FALSE | M59: =VLOOKUP(Table1[[#This Row],[Medal]],$R$34:$S$36,2,FALSE) -> 2 | N59: =COUNTIFS($C$3:C59,C59,$M$3:M59,">="&M59)>1 -> FALSE | O59: =IF(Table1[[#This Row],[Defended?]],VLOOKUP(Table1[[#This Row],[Name]],$C$3:M59,5,FALSE)&" - "&INDEX($R$34:$R$36,VLOOKUP(Table1[[#This Row],[Name]],$C$3:M59,11,FALSE)),"") ->  | P59: =IF($AO$1<20,Table1[[#This Row],[Highlight?]],IF($AO$1=20,Table1[[#This Row],[OR?]],Table1[[#This Row],[Defended?]])) -> FALSE
A60: 58 | B60: BRONZE | C60: Valeriy Borzov | D60: URS | E60: 10.14 | F60: 5 | G60: 1976 | H60: Montreal | I60: =G60&".M"&COUNTIFS($G$3:G60,G60) -> 1976.M3 | J60: =MROUND(Table1[[#This Row],[Dist. Behind Usain Bolt]]*10,2) -> 50 | K60: =Table1[[#This Row],[Country]]=selCountry -> FALSE | L60: =MIN($E$3:E59)>E60 -> FALSE | M60: =VLOOKUP(Table1[[#This Row],[Medal]],$R$34:$S$36,2,FALSE) -> 3 | N60: =COUNTIFS($C$3:C60,C60,$M$3:M60,">="&M60)>1 -> FALSE | O60: =IF(Table1[[#This Row],[Defended?]],VLOOKUP(Table1[[#This Row],[Name]],$C$3:M60,5,FALSE)&" - "&INDEX($R$34:$R$36,VLOOKUP(Table1[[#This Row],[Name]],$C$3:M60,11,FALSE)),"") ->  | P60: =IF($AO$1<20,Table1[[#This Row],[Highlight?]],IF($AO$1=20,Table1[[#This Row],[OR?]],Table1[[#This Row],[Defended?]])) -> FALSE
A61: 59 | B61: GOLD | C61: Allan Wells | D61: GBR | E61: 10.25 | F61: 6 | G61: 1980 | H61: Moscow | I61: =G61&".M"&COUNTIFS($G$3:G61,G61) -> 1980.M1 | J61: =MROUND(Table1[[#This Row],[Dist. Behind Usain Bolt]]*10,2) -> 60 | K61: =Table1[[#This Row],[Country]]=selCountry -> FALSE | L61: =MIN($E$3:E60)>E61 -> FALSE | M61: =VLOOKUP(Table1[[#This Row],[Medal]],$R$34:$S$36,2,FALSE) -> 1 | N61: =COUNTIFS($C$3:C61,C61,$M$3:M61,">="&M61)>1 -> FALSE | O61: =IF(Table1[[#This Row],[Defended?]],VLOOKUP(Table1[[#This Row],[Name]],$C$3:M61,5,FALSE)&" - "&INDEX($R$34:$R$36,VLOOKUP(Table1[[#This Row],[Name]],$C$3:M61,11,FALSE)),"") ->  | P61: =IF($AO$1<20,Table1[[#This Row],[Highlight?]],IF($AO$1=20,Table1[[#This Row],[OR?]],Table1[[#This Row],[Defended?]])) -> FALSE
A62: 60 | B62: SILVER | C62: Silvio Tartabull | D62: CUB | E62: 10.25 | F62: 6 | G62: 1980 | H62: Moscow | I62: =G62&".M"&COUNTIFS($G$3:G62,G62) -> 1980.M2 | J62: =MROUND(Table1[[#This Row],[Dist. Behind Usain Bolt]]*10,2) -> 60 | K62: =Table1[[#This Row],[Country]]=selCountry -> FALSE | L62: =MIN($E$3:E61)>E62 -> FALSE | M62: =VLOOKUP(Table1[[#This Row],[Medal]],$R$34:$S$36,2,FALSE) -> 2 | N62: =COUNTIFS($C$3:C62,C62,$M$3:M62,">="&M62)>1 -> FALSE | O62: =IF(Table1[[#This Row],[Defended?]],VLOOKUP(Table1[[#This Row],[Name]],$C$3:M62,5,FALSE)&" - "&INDEX($R$34:$R$36,VLOOKUP(Table1[[#This Row],[Name]],$C$3:M62,11,FALSE)),"") ->  | P62: =IF($AO$1<20,Table1[[#This Row],[Highlight?]],IF($AO$1=20,Table1[[#This Row],[OR?]],Table1[[#This Row],[Defended?]])) -> FALSE
A63: 61 | B63: BRONZE | C63: Petur Petrov | D63: BUL | E63: 10.39 | F63: 7.3 | G63: 1980 | H63: Moscow | I63: =G63&".M"&COUNTIFS($G$3:G63,G63) -> 1980.M3 | J63: =MROUND(Table1[[#This Row],[Dist. Behind Usain Bolt]]*10,2) -> 74 | K63: =Table1[[#This Row],[Country]]=selCountry -> FALSE | L63: =MIN($E$3:E62)>E63 -> FALSE | M63: =VLOOKUP(Table1[[#This Row],[Medal]],$R$34:$S$36,2,FALSE) -> 3 | N63: =COUNTIFS($C$3:C63,C63,$M$3:M63,">="&M63)>1 -> FALSE | O63: =IF(Table1[[#This Row],[Defended?]],VLOOKUP(Table1[[#This Row],[Name]],$C$3:M63,5,FALSE)&" - "&INDEX($R$34:$R$36,VLOOKUP(Table1[[#This Row],[Name]],$C$3:M63,11,FALSE)),"") ->  | P63: =IF($AO$1<20,Table1[[#This Row],[Highlight?]],IF($AO$1=20,Table1[[#This Row],[OR?]],Table1[[#This Row],[Defended?]])) -> FALSE
A64: 62 | B64: GOLD | C64: Carl Lewis | D64: USA | E64: 9.99 | F64: 3.6 | G64: 1984 | H64: Los Angeles | I64: =G64&".M"&COUNTIFS($G$3:G64,G64) -> 1984.M1 | J64: =MROUND(Table1[[#This Row],[Dist. Behind Usain Bolt]]*10,2) -> 36 | K64: =Table1[[#This Row],[Country]]=selCountry -> FALSE | L64: =MIN($E$3:E63)>E64 -> FALSE | M64: =VLOOKUP(Table1[[#This Row],[Medal]],$R$34:$S$36,2,FALSE) -> 1 | N64: =COUNTIFS($C$3:C64,C64,$M$3:M64,">="&M64)>1 -> FALSE | O64: =IF(Table1[[#This Row],[Defended?]],VLOOKUP(Table1[[#This Row],[Name]],$C$3:M64,5,FALSE)&" - "&INDEX($R$34:$R$36,VLOOKUP(Table1[[#This Row],[Name]],$C$3:M64,11,FALSE)),"") ->  | P64: =IF($AO$1<20,Table1[[#This Row],[Highlight?]],IF($AO$1=20,Table1[[#This Row],[OR?]],Table1[[#This Row],[Defended?]])) -> FALSE
A65: 63 | B65: SILVER | C65: Sam Graddy | D65: USA | E65: 10.19 | F65: 5.5 | G65: 1984 | H65: Los Angeles | I65: =G65&".M"&COUNTIFS($G$3:G65,G65) -> 1984.M2 | J65: =MROUND(Table1[[#This Row],[Dist. Behind Usain Bolt]]*10,2) -> 56 | K65: =Table1[[#This Row],[Country]]=selCountry -> FALSE | L65: =MIN($E$3:E64)>E65 -> FALSE | M65: =VLOOKUP(Table1[[#This Row],[Medal]],$R$34:$S$36,2,FALSE) -> 2 | N65: =COUNTIFS($C$3:C65,C65,$M$3:M65,">="&M65)>1 -> FALSE | O65: =IF(Table1[[#This Row],[Defended?]],VLOOKUP(Table1[[#This Row],[Name]],$C$3:M65,5,FALSE)&" - "&INDEX($R$34:$R$36,VLOOKUP(Table1[[#This Row],[Name]],$C$3:M65,11,FALSE)),"") ->  | P65: =IF($AO$1<20,Table1[[#This Row],[Highlight?]],IF($AO$1=20,Table1[[#This Row],[OR?]],Table1[[#This Row],[Defended?]])) -> FALSE
A66: 64 | B66: BRONZE | C66: Ben Johnson | D66: CAN | E66: 10.22 | F66: 5.8 | G66: 1984 | H66: Los Angeles | I66: =G66&".M"&COUNTIFS($G$3:G66,G66) -> 1984.M3 | J66: =MROUND(Table1[[#This Row],[Dist. Behind Usain Bolt]]*10,2) -> 58 | K66: =Table1[[#This Row],[Country]]=selCountry -> FALSE | L66: =MIN($E$3:E65)>E66 -> FALSE | M66: =VLOOKUP(Table1[[#This Row],[Medal]],$R$34:$S$36,2,FALSE) -> 3 | N66: =COUNTIFS($C$3:C66,C66,$M$3:M66,">="&M66)>1 -> FALSE | O66: =IF(Table1[[#This Row],[Defended?]],VLOOKUP(Table1[[#This Row],[Name]],$C$3:M66,5,FALSE)&" - "&INDEX($R$34:$R$36,VLOOKUP(Table1[[#This Row],[Name]],$C$3:M66,11,FALSE)),"") ->  | P66: =IF($AO$1<20,Table1[[#This Row],[Highlight?]],IF($AO$1=20,Table1[[#This Row],[OR?]],Table1[[#This Row],[Defended?]])) -> FALSE
A67: 65 | B67: GOLD | C67: Carl Lewis | D67: USA | E67: 9.92 | F67: 2.9 | G67: 1988 | H67: Seoul | I67: =G67&".M"&COUNTIFS($G$3:G67,G67) -> 1988.M1 | J67: =MROUND(Table1[[#This Row],[Dist. Behind Usain Bolt]]*10,2) -> 30 | K67: =Table1[[#This Row],[Country]]=selCountry -> FALSE | L67: =MIN($E$3:E66)>E67 -> TRUE | M67: =VLOOKUP(Table1[[#This Row],[Medal]],$R$34:$S$36,2,FALSE) -> 1 | N67: =COUNTIFS($C$3:C67,C67,$M$3:M67,">="&M67)>1 -> TRUE | O67: =IF(Table1[[#This Row],[Defended?]],VLOOKUP(Table1[[#This Row],[Name]],$C$3:M67,5,FALSE)&" - "&INDEX($R$34:$R$36,VLOOKUP(Table1[[#This Row],[Name]],$C$3:M67,11,FALSE)),"") -> 1984 - Gold | P67: =IF($AO$1<20,Table1[[#This Row],[Highlight?]],IF($AO$1=20,Table1[[#This Row],[OR?]],Table1[[#This Row],[Defended?]])) -> FALSE
A68: 66 | B68: SILVER | C68: Linford Christie | D68: GBR | E68: 9.97 | F68: 3.4 | G68: 1988 | H68: Seoul | I68: =G68&".M"&COUNTIFS($G$3:G68,G68) -> 1988.M2 | J68: =MROUND(Table1[[#This Row],[Dist. Behind Usain Bolt]]*10,2) -> 34 | K68: =Table1[[#This Row],[Country]]=selCountry -> FALSE | L68: =MIN($E$3:E67)>E68 -> FALSE | M68: =VLOOKUP(Table1[[#This Row],[Medal]],$R$34:$S$36,2,FALSE) -> 2 | N68: =COUNTIFS($C$3:C68,C68,$M$3:M68,">="&M68)>1 -> FALSE | O68: =IF(Table1[[#This Row],[Defended?]],VLOOKUP(Table1[[#This Row],[Name]],$C$3:M68,5,FALSE)&" - "&INDEX($R$34:$R$36,VLOOKUP(Table1[[#This Row],[Name]],$C$3:M68,11,FALSE)),"") ->  | P68: =IF($AO$1<20,Table1[[#This Row],[Highlight?]],IF($AO$1=20,Table1[[#This Row],[OR?]],Table1[[#This Row],[Defended?]])) -> FALSE
A69: =A68+1 -> 67 | B69: BRONZE | C69: Calvin Smith | D69: USA | E69: 9.99 | F69: 3.6 | G69: 1988 | H69: Seoul | I69: =G69&".M"&COUNTIFS($G$3:G69,G69) -> 1988.M3 | J69: =MROUND(Table1[[#This Row],[Dist. Behind Usain Bolt]]*10,2) -> 36 | K69: =Table1[[#This Row],[Country]]=selCountry -> FALSE | L69: =MIN($E$3:E68)>E69 -> FALSE | M69: =VLOOKUP(Table1[[#This Row],[Medal]],$R$34:$S$36,2,FALSE) -> 3 | N69: =COUNTIFS($C$3:C69,C69,$M$3:M69,">="&M69)>1 -> FALSE | O69: =IF(Table1[[#This Row],[Defended?]],VLOOKUP(Table1[[#This Row],[Name]],$C$3:M69,5,FALSE)&" - "&INDEX($R$34:$R$36,VLOOKUP(Table1[[#This Row],[Name]],$C$3:M69,11,FALSE)),"") ->  | P69: =IF($AO$1<20,Table1[[#This Row],[Highlight?]],IF($AO$1=20,Table1[[#This Row],[OR?]],Table1[[#This Row],[Defended?]])) -> FALSE
A70: 68 | B70: GOLD | C70: Linford Christie | D70: GBR | E70: 9.96 | F70: 3.3 | G70: 1992 | H70: Barcelona | I70: =G70&".M"&COUNTIFS($G$3:G70,G70) -> 1992.M1 | J70: =MROUND(Table1[[#This Row],[Dist. Behind Usain Bolt]]*10,2) -> 34 | K70: =Table1[[#This Row],[Country]]=selCountry -> FALSE | L70: =MIN($E$3:E69)>E70 -> FALSE | M70: =VLOOKUP(Table1[[#This Row],[Medal]],$R$34:$S$36,2,FALSE) -> 1 | N70: =COUNTIFS($C$3:C70,C70,$M$3:M70,">="&M70)>1 -> TRUE | O70: =IF(Table1[[#This Row],[Defended?]],VLOOKUP(Table1[[#This Row],[Name]],$C$3:M70,5,FALSE)&" - "&INDEX($R$34:$R$36,VLOOKUP(Table1[[#This Row],[Name]],$C$3:M70,11,FALSE)),"") -> 1988 - Silver | P70: =IF($AO$1<20,Table1[[#This Row],[Highlight?]],IF($AO$1=20,Table1[[#This Row],[OR?]],Table1[[#This Row],[Defended?]])) -> FALSE
A71: 69 | B71: SILVER | C71: Frank Fredericks | D71: NAM | E71: 10.02 | F71: 3.9 | G71: 1992 | H71: Barcelona | I71: =G71&".M"&COUNTIFS($G$3:G71,G71) -> 1992.M2 | J71: =MROUND(Table1[[#This Row],[Dist. Behind Usain Bolt]]*10,2) -> 40 | K71: =Table1[[#This Row],[Country]]=selCountry -> FALSE | L71: =MIN($E$3:E70)>E71 -> FALSE | M71: =VLOOKUP(Table1[[#This Row],[Medal]],$R$34:$S$36,2,FALSE) -> 2 | N71: =COUNTIFS($C$3:C71,C71,$M$3:M71,">="&M71)>1 -> FALSE | O71: =IF(Table1[[#This Row],[Defended?]],VLOOKUP(Table1[[#This Row],[Name]],$C$3:M71,5,FALSE)&" - "&INDEX($R$34:$R$36,VLOOKUP(Table1[[#This Row],[Name]],$C$3:M71,11,FALSE)),"") ->  | P71: =IF($AO$1<20,Table1[[#This Row],[Highlight?]],IF($AO$1=20,Table1[[#This Row],[OR?]],Table1[[#This Row],[Defended?]])) -> FALSE
A72: 70 | B72: BRONZE | C72: Dennis Mitchell | D72: USA | E72: 10.04 | F72: 4.1 | G72: 1992 | H72: Barcelona | I72: =G72&".M"&COUNTIFS($G$3:G72,G72) -> 1992.M3 | J72: =MROUND(Table1[[#This Row],[Dist. Behind Usain Bolt]]*10,2) -> 42 | K72: =Table1[[#This Row],[Country]]=selCountry -> FALSE | L72: =MIN($E$3:E71)>E72 -> FALSE | M72: =VLOOKUP(Table1[[#This Row],[Medal]],$R$34:$S$36,2,FALSE) -> 3 | N72: =COUNTIFS($C$3:C72,C72,$M$3:M72,">="&M72)>1 -> FALSE | O72: =IF(Table1[[#This Row],[Defended?]],VLOOKUP(Table1[[#This Row],[Name]],$C$3:M72,5,FALSE)&" - "&INDEX($R$34:$R$36,VLOOKUP(Table1[[#This Row],[Name]],$C$3:M72,11,FALSE)),"") ->  | P72: =IF($AO$1<20,Table1[[#This Row],[Highlight?]],IF($AO$1=20,Table1[[#This Row],[OR?]],Table1[[#This Row],[Defended?]])) -> FALSE
A73: 71 | B73: GOLD | C73: Donovan Bailey | D73: CAN | E73: 9.84 | F73: 2.1 | G73: 1996 | H73: Atlanta | I73: =G73&".M"&COUNTIFS($G$3:G73,G73) -> 1996.M1 | J73: =MROUND(Table1[[#This Row],[Dist. Behind Usain Bolt]]*10,2) -> 22 | K73: =Table1[[#This Row],[Country]]=selCountry -> FALSE | L73: =MIN($E$3:E72)>E73 -> TRUE | M73: =VLOOKUP(Table1[[#This Row],[Medal]],$R$34:$S$36,2,FALSE) -> 1 | N73: =COUNTIFS($C$3:C73,C73,$M$3:M73,">="&M73)>1 -> FALSE | O73: =IF(Table1[[#This Row],[Defended?]],VLOOKUP(Table1[[#This Row],[Name]],$C$3:M73,5,FALSE)&" - "&INDEX($R$34:$R$36,VLOOKUP(Table1[[#This Row],[Name]],$C$3:M73,11,FALSE)),"") ->  | P73: =IF($AO$1<20,Table1[[#This Row],[Highlight?]],IF($AO$1=20,Table1[[#This Row],[OR?]],Table1[[#This Row],[Defended?]])) -> FALSE
A74: 72 | B74: SILVER | C74: Frank Fredericks | D74: NAM | E74: 9.89 | F74: 2.6 | G74: 1996 | H74: Atlanta | I74: =G74&".M"&COUNTIFS($G$3:G74,G74) -> 1996.M2 | J74: =MROUND(Table1[[#This Row],[Dist. Behind Usain Bolt]]*10,2) -> 26 | K74: =Table1[[#This Row],[Country]]=selCountry -> FALSE | L74: =MIN($E$3:E73)>E74 -> FALSE | M74: =VLOOKUP(Table1[[#This Row],[Medal]],$R$34:$S$36,2,FALSE) -> 2 | N74: =COUNTIFS($C$3:C74,C74,$M$3:M74,">="&M74)>1 -> TRUE | O74: =IF(Table1[[#This Row],[Defended?]],VLOOKUP(Table1[[#This Row],[Name]],$C$3:M74,5,FALSE)&" - "&INDEX($R$34:$R$36,VLOOKUP(Table1[[#This Row],[Name]],$C$3:M74,11,FALSE)),"") -> 1992 - Silver | P74: =IF($AO$1<20,Table1[[#This Row],[Highlight?]],IF($AO$1=20,Table1[[#This Row],[OR?]],Table1[[#This Row],[Defended?]])) -> FALSE
A75: 73 | B75: BRONZE | C75: Ato Boldon | D75: TRI | E75: 9.9 | F75: 2.7 | G75: 1996 | H75: Atlanta | I75: =G75&".M"&COUNTIFS($G$3:G75,G75) -> 1996.M3 | J75: =MROUND(Table1[[#This Row],[Dist. Behind Usain Bolt]]*10,2) -> 28 | K75: =Table1[[#This Row],[Country]]=selCountry -> FALSE | L75: =MIN($E$3:E74)>E75 -> FALSE | M75: =VLOOKUP(Table1[[#This Row],[Medal]],$R$34:$S$36,2,FALSE) -> 3 | N75: =COUNTIFS($C$3:C75,C75,$M$3:M75,">="&M75)>1 -> FALSE | O75: =IF(Table1[[#This Row],[Defended?]],VLOOKUP(Table1[[#This Row],[Name]],$C$3:M75,5,FALSE)&" - "&INDEX($R$34:$R$36,VLOOKUP(Table1[[#This Row],[Name]],$C$3:M75,11,FALSE)),"") ->  | P75: =IF($AO$1<20,Table1[[#This Row],[Highlight?]],IF($AO$1=20,Table1[[#This Row],[OR?]],Table1[[#This Row],[Defended?]])) -> FALSE
A76: 74 | B76: GOLD | C76: Maurice Greene | D76: USA | E76: 9.87 | F76: 2.4 | G76: 2000 | H76: Sydney | I76: =G76&".M"&COUNTIFS($G$3:G76,G76) -> 2000.M1 | J76: =MROUND(Table1[[#This Row],[Dist. Behind Usain Bolt]]*10,2) -> 24 | K76: =Table1[[#This Row],[Country]]=selCountry -> FALSE | L76: =MIN($E$3:E75)>E76 -> FALSE | M76: =VLOOKUP(Table1[[#This Row],[Medal]],$R$34:$S$36,2,FALSE) -> 1 | N76: =COUNTIFS($C$3:C76,C76,$M$3:M76,">="&M76)>1 -> FALSE | O76: =IF(Table1[[#This Row],[Defended?]],VLOOKUP(Table1[[#This Row],[Name]],$C$3:M76,5,FALSE)&" - "&INDEX($R$34:$R$36,VLOOKUP(Table1[[#This Row],[Name]],$C$3:M76,11,FALSE)),"") ->  | P76: =IF($AO$1<20,Table1[[#This Row],[Highlight?]],IF($AO$1=20,Table1[[#This Row],[OR?]],Table1[[#This Row],[Defended?]])) -> FALSE
A77: 75 | B77: SILVER | C77: Ato Boldon | D77: TRI | E77: 9.99 | F77: 3.6 | G77: 2000 | H77: Sydney | I77: =G77&".M"&COUNTIFS($G$3:G77,G77) -> 2000.M2 | J77: =MROUND(Table1[[#This Row],[Dist. Behind Usain Bolt]]*10,2) -> 36 | K77: =Table1[[#This Row],[Country]]=selCountry -> FALSE | L77: =MIN($E$3:E76)>E77 -> FALSE | M77: =VLOOKUP(Table1[[#This Row],[Medal]],$R$34:$S$36,2,FALSE) -> 2 | N77: =COUNTIFS($C$3:C77,C77,$M$3:M77,">="&M77)>1 -> TRUE | O77: =IF(Table1[[#This Row],[Defended?]],VLOOKUP(Table1[[#This Row],[Name]],$C$3:M77,5,FALSE)&" - "&INDEX($R$34:$R$36,VLOOKUP(Table1[[#This Row],[Name]],$C$3:M77,11,FALSE)),"") -> 1996 - Bronze | P77: =IF($AO$1<20,Table1[[#This Row],[Highlight?]],IF($AO$1=20,Table1[[#This Row],[OR?]],Table1[[#This Row],[Defended?]])) -> FALSE
A78: 76 | B78: BRONZE | C78: Obadele Thompson | D78: BAR | E78: 10.04 | F78: 4.1 | G78: 2000 | H78: Sydney | I78: =G78&".M"&COUNTIFS($G$3:G78,G78) -> 2000.M3 | J78: =MROUND(Table1[[#This Row],[Dist. Behind Usain Bolt]]*10,2) -> 42 | K78: =Table1[[#This Row],[Country]]=selCountry -> FALSE | L78: =MIN($E$3:E77)>E78 -> FALSE | M78: =VLOOKUP(Table1[[#This Row],[Medal]],$R$34:$S$36,2,FALSE) -> 3 | N78: =COUNTIFS($C$3:C78,C78,$M$3:M78,">="&M78)>1 -> FALSE | O78: =IF(Table1[[#This Row],[Defended?]],VLOOKUP(Table1[[#This Row],[Name]],$C$3:M78,5,FALSE)&" - "&INDEX($R$34:$R$36,VLOOKUP(Table1[[#This Row],[Name]],$C$3:M78,11,FALSE)),"") ->  | P78: =IF($AO$1<20,Table1[[#This Row],[Highlight?]],IF($AO$1=20,Table1[[#This Row],[OR?]],Table1[[#This Row],[Defended?]])) -> FALSE
A79: 77 | B79: GOLD | C79: Justin Gatlin | D79: USA | E79: 9.85 | F79: 2.2 | G79: 2004 | H79: Athens | I79: =G79&".M"&COUNTIFS($G$3:G79,G79) -> 2004.M1 | J79: =MROUND(Table1[[#This Row],[Dist. Behind Usain Bolt]]*10,2) -> 22 | K79: =Table1[[#This Row],[Country]]=selCountry -> FALSE | L79: =MIN($E$3:E78)>E79 -> FALSE | M79: =VLOOKUP(Table1[[#This Row],[Medal]],$R$34:$S$36,2,FALSE) -> 1 | N79: =COUNTIFS($C$3:C79,C79,$M$3:M79,">="&M79)>1 -> FALSE | O79: =IF(Table1[[#This Row],[Defended?]],VLOOKUP(Table1[[#This Row],[Name]],$C$3:M79,5,FALSE)&" - "&INDEX($R$34:$R$36,VLOOKUP(Table1[[#This Row],[Name]],$C$3:M79,11,FALSE)),"") ->  | P79: =IF($AO$1<20,Table1[[#This Row],[Highlight?]],IF($AO$1=20,Table1[[#This Row],[OR?]],Table1[[#This Row],[Defended?]])) -> FALSE
A80: 78 | B80: SILVER | C80: Francis Obikwelu | D80: POR | E80: 9.86 | F80: 2.3 | G80: 2004 | H80: Athens | I80: =G80&".M"&COUNTIFS($G$3:G80,G80) -> 2004.M2 | J80: =MROUND(Table1[[#This Row],[Dist. Behind Usain Bolt]]*10,2) -> 24 | K80: =Table1[[#This Row],[Country]]=selCountry -> FALSE | L80: =MIN($E$3:E79)>E80 -> FALSE | M80: =VLOOKUP(Table1[[#This Row],[Medal]],$R$34:$S$36,2,FALSE) -> 2 | N80: =COUNTIFS($C$3:C80,C80,$M$3:M80,">="&M80)>1 -> FALSE | O80: =IF(Table1[[#This Row],[Defended?]],VLOOKUP(Table1[[#This Row],[Name]],$C$3:M80,5,FALSE)&" - "&INDEX($R$34:$R$36,VLOOKUP(Table1[[#This Row],[Name]],$C$3:M80,11,FALSE)),"") ->  | P80: =IF($AO$1<20,Table1[[#This Row],[Highlight?]],IF($AO$1=20,Table1[[#This Row],[OR?]],Table1[[#This Row],[Defended?]])) -> FALSE
A81: 79 | B81: BRONZE | C81: Maurice Greene | D81: USA | E81: 9.87 | F81: 2.4 | G81: 2004 | H81: Athens | I81: =G81&".M"&COUNTIFS($G$3:G81,G81) -> 2004.M3 | J81: =MROUND(Table1[[#This Row],[Dist. Behind Usain Bolt]]*10,2) -> 24 | K81: =Table1[[#This Row],[Country]]=selCountry -> FALSE | L81: =MIN($E$3:E80)>E81 -> FALSE | M81: =VLOOKUP(Table1[[#This Row],[Medal]],$R$34:$S$36,2,FALSE) -> 3 | N81: =COUNTIFS($C$3:C81,C81,$M$3:M81,">="&M81)>1 -> FALSE | O81: =IF(Table1[[#This Row],[Defended?]],VLOOKUP(Table1[[#This Row],[Name]],$C$3:M81,5,FALSE)&" - "&INDEX($R$34:$R$36,VLOOKUP(Table1[[#This Row],[Name]],$C$3:M81,11,FALSE)),"") ->  | P81: =IF($AO$1<20,Table1[[#This Row],[Highlight?]],IF($AO$1=20,Table1[[#This Row],[OR?]],Table1[[#This Row],[Defended?]])) -> FALSE
A82: 80 | B82: GOLD | C82: Usain Bolt | D82: JAM | E82: 9.69 | F82: 0.6 | G82: 2008 | H82: Beijing | I82: =G82&".M"&COUNTIFS($G$3:G82,G82) -> 2008.M1 | J82: =MROUND(Table1[[#This Row],[Dist. Behind Usain Bolt]]*10,2) -> 6 | K82: =Table1[[#This Row],[Country]]=selCountry -> FALSE | L82: =MIN($E$3:E81)>E82 -> TRUE | M82: =VLOOKUP(Table1[[#This Row],[Medal]],$R$34:$S$36,2,FALSE) -> 1 | N82: =COUNTIFS($C$3:C82,C82,$M$3:M82,">="&M82)>1 -> FALSE | O82: =IF(Table1[[#This Row],[Defended?]],VLOOKUP(Table1[[#This Row],[Name]],$C$3:M82,5,FALSE)&" - "&INDEX($R$34:$R$36,VLOOKUP(Table1[[#This Row],[Name]],$C$3:M82,11,FALSE)),"") ->  | P82: =IF($AO$1<20,Table1[[#This Row],[Highlight?]],IF($AO$1=20,Table1[[#This Row],[OR?]],Table1[[#This Row],[Defended?]])) -> FALSE
A83: 81 | B83: SILVER | C83: Richard Thompson | D83: TRI | E83: 9.89 | F83: 2.6 | G83: 2008 | H83: Beijing | I83: =G83&".M"&COUNTIFS($G$3:G83,G83) -> 2008.M2 | J83: =MROUND(Table1[[#This Row],[Dist. Behind Usain Bolt]]*10,2) -> 26 | K83: =Table1[[#This Row],[Country]]=selCountry -> FALSE | L83: =MIN($E$3:E82)>E83 -> FALSE | M83: =VLOOKUP(Table1[[#This Row],[Medal]],$R$34:$S$36,2,FALSE) -> 2 | N83: =COUNTIFS($C$3:C83,C83,$M$3:M83,">="&M83)>1 -> FALSE | O83: =IF(Table1[[#This Row],[Defended?]],VLOOKUP(Table1[[#This Row],[Name]],$C$3:M83,5,FALSE)&" - "&INDEX($R$34:$R$36,VLOOKUP(Table1[[#This Row],[Name]],$C$3:M83,11,FALSE)),"") ->  | P83: =IF($AO$1<20,Table1[[#This Row],[Highlight?]],IF($AO$1=20,Table1[[#This Row],[OR?]],Table1[[#This Row],[Defended?]])) -> FALSE
A84: 82 | B84: BRONZE | C84: Walter Dix | D84: USA | E84: 9.91 | F84: 2.8 | G84: 2008 | H84: Beijing | I84: =G84&".M"&COUNTIFS($G$3:G84,G84) -> 2008.M3 | J84: =MROUND(Table1[[#This Row],[Dist. Behind Usain Bolt]]*10,2) -> 28 | K84: =Table1[[#This Row],[Country]]=selCountry -> FALSE | L84: =MIN($E$3:E83)>E84 -> FALSE | M84: =VLOOKUP(Table1[[#This Row],[Medal]],$R$34:$S$36,2,FALSE) -> 3 | N84: =COUNTIFS($C$3:C84,C84,$M$3:M84,">="&M84)>1 -> FALSE | O84: =IF(Table1[[#This Row],[Defended?]],VLOOKUP(Table1[[#This Row],[Name]],$C$3:M84,5,FALSE)&" - "&INDEX($R$34:$R$36,VLOOKUP(Table1[[#This Row],[Name]],$C$3:M84,11,FALSE)),"") ->  | P84: =IF($AO$1<20,Table1[[#This Row],[Highlight?]],IF($AO$1=20,Table1[[#This Row],[OR?]],Table1[[#This Row],[Defended?]])) -> FALSE
A85: 83 | B85: GOLD | C85: Usain Bolt | D85: JAM | E85: 9.63 | F85: 0 | G85: 2012 | H85: London | I85: =G85&".M"&COUNTIFS($G$3:G85,G85) -> 2012.M1 | J85: =MROUND(Table1[[#This Row],[Dist. Behind Usain Bolt]]*10,2) -> 0 | K85: =Table1[[#This Row],[Country]]=selCountry -> FALSE | L85: =MIN($E$3:E84)>E85 -> TRUE | M85: =VLOOKUP(Table1[[#This Row],[Medal]],$R$34:$S$36,2,FALSE) -> 1 | N85: =COUNTIFS($C$3:C85,C85,$M$3:M85,">="&M85)>1 -> TRUE | O85: =IF(Table1[[#This Row],[Defended?]],VLOOKUP(Table1[[#This Row],[Name]],$C$3:M85,5,FALSE)&" - "&INDEX($R$34:$R$36,VLOOKUP(Table1[[#This Row],[Name]],$C$3:M85,11,FALSE)),"") -> 2008 - Gold | P85: =IF($AO$1<20,Table1[[#This Row],[Highlight?]],IF($AO$1=20,Table1[[#This Row],[OR?]],Table1[[#This Row],[Defended?]])) -> FALSE
A86: 84 | B86: SILVER | C86: Yohan Blake | D86: JAM | E86: 9.75 | F86: 1.2 | G86: 2012 | H86: London | I86: =G86&".M"&COUNTIFS($G$3:G86,G86) -> 2012.M2 | J86: =MROUND(Table1[[#This Row],[Dist. Behind Usain Bolt]]*10,2) -> 12 | K86: =Table1[[#This Row],[Country]]=selCountry -> FALSE | L86: =MIN($E$3:E85)>E86 -> FALSE | M86: =VLOOKUP(Table1[[#This Row],[Medal]],$R$34:$S$36,2,FALSE) -> 2 | N86: =COUNTIFS($C$3:C86,C86,$M$3:M86,">="&M86)>1 -> FALSE | O86: =IF(Table1[[#This Row],[Defended?]],VLOOKUP(Table1[[#This Row],[Name]],$C$3:M86,5,FALSE)&" - "&INDEX($R$34:$R$36,VLOOKUP(Table1[[#This Row],[Name]],$C$3:M86,11,FALSE)),"") ->  | P86: =IF($AO$1<20,Table1[[#This Row],[Highlight?]],IF($AO$1=20,Table1[[#This Row],[OR?]],Table1[[#This Row],[Defended?]])) -> FALSE
A87: 85 | B87: BRONZE | C87: Justin Gatin | D87: USA | E87: 9.79 | F87: 1.6 | G87: 2012 | H87: London | I87: =G87&".M"&COUNTIFS($G$3:G87,G87) -> 2012.M3 | J87: =MROUND(Table1[[#This Row],[Dist. Behind Usain Bolt]]*10,2) -> 16 | K87: =Table1[[#This Row],[Country]]=selCountry -> FALSE | L87: =MIN($E$3:E86)>E87 -> FALSE | M87: =VLOOKUP(Table1[[#This Row],[Medal]],$R$34:$S$36,2,FALSE) -> 3 | N87: =COUNTIFS($C$3:C87,C87,$M$3:M87,">="&M87)>1 -> FALSE | O87: =IF(Table1[[#This Row],[Defended?]],VLOOKUP(Table1[[#This Row],[Name]],$C$3:M87,5,FALSE)&" - "&INDEX($R$34:$R$36,VLOOKUP(Table1[[#This Row],[Name]],$C$3:M87,11,FALSE)),"") ->  | P87: =IF($AO$1<20,Table1[[#This Row],[Highlight?]],IF($AO$1=20,Table1[[#This Row],[OR?]],Table1[[#This Row],[Defended?]])) -> FALSE

Sheet view
C3: 240 | D3: =C3-2 -> 238 | E3: =D3-2 -> 236 | F3: 234 | G3: 232 | H3: 230 | I3: 228 | J3: 226 | K3: 224 | L3: 222 | M3: 220 | N3: 218 | O3: 216 | P3: 214 | Q3: 212 | R3: 210 | S3: 208 | T3: 206 | U3: 204 | V3: 202 | W3: 200 | X3: 198 | Y3: 196 | Z3: 194 | AA3: 192 | AB3: 190 | AC3: 188 | AD3: 186 | AE3: 184 | AF3: 182 | AG3: 180 | AH3: 178 | AI3: 176 | AJ3: 174 | AK3: 172 | AL3: 170 | AM3: 168 | AN3: 166 | AO3: 164 | AP3: 162 | AQ3: 160 | AR3: 158 | AS3: 156 | AT3: 154 | AU3: 152 | AV3: 150 | AW3: 148 | AX3: 146 | AY3: 144 | AZ3: 142 | BA3: 140 | BB3: 138 | BC3: 136 | BD3: 134 | BE3: 132 | BF3: 130 | BG3: 128 | BH3: 126 | BI3: 124 | BJ3: 122 | BK3: 120 | BL3: 118 | BM3: 116 | BN3: 114 | BO3: 112 | BP3: 110 | BQ3: =BP3-2 -> 108 | BR3: 106 | BS3: 104 | BT3: 102 | BU3: 100 | BV3: 98 | BW3: 96 | BX3: 94 | BY3: 92 | BZ3: 90 | CA3: 88 | CB3: 86 | CC3: 84 | CD3: 82 | CE3: 80 | CF3: 78 | CG3: 76 | CH3: 74 | CI3: 72 | CJ3: 70 | CK3: 68 | CL3: 66 | CM3: 64 | CN3: 62 | CO3: 60 | CP3: 58 | CQ3: 56 | CR3: 54 | CS3: 52 | CT3: 50 | CU3: 48 | CV3: 46 | CW3: 44 | CX3: 42 | CY3: 40 | CZ3: 38 | DA3: 36 | DB3: 34 | DC3: 32 | DD3: 30 | DE3: 28 | DF3: 26 | DG3: 24 | DH3: 22 | DI3: 20 | DJ3: 18 | DK3: 16 | DL3: 14 | DM3: 12 | DN3: 10 | DO3: 8 | DP3: 6 | DQ3: 4 | DR3: 2 | DS3: 0
A4: # | DT4: Year
A5: 1 | C5: =IF(ISERROR(MATCH(view!C$3,data!$Y3:$AB3,0)),"",IFERROR(HYPERLINK(showDetails(INDEX(data!$S3:$V3,MATCH(view!C$3,data!$Y3:$AB3,0)),C5),"●"),"●")) ->  | D5: =IF(ISERROR(MATCH(view!D$3,data!$Y3:$AB3,0)),"",IFERROR(HYPERLINK(showDetails(INDEX(data!$S3:$V3,MATCH(view!D$3,data!$Y3:$AB3,0)),D5),"●"),"●")) ->  | E5: =IF(ISERROR(MATCH(view!E$3,data!$Y3:$AB3,0)),"",IFERROR(HYPERLINK(showDetails(INDEX(data!$S3:$V3,MATCH(view!E$3,data!$Y3:$AB3,0)),E5),"●"),"●")) ->  | F5: =IF(ISERROR(MATCH(view!F$3,data!$Y3:$AB3,0)),"",IFERROR(HYPERLINK(showDetails(INDEX(data!$S3:$V3,MATCH(view!F$3,data!$Y3:$AB3,0)),F5),"●"),"●")) ->  | G5: =IF(ISERROR(MATCH(view!G$3,data!$Y3:$AB3,0)),"",IFERROR(HYPERLINK(showDetails(INDEX(data!$S3:$V3,MATCH(view!G$3,data!$Y3:$AB3,0)),G5),"●"),"●")) ->  | H5: =IF(ISERROR(MATCH(view!H$3,data!$Y3:$AB3,0)),"",IFERROR(HYPERLINK(showDetails(INDEX(data!$S3:$V3,MATCH(view!H$3,data!$Y3:$AB3,0)),H5),"●"),"●")) ->  | I5: =IF(ISERROR(MATCH(view!I$3,data!$Y3:$AB3,0)),"",IFERROR(HYPERLINK(showDetails(INDEX(data!$S3:$V3,MATCH(view!I$3,data!$Y3:$AB3,0)),I5),"●"),"●")) ->  | J5: =IF(ISERROR(MATCH(view!J$3,data!$Y3:$AB3,0)),"",IFERROR(HYPERLINK(showDetails(INDEX(data!$S3:$V3,MATCH(view!J$3,data!$Y3:$AB3,0)),J5),"●"),"●")) ->  | K5: =IF(ISERROR(MATCH(view!K$3,data!$Y3:$AB3,0)),"",IFERROR(HYPERLINK(showDetails(INDEX(data!$S3:$V3,MATCH(view!K$3,data!$Y3:$AB3,0)),K5),"●"),"●")) ->  | L5: =IF(ISERROR(MATCH(view!L$3,data!$Y3:$AB3,0)),"",IFERROR(HYPERLINK(showDetails(INDEX(data!$S3:$V3,MATCH(view!L$3,data!$Y3:$AB3,0)),L5),"●"),"●")) ->  | M5: =IF(ISERROR(MATCH(view!M$3,data!$Y3:$AB3,0)),"",IFERROR(HYPERLINK(showDetails(INDEX(data!$S3:$V3,MATCH(view!M$3,data!$Y3:$AB3,0)),M5),"●"),"●")) ->  | N5: =IF(ISERROR(MATCH(view!N$3,data!$Y3:$AB3,0)),"",IFERROR(HYPERLINK(showDetails(INDEX(data!$S3:$V3,MATCH(view!N$3,data!$Y3:$AB3,0)),N5),"●"),"●")) ->  | O5: =IF(ISERROR(MATCH(view!O$3,data!$Y3:$AB3,0)),"",IFERROR(HYPERLINK(showDetails(INDEX(data!$S3:$V3,MATCH(view!O$3,data!$Y3:$AB3,0)),O5),"●"),"●")) ->  | P5: =IF(ISERROR(MATCH(view!P$3,data!$Y3:$AB3,0)),"",IFERROR(HYPERLINK(showDetails(INDEX(data!$S3:$V3,MATCH(view!P$3,data!$Y3:$AB3,0)),P5),"●"),"●")) ->  | Q5: =IF(ISERROR(MATCH(view!Q$3,data!$Y3:$AB3,0)),"",IFERROR(HYPERLINK(showDetails(INDEX(data!$S3:$V3,MATCH(view!Q$3,data!$Y3:$AB3,0)),Q5),"●"),"●")) ->  | R5: =IF(ISERROR(MATCH(view!R$3,data!$Y3:$AB3,0)),"",IFERROR(HYPERLINK(showDetails(INDEX(data!$S3:$V3,MATCH(view!R$3,data!$Y3:$AB3,0)),R5),"●"),"●")) ->  | S5: =IF(ISERROR(MATCH(view!S$3,data!$Y3:$AB3,0)),"",IFERROR(HYPERLINK(showDetails(INDEX(data!$S3:$V3,MATCH(view!S$3,data!$Y3:$AB3,0)),S5),"●"),"●")) ->  | T5: =IF(ISERROR(MATCH(view!T$3,data!$Y3:$AB3,0)),"",IFERROR(HYPERLINK(showDetails(INDEX(data!$S3:$V3,MATCH(view!T$3,data!$Y3:$AB3,0)),T5),"●"),"●")) ->  | U5: =IF(ISERROR(MATCH(view!U$3,data!$Y3:$AB3,0)),"",IFERROR(HYPERLINK(showDetails(INDEX(data!$S3:$V3,MATCH(view!U$3,data!$Y3:$AB3,0)),U5),"●"),"●")) ->  | V5: =IF(ISERROR(MATCH(view!V$3,data!$Y3:$AB3,0)),"",IFERROR(HYPERLINK(showDetails(INDEX(data!$S3:$V3,MATCH(view!V$3,data!$Y3:$AB3,0)),V5),"●"),"●")) ->  | W5: =IF(ISERROR(MATCH(view!W$3,data!$Y3:$AB3,0)),"",IFERROR(HYPERLINK(showDetails(INDEX(data!$S3:$V3,MATCH(view!W$3,data!$Y3:$AB3,0)),W5),"●"),"●")) ->  | X5: =IF(ISERROR(MATCH(view!X$3,data!$Y3:$AB3,0)),"",IFERROR(HYPERLINK(showDetails(INDEX(data!$S3:$V3,MATCH(view!X$3,data!$Y3:$AB3,0)),X5),"●"),"●")) ->  | Y5: =IF(ISERROR(MATCH(view!Y$3,data!$Y3:$AB3,0)),"",IFERROR(HYPERLINK(showDetails(INDEX(data!$S3:$V3,MATCH(view!Y$3,data!$Y3:$AB3,0)),Y5),"●"),"●")) ->  | Z5: =IF(ISERROR(MATCH(view!Z$3,data!$Y3:$AB3,0)),"",IFERROR(HYPERLINK(showDetails(INDEX(data!$S3:$V3,MATCH(view!Z$3,data!$Y3:$AB3,0)),Z5),"●"),"●")) ->  | AA5: =IF(ISERROR(MATCH(view!AA$3,data!$Y3:$AB3,0)),"",IFERROR(HYPERLINK(showDetails(INDEX(data!$S3:$V3,MATCH(view!AA$3,data!$Y3:$AB3,0)),AA5),"●"),"●")) ->  | AB5: =IF(ISERROR(MATCH(view!AB$3,data!$Y3:$AB3,0)),"",IFERROR(HYPERLINK(showDetails(INDEX(data!$S3:$V3,MATCH(view!AB$3,data!$Y3:$AB3,0)),AB5),"●"),"●")) ->  | AC5: =IF(ISERROR(MATCH(view!AC$3,data!$Y3:$AB3,0)),"",IFERROR(HYPERLINK(showDetails(INDEX(data!$S3:$V3,MATCH(view!AC$3,data!$Y3:$AB3,0)),AC5),"●"),"●")) ->  | AD5: =IF(ISERROR(MATCH(view!AD$3,data!$Y3:$AB3,0)),"",IFERROR(HYPERLINK(showDetails(INDEX(data!$S3:$V3,MATCH(view!AD$3,data!$Y3:$AB3,0)),AD5),"●"),"●")) ->  | AE5: =IF(ISERROR(MATCH(view!AE$3,data!$Y3:$AB3,0)),"",IFERROR(HYPERLINK(showDetails(INDEX(data!$S3:$V3,MATCH(view!AE$3,data!$Y3:$AB3,0)),AE5),"●"),"●")) ->  | AF5: =IF(ISERROR(MATCH(view!AF$3,data!$Y3:$AB3,0)),"",IFERROR(HYPERLINK(showDetails(INDEX(data!$S3:$V3,MATCH(view!AF$3,data!$Y3:$AB3,0)),AF5),"●"),"●")) ->  | AG5: =IF(ISERROR(MATCH(view!AG$3,data!$Y3:$AB3,0)),"",IFERROR(HYPERLINK(showDetails(INDEX(data!$S3:$V3,MATCH(view!AG$3,data!$Y3:$AB3,0)),AG5),"●"),"●")) ->  | AH5: =IF(ISERROR(MATCH(view!AH$3,data!$Y3:$AB3,0)),"",IFERROR(HYPERLINK(showDetails(INDEX(data!$S3:$V3,MATCH(view!AH$3,data!$Y3:$AB3,0)),AH5),"●"),"●")) ->  | AI5: =IF(ISERROR(MATCH(view!AI$3,data!$Y3:$AB3,0)),"",IFERROR(HYPERLINK(showDetails(INDEX(data!$S3:$V3,MATCH(view!AI$3,data!$Y3:$AB3,0)),AI5),"●"),"●")) ->  | AJ5: =IF(ISERROR(MATCH(view!AJ$3,data!$Y3:$AB3,0)),"",IFERROR(HYPERLINK(showDetails(INDEX(data!$S3:$V3,MATCH(view!AJ$3,data!$Y3:$AB3,0)),AJ5),"●"),"●")) ->  | AK5: =IF(ISERROR(MATCH(view!AK$3,data!$Y3:$AB3,0)),"",IFERROR(HYPERLINK(showDetails(INDEX(data!$S3:$V3,MATCH(view!AK$3,data!$Y3:$AB3,0)),AK5),"●"),"●")) ->  | AL5: =IF(ISERROR(MATCH(view!AL$3,data!$Y3:$AB3,0)),"",IFERROR(HYPERLINK(showDetails(INDEX(data!$S3:$V3,MATCH(view!AL$3,data!$Y3:$AB3,0)),AL5),"●"),"●")) ->  | AM5: =IF(ISERROR(MATCH(view!AM$3,data!$Y3:$AB3,0)),"",IFERROR(HYPERLINK(showDetails(INDEX(data!$S3:$V3,MATCH(view!AM$3,data!$Y3:$AB3,0)),AM5),"●"),"●")) ->  | AN5: =IF(ISERROR(MATCH(view!AN$3,data!$Y3:$AB3,0)),"",IFERROR(HYPERLINK(showDetails(INDEX(data!$S3:$V3,MATCH(view!AN$3,data!$Y3:$AB3,0)),AN5),"●"),"●")) ->  | AO5: =IF(ISERROR(MATCH(view!AO$3,data!$Y3:$AB3,0)),"",IFERROR(HYPERLINK(showDetails(INDEX(data!$S3:$V3,MATCH(view!AO$3,data!$Y3:$AB3,0)),AO5),"●"),"●")) ->  | AP5: =IF(ISERROR(MATCH(view!AP$3,data!$Y3:$AB3,0)),"",IFERROR(HYPERLINK(showDetails(INDEX(data!$S3:$V3,MATCH(view!AP$3,data!$Y3:$AB3,0)),AP5),"●"),"●")) ->  | AQ5: =IF(ISERROR(MATCH(view!AQ$3,data!$Y3:$AB3,0)),"",IFERROR(HYPERLINK(showDetails(INDEX(data!$S3:$V3,MATCH(view!AQ$3,data!$Y3:$AB3,0)),AQ5),"●"),"●")) ->  | AR5: =IF(ISERROR(MATCH(view!AR$3,data!$Y3:$AB3,0)),"",IFERROR(HYPERLINK(showDetails(INDEX(data!$S3:$V3,MATCH(view!AR$3,data!$Y3:$AB3,0)),AR5),"●"),"●")) ->  | AS5: =IF(ISERROR(MATCH(view!AS$3,data!$Y3:$AB3,0)),"",IFERROR(HYPERLINK(showDetails(INDEX(data!$S3:$V3,MATCH(view!AS$3,data!$Y3:$AB3,0)),AS5),"●"),"●")) ->  | AT5: =IF(ISERROR(MATCH(view!AT$3,data!$Y3:$AB3,0)),"",IFERROR(HYPERLINK(showDetails(INDEX(data!$S3:$V3,MATCH(view!AT$3,data!$Y3:$AB3,0)),AT5),"●"),"●")) ->  | AU5: =IF(ISERROR(MATCH(view!AU$3,data!$Y3:$AB3,0)),"",IFERROR(HYPERLINK(showDetails(INDEX(data!$S3:$V3,MATCH(view!AU$3,data!$Y3:$AB3,0)),AU5),"●"),"●")) ->  | AV5: =IF(ISERROR(MATCH(view!AV$3,data!$Y3:$AB3,0)),"",IFERROR(HYPERLINK(showDetails(INDEX(data!$S3:$V3,MATCH(view!AV$3,data!$Y3:$AB3,0)),AV5),"●"),"●")) ->  | AW5: =IF(ISERROR(MATCH(view!AW$3,data!$Y3:$AB3,0)),"",IFERROR(HYPERLINK(showDetails(INDEX(data!$S3:$V3,MATCH(view!AW$3,data!$Y3:$AB3,0)),AW5),"●"),"●")) ->  | AX5: =IF(ISERROR(MATCH(view!AX$3,data!$Y3:$AB3,0)),"",IFERROR(HYPERLINK(showDetails(INDEX(data!$S3:$V3,MATCH(view!AX$3,data!$Y3:$AB3,0)),AX5),"●"),"●")) ->  | AY5: =IF(ISERROR(MATCH(view!AY$3,data!$Y3:$AB3,0)),"",IFERROR(HYPERLINK(showDetails(INDEX(data!$S3:$V3,MATCH(view!AY$3,data!$Y3:$AB3,0)),AY5),"●"),"●")) ->  | AZ5: =IF(ISERROR(MATCH(view!AZ$3,data!$Y3:$AB3,0)),"",IFERROR(HYPERLINK(showDetails(INDEX(data!$S3:$V3,MATCH(view!AZ$3,data!$Y3:$AB3,0)),AZ5),"●"),"●")) ->  | BA5: =IF(ISERROR(MATCH(view!BA$3,data!$Y3:$AB3,0)),"",IFERROR(HYPERLINK(showDetails(INDEX(data!$S3:$V3,MATCH(view!BA$3,data!$Y3:$AB3,0)),BA5),"●"),"●")) ->  | BB5: =IF(ISERROR(MATCH(view!BB$3,data!$Y3:$AB3,0)),"",IFERROR(HYPERLINK(showDetails(INDEX(data!$S3:$V3,MATCH(view!BB$3,data!$Y3:$AB3,0)),BB5),"●"),"●")) ->  | BC5: =IF(ISERROR(MATCH(view!BC$3,data!$Y3:$AB3,0)),"",IFERROR(HYPERLINK(showDetails(INDEX(data!$S3:$V3,MATCH(view!BC$3,data!$Y3:$AB3,0)),BC5),"●"),"●")) ->  | BD5: =IF(ISERROR(MATCH(view!BD$3,data!$Y3:$AB3,0)),"",IFERROR(HYPERLINK(showDetails(INDEX(data!$S3:$V3,MATCH(view!BD$3,data!$Y3:$AB3,0)),BD5),"●"),"●")) ->  | BE5: =IF(ISERROR(MATCH(view!BE$3,data!$Y3:$AB3,0)),"",IFERROR(HYPERLINK(showDetails(INDEX(data!$S3:$V3,MATCH(view!BE$3,data!$Y3:$AB3,0)),BE5),"●"),"●")) ->  | BF5: =IF(ISERROR(MATCH(view!BF$3,data!$Y3:$AB3,0)),"",IFERROR(HYPERLINK(showDetails(INDEX(data!$S3:$V3,MATCH(view!BF$3,data!$Y3:$AB3,0)),BF5),"●"),"●")) ->  | BG5: =IF(ISERROR(MATCH(view!BG$3,data!$Y3:$AB3,0)),"",IFERROR(HYPERLINK(showDetails(INDEX(data!$S3:$V3,MATCH(view!BG$3,data!$Y3:$AB3,0)),BG5),"●"),"●")) ->  | BH5: =IF(ISERROR(MATCH(view!BH$3,data!$Y3:$AB3,0)),"",IFERROR(HYPERLINK(showDetails(INDEX(data!$S3:$V3,MATCH(view!BH$3,data!$Y3:$AB3,0)),BH5),"●"),"●")) ->  | BI5: =IF(ISERROR(MATCH(view!BI$3,data!$Y3:$AB3,0)),"",IFERROR(HYPERLINK(showDetails(INDEX(data!$S3:$V3,MATCH(view!BI$3,data!$Y3:$AB3,0)),BI5),"●"),"●")) ->  | BJ5: =IF(ISERROR(MATCH(view!BJ$3,data!$Y3:$AB3,0)),"",IFERROR(HYPERLINK(showDetails(INDEX(data!$S3:$V3,MATCH(view!BJ$3,data!$Y3:$AB3,0)),BJ5),"●"),"●")) ->  | BK5: =IF(ISERROR(MATCH(view!BK$3,data!$Y3:$AB3,0)),"",IFERROR(HYPERLINK(showDetails(INDEX(data!$S3:$V3,MATCH(view!BK$3,data!$Y3:$AB3,0)),BK5),"●"),"●")) ->  | BL5: =IF(ISERROR(MATCH(view!BL$3,data!$Y3:$AB3,0)),"",IFERROR(HYPERLINK(showDetails(INDEX(data!$S3:$V3,MATCH(view!BL$3,data!$Y3:$AB3,0)),BL5),"●"),"●")) ->  | BM5: =IF(ISERROR(MATCH(view!BM$3,data!$Y3:$AB3,0)),"",IFERROR(HYPERLINK(showDetails(INDEX(data!$S3:$V3,MATCH(view!BM$3,data!$Y3:$AB3,0)),BM5),"●"),"●")) ->  | BN5: =IF(ISERROR(MATCH(view!BN$3,data!$Y3:$AB3,0)),"",IFERROR(HYPERLINK(showDetails(INDEX(data!$S3:$V3,MATCH(view!BN$3,data!$Y3:$AB3,0)),BN5),"●"),"●")) ->  | BO5: =IF(ISERROR(MATCH(view!BO$3,data!$Y3:$AB3,0)),"",IFERROR(HYPERLINK(showDetails(INDEX(data!$S3:$V3,MATCH(view!BO$3,data!$Y3:$AB3,0)),BO5),"●"),"●")) ->  | BP5: =IF(ISERROR(MATCH(view!BP$3,data!$Y3:$AB3,0)),"",IFERROR(HYPERLINK(showDetails(INDEX(data!$S3:$V3,MATCH(view!BP$3,data!$Y3:$AB3,0)),BP5),"●"),"●")) ->  | BQ5: =IF(ISERROR(MATCH(view!BQ$3,data!$Y3:$AB3,0)),"",IFERROR(HYPERLINK(showDetails(INDEX(data!$S3:$V3,MATCH(view!BQ$3,data!$Y3:$AB3,0)),BQ5),"●"),"●")) ->  | BR5: =IF(ISERROR(MATCH(view!BR$3,data!$Y3:$AB3,0)),"",IFERROR(HYPERLINK(showDetails(INDEX(data!$S3:$V3,MATCH(view!BR$3,data!$Y3:$AB3,0)),BR5),"●"),"●")) ->  | BS5: =IF(ISERROR(MATCH(view!BS$3,data!$Y3:$AB3,0)),"",IFERROR(HYPERLINK(showDetails(INDEX(data!$S3:$V3,MATCH(view!BS$3,data!$Y3:$AB3,0)),BS5),"●"),"●")) ->  | BT5: =IF(ISERROR(MATCH(view!BT$3,data!$Y3:$AB3,0)),"",IFERROR(HYPERLINK(showDetails(INDEX(data!$S3:$V3,MATCH(view!BT$3,data!$Y3:$AB3,0)),BT5),"●"),"●")) ->  | BU5: =IF(ISERROR(MATCH(view!BU$3,data!$Y3:$AB3,0)),"",IFERROR(HYPERLINK(showDetails(INDEX(data!$S3:$V3,MATCH(view!BU$3,data!$Y3:$AB3,0)),BU5),"●"),"●")) ->  | BV5: =IF(ISERROR(MATCH(view!BV$3,data!$Y3:$AB3,0)),"",IFERROR(HYPERLINK(showDetails(INDEX(data!$S3:$V3,MATCH(view!BV$3,data!$Y3:$AB3,0)),BV5),"●"),"●")) ->  | BW5: =IF(ISERROR(MATCH(view!BW$3,data!$Y3:$AB3,0)),"",IFERROR(HYPERLINK(showDetails(INDEX(data!$S3:$V3,MATCH(view!BW$3,data!$Y3:$AB3,0)),BW5),"●"),"●")) ->  | BX5: =IF(ISERROR(MATCH(view!BX$3,data!$Y3:$AB3,0)),"",IFERROR(HYPERLINK(showDetails(INDEX(data!$S3:$V3,MATCH(view!BX$3,data!$Y3:$AB3,0)),BX5),"●"),"●")) ->  | BY5: =IF(ISERROR(MATCH(view!BY$3,data!$Y3:$AB3,0)),"",IFERROR(HYPERLINK(showDetails(INDEX(data!$S3:$V3,MATCH(view!BY$3,data!$Y3:$AB3,0)),BY5),"●"),"●")) ->  | BZ5: =IF(ISERROR(MATCH(view!BZ$3,data!$Y3:$AB3,0)),"",IFERROR(HYPERLINK(showDetails(INDEX(data!$S3:$V3,MATCH(view!BZ$3,data!$Y3:$AB3,0)),BZ5),"●"),"●")) ->  | CA5: =IF(ISERROR(MATCH(view!CA$3,data!$Y3:$AB3,0)),"",IFERROR(HYPERLINK(showDetails(INDEX(data!$S3:$V3,MATCH(view!CA$3,data!$Y3:$AB3,0)),CA5),"●"),"●")) ->  | CB5: =IF(ISERROR(MATCH(view!CB$3,data!$Y3:$AB3,0)),"",IFERROR(HYPERLINK(showDetails(INDEX(data!$S3:$V3,MATCH(view!CB$3,data!$Y3:$AB3,0)),CB5),"●"),"●")) ->  | CC5: =IF(ISERROR(MATCH(view!CC$3,data!$Y3:$AB3,0)),"",IFERROR(HYPERLINK(showDetails(INDEX(data!$S3:$V3,MATCH(view!CC$3,data!$Y3:$AB3,0)),CC5),"●"),"●")) ->  | CD5: =IF(ISERROR(MATCH(view!CD$3,data!$Y3:$AB3,0)),"",IFERROR(HYPERLINK(showDetails(INDEX(data!$S3:$V3,MATCH(view!CD$3,data!$Y3:$AB3,0)),CD5),"●"),"●")) ->  | CE5: =IF(ISERROR(MATCH(view!CE$3,data!$Y3:$AB3,0)),"",IFERROR(HYPERLINK(showDetails(INDEX(data!$S3:$V3,MATCH(view!CE$3,data!$Y3:$AB3,0)),CE5),"●"),"●")) ->  | CF5: =IF(ISERROR(MATCH(view!CF$3,data!$Y3:$AB3,0)),"",IFERROR(HYPERLINK(showDetails(INDEX(data!$S3:$V3,MATCH(view!CF$3,data!$Y3:$AB3,0)),CF5),"●"),"●")) ->  | CG5: =IF(ISERROR(MATCH(view!CG$3,data!$Y3:$AB3,0)),"",IFERROR(HYPERLINK(showDetails(INDEX(data!$S3:$V3,MATCH(view!CG$3,data!$Y3:$AB3,0)),CG5),"●"),"●")) ->  | CH5: =IF(ISERROR(MATCH(view!CH$3,data!$Y3:$AB3,0)),"",IFERROR(HYPERLINK(showDetails(INDEX(data!$S3:$V3,MATCH(view!CH$3,data!$Y3:$AB3,0)),CH5),"●"),"●")) ->  | CI5: =IF(ISERROR(MATCH(view!CI$3,data!$Y3:$AB3,0)),"",IFERROR(HYPERLINK(showDetails(INDEX(data!$S3:$V3,MATCH(view!CI$3,data!$Y3:$AB3,0)),CI5),"●"),"●")) ->  | CJ5: =IF(ISERROR(MATCH(view!CJ$3,data!$Y3:$AB3,0)),"",IFERROR(HYPERLINK(showDetails(INDEX(data!$S3:$V3,MATCH(view!CJ$3,data!$Y3:$AB3,0)),CJ5),"●"),"●")) ->  | CK5: =IF(ISERROR(MATCH(view!CK$3,data!$Y3:$AB3,0)),"",IFERROR(HYPERLINK(showDetails(INDEX(data!$S3:$V3,MATCH(view!CK$3,data!$Y3:$AB3,0)),CK5),"●"),"●")) ->  | CL5: =IF(ISERROR(MATCH(view!CL$3,data!$Y3:$AB3,0)),"",IFERROR(HYPERLINK(showDetails(INDEX(data!$S3:$V3,MATCH(view!CL$3,data!$Y3:$AB3,0)),CL5),"●"),"●")) ->  | CM5: =IF(ISERROR(MATCH(view!CM$3,data!$Y3:$AB3,0)),"",IFERROR(HYPERLINK(showDetails(INDEX(data!$S3:$V3,MATCH(view!CM$3,data!$Y3:$AB3,0)),CM5),"●"),"●")) ->  | CN5: =IF(ISERROR(MATCH(view!CN$3,data!$Y3:$AB3,0)),"",IFERROR(HYPERLINK(showDetails(INDEX(data!$S3:$V3,MATCH(view!CN$3,data!$Y3:$AB3,0)),CN5),"●"),"●")) ->  | CO5: =IF(ISERROR(MATCH(view!CO$3,data!$Y3:$AB3,0)),"",IFERROR(HYPERLINK(showDetails(INDEX(data!$S3:$V3,MATCH(view!CO$3,data!$Y3:$AB3,0)),CO5),"●"),"●")) ->  | CP5: =IF(ISERROR(MATCH(view!CP$3,data!$Y3:$AB3,0)),"",IFERROR(HYPERLINK(showDetails(INDEX(data!$S3:$V3,MATCH(view!CP$3,data!$Y3:$AB3,0)),CP5),"●"),"●")) ->  | CQ5: =IF(ISERROR(MATCH(view!CQ$3,data!$Y3:$AB3,0)),"",IFERROR(HYPERLINK(showDetails(INDEX(data!$S3:$V3,MATCH(view!CQ$3,data!$Y3:$AB3,0)),CQ5),"●"),"●")) ->  | CR5: =IF(ISERROR(MATCH(view!CR$3,data!$Y3:$AB3,0)),"",IFERROR(HYPERLINK(showDetails(INDEX(data!$S3:$V3,MATCH(view!CR$3,data!$Y3:$AB3,0)),CR5),"●"),"●")) ->  | CS5: =IF(ISERROR(MATCH(view!CS$3,data!$Y3:$AB3,0)),"",IFERROR(HYPERLINK(showDetails(INDEX(data!$S3:$V3,MATCH(view!CS$3,data!$Y3:$AB3,0)),CS5),"●"),"●")) ->  | CT5: =IF(ISERROR(MATCH(view!CT$3,data!$Y3:$AB3,0)),"",IFERROR(HYPERLINK(showDetails(INDEX(data!$S3:$V3,MATCH(view!CT$3,data!$Y3:$AB3,0)),CT5),"●"),"●")) ->  | CU5: =IF(ISERROR(MATCH(view!CU$3,data!$Y3:$AB3,0)),"",IFERROR(HYPERLINK(showDetails(INDEX(data!$S3:$V3,MATCH(view!CU$3,data!$Y3:$AB3,0)),CU5),"●"),"●")) ->  | CV5: =IF(ISERROR(MATCH(view!CV$3,data!$Y3:$AB3,0)),"",IFERROR(HYPERLINK(showDetails(INDEX(data!$S3:$V3,MATCH(view!CV$3,data!$Y3:$AB3,0)),CV5),"●"),"●")) ->  | CW5: =IF(ISERROR(MATCH(view!CW$3,data!$Y3:$AB3,0)),"",IFERROR(HYPERLINK(showDetails(INDEX(data!$S3:$V3,MATCH(view!CW$3,data!$Y3:$AB3,0)),CW5),"●"),"●")) ->  | CX5: =IF(ISERROR(MATCH(view!CX$3,data!$Y3:$AB3,0)),"",IFERROR(HYPERLINK(showDetails(INDEX(data!$S3:$V3,MATCH(view!CX$3,data!$Y3:$AB3,0)),CX5),"●"),"●")) ->  | CY5: =IF(ISERROR(MATCH(view!CY$3,data!$Y3:$AB3,0)),"",IFERROR(HYPERLINK(showDetails(INDEX(data!$S3:$V3,MATCH(view!CY$3,data!$Y3:$AB3,0)),CY5),"●"),"●")) ->  | CZ5: =IF(ISERROR(MATCH(view!CZ$3,data!$Y3:$AB3,0)),"",IFERROR(HYPERLINK(showDetails(INDEX(data!$S3:$V3,MATCH(view!CZ$3,data!$Y3:$AB3,0)),CZ5),"●"),"●")) ->  | DA5: =IF(ISERROR(MATCH(view!DA$3,data!$Y3:$AB3,0)),"",IFERROR(HYPERLINK(showDetails(INDEX(data!$S3:$V3,MATCH(view!DA$3,data!$Y3:$AB3,0)),DA5),"●"),"●")) ->  | DB5: =IF(ISERROR(MATCH(view!DB$3,data!$Y3:$AB3,0)),"",IFERROR(HYPERLINK(showDetails(INDEX(data!$S3:$V3,MATCH(view!DB$3,data!$Y3:$AB3,0)),DB5),"●"),"●")) ->  | DC5: =IF(ISERROR(MATCH(view!DC$3,data!$Y3:$AB3,0)),"",IFERROR(HYPERLINK(showDetails(INDEX(data!$S3:$V3,MATCH(view!DC$3,data!$Y3:$AB3,0)),DC5),"●"),"●")) ->  | DD5: =IF(ISERROR(MATCH(view!DD$3,data!$Y3:$AB3,0)),"",IFERROR(HYPERLINK(showDetails(INDEX(data!$S3:$V3,MATCH(view!DD$3,data!$Y3:$AB3,0)),DD5),"●"),"●")) ->  | DE5: =IF(ISERROR(MATCH(view!DE$3,data!$Y3:$AB3,0)),"",IFERROR(HYPERLINK(showDetails(INDEX(data!$S3:$V3,MATCH(view!DE$3,data!$Y3:$AB3,0)),DE5),"●"),"●")) ->  | DF5: =IF(ISERROR(MATCH(view!DF$3,data!$Y3:$AB3,0)),"",IFERROR(HYPERLINK(showDetails(INDEX(data!$S3:$V3,MATCH(view!DF$3,data!$Y3:$AB3,0)),DF5),"●"),"●")) ->  | DG5: =IF(ISERROR(MATCH(view!DG$3,data!$Y3:$AB3,0)),"",IFERROR(HYPERLINK(showDetails(INDEX(data!$S3:$V3,MATCH(view!DG$3,data!$Y3:$AB3,0)),DG5),"●"),"●")) ->  | DH5: =IF(ISERROR(MATCH(view!DH$3,data!$Y3:$AB3,0)),"",IFERROR(HYPERLINK(showDetails(INDEX(data!$S3:$V3,MATCH(view!DH$3,data!$Y3:$AB3,0)),DH5),"●"),"●")) ->  | DI5: =IF(ISERROR(MATCH(view!DI$3,data!$Y3:$AB3,0)),"",IFERROR(HYPERLINK(showDetails(INDEX(data!$S3:$V3,MATCH(view!DI$3,data!$Y3:$AB3,0)),DI5),"●"),"●")) ->  | DJ5: =IF(ISERROR(MATCH(view!DJ$3,data!$Y3:$AB3,0)),"",IFERROR(HYPERLINK(showDetails(INDEX(data!$S3:$V3,MATCH(view!DJ$3,data!$Y3:$AB3,0)),DJ5),"●"),"●")) ->  | DK5: =IF(ISERROR(MATCH(view!DK$3,data!$Y3:$AB3,0)),"",IFERROR(HYPERLINK(showDetails(INDEX(data!$S3:$V3,MATCH(view!DK$3,data!$Y3:$AB3,0)),DK5),"●"),"●")) -> ● | DL5: =IF(ISERROR(MATCH(view!DL$3,data!$Y3:$AB3,0)),"",IFERROR(HYPERLINK(showDetails(INDEX(data!$S3:$V3,MATCH(view!DL$3,data!$Y3:$AB3,0)),DL5),"●"),"●")) ->  | DM5: =IF(ISERROR(MATCH(view!DM$3,data!$Y3:$AB3,0)),"",IFERROR(HYPERLINK(showDetails(INDEX(data!$S3:$V3,MATCH(view!DM$3,data!$Y3:$AB3,0)),DM5),"●"),"●")) -> ● | DN5: =IF(ISERROR(MATCH(view!DN$3,data!$Y3:$AB3,0)),"",IFERROR(HYPERLINK(showDetails(INDEX(data!$S3:$V3,MATCH(view!DN$3,data!$Y3:$AB3,0)),DN5),"●"),"●")) ->  | DO5: =IF(ISERROR(MATCH(view!DO$3,data!$Y3:$AB3,0)),"",IFERROR(HYPERLINK(showDetails(INDEX(data!$S3:$V3,MATCH(view!DO$3,data!$Y3:$AB3,0)),DO5),"●"),"●")) ->  | DP5: =IF(ISERROR(MATCH(view!DP$3,data!$Y3:$AB3,0)),"",IFERROR(HYPERLINK(showDetails(INDEX(data!$S3:$V3,MATCH(view!DP$3,data!$Y3:$AB3,0)),DP5),"●"),"●")) ->  | DQ5: =IF(ISERROR(MATCH(view!DQ$3,data!$Y3:$AB3,0)),"",IFERROR(HYPERLINK(showDetails(INDEX(data!$S3:$V3,MATCH(view!DQ$3,data!$Y3:$AB3,0)),DQ5),"●"),"●")) ->  | DR5: =IF(ISERROR(MATCH(view!DR$3,data!$Y3:$AB3,0)),"",IFERROR(HYPERLINK(showDetails(INDEX(data!$S3:$V3,MATCH(view!DR$3,data!$Y3:$AB3,0)),DR5),"●"),"●")) ->  | DS5: =IF(ISERROR(MATCH(view!DS$3,data!$Y3:$AB3,0)),"",IFERROR(HYPERLINK(showDetails(INDEX(data!$S3:$V3,MATCH(view!DS$3,data!$Y3:$AB3,0)),DS5),"●"),"●")) -> ● | DT5: =INDEX(lstYears,A5) &" - "&INDEX(data!$W$3:$W$30,A5) -> 2012 - London
A6: 2 | C6: =IF(ISERROR(MATCH(view!C$3,data!$Y4:$AB4,0)),"",IFERROR(HYPERLINK(showDetails(INDEX(data!$S4:$V4,MATCH(view!C$3,data!$Y4:$AB4,0)),C6),"●"),"●")) ->  | D6: =IF(ISERROR(MATCH(view!D$3,data!$Y4:$AB4,0)),"",IFERROR(HYPERLINK(showDetails(INDEX(data!$S4:$V4,MATCH(view!D$3,data!$Y4:$AB4,0)),D6),"●"),"●")) ->  | E6: =IF(ISERROR(MATCH(view!E$3,data!$Y4:$AB4,0)),"",IFERROR(HYPERLINK(showDetails(INDEX(data!$S4:$V4,MATCH(view!E$3,data!$Y4:$AB4,0)),E6),"●"),"●")) ->  | F6: =IF(ISERROR(MATCH(view!F$3,data!$Y4:$AB4,0)),"",IFERROR(HYPERLINK(showDetails(INDEX(data!$S4:$V4,MATCH(view!F$3,data!$Y4:$AB4,0)),F6),"●"),"●")) ->  | G6: =IF(ISERROR(MATCH(view!G$3,data!$Y4:$AB4,0)),"",IFERROR(HYPERLINK(showDetails(INDEX(data!$S4:$V4,MATCH(view!G$3,data!$Y4:$AB4,0)),G6),"●"),"●")) ->  | H6: =IF(ISERROR(MATCH(view!H$3,data!$Y4:$AB4,0)),"",IFERROR(HYPERLINK(showDetails(INDEX(data!$S4:$V4,MATCH(view!H$3,data!$Y4:$AB4,0)),H6),"●"),"●")) ->  | I6: =IF(ISERROR(MATCH(view!I$3,data!$Y4:$AB4,0)),"",IFERROR(HYPERLINK(showDetails(INDEX(data!$S4:$V4,MATCH(view!I$3,data!$Y4:$AB4,0)),I6),"●"),"●")) ->  | J6: =IF(ISERROR(MATCH(view!J$3,data!$Y4:$AB4,0)),"",IFERROR(HYPERLINK(showDetails(INDEX(data!$S4:$V4,MATCH(view!J$3,data!$Y4:$AB4,0)),J6),"●"),"●")) ->  | K6: =IF(ISERROR(MATCH(view!K$3,data!$Y4:$AB4,0)),"",IFERROR(HYPERLINK(showDetails(INDEX(data!$S4:$V4,MATCH(view!K$3,data!$Y4:$AB4,0)),K6),"●"),"●")) ->  | L6: =IF(ISERROR(MATCH(view!L$3,data!$Y4:$AB4,0)),"",IFERROR(HYPERLINK(showDetails(INDEX(data!$S4:$V4,MATCH(view!L$3,data!$Y4:$AB4,0)),L6),"●"),"●")) ->  | M6: =IF(ISERROR(MATCH(view!M$3,data!$Y4:$AB4,0)),"",IFERROR(HYPERLINK(showDetails(INDEX(data!$S4:$V4,MATCH(view!M$3,data!$Y4:$AB4,0)),M6),"●"),"●")) ->  | N6: =IF(ISERROR(MATCH(view!N$3,data!$Y4:$AB4,0)),"",IFERROR(HYPERLINK(showDetails(INDEX(data!$S4:$V4,MATCH(view!N$3,data!$Y4:$AB4,0)),N6),"●"),"●")) ->  | O6: =IF(ISERROR(MATCH(view!O$3,data!$Y4:$AB4,0)),"",IFERROR(HYPERLINK(showDetails(INDEX(data!$S4:$V4,MATCH(view!O$3,data!$Y4:$AB4,0)),O6),"●"),"●")) ->  | P6: =IF(ISERROR(MATCH(view!P$3,data!$Y4:$AB4,0)),"",IFERROR(HYPERLINK(showDetails(INDEX(data!$S4:$V4,MATCH(view!P$3,data!$Y4:$AB4,0)),P6),"●"),"●")) ->  | Q6: =IF(ISERROR(MATCH(view!Q$3,data!$Y4:$AB4,0)),"",IFERROR(HYPERLINK(showDetails(INDEX(data!$S4:$V4,MATCH(view!Q$3,data!$Y4:$AB4,0)),Q6),"●"),"●")) ->  | R6: =IF(ISERROR(MATCH(view!R$3,data!$Y4:$AB4,0)),"",IFERROR(HYPERLINK(showDetails(INDEX(data!$S4:$V4,MATCH(view!R$3,data!$Y4:$AB4,0)),R6),"●"),"●")) ->  | S6: =IF(ISERROR(MATCH(view!S$3,data!$Y4:$AB4,0)),"",IFERROR(HYPERLINK(showDetails(INDEX(data!$S4:$V4,MATCH(view!S$3,data!$Y4:$AB4,0)),S6),"●"),"●")) ->  | T6: =IF(ISERROR(MATCH(view!T$3,data!$Y4:$AB4,0)),"",IFERROR(HYPERLINK(showDetails(INDEX(data!$S4:$V4,MATCH(view!T$3,data!$Y4:$AB4,0)),T6),"●"),"●")) ->  | U6: =IF(ISERROR(MATCH(view!U$3,data!$Y4:$AB4,0)),"",IFERROR(HYPERLINK(showDetails(INDEX(data!$S4:$V4,MATCH(view!U$3,data!$Y4:$AB4,0)),U6),"●"),"●")) ->  | V6: =IF(ISERROR(MATCH(view!V$3,data!$Y4:$AB4,0)),"",IFERROR(HYPERLINK(showDetails(INDEX(data!$S4:$V4,MATCH(view!V$3,data!$Y4:$AB4,0)),V6),"●"),"●")) ->  | W6: =IF(ISERROR(MATCH(view!W$3,data!$Y4:$AB4,0)),"",IFERROR(HYPERLINK(showDetails(INDEX(data!$S4:$V4,MATCH(view!W$3,data!$Y4:$AB4,0)),W6),"●"),"●")) ->  | X6: =IF(ISERROR(MATCH(view!X$3,data!$Y4:$AB4,0)),"",IFERROR(HYPERLINK(showDetails(INDEX(data!$S4:$V4,MATCH(view!X$3,data!$Y4:$AB4,0)),X6),"●"),"●")) ->  | Y6: =IF(ISERROR(MATCH(view!Y$3,data!$Y4:$AB4,0)),"",IFERROR(HYPERLINK(showDetails(INDEX(data!$S4:$V4,MATCH(view!Y$3,data!$Y4:$AB4,0)),Y6),"●"),"●")) ->  | Z6: =IF(ISERROR(MATCH(view!Z$3,data!$Y4:$AB4,0)),"",IFERROR(HYPERLINK(showDetails(INDEX(data!$S4:$V4,MATCH(view!Z$3,data!$Y4:$AB4,0)),Z6),"●"),"●")) ->  | AA6: =IF(ISERROR(MATCH(view!AA$3,data!$Y4:$AB4,0)),"",IFERROR(HYPERLINK(showDetails(INDEX(data!$S4:$V4,MATCH(view!AA$3,data!$Y4:$AB4,0)),AA6),"●"),"●")) ->  | AB6: =IF(ISERROR(MATCH(view!AB$3,data!$Y4:$AB4,0)),"",IFERROR(HYPERLINK(showDetails(INDEX(data!$S4:$V4,MATCH(view!AB$3,data!$Y4:$AB4,0)),AB6),"●"),"●")) ->  | AC6: =IF(ISERROR(MATCH(view!AC$3,data!$Y4:$AB4,0)),"",IFERROR(HYPERLINK(showDetails(INDEX(data!$S4:$V4,MATCH(view!AC$3,data!$Y4:$AB4,0)),AC6),"●"),"●")) ->  | AD6: =IF(ISERROR(MATCH(view!AD$3,data!$Y4:$AB4,0)),"",IFERROR(HYPERLINK(showDetails(INDEX(data!$S4:$V4,MATCH(view!AD$3,data!$Y4:$AB4,0)),AD6),"●"),"●")) ->  | AE6: =IF(ISERROR(MATCH(view!AE$3,data!$Y4:$AB4,0)),"",IFERROR(HYPERLINK(showDetails(INDEX(data!$S4:$V4,MATCH(view!AE$3,data!$Y4:$AB4,0)),AE6),"●"),"●")) ->  | AF6: =IF(ISERROR(MATCH(view!AF$3,data!$Y4:$AB4,0)),"",IFERROR(HYPERLINK(showDetails(INDEX(data!$S4:$V4,MATCH(view!AF$3,data!$Y4:$AB4,0)),AF6),"●"),"●")) ->  | AG6: =IF(ISERROR(MATCH(view!AG$3,data!$Y4:$AB4,0)),"",IFERROR(HYPERLINK(showDetails(INDEX(data!$S4:$V4,MATCH(view!AG$3,data!$Y4:$AB4,0)),AG6),"●"),"●")) ->  | AH6: =IF(ISERROR(MATCH(view!AH$3,data!$Y4:$AB4,0)),"",IFERROR(HYPERLINK(showDetails(INDEX(data!$S4:$V4,MATCH(view!AH$3,data!$Y4:$AB4,0)),AH6),"●"),"●")) ->  | AI6: =IF(ISERROR(MATCH(view!AI$3,data!$Y4:$AB4,0)),"",IFERROR(HYPERLINK(showDetails(INDEX(data!$S4:$V4,MATCH(view!AI$3,data!$Y4:$AB4,0)),AI6),"●"),"●")) ->  | AJ6: =IF(ISERROR(MATCH(view!AJ$3,data!$Y4:$AB4,0)),"",IFERROR(HYPERLINK(showDetails(INDEX(data!$S4:$V4,MATCH(view!AJ$3,data!$Y4:$AB4,0)),AJ6),"●"),"●")) ->  | AK6: =IF(ISERROR(MATCH(view!AK$3,data!$Y4:$AB4,0)),"",IFERROR(HYPERLINK(showDetails(INDEX(data!$S4:$V4,MATCH(view!AK$3,data!$Y4:$AB4,0)),AK6),"●"),"●")) ->  | AL6: =IF(ISERROR(MATCH(view!AL$3,data!$Y4:$AB4,0)),"",IFERROR(HYPERLINK(showDetails(INDEX(data!$S4:$V4,MATCH(view!AL$3,data!$Y4:$AB4,0)),AL6),"●"),"●")) ->  | AM6: =IF(ISERROR(MATCH(view!AM$3,data!$Y4:$AB4,0)),"",IFERROR(HYPERLINK(showDetails(INDEX(data!$S4:$V4,MATCH(view!AM$3,data!$Y4:$AB4,0)),AM6),"●"),"●")) ->  | AN6: =IF(ISERROR(MATCH(view!AN$3,data!$Y4:$AB4,0)),"",IFERROR(HYPERLINK(showDetails(INDEX(data!$S4:$V4,MATCH(view!AN$3,data!$Y4:$AB4,0)),AN6),"●"),"●")) ->  | AO6: =IF(ISERROR(MATCH(view!AO$3,data!$Y4:$AB4,0)),"",IFERROR(HYPERLINK(showDetails(INDEX(data!$S4:$V4,MATCH(view!AO$3,data!$Y4:$AB4,0)),AO6),"●"),"●")) ->  | AP6: =IF(ISERROR(MATCH(view!AP$3,data!$Y4:$AB4,0)),"",IFERROR(HYPERLINK(showDetails(INDEX(data!$S4:$V4,MATCH(view!AP$3,data!$Y4:$AB4,0)),AP6),"●"),"●")) ->  | AQ6: =IF(ISERROR(MATCH(view!AQ$3,data!$Y4:$AB4,0)),"",IFERROR(HYPERLINK(showDetails(INDEX(data!$S4:$V4,MATCH(view!AQ$3,data!$Y4:$AB4,0)),AQ6),"●"),"●")) ->  | AR6: =IF(ISERROR(MATCH(view!AR$3,data!$Y4:$AB4,0)),"",IFERROR(HYPERLINK(showDetails(INDEX(data!$S4:$V4,MATCH(view!AR$3,data!$Y4:$AB4,0)),AR6),"●"),"●")) ->  | AS6: =IF(ISERROR(MATCH(view!AS$3,data!$Y4:$AB4,0)),"",IFERROR(HYPERLINK(showDetails(INDEX(data!$S4:$V4,MATCH(view!AS$3,data!$Y4:$AB4,0)),AS6),"●"),"●")) ->  | AT6: =IF(ISERROR(MATCH(view!AT$3,data!$Y4:$AB4,0)),"",IFERROR(HYPERLINK(showDetails(INDEX(data!$S4:$V4,MATCH(view!AT$3,data!$Y4:$AB4,0)),AT6),"●"),"●")) ->  | AU6: =IF(ISERROR(MATCH(view!AU$3,data!$Y4:$AB4,0)),"",IFERROR(HYPERLINK(showDetails(INDEX(data!$S4:$V4,MATCH(view!AU$3,data!$Y4:$AB4,0)),AU6),"●"),"●")) ->  | AV6: =IF(ISERROR(MATCH(view!AV$3,data!$Y4:$AB4,0)),"",IFERROR(HYPERLINK(showDetails(INDEX(data!$S4:$V4,MATCH(view!AV$3,data!$Y4:$AB4,0)),AV6),"●"),"●")) ->  | AW6: =IF(ISERROR(MATCH(view!AW$3,data!$Y4:$AB4,0)),"",IFERROR(HYPERLINK(showDetails(INDEX(data!$S4:$V4,MATCH(view!AW$3,data!$Y4:$AB4,0)),AW6),"●"),"●")) ->  | AX6: =IF(ISERROR(MATCH(view!AX$3,data!$Y4:$AB4,0)),"",IFERROR(HYPERLINK(showDetails(INDEX(data!$S4:$V4,MATCH(view!AX$3,data!$Y4:$AB4,0)),AX6),"●"),"●")) ->  | AY6: =IF(ISERROR(MATCH(view!AY$3,data!$Y4:$AB4,0)),"",IFERROR(HYPERLINK(showDetails(INDEX(data!$S4:$V4,MATCH(view!AY$3,data!$Y4:$AB4,0)),AY6),"●"),"●")) ->  | AZ6: =IF(ISERROR(MATCH(view!AZ$3,data!$Y4:$AB4,0)),"",IFERROR(HYPERLINK(showDetails(INDEX(data!$S4:$V4,MATCH(view!AZ$3,data!$Y4:$AB4,0)),AZ6),"●"),"●")) ->  | BA6: =IF(ISERROR(MATCH(view!BA$3,data!$Y4:$AB4,0)),"",IFERROR(HYPERLINK(showDetails(INDEX(data!$S4:$V4,MATCH(view!BA$3,data!$Y4:$AB4,0)),BA6),"●"),"●")) ->  | BB6: =IF(ISERROR(MATCH(view!BB$3,data!$Y4:$AB4,0)),"",IFERROR(HYPERLINK(showDetails(INDEX(data!$S4:$V4,MATCH(view!BB$3,data!$Y4:$AB4,0)),BB6),"●"),"●")) ->  | BC6: =IF(ISERROR(MATCH(view!BC$3,data!$Y4:$AB4,0)),"",IFERROR(HYPERLINK(showDetails(INDEX(data!$S4:$V4,MATCH(view!BC$3,data!$Y4:$AB4,0)),BC6),"●"),"●")) ->  | BD6: =IF(ISERROR(MATCH(view!BD$3,data!$Y4:$AB4,0)),"",IFERROR(HYPERLINK(showDetails(INDEX(data!$S4:$V4,MATCH(view!BD$3,data!$Y4:$AB4,0)),BD6),"●"),"●")) ->  | BE6: =IF(ISERROR(MATCH(view!BE$3,data!$Y4:$AB4,0)),"",IFERROR(HYPERLINK(showDetails(INDEX(data!$S4:$V4,MATCH(view!BE$3,data!$Y4:$AB4,0)),BE6),"●"),"●")) ->  | BF6: =IF(ISERROR(MATCH(view!BF$3,data!$Y4:$AB4,0)),"",IFERROR(HYPERLINK(showDetails(INDEX(data!$S4:$V4,MATCH(view!BF$3,data!$Y4:$AB4,0)),BF6),"●"),"●")) ->  | BG6: =IF(ISERROR(MATCH(view!BG$3,data!$Y4:$AB4,0)),"",IFERROR(HYPERLINK(showDetails(INDEX(data!$S4:$V4,MATCH(view!BG$3,data!$Y4:$AB4,0)),BG6),"●"),"●")) ->  | BH6: =IF(ISERROR(MATCH(view!BH$3,data!$Y4:$AB4,0)),"",IFERROR(HYPERLINK(showDetails(INDEX(data!$S4:$V4,MATCH(view!BH$3,data!$Y4:$AB4,0)),BH6),"●"),"●")) ->  | BI6: =IF(ISERROR(MATCH(view!BI$3,data!$Y4:$AB4,0)),"",IFERROR(HYPERLINK(showDetails(INDEX(data!$S4:$V4,MATCH(view!BI$3,data!$Y4:$AB4,0)),BI6),"●"),"●")) ->  | BJ6: =IF(ISERROR(MATCH(view!BJ$3,data!$Y4:$AB4,0)),"",IFERROR(HYPERLINK(showDetails(INDEX(data!$S4:$V4,MATCH(view!BJ$3,data!$Y4:$AB4,0)),BJ6),"●"),"●")) ->  | BK6: =IF(ISERROR(MATCH(view!BK$3,data!$Y4:$AB4,0)),"",IFERROR(HYPERLINK(showDetails(INDEX(data!$S4:$V4,MATCH(view!BK$3,data!$Y4:$AB4,0)),BK6),"●"),"●")) ->  | BL6: =IF(ISERROR(MATCH(view!BL$3,data!$Y4:$AB4,0)),"",IFERROR(HYPERLINK(showDetails(INDEX(data!$S4:$V4,MATCH(view!BL$3,data!$Y4:$AB4,0)),BL6),"●"),"●")) ->  | BM6: =IF(ISERROR(MATCH(view!BM$3,data!$Y4:$AB4,0)),"",IFERROR(HYPERLINK(showDetails(INDEX(data!$S4:$V4,MATCH(view!BM$3,data!$Y4:$AB4,0)),BM6),"●"),"●")) ->  | BN6: =IF(ISERROR(MATCH(view!BN$3,data!$Y4:$AB4,0)),"",IFERROR(HYPERLINK(showDetails(INDEX(data!$S4:$V4,MATCH(view!BN$3,data!$Y4:$AB4,0)),BN6),"●"),"●")) ->  | BO6: =IF(ISERROR(MATCH(view!BO$3,data!$Y4:$AB4,0)),"",IFERROR(HYPERLINK(showDetails(INDEX(data!$S4:$V4,MATCH(view!BO$3,data!$Y4:$AB4,0)),BO6),"●"),"●")) ->  | BP6: =IF(ISERROR(MATCH(view!BP$3,data!$Y4:$AB4,0)),"",IFERROR(HYPERLINK(showDetails(INDEX(data!$S4:$V4,MATCH(view!BP$3,data!$Y4:$AB4,0)),BP6),"●"),"●")) ->  | BQ6: =IF(ISERROR(MATCH(view!BQ$3,data!$Y4:$AB4,0)),"",IFERROR(HYPERLINK(showDetails(INDEX(data!$S4:$V4,MATCH(view!BQ$3,data!$Y4:$AB4,0)),BQ6),"●"),"●")) ->  | BR6: =IF(ISERROR(MATCH(view!BR$3,data!$Y4:$AB4,0)),"",IFERROR(HYPERLINK(showDetails(INDEX(data!$S4:$V4,MATCH(view!BR$3,data!$Y4:$AB4,0)),BR6),"●"),"●")) ->  | BS6: =IF(ISERROR(MATCH(view!BS$3,data!$Y4:$AB4,0)),"",IFERROR(HYPERLINK(showDetails(INDEX(data!$S4:$V4,MATCH(view!BS$3,data!$Y4:$AB4,0)),BS6),"●"),"●")) ->  | BT6: =IF(ISERROR(MATCH(view!BT$3,data!$Y4:$AB4,0)),"",IFERROR(HYPERLINK(showDetails(INDEX(data!$S4:$V4,MATCH(view!BT$3,data!$Y4:$AB4,0)),BT6),"●"),"●")) ->  | BU6: =IF(ISERROR(MATCH(view!BU$3,data!$Y4:$AB4,0)),"",IFERROR(HYPERLINK(showDetails(INDEX(data!$S4:$V4,MATCH(view!BU$3,data!$Y4:$AB4,0)),BU6),"●"),"●")) ->  | BV6: =IF(ISERROR(MATCH(view!BV$3,data!$Y4:$AB4,0)),"",IFERROR(HYPERLINK(showDetails(INDEX(data!$S4:$V4,MATCH(view!BV$3,data!$Y4:$AB4,0)),BV6),"●"),"●")) ->  | BW6: =IF(ISERROR(MATCH(view!BW$3,data!$Y4:$AB4,0)),"",IFERROR(HYPERLINK(showDetails(INDEX(data!$S4:$V4,MATCH(view!BW$3,data!$Y4:$AB4,0)),BW6),"●"),"●")) ->  | BX6: =IF(ISERROR(MATCH(view!BX$3,data!$Y4:$AB4,0)),"",IFERROR(HYPERLINK(showDetails(INDEX(data!$S4:$V4,MATCH(view!BX$3,data!$Y4:$AB4,0)),BX6),"●"),"●")) ->  | BY6: =IF(ISERROR(MATCH(view!BY$3,data!$Y4:$AB4,0)),"",IFERROR(HYPERLINK(showDetails(INDEX(data!$S4:$V4,MATCH(view!BY$3,data!$Y4:$AB4,0)),BY6),"●"),"●")) ->  | BZ6: =IF(ISERROR(MATCH(view!BZ$3,data!$Y4:$AB4,0)),"",IFERROR(HYPERLINK(showDetails(INDEX(data!$S4:$V4,MATCH(view!BZ$3,data!$Y4:$AB4,0)),BZ6),"●"),"●")) ->  | CA6: =IF(ISERROR(MATCH(view!CA$3,data!$Y4:$AB4,0)),"",IFERROR(HYPERLINK(showDetails(INDEX(data!$S4:$V4,MATCH(view!CA$3,data!$Y4:$AB4,0)),CA6),"●"),"●")) ->  | CB6: =IF(ISERROR(MATCH(view!CB$3,data!$Y4:$AB4,0)),"",IFERROR(HYPERLINK(showDetails(INDEX(data!$S4:$V4,MATCH(view!CB$3,data!$Y4:$AB4,0)),CB6),"●"),"●")) ->  | CC6: =IF(ISERROR(MATCH(view!CC$3,data!$Y4:$AB4,0)),"",IFERROR(HYPERLINK(showDetails(INDEX(data!$S4:$V4,MATCH(view!CC$3,data!$Y4:$AB4,0)),CC6),"●"),"●")) ->  | CD6: =IF(ISERROR(MATCH(view!CD$3,data!$Y4:$AB4,0)),"",IFERROR(HYPERLINK(showDetails(INDEX(data!$S4:$V4,MATCH(view!CD$3,data!$Y4:$AB4,0)),CD6),"●"),"●")) ->  | CE6: =IF(ISERROR(MATCH(view!CE$3,data!$Y4:$AB4,0)),"",IFERROR(HYPERLINK(showDetails(INDEX(data!$S4:$V4,MATCH(view!CE$3,data!$Y4:$AB4,0)),CE6),"●"),"●")) ->  | CF6: =IF(ISERROR(MATCH(view!CF$3,data!$Y4:$AB4,0)),"",IFERROR(HYPERLINK(showDetails(INDEX(data!$S4:$V4,MATCH(view!CF$3,data!$Y4:$AB4,0)),CF6),"●"),"●")) ->  | CG6: =IF(ISERROR(MATCH(view!CG$3,data!$Y4:$AB4,0)),"",IFERROR(HYPERLINK(showDetails(INDEX(data!$S4:$V4,MATCH(view!CG$3,data!$Y4:$AB4,0)),CG6),"●"),"●")) ->  | CH6: =IF(ISERROR(MATCH(view!CH$3,data!$Y4:$AB4,0)),"",IFERROR(HYPERLINK(showDetails(INDEX(data!$S4:$V4,MATCH(view!CH$3,data!$Y4:$AB4,0)),CH6),"●"),"●")) ->  | CI6: =IF(ISERROR(MATCH(view!CI$3,data!$Y4:$AB4,0)),"",IFERROR(HYPERLINK(showDetails(INDEX(data!$S4:$V4,MATCH(view!CI$3,data!$Y4:$AB4,0)),CI6),"●"),"●")) ->  | CJ6: =IF(ISERROR(MATCH(view!CJ$3,data!$Y4:$AB4,0)),"",IFERROR(HYPERLINK(showDetails(INDEX(data!$S4:$V4,MATCH(view!CJ$3,data!$Y4:$AB4,0)),CJ6),"●"),"●")) ->  | CK6: =IF(ISERROR(MATCH(view!CK$3,data!$Y4:$AB4,0)),"",IFERROR(HYPERLINK(showDetails(INDEX(data!$S4:$V4,MATCH(view!CK$3,data!$Y4:$AB4,0)),CK6),"●"),"●")) ->  | CL6: =IF(ISERROR(MATCH(view!CL$3,data!$Y4:$AB4,0)),"",IFERROR(HYPERLINK(showDetails(INDEX(data!$S4:$V4,MATCH(view!CL$3,data!$Y4:$AB4,0)),CL6),"●"),"●")) ->  | CM6: =IF(ISERROR(MATCH(view!CM$3,data!$Y4:$AB4,0)),"",IFERROR(HYPERLINK(showDetails(INDEX(data!$S4:$V4,MATCH(view!CM$3,data!$Y4:$AB4,0)),CM6),"●"),"●")) ->  | CN6: =IF(ISERROR(MATCH(view!CN$3,data!$Y4:$AB4,0)),"",IFERROR(HYPERLINK(showDetails(INDEX(data!$S4:$V4,MATCH(view!CN$3,data!$Y4:$AB4,0)),CN6),"●"),"●")) ->  | CO6: =IF(ISERROR(MATCH(view!CO$3,data!$Y4:$AB4,0)),"",IFERROR(HYPERLINK(showDetails(INDEX(data!$S4:$V4,MATCH(view!CO$3,data!$Y4:$AB4,0)),CO6),"●"),"●")) ->  | CP6: =IF(ISERROR(MATCH(view!CP$3,data!$Y4:$AB4,0)),"",IFERROR(HYPERLINK(showDetails(INDEX(data!$S4:$V4,MATCH(view!CP$3,data!$Y4:$AB4,0)),CP6),"●"),"●")) ->  | CQ6: =IF(ISERROR(MATCH(view!CQ$3,data!$Y4:$AB4,0)),"",IFERROR(HYPERLINK(showDetails(INDEX(data!$S4:$V4,MATCH(view!CQ$3,data!$Y4:$AB4,0)),CQ6),"●"),"●")) ->  | CR6: =IF(ISERROR(MATCH(view!CR$3,data!$Y4:$AB4,0)),"",IFERROR(HYPERLINK(showDetails(INDEX(data!$S4:$V4,MATCH(view!CR$3,data!$Y4:$AB4,0)),CR6),"●"),"●")) ->  | CS6: =IF(ISERROR(MATCH(view!CS$3,data!$Y4:$AB4,0)),"",IFERROR(HYPERLINK(showDetails(INDEX(data!$S4:$V4,MATCH(view!CS$3,data!$Y4:$AB4,0)),CS6),"●"),"●")) ->  | CT6: =IF(ISERROR(MATCH(view!CT$3,data!$Y4:$AB4,0)),"",IFERROR(HYPERLINK(showDetails(INDEX(data!$S4:$V4,MATCH(view!CT$3,data!$Y4:$AB4,0)),CT6),"●"),"●")) ->  | CU6: =IF(ISERROR(MATCH(view!CU$3,data!$Y4:$AB4,0)),"",IFERROR(HYPERLINK(showDetails(INDEX(data!$S4:$V4,MATCH(view!CU$3,data!$Y4:$AB4,0)),CU6),"●"),"●")) ->  | CV6: =IF(ISERROR(MATCH(view!CV$3,data!$Y4:$AB4,0)),"",IFERROR(HYPERLINK(showDetails(INDEX(data!$S4:$V4,MATCH(view!CV$3,data!$Y4:$AB4,0)),CV6),"●"),"●")) ->  | CW6: =IF(ISERROR(MATCH(view!CW$3,data!$Y4:$AB4,0)),"",IFERROR(HYPERLINK(showDetails(INDEX(data!$S4:$V4,MATCH(view!CW$3,data!$Y4:$AB4,0)),CW6),"●"),"●")) ->  | CX6: =IF(ISERROR(MATCH(view!CX$3,data!$Y4:$AB4,0)),"",IFERROR(HYPERLINK(showDetails(INDEX(data!$S4:$V4,MATCH(view!CX$3,data!$Y4:$AB4,0)),CX6),"●"),"●")) ->  | CY6: =IF(ISERROR(MATCH(view!CY$3,data!$Y4:$AB4,0)),"",IFERROR(HYPERLINK(showDetails(INDEX(data!$S4:$V4,MATCH(view!CY$3,data!$Y4:$AB4,0)),CY6),"●"),"●")) ->  | CZ6: =IF(ISERROR(MATCH(view!CZ$3,data!$Y4:$AB4,0)),"",IFERROR(HYPERLINK(showDetails(INDEX(data!$S4:$V4,MATCH(view!CZ$3,data!$Y4:$AB4,0)),CZ6),"●"),"●")) ->  | DA6: =IF(ISERROR(MATCH(view!DA$3,data!$Y4:$AB4,0)),"",IFERROR(HYPERLINK(showDetails(INDEX(data!$S4:$V4,MATCH(view!DA$3,data!$Y4:$AB4,0)),DA6),"●"),"●")) ->  | DB6: =IF(ISERROR(MATCH(view!DB$3,data!$Y4:$AB4,0)),"",IFERROR(HYPERLINK(showDetails(INDEX(data!$S4:$V4,MATCH(view!DB$3,data!$Y4:$AB4,0)),DB6),"●"),"●")) ->  | DC6: =IF(ISERROR(MATCH(view!DC$3,data!$Y4:$AB4,0)),"",IFERROR(HYPERLINK(showDetails(INDEX(data!$S4:$V4,MATCH(view!DC$3,data!$Y4:$AB4,0)),DC6),"●"),"●")) ->  | DD6: =IF(ISERROR(MATCH(view!DD$3,data!$Y4:$AB4,0)),"",IFERROR(HYPERLINK(showDetails(INDEX(data!$S4:$V4,MATCH(view!DD$3,data!$Y4:$AB4,0)),DD6),"●"),"●")) ->  | DE6: =IF(ISERROR(MATCH(view!DE$3,data!$Y4:$AB4,0)),"",IFERROR(HYPERLINK(showDetails(INDEX(data!$S4:$V4,MATCH(view!DE$3,data!$Y4:$AB4,0)),DE6),"●"),"●")) -> ● | DF6: =IF(ISERROR(MATCH(view!DF$3,data!$Y4:$AB4,0)),"",IFERROR(HYPERLINK(showDetails(INDEX(data!$S4:$V4,MATCH(view!DF$3,data!$Y4:$AB4,0)),DF6),"●"),"●")) -> ● | DG6: =IF(ISERROR(MATCH(view!DG$3,data!$Y4:$AB4,0)),"",IFERROR(HYPERLINK(showDetails(INDEX(data!$S4:$V4,MATCH(view!DG$3,data!$Y4:$AB4,0)),DG6),"●"),"●")) ->  | DH6: =IF(ISERROR(MATCH(view!DH$3,data!$Y4:$AB4,0)),"",IFERROR(HYPERLINK(showDetails(INDEX(data!$S4:$V4,MATCH(view!DH$3,data!$Y4:$AB4,0)),DH6),"●"),"●")) ->  | DI6: =IF(ISERROR(MATCH(view!DI$3,data!$Y4:$AB4,0)),"",IFERROR(HYPERLINK(showDetails(INDEX(data!$S4:$V4,MATCH(view!DI$3,data!$Y4:$AB4,0)),DI6),"●"),"●")) ->  | DJ6: =IF(ISERROR(MATCH(view!DJ$3,data!$Y4:$AB4,0)),"",IFERROR(HYPERLINK(showDetails(INDEX(data!$S4:$V4,MATCH(view!DJ$3,data!$Y4:$AB4,0)),DJ6),"●"),"●")) ->  | DK6: =IF(ISERROR(MATCH(view!DK$3,data!$Y4:$AB4,0)),"",IFERROR(HYPERLINK(showDetails(INDEX(data!$S4:$V4,MATCH(view!DK$3,data!$Y4:$AB4,0)),DK6),"●"),"●")) ->  | DL6: =IF(ISERROR(MATCH(view!DL$3,data!$Y4:$AB4,0)),"",IFERROR(HYPERLINK(showDetails(INDEX(data!$S4:$V4,MATCH(view!DL$3,data!$Y4:$AB4,0)),DL6),"●"),"●")) ->  | DM6: =IF(ISERROR(MATCH(view!DM$3,data!$Y4:$AB4,0)),"",IFERROR(HYPERLINK(showDetails(INDEX(data!$S4:$V4,MATCH(view!DM$3,data!$Y4:$AB4,0)),DM6),"●"),"●")) ->  | DN6: =IF(ISERROR(MATCH(view!DN$3,data!$Y4:$AB4,0)),"",IFERROR(HYPERLINK(showDetails(INDEX(data!$S4:$V4,MATCH(view!DN$3,data!$Y4:$AB4,0)),DN6),"●"),"●")) ->  | DO6: =IF(ISERROR(MATCH(view!DO$3,data!$Y4:$AB4,0)),"",IFERROR(HYPERLINK(showDetails(INDEX(data!$S4:$V4,MATCH(view!DO$3,data!$Y4:$AB4,0)),DO6),"●"),"●")) ->  | DP6: =IF(ISERROR(MATCH(view!DP$3,data!$Y4:$AB4,0)),"",IFERROR(HYPERLINK(showDetails(INDEX(data!$S4:$V4,MATCH(view!DP$3,data!$Y4:$AB4,0)),DP6),"●"),"●")) -> ● | DQ6: =IF(ISERROR(MATCH(view!DQ$3,data!$Y4:$AB4,0)),"",IFERROR(HYPERLINK(showDetails(INDEX(data!$S4:$V4,MATCH(view!DQ$3,data!$Y4:$AB4,0)),DQ6),"●"),"●")) ->  | DR6: =IF(ISERROR(MATCH(view!DR$3,data!$Y4:$AB4,0)),"",IFERROR(HYPERLINK(showDetails(INDEX(data!$S4:$V4,MATCH(view!DR$3,data!$Y4:$AB4,0)),DR6),"●"),"●")) ->  | DS6: =IF(ISERROR(MATCH(view!DS$3,data!$Y4:$AB4,0)),"",IFERROR(HYPERLINK(showDetails(INDEX(data!$S4:$V4,MATCH(view!DS$3,data!$Y4:$AB4,0)),DS6),"●"),"●")) ->  | DT6: =INDEX(lstYears,A6) &" - "&INDEX(data!$W$3:$W$30,A6) -> 2008 - Beijing
A7: 3 | C7: =IF(ISERROR(MATCH(view!C$3,data!$Y5:$AB5,0)),"",IFERROR(HYPERLINK(showDetails(INDEX(data!$S5:$V5,MATCH(view!C$3,data!$Y5:$AB5,0)),C7),"●"),"●")) ->  | D7: =IF(ISERROR(MATCH(view!D$3,data!$Y5:$AB5,0)),"",IFERROR(HYPERLINK(showDetails(INDEX(data!$S5:$V5,MATCH(view!D$3,data!$Y5:$AB5,0)),D7),"●"),"●")) ->  | E7: =IF(ISERROR(MATCH(view!E$3,data!$Y5:$AB5,0)),"",IFERROR(HYPERLINK(showDetails(INDEX(data!$S5:$V5,MATCH(view!E$3,data!$Y5:$AB5,0)),E7),"●"),"●")) ->  | F7: =IF(ISERROR(MATCH(view!F$3,data!$Y5:$AB5,0)),"",IFERROR(HYPERLINK(showDetails(INDEX(data!$S5:$V5,MATCH(view!F$3,data!$Y5:$AB5,0)),F7),"●"),"●")) ->  | G7: =IF(ISERROR(MATCH(view!G$3,data!$Y5:$AB5,0)),"",IFERROR(HYPERLINK(showDetails(INDEX(data!$S5:$V5,MATCH(view!G$3,data!$Y5:$AB5,0)),G7),"●"),"●")) ->  | H7: =IF(ISERROR(MATCH(view!H$3,data!$Y5:$AB5,0)),"",IFERROR(HYPERLINK(showDetails(INDEX(data!$S5:$V5,MATCH(view!H$3,data!$Y5:$AB5,0)),H7),"●"),"●")) ->  | I7: =IF(ISERROR(MATCH(view!I$3,data!$Y5:$AB5,0)),"",IFERROR(HYPERLINK(showDetails(INDEX(data!$S5:$V5,MATCH(view!I$3,data!$Y5:$AB5,0)),I7),"●"),"●")) ->  | J7: =IF(ISERROR(MATCH(view!J$3,data!$Y5:$AB5,0)),"",IFERROR(HYPERLINK(showDetails(INDEX(data!$S5:$V5,MATCH(view!J$3,data!$Y5:$AB5,0)),J7),"●"),"●")) ->  | K7: =IF(ISERROR(MATCH(view!K$3,data!$Y5:$AB5,0)),"",IFERROR(HYPERLINK(showDetails(INDEX(data!$S5:$V5,MATCH(view!K$3,data!$Y5:$AB5,0)),K7),"●"),"●")) ->  | L7: =IF(ISERROR(MATCH(view!L$3,data!$Y5:$AB5,0)),"",IFERROR(HYPERLINK(showDetails(INDEX(data!$S5:$V5,MATCH(view!L$3,data!$Y5:$AB5,0)),L7),"●"),"●")) ->  | M7: =IF(ISERROR(MATCH(view!M$3,data!$Y5:$AB5,0)),"",IFERROR(HYPERLINK(showDetails(INDEX(data!$S5:$V5,MATCH(view!M$3,data!$Y5:$AB5,0)),M7),"●"),"●")) ->  | N7: =IF(ISERROR(MATCH(view!N$3,data!$Y5:$AB5,0)),"",IFERROR(HYPERLINK(showDetails(INDEX(data!$S5:$V5,MATCH(view!N$3,data!$Y5:$AB5,0)),N7),"●"),"●")) ->  | O7: =IF(ISERROR(MATCH(view!O$3,data!$Y5:$AB5,0)),"",IFERROR(HYPERLINK(showDetails(INDEX(data!$S5:$V5,MATCH(view!O$3,data!$Y5:$AB5,0)),O7),"●"),"●")) ->  | P7: =IF(ISERROR(MATCH(view!P$3,data!$Y5:$AB5,0)),"",IFERROR(HYPERLINK(showDetails(INDEX(data!$S5:$V5,MATCH(view!P$3,data!$Y5:$AB5,0)),P7),"●"),"●")) ->  | Q7: =IF(ISERROR(MATCH(view!Q$3,data!$Y5:$AB5,0)),"",IFERROR(HYPERLINK(showDetails(INDEX(data!$S5:$V5,MATCH(view!Q$3,data!$Y5:$AB5,0)),Q7),"●"),"●")) ->  | R7: =IF(ISERROR(MATCH(view!R$3,data!$Y5:$AB5,0)),"",IFERROR(HYPERLINK(showDetails(INDEX(data!$S5:$V5,MATCH(view!R$3,data!$Y5:$AB5,0)),R7),"●"),"●")) ->  | S7: =IF(ISERROR(MATCH(view!S$3,data!$Y5:$AB5,0)),"",IFERROR(HYPERLINK(showDetails(INDEX(data!$S5:$V5,MATCH(view!S$3,data!$Y5:$AB5,0)),S7),"●"),"●")) ->  | T7: =IF(ISERROR(MATCH(view!T$3,data!$Y5:$AB5,0)),"",IFERROR(HYPERLINK(showDetails(INDEX(data!$S5:$V5,MATCH(view!T$3,data!$Y5:$AB5,0)),T7),"●"),"●")) ->  | U7: =IF(ISERROR(MATCH(view!U$3,data!$Y5:$AB5,0)),"",IFERROR(HYPERLINK(showDetails(INDEX(data!$S5:$V5,MATCH(view!U$3,data!$Y5:$AB5,0)),U7),"●"),"●")) ->  | V7: =IF(ISERROR(MATCH(view!V$3,data!$Y5:$AB5,0)),"",IFERROR(HYPERLINK(showDetails(INDEX(data!$S5:$V5,MATCH(view!V$3,data!$Y5:$AB5,0)),V7),"●"),"●")) ->  | W7: =IF(ISERROR(MATCH(view!W$3,data!$Y5:$AB5,0)),"",IFERROR(HYPERLINK(showDetails(INDEX(data!$S5:$V5,MATCH(view!W$3,data!$Y5:$AB5,0)),W7),"●"),"●")) ->  | X7: =IF(ISERROR(MATCH(view!X$3,data!$Y5:$AB5,0)),"",IFERROR(HYPERLINK(showDetails(INDEX(data!$S5:$V5,MATCH(view!X$3,data!$Y5:$AB5,0)),X7),"●"),"●")) ->  | Y7: =IF(ISERROR(MATCH(view!Y$3,data!$Y5:$AB5,0)),"",IFERROR(HYPERLINK(showDetails(INDEX(data!$S5:$V5,MATCH(view!Y$3,data!$Y5:$AB5,0)),Y7),"●"),"●")) ->  | Z7: =IF(ISERROR(MATCH(view!Z$3,data!$Y5:$AB5,0)),"",IFERROR(HYPERLINK(showDetails(INDEX(data!$S5:$V5,MATCH(view!Z$3,data!$Y5:$AB5,0)),Z7),"●"),"●")) ->  | AA7: =IF(ISERROR(MATCH(view!AA$3,data!$Y5:$AB5,0)),"",IFERROR(HYPERLINK(showDetails(INDEX(data!$S5:$V5,MATCH(view!AA$3,data!$Y5:$AB5,0)),AA7),"●"),"●")) ->  | AB7: =IF(ISERROR(MATCH(view!AB$3,data!$Y5:$AB5,0)),"",IFERROR(HYPERLINK(showDetails(INDEX(data!$S5:$V5,MATCH(view!AB$3,data!$Y5:$AB5,0)),AB7),"●"),"●")) ->  | AC7: =IF(ISERROR(MATCH(view!AC$3,data!$Y5:$AB5,0)),"",IFERROR(HYPERLINK(showDetails(INDEX(data!$S5:$V5,MATCH(view!AC$3,data!$Y5:$AB5,0)),AC7),"●"),"●")) ->  | AD7: =IF(ISERROR(MATCH(view!AD$3,data!$Y5:$AB5,0)),"",IFERROR(HYPERLINK(showDetails(INDEX(data!$S5:$V5,MATCH(view!AD$3,data!$Y5:$AB5,0)),AD7),"●"),"●")) ->  | AE7: =IF(ISERROR(MATCH(view!AE$3,data!$Y5:$AB5,0)),"",IFERROR(HYPERLINK(showDetails(INDEX(data!$S5:$V5,MATCH(view!AE$3,data!$Y5:$AB5,0)),AE7),"●"),"●")) ->  | AF7: =IF(ISERROR(MATCH(view!AF$3,data!$Y5:$AB5,0)),"",IFERROR(HYPERLINK(showDetails(INDEX(data!$S5:$V5,MATCH(view!AF$3,data!$Y5:$AB5,0)),AF7),"●"),"●")) ->  | AG7: =IF(ISERROR(MATCH(view!AG$3,data!$Y5:$AB5,0)),"",IFERROR(HYPERLINK(showDetails(INDEX(data!$S5:$V5,MATCH(view!AG$3,data!$Y5:$AB5,0)),AG7),"●"),"●")) ->  | AH7: =IF(ISERROR(MATCH(view!AH$3,data!$Y5:$AB5,0)),"",IFERROR(HYPERLINK(showDetails(INDEX(data!$S5:$V5,MATCH(view!AH$3,data!$Y5:$AB5,0)),AH7),"●"),"●")) ->  | AI7: =IF(ISERROR(MATCH(view!AI$3,data!$Y5:$AB5,0)),"",IFERROR(HYPERLINK(showDetails(INDEX(data!$S5:$V5,MATCH(view!AI$3,data!$Y5:$AB5,0)),AI7),"●"),"●")) ->  | AJ7: =IF(ISERROR(MATCH(view!AJ$3,data!$Y5:$AB5,0)),"",IFERROR(HYPERLINK(showDetails(INDEX(data!$S5:$V5,MATCH(view!AJ$3,data!$Y5:$AB5,0)),AJ7),"●"),"●")) ->  | AK7: =IF(ISERROR(MATCH(view!AK$3,data!$Y5:$AB5,0)),"",IFERROR(HYPERLINK(showDetails(INDEX(data!$S5:$V5,MATCH(view!AK$3,data!$Y5:$AB5,0)),AK7),"●"),"●")) ->  | AL7: =IF(ISERROR(MATCH(view!AL$3,data!$Y5:$AB5,0)),"",IFERROR(HYPERLINK(showDetails(INDEX(data!$S5:$V5,MATCH(view!AL$3,data!$Y5:$AB5,0)),AL7),"●"),"●")) ->  | AM7: =IF(ISERROR(MATCH(view!AM$3,data!$Y5:$AB5,0)),"",IFERROR(HYPERLINK(showDetails(INDEX(data!$S5:$V5,MATCH(view!AM$3,data!$Y5:$AB5,0)),AM7),"●"),"●")) ->  | AN7: =IF(ISERROR(MATCH(view!AN$3,data!$Y5:$AB5,0)),"",IFERROR(HYPERLINK(showDetails(INDEX(data!$S5:$V5,MATCH(view!AN$3,data!$Y5:$AB5,0)),AN7),"●"),"●")) ->  | AO7: =IF(ISERROR(MATCH(view!AO$3,data!$Y5:$AB5,0)),"",IFERROR(HYPERLINK(showDetails(INDEX(data!$S5:$V5,MATCH(view!AO$3,data!$Y5:$AB5,0)),AO7),"●"),"●")) ->  | AP7: =IF(ISERROR(MATCH(view!AP$3,data!$Y5:$AB5,0)),"",IFERROR(HYPERLINK(showDetails(INDEX(data!$S5:$V5,MATCH(view!AP$3,data!$Y5:$AB5,0)),AP7),"●"),"●")) ->  | AQ7: =IF(ISERROR(MATCH(view!AQ$3,data!$Y5:$AB5,0)),"",IFERROR(HYPERLINK(showDetails(INDEX(data!$S5:$V5,MATCH(view!AQ$3,data!$Y5:$AB5,0)),AQ7),"●"),"●")) ->  | AR7: =IF(ISERROR(MATCH(view!AR$3,data!$Y5:$AB5,0)),"",IFERROR(HYPERLINK(showDetails(INDEX(data!$S5:$V5,MATCH(view!AR$3,data!$Y5:$AB5,0)),AR7),"●"),"●")) ->  | AS7: =IF(ISERROR(MATCH(view!AS$3,data!$Y5:$AB5,0)),"",IFERROR(HYPERLINK(showDetails(INDEX(data!$S5:$V5,MATCH(view!AS$3,data!$Y5:$AB5,0)),AS7),"●"),"●")) ->  | AT7: =IF(ISERROR(MATCH(view!AT$3,data!$Y5:$AB5,0)),"",IFERROR(HYPERLINK(showDetails(INDEX(data!$S5:$V5,MATCH(view!AT$3,data!$Y5:$AB5,0)),AT7),"●"),"●")) ->  | AU7: =IF(ISERROR(MATCH(view!AU$3,data!$Y5:$AB5,0)),"",IFERROR(HYPERLINK(showDetails(INDEX(data!$S5:$V5,MATCH(view!AU$3,data!$Y5:$AB5,0)),AU7),"●"),"●")) ->  | AV7: =IF(ISERROR(MATCH(view!AV$3,data!$Y5:$AB5,0)),"",IFERROR(HYPERLINK(showDetails(INDEX(data!$S5:$V5,MATCH(view!AV$3,data!$Y5:$AB5,0)),AV7),"●"),"●")) ->  | AW7: =IF(ISERROR(MATCH(view!AW$3,data!$Y5:$AB5,0)),"",IFERROR(HYPERLINK(showDetails(INDEX(data!$S5:$V5,MATCH(view!AW$3,data!$Y5:$AB5,0)),AW7),"●"),"●")) ->  | AX7: =IF(ISERROR(MATCH(view!AX$3,data!$Y5:$AB5,0)),"",IFERROR(HYPERLINK(showDetails(INDEX(data!$S5:$V5,MATCH(view!AX$3,data!$Y5:$AB5,0)),AX7),"●"),"●")) ->  | AY7: =IF(ISERROR(MATCH(view!AY$3,data!$Y5:$AB5,0)),"",IFERROR(HYPERLINK(showDetails(INDEX(data!$S5:$V5,MATCH(view!AY$3,data!$Y5:$AB5,0)),AY7),"●"),"●")) ->  | AZ7: =IF(ISERROR(MATCH(view!AZ$3,data!$Y5:$AB5,0)),"",IFERROR(HYPERLINK(showDetails(INDEX(data!$S5:$V5,MATCH(view!AZ$3,data!$Y5:$AB5,0)),AZ7),"●"),"●")) ->  | BA7: =IF(ISERROR(MATCH(view!BA$3,data!$Y5:$AB5,0)),"",IFERROR(HYPERLINK(showDetails(INDEX(data!$S5:$V5,MATCH(view!BA$3,data!$Y5:$AB5,0)),BA7),"●"),"●")) ->  | BB7: =IF(ISERROR(MATCH(view!BB$3,data!$Y5:$AB5,0)),"",IFERROR(HYPERLINK(showDetails(INDEX(data!$S5:$V5,MATCH(view!BB$3,data!$Y5:$AB5,0)),BB7),"●"),"●")) ->  | BC7: =IF(ISERROR(MATCH(view!BC$3,data!$Y5:$AB5,0)),"",IFERROR(HYPERLINK(showDetails(INDEX(data!$S5:$V5,MATCH(view!BC$3,data!$Y5:$AB5,0)),BC7),"●"),"●")) ->  | BD7: =IF(ISERROR(MATCH(view!BD$3,data!$Y5:$AB5,0)),"",IFERROR(HYPERLINK(showDetails(INDEX(data!$S5:$V5,MATCH(view!BD$3,data!$Y5:$AB5,0)),BD7),"●"),"●")) ->  | BE7: =IF(ISERROR(MATCH(view!BE$3,data!$Y5:$AB5,0)),"",IFERROR(HYPERLINK(showDetails(INDEX(data!$S5:$V5,MATCH(view!BE$3,data!$Y5:$AB5,0)),BE7),"●"),"●")) ->  | BF7: =IF(ISERROR(MATCH(view!BF$3,data!$Y5:$AB5,0)),"",IFERROR(HYPERLINK(showDetails(INDEX(data!$S5:$V5,MATCH(view!BF$3,data!$Y5:$AB5,0)),BF7),"●"),"●")) ->  | BG7: =IF(ISERROR(MATCH(view!BG$3,data!$Y5:$AB5,0)),"",IFERROR(HYPERLINK(showDetails(INDEX(data!$S5:$V5,MATCH(view!BG$3,data!$Y5:$AB5,0)),BG7),"●"),"●")) ->  | BH7: =IF(ISERROR(MATCH(view!BH$3,data!$Y5:$AB5,0)),"",IFERROR(HYPERLINK(showDetails(INDEX(data!$S5:$V5,MATCH(view!BH$3,data!$Y5:$AB5,0)),BH7),"●"),"●")) ->  | BI7: =IF(ISERROR(MATCH(view!BI$3,data!$Y5:$AB5,0)),"",IFERROR(HYPERLINK(showDetails(INDEX(data!$S5:$V5,MATCH(view!BI$3,data!$Y5:$AB5,0)),BI7),"●"),"●")) ->  | BJ7: =IF(ISERROR(MATCH(view!BJ$3,data!$Y5:$AB5,0)),"",IFERROR(HYPERLINK(showDetails(INDEX(data!$S5:$V5,MATCH(view!BJ$3,data!$Y5:$AB5,0)),BJ7),"●"),"●")) ->  | BK7: =IF(ISERROR(MATCH(view!BK$3,data!$Y5:$AB5,0)),"",IFERROR(HYPERLINK(showDetails(INDEX(data!$S5:$V5,MATCH(view!BK$3,data!$Y5:$AB5,0)),BK7),"●"),"●")) ->  | BL7: =IF(ISERROR(MATCH(view!BL$3,data!$Y5:$AB5,0)),"",IFERROR(HYPERLINK(showDetails(INDEX(data!$S5:$V5,MATCH(view!BL$3,data!$Y5:$AB5,0)),BL7),"●"),"●")) ->  | BM7: =IF(ISERROR(MATCH(view!BM$3,data!$Y5:$AB5,0)),"",IFERROR(HYPERLINK(showDetails(INDEX(data!$S5:$V5,MATCH(view!BM$3,data!$Y5:$AB5,0)),BM7),"●"),"●")) ->  | BN7: =IF(ISERROR(MATCH(view!BN$3,data!$Y5:$AB5,0)),"",IFERROR(HYPERLINK(showDetails(INDEX(data!$S5:$V5,MATCH(view!BN$3,data!$Y5:$AB5,0)),BN7),"●"),"●")) ->  | BO7: =IF(ISERROR(MATCH(view!BO$3,data!$Y5:$AB5,0)),"",IFERROR(HYPERLINK(showDetails(INDEX(data!$S5:$V5,MATCH(view!BO$3,data!$Y5:$AB5,0)),BO7),"●"),"●")) ->  | BP7: =IF(ISERROR(MATCH(view!BP$3,data!$Y5:$AB5,0)),"",IFERROR(HYPERLINK(showDetails(INDEX(data!$S5:$V5,MATCH(view!BP$3,data!$Y5:$AB5,0)),BP7),"●"),"●")) ->  | BQ7: =IF(ISERROR(MATCH(view!BQ$3,data!$Y5:$AB5,0)),"",IFERROR(HYPERLINK(showDetails(INDEX(data!$S5:$V5,MATCH(view!BQ$3,data!$Y5:$AB5,0)),BQ7),"●"),"●")) ->  | BR7: =IF(ISERROR(MATCH(view!BR$3,data!$Y5:$AB5,0)),"",IFERROR(HYPERLINK(showDetails(INDEX(data!$S5:$V5,MATCH(view!BR$3,data!$Y5:$AB5,0)),BR7),"●"),"●")) ->  | BS7: =IF(ISERROR(MATCH(view!BS$3,data!$Y5:$AB5,0)),"",IFERROR(HYPERLINK(showDetails(INDEX(data!$S5:$V5,MATCH(view!BS$3,data!$Y5:$AB5,0)),BS7),"●"),"●")) ->  | BT7: =IF(ISERROR(MATCH(view!BT$3,data!$Y5:$AB5,0)),"",IFERROR(HYPERLINK(showDetails(INDEX(data!$S5:$V5,MATCH(view!BT$3,data!$Y5:$AB5,0)),BT7),"●"),"●")) ->  | BU7: =IF(ISERROR(MATCH(view!BU$3,data!$Y5:$AB5,0)),"",IFERROR(HYPERLINK(showDetails(INDEX(data!$S5:$V5,MATCH(view!BU$3,data!$Y5:$AB5,0)),BU7),"●"),"●")) ->  | BV7: =IF(ISERROR(MATCH(view!BV$3,data!$Y5:$AB5,0)),"",IFERROR(HYPERLINK(showDetails(INDEX(data!$S5:$V5,MATCH(view!BV$3,data!$Y5:$AB5,0)),BV7),"●"),"●")) ->  | BW7: =IF(ISERROR(MATCH(view!BW$3,data!$Y5:$AB5,0)),"",IFERROR(HYPERLINK(showDetails(INDEX(data!$S5:$V5,MATCH(view!BW$3,data!$Y5:$AB5,0)),BW7),"●"),"●")) ->  | BX7: =IF(ISERROR(MATCH(view!BX$3,data!$Y5:$AB5,0)),"",IFERROR(HYPERLINK(showDetails(INDEX(data!$S5:$V5,MATCH(view!BX$3,data!$Y5:$AB5,0)),BX7),"●"),"●")) ->  | BY7: =IF(ISERROR(MATCH(view!BY$3,data!$Y5:$AB5,0)),"",IFERROR(HYPERLINK(showDetails(INDEX(data!$S5:$V5,MATCH(view!BY$3,data!$Y5:$AB5,0)),BY7),"●"),"●")) ->  | BZ7: =IF(ISERROR(MATCH(view!BZ$3,data!$Y5:$AB5,0)),"",IFERROR(HYPERLINK(showDetails(INDEX(data!$S5:$V5,MATCH(view!BZ$3,data!$Y5:$AB5,0)),BZ7),"●"),"●")) ->  | CA7: =IF(ISERROR(MATCH(view!CA$3,data!$Y5:$AB5,0)),"",IFERROR(HYPERLINK(showDetails(INDEX(data!$S5:$V5,MATCH(view!CA$3,data!$Y5:$AB5,0)),CA7),"●"),"●")) ->  | CB7: =IF(ISERROR(MATCH(view!CB$3,data!$Y5:$AB5,0)),"",IFERROR(HYPERLINK(showDetails(INDEX(data!$S5:$V5,MATCH(view!CB$3,data!$Y5:$AB5,0)),CB7),"●"),"●")) ->  | CC7: =IF(ISERROR(MATCH(view!CC$3,data!$Y5:$AB5,0)),"",IFERROR(HYPERLINK(showDetails(INDEX(data!$S5:$V5,MATCH(view!CC$3,data!$Y5:$AB5,0)),CC7),"●"),"●")) ->  | CD7: =IF(ISERROR(MATCH(view!CD$3,data!$Y5:$AB5,0)),"",IFERROR(HYPERLINK(showDetails(INDEX(data!$S5:$V5,MATCH(view!CD$3,data!$Y5:$AB5,0)),CD7),"●"),"●")) ->  | CE7: =IF(ISERROR(MATCH(view!CE$3,data!$Y5:$AB5,0)),"",IFERROR(HYPERLINK(showDetails(INDEX(data!$S5:$V5,MATCH(view!CE$3,data!$Y5:$AB5,0)),CE7),"●"),"●")) ->  | CF7: =IF(ISERROR(MATCH(view!CF$3,data!$Y5:$AB5,0)),"",IFERROR(HYPERLINK(showDetails(INDEX(data!$S5:$V5,MATCH(view!CF$3,data!$Y5:$AB5,0)),CF7),"●"),"●")) ->  | CG7: =IF(ISERROR(MATCH(view!CG$3,data!$Y5:$AB5,0)),"",IFERROR(HYPERLINK(showDetails(INDEX(data!$S5:$V5,MATCH(view!CG$3,data!$Y5:$AB5,0)),CG7),"●"),"●")) ->  | CH7: =IF(ISERROR(MATCH(view!CH$3,data!$Y5:$AB5,0)),"",IFERROR(HYPERLINK(showDetails(INDEX(data!$S5:$V5,MATCH(view!CH$3,data!$Y5:$AB5,0)),CH7),"●"),"●")) ->  | CI7: =IF(ISERROR(MATCH(view!CI$3,data!$Y5:$AB5,0)),"",IFERROR(HYPERLINK(showDetails(INDEX(data!$S5:$V5,MATCH(view!CI$3,data!$Y5:$AB5,0)),CI7),"●"),"●")) ->  | CJ7: =IF(ISERROR(MATCH(view!CJ$3,data!$Y5:$AB5,0)),"",IFERROR(HYPERLINK(showDetails(INDEX(data!$S5:$V5,MATCH(view!CJ$3,data!$Y5:$AB5,0)),CJ7),"●"),"●")) ->  | CK7: =IF(ISERROR(MATCH(view!CK$3,data!$Y5:$AB5,0)),"",IFERROR(HYPERLINK(showDetails(INDEX(data!$S5:$V5,MATCH(view!CK$3,data!$Y5:$AB5,0)),CK7),"●"),"●")) ->  | CL7: =IF(ISERROR(MATCH(view!CL$3,data!$Y5:$AB5,0)),"",IFERROR(HYPERLINK(showDetails(INDEX(data!$S5:$V5,MATCH(view!CL$3,data!$Y5:$AB5,0)),CL7),"●"),"●")) ->  | CM7: =IF(ISERROR(MATCH(view!CM$3,data!$Y5:$AB5,0)),"",IFERROR(HYPERLINK(showDetails(INDEX(data!$S5:$V5,MATCH(view!CM$3,data!$Y5:$AB5,0)),CM7),"●"),"●")) ->  | CN7: =IF(ISERROR(MATCH(view!CN$3,data!$Y5:$AB5,0)),"",IFERROR(HYPERLINK(showDetails(INDEX(data!$S5:$V5,MATCH(view!CN$3,data!$Y5:$AB5,0)),CN7),"●"),"●")) ->  | CO7: =IF(ISERROR(MATCH(view!CO$3,data!$Y5:$AB5,0)),"",IFERROR(HYPERLINK(showDetails(INDEX(data!$S5:$V5,MATCH(view!CO$3,data!$Y5:$AB5,0)),CO7),"●"),"●")) ->  | CP7: =IF(ISERROR(MATCH(view!CP$3,data!$Y5:$AB5,0)),"",IFERROR(HYPERLINK(showDetails(INDEX(data!$S5:$V5,MATCH(view!CP$3,data!$Y5:$AB5,0)),CP7),"●"),"●")) ->  | CQ7: =IF(ISERROR(MATCH(view!CQ$3,data!$Y5:$AB5,0)),"",IFERROR(HYPERLINK(showDetails(INDEX(data!$S5:$V5,MATCH(view!CQ$3,data!$Y5:$AB5,0)),CQ7),"●"),"●")) ->  | CR7: =IF(ISERROR(MATCH(view!CR$3,data!$Y5:$AB5,0)),"",IFERROR(HYPERLINK(showDetails(INDEX(data!$S5:$V5,MATCH(view!CR$3,data!$Y5:$AB5,0)),CR7),"●"),"●")) ->  | CS7: =IF(ISERROR(MATCH(view!CS$3,data!$Y5:$AB5,0)),"",IFERROR(HYPERLINK(showDetails(INDEX(data!$S5:$V5,MATCH(view!CS$3,data!$Y5:$AB5,0)),CS7),"●"),"●")) ->  | CT7: =IF(ISERROR(MATCH(view!CT$3,data!$Y5:$AB5,0)),"",IFERROR(HYPERLINK(showDetails(INDEX(data!$S5:$V5,MATCH(view!CT$3,data!$Y5:$AB5,0)),CT7),"●"),"●")) ->  | CU7: =IF(ISERROR(MATCH(view!CU$3,data!$Y5:$AB5,0)),"",IFERROR(HYPERLINK(showDetails(INDEX(data!$S5:$V5,MATCH(view!CU$3,data!$Y5:$AB5,0)),CU7),"●"),"●")) ->  | CV7: =IF(ISERROR(MATCH(view!CV$3,data!$Y5:$AB5,0)),"",IFERROR(HYPERLINK(showDetails(INDEX(data!$S5:$V5,MATCH(view!CV$3,data!$Y5:$AB5,0)),CV7),"●"),"●")) ->  | CW7: =IF(ISERROR(MATCH(view!CW$3,data!$Y5:$AB5,0)),"",IFERROR(HYPERLINK(showDetails(INDEX(data!$S5:$V5,MATCH(view!CW$3,data!$Y5:$AB5,0)),CW7),"●"),"●")) ->  | CX7: =IF(ISERROR(MATCH(view!CX$3,data!$Y5:$AB5,0)),"",IFERROR(HYPERLINK(showDetails(INDEX(data!$S5:$V5,MATCH(view!CX$3,data!$Y5:$AB5,0)),CX7),"●"),"●")) ->  | CY7: =IF(ISERROR(MATCH(view!CY$3,data!$Y5:$AB5,0)),"",IFERROR(HYPERLINK(showDetails(INDEX(data!$S5:$V5,MATCH(view!CY$3,data!$Y5:$AB5,0)),CY7),"●"),"●")) ->  | CZ7: =IF(ISERROR(MATCH(view!CZ$3,data!$Y5:$AB5,0)),"",IFERROR(HYPERLINK(showDetails(INDEX(data!$S5:$V5,MATCH(view!CZ$3,data!$Y5:$AB5,0)),CZ7),"●"),"●")) ->  | DA7: =IF(ISERROR(MATCH(view!DA$3,data!$Y5:$AB5,0)),"",IFERROR(HYPERLINK(showDetails(INDEX(data!$S5:$V5,MATCH(view!DA$3,data!$Y5:$AB5,0)),DA7),"●"),"●")) ->  | DB7: =IF(ISERROR(MATCH(view!DB$3,data!$Y5:$AB5,0)),"",IFERROR(HYPERLINK(showDetails(INDEX(data!$S5:$V5,MATCH(view!DB$3,data!$Y5:$AB5,0)),DB7),"●"),"●")) ->  | DC7: =IF(ISERROR(MATCH(view!DC$3,data!$Y5:$AB5,0)),"",IFERROR(HYPERLINK(showDetails(INDEX(data!$S5:$V5,MATCH(view!DC$3,data!$Y5:$AB5,0)),DC7),"●"),"●")) ->  | DD7: =IF(ISERROR(MATCH(view!DD$3,data!$Y5:$AB5,0)),"",IFERROR(HYPERLINK(showDetails(INDEX(data!$S5:$V5,MATCH(view!DD$3,data!$Y5:$AB5,0)),DD7),"●"),"●")) ->  | DE7: =IF(ISERROR(MATCH(view!DE$3,data!$Y5:$AB5,0)),"",IFERROR(HYPERLINK(showDetails(INDEX(data!$S5:$V5,MATCH(view!DE$3,data!$Y5:$AB5,0)),DE7),"●"),"●")) ->  | DF7: =IF(ISERROR(MATCH(view!DF$3,data!$Y5:$AB5,0)),"",IFERROR(HYPERLINK(showDetails(INDEX(data!$S5:$V5,MATCH(view!DF$3,data!$Y5:$AB5,0)),DF7),"●"),"●")) ->  | DG7: =IF(ISERROR(MATCH(view!DG$3,data!$Y5:$AB5,0)),"",IFERROR(HYPERLINK(showDetails(INDEX(data!$S5:$V5,MATCH(view!DG$3,data!$Y5:$AB5,0)),DG7),"●"),"●")) -> ● | DH7: =IF(ISERROR(MATCH(view!DH$3,data!$Y5:$AB5,0)),"",IFERROR(HYPERLINK(showDetails(INDEX(data!$S5:$V5,MATCH(view!DH$3,data!$Y5:$AB5,0)),DH7),"●"),"●")) -> ● | DI7: =IF(ISERROR(MATCH(view!DI$3,data!$Y5:$AB5,0)),"",IFERROR(HYPERLINK(showDetails(INDEX(data!$S5:$V5,MATCH(view!DI$3,data!$Y5:$AB5,0)),DI7),"●"),"●")) ->  | DJ7: =IF(ISERROR(MATCH(view!DJ$3,data!$Y5:$AB5,0)),"",IFERROR(HYPERLINK(showDetails(INDEX(data!$S5:$V5,MATCH(view!DJ$3,data!$Y5:$AB5,0)),DJ7),"●"),"●")) ->  | DK7: =IF(ISERROR(MATCH(view!DK$3,data!$Y5:$AB5,0)),"",IFERROR(HYPERLINK(showDetails(INDEX(data!$S5:$V5,MATCH(view!DK$3,data!$Y5:$AB5,0)),DK7),"●"),"●")) ->  | DL7: =IF(ISERROR(MATCH(view!DL$3,data!$Y5:$AB5,0)),"",IFERROR(HYPERLINK(showDetails(INDEX(data!$S5:$V5,MATCH(view!DL$3,data!$Y5:$AB5,0)),DL7),"●"),"●")) ->  | DM7: =IF(ISERROR(MATCH(view!DM$3,data!$Y5:$AB5,0)),"",IFERROR(HYPERLINK(showDetails(INDEX(data!$S5:$V5,MATCH(view!DM$3,data!$Y5:$AB5,0)),DM7),"●"),"●")) ->  | DN7: =IF(ISERROR(MATCH(view!DN$3,data!$Y5:$AB5,0)),"",IFERROR(HYPERLINK(showDetails(INDEX(data!$S5:$V5,MATCH(view!DN$3,data!$Y5:$AB5,0)),DN7),"●"),"●")) ->  | DO7: =IF(ISERROR(MATCH(view!DO$3,data!$Y5:$AB5,0)),"",IFERROR(HYPERLINK(showDetails(INDEX(data!$S5:$V5,MATCH(view!DO$3,data!$Y5:$AB5,0)),DO7),"●"),"●")) ->  | DP7: =IF(ISERROR(MATCH(view!DP$3,data!$Y5:$AB5,0)),"",IFERROR(HYPERLINK(showDetails(INDEX(data!$S5:$V5,MATCH(view!DP$3,data!$Y5:$AB5,0)),DP7),"●"),"●")) ->  | DQ7: =IF(ISERROR(MATCH(view!DQ$3,data!$Y5:$AB5,0)),"",IFERROR(HYPERLINK(showDetails(INDEX(data!$S5:$V5,MATCH(view!DQ$3,data!$Y5:$AB5,0)),DQ7),"●"),"●")) ->  | DR7: =IF(ISERROR(MATCH(view!DR$3,data!$Y5:$AB5,0)),"",IFERROR(HYPERLINK(showDetails(INDEX(data!$S5:$V5,MATCH(view!DR$3,data!$Y5:$AB5,0)),DR7),"●"),"●")) ->  | DS7: =IF(ISERROR(MATCH(view!DS$3,data!$Y5:$AB5,0)),"",IFERROR(HYPERLINK(showDetails(INDEX(data!$S5:$V5,MATCH(view!DS$3,data!$Y5:$AB5,0)),DS7),"●"),"●")) ->  | DT7: =INDEX(lstYears,A7) &" - "&INDEX(data!$W$3:$W$30,A7) -> 2004 - Athens
A8: 4 | C8: =IF(ISERROR(MATCH(view!C$3,data!$Y6:$AB6,0)),"",IFERROR(HYPERLINK(showDetails(INDEX(data!$S6:$V6,MATCH(view!C$3,data!$Y6:$AB6,0)),C8),"●"),"●")) ->  | D8: =IF(ISERROR(MATCH(view!D$3,data!$Y6:$AB6,0)),"",IFERROR(HYPERLINK(showDetails(INDEX(data!$S6:$V6,MATCH(view!D$3,data!$Y6:$AB6,0)),D8),"●"),"●")) ->  | E8: =IF(ISERROR(MATCH(view!E$3,data!$Y6:$AB6,0)),"",IFERROR(HYPERLINK(showDetails(INDEX(data!$S6:$V6,MATCH(view!E$3,data!$Y6:$AB6,0)),E8),"●"),"●")) ->  | F8: =IF(ISERROR(MATCH(view!F$3,data!$Y6:$AB6,0)),"",IFERROR(HYPERLINK(showDetails(INDEX(data!$S6:$V6,MATCH(view!F$3,data!$Y6:$AB6,0)),F8),"●"),"●")) ->  | G8: =IF(ISERROR(MATCH(view!G$3,data!$Y6:$AB6,0)),"",IFERROR(HYPERLINK(showDetails(INDEX(data!$S6:$V6,MATCH(view!G$3,data!$Y6:$AB6,0)),G8),"●"),"●")) ->  | H8: =IF(ISERROR(MATCH(view!H$3,data!$Y6:$AB6,0)),"",IFERROR(HYPERLINK(showDetails(INDEX(data!$S6:$V6,MATCH(view!H$3,data!$Y6:$AB6,0)),H8),"●"),"●")) ->  | I8: =IF(ISERROR(MATCH(view!I$3,data!$Y6:$AB6,0)),"",IFERROR(HYPERLINK(showDetails(INDEX(data!$S6:$V6,MATCH(view!I$3,data!$Y6:$AB6,0)),I8),"●"),"●")) ->  | J8: =IF(ISERROR(MATCH(view!J$3,data!$Y6:$AB6,0)),"",IFERROR(HYPERLINK(showDetails(INDEX(data!$S6:$V6,MATCH(view!J$3,data!$Y6:$AB6,0)),J8),"●"),"●")) ->  | K8: =IF(ISERROR(MATCH(view!K$3,data!$Y6:$AB6,0)),"",IFERROR(HYPERLINK(showDetails(INDEX(data!$S6:$V6,MATCH(view!K$3,data!$Y6:$AB6,0)),K8),"●"),"●")) ->  | L8: =IF(ISERROR(MATCH(view!L$3,data!$Y6:$AB6,0)),"",IFERROR(HYPERLINK(showDetails(INDEX(data!$S6:$V6,MATCH(view!L$3,data!$Y6:$AB6,0)),L8),"●"),"●")) ->  | M8: =IF(ISERROR(MATCH(view!M$3,data!$Y6:$AB6,0)),"",IFERROR(HYPERLINK(showDetails(INDEX(data!$S6:$V6,MATCH(view!M$3,data!$Y6:$AB6,0)),M8),"●"),"●")) ->  | N8: =IF(ISERROR(MATCH(view!N$3,data!$Y6:$AB6,0)),"",IFERROR(HYPERLINK(showDetails(INDEX(data!$S6:$V6,MATCH(view!N$3,data!$Y6:$AB6,0)),N8),"●"),"●")) ->  | O8: =IF(ISERROR(MATCH(view!O$3,data!$Y6:$AB6,0)),"",IFERROR(HYPERLINK(showDetails(INDEX(data!$S6:$V6,MATCH(view!O$3,data!$Y6:$AB6,0)),O8),"●"),"●")) ->  | P8: =IF(ISERROR(MATCH(view!P$3,data!$Y6:$AB6,0)),"",IFERROR(HYPERLINK(showDetails(INDEX(data!$S6:$V6,MATCH(view!P$3,data!$Y6:$AB6,0)),P8),"●"),"●")) ->  | Q8: =IF(ISERROR(MATCH(view!Q$3,data!$Y6:$AB6,0)),"",IFERROR(HYPERLINK(showDetails(INDEX(data!$S6:$V6,MATCH(view!Q$3,data!$Y6:$AB6,0)),Q8),"●"),"●")) ->  | R8: =IF(ISERROR(MATCH(view!R$3,data!$Y6:$AB6,0)),"",IFERROR(HYPERLINK(showDetails(INDEX(data!$S6:$V6,MATCH(view!R$3,data!$Y6:$AB6,0)),R8),"●"),"●")) ->  | S8: =IF(ISERROR(MATCH(view!S$3,data!$Y6:$AB6,0)),"",IFERROR(HYPERLINK(showDetails(INDEX(data!$S6:$V6,MATCH(view!S$3,data!$Y6:$AB6,0)),S8),"●"),"●")) ->  | T8: =IF(ISERROR(MATCH(view!T$3,data!$Y6:$AB6,0)),"",IFERROR(HYPERLINK(showDetails(INDEX(data!$S6:$V6,MATCH(view!T$3,data!$Y6:$AB6,0)),T8),"●"),"●")) ->  | U8: =IF(ISERROR(MATCH(view!U$3,data!$Y6:$AB6,0)),"",IFERROR(HYPERLINK(showDetails(INDEX(data!$S6:$V6,MATCH(view!U$3,data!$Y6:$AB6,0)),U8),"●"),"●")) ->  | V8: =IF(ISERROR(MATCH(view!V$3,data!$Y6:$AB6,0)),"",IFERROR(HYPERLINK(showDetails(INDEX(data!$S6:$V6,MATCH(view!V$3,data!$Y6:$AB6,0)),V8),"●"),"●")) ->  | W8: =IF(ISERROR(MATCH(view!W$3,data!$Y6:$AB6,0)),"",IFERROR(HYPERLINK(showDetails(INDEX(data!$S6:$V6,MATCH(view!W$3,data!$Y6:$AB6,0)),W8),"●"),"●")) ->  | X8: =IF(ISERROR(MATCH(view!X$3,data!$Y6:$AB6,0)),"",IFERROR(HYPERLINK(showDetails(INDEX(data!$S6:$V6,MATCH(view!X$3,data!$Y6:$AB6,0)),X8),"●"),"●")) ->  | Y8: =IF(ISERROR(MATCH(view!Y$3,data!$Y6:$AB6,0)),"",IFERROR(HYPERLINK(showDetails(INDEX(data!$S6:$V6,MATCH(view!Y$3,data!$Y6:$AB6,0)),Y8),"●"),"●")) ->  | Z8: =IF(ISERROR(MATCH(view!Z$3,data!$Y6:$AB6,0)),"",IFERROR(HYPERLINK(showDetails(INDEX(data!$S6:$V6,MATCH(view!Z$3,data!$Y6:$AB6,0)),Z8),"●"),"●")) ->  | AA8: =IF(ISERROR(MATCH(view!AA$3,data!$Y6:$AB6,0)),"",IFERROR(HYPERLINK(showDetails(INDEX(data!$S6:$V6,MATCH(view!AA$3,data!$Y6:$AB6,0)),AA8),"●"),"●")) ->  | AB8: =IF(ISERROR(MATCH(view!AB$3,data!$Y6:$AB6,0)),"",IFERROR(HYPERLINK(showDetails(INDEX(data!$S6:$V6,MATCH(view!AB$3,data!$Y6:$AB6,0)),AB8),"●"),"●")) ->  | AC8: =IF(ISERROR(MATCH(view!AC$3,data!$Y6:$AB6,0)),"",IFERROR(HYPERLINK(showDetails(INDEX(data!$S6:$V6,MATCH(view!AC$3,data!$Y6:$AB6,0)),AC8),"●"),"●")) ->  | AD8: =IF(ISERROR(MATCH(view!AD$3,data!$Y6:$AB6,0)),"",IFERROR(HYPERLINK(showDetails(INDEX(data!$S6:$V6,MATCH(view!AD$3,data!$Y6:$AB6,0)),AD8),"●"),"●")) ->  | AE8: =IF(ISERROR(MATCH(view!AE$3,data!$Y6:$AB6,0)),"",IFERROR(HYPERLINK(showDetails(INDEX(data!$S6:$V6,MATCH(view!AE$3,data!$Y6:$AB6,0)),AE8),"●"),"●")) ->  | AF8: =IF(ISERROR(MATCH(view!AF$3,data!$Y6:$AB6,0)),"",IFERROR(HYPERLINK(showDetails(INDEX(data!$S6:$V6,MATCH(view!AF$3,data!$Y6:$AB6,0)),AF8),"●"),"●")) ->  | AG8: =IF(ISERROR(MATCH(view!AG$3,data!$Y6:$AB6,0)),"",IFERROR(HYPERLINK(showDetails(INDEX(data!$S6:$V6,MATCH(view!AG$3,data!$Y6:$AB6,0)),AG8),"●"),"●")) ->  | AH8: =IF(ISERROR(MATCH(view!AH$3,data!$Y6:$AB6,0)),"",IFERROR(HYPERLINK(showDetails(INDEX(data!$S6:$V6,MATCH(view!AH$3,data!$Y6:$AB6,0)),AH8),"●"),"●")) ->  | AI8: =IF(ISERROR(MATCH(view!AI$3,data!$Y6:$AB6,0)),"",IFERROR(HYPERLINK(showDetails(INDEX(data!$S6:$V6,MATCH(view!AI$3,data!$Y6:$AB6,0)),AI8),"●"),"●")) ->  | AJ8: =IF(ISERROR(MATCH(view!AJ$3,data!$Y6:$AB6,0)),"",IFERROR(HYPERLINK(showDetails(INDEX(data!$S6:$V6,MATCH(view!AJ$3,data!$Y6:$AB6,0)),AJ8),"●"),"●")) ->  | AK8: =IF(ISERROR(MATCH(view!AK$3,data!$Y6:$AB6,0)),"",IFERROR(HYPERLINK(showDetails(INDEX(data!$S6:$V6,MATCH(view!AK$3,data!$Y6:$AB6,0)),AK8),"●"),"●")) ->  | AL8: =IF(ISERROR(MATCH(view!AL$3,data!$Y6:$AB6,0)),"",IFERROR(HYPERLINK(showDetails(INDEX(data!$S6:$V6,MATCH(view!AL$3,data!$Y6:$AB6,0)),AL8),"●"),"●")) ->  | AM8: =IF(ISERROR(MATCH(view!AM$3,data!$Y6:$AB6,0)),"",IFERROR(HYPERLINK(showDetails(INDEX(data!$S6:$V6,MATCH(view!AM$3,data!$Y6:$AB6,0)),AM8),"●"),"●")) ->  | AN8: =IF(ISERROR(MATCH(view!AN$3,data!$Y6:$AB6,0)),"",IFERROR(HYPERLINK(showDetails(INDEX(data!$S6:$V6,MATCH(view!AN$3,data!$Y6:$AB6,0)),AN8),"●"),"●")) ->  | AO8: =IF(ISERROR(MATCH(view!AO$3,data!$Y6:$AB6,0)),"",IFERROR(HYPERLINK(showDetails(INDEX(data!$S6:$V6,MATCH(view!AO$3,data!$Y6:$AB6,0)),AO8),"●"),"●")) ->  | AP8: =IF(ISERROR(MATCH(view!AP$3,data!$Y6:$AB6,0)),"",IFERROR(HYPERLINK(showDetails(INDEX(data!$S6:$V6,MATCH(view!AP$3,data!$Y6:$AB6,0)),AP8),"●"),"●")) ->  | AQ8: =IF(ISERROR(MATCH(view!AQ$3,data!$Y6:$AB6,0)),"",IFERROR(HYPERLINK(showDetails(INDEX(data!$S6:$V6,MATCH(view!AQ$3,data!$Y6:$AB6,0)),AQ8),"●"),"●")) ->  | AR8: =IF(ISERROR(MATCH(view!AR$3,data!$Y6:$AB6,0)),"",IFERROR(HYPERLINK(showDetails(INDEX(data!$S6:$V6,MATCH(view!AR$3,data!$Y6:$AB6,0)),AR8),"●"),"●")) ->  | AS8: =IF(ISERROR(MATCH(view!AS$3,data!$Y6:$AB6,0)),"",IFERROR(HYPERLINK(showDetails(INDEX(data!$S6:$V6,MATCH(view!AS$3,data!$Y6:$AB6,0)),AS8),"●"),"●")) ->  | AT8: =IF(ISERROR(MATCH(view!AT$3,data!$Y6:$AB6,0)),"",IFERROR(HYPERLINK(showDetails(INDEX(data!$S6:$V6,MATCH(view!AT$3,data!$Y6:$AB6,0)),AT8),"●"),"●")) ->  | AU8: =IF(ISERROR(MATCH(view!AU$3,data!$Y6:$AB6,0)),"",IFERROR(HYPERLINK(showDetails(INDEX(data!$S6:$V6,MATCH(view!AU$3,data!$Y6:$AB6,0)),AU8),"●"),"●")) ->  | AV8: =IF(ISERROR(MATCH(view!AV$3,data!$Y6:$AB6,0)),"",IFERROR(HYPERLINK(showDetails(INDEX(data!$S6:$V6,MATCH(view!AV$3,data!$Y6:$AB6,0)),AV8),"●"),"●")) ->  | AW8: =IF(ISERROR(MATCH(view!AW$3,data!$Y6:$AB6,0)),"",IFERROR(HYPERLINK(showDetails(INDEX(data!$S6:$V6,MATCH(view!AW$3,data!$Y6:$AB6,0)),AW8),"●"),"●")) ->  | AX8: =IF(ISERROR(MATCH(view!AX$3,data!$Y6:$AB6,0)),"",IFERROR(HYPERLINK(showDetails(INDEX(data!$S6:$V6,MATCH(view!AX$3,data!$Y6:$AB6,0)),AX8),"●"),"●")) ->  | AY8: =IF(ISERROR(MATCH(view!AY$3,data!$Y6:$AB6,0)),"",IFERROR(HYPERLINK(showDetails(INDEX(data!$S6:$V6,MATCH(view!AY$3,data!$Y6:$AB6,0)),AY8),"●"),"●")) ->  | AZ8: =IF(ISERROR(MATCH(view!AZ$3,data!$Y6:$AB6,0)),"",IFERROR(HYPERLINK(showDetails(INDEX(data!$S6:$V6,MATCH(view!AZ$3,data!$Y6:$AB6,0)),AZ8),"●"),"●")) ->  | BA8: =IF(ISERROR(MATCH(view!BA$3,data!$Y6:$AB6,0)),"",IFERROR(HYPERLINK(showDetails(INDEX(data!$S6:$V6,MATCH(view!BA$3,data!$Y6:$AB6,0)),BA8),"●"),"●")) ->  | BB8: =IF(ISERROR(MATCH(view!BB$3,data!$Y6:$AB6,0)),"",IFERROR(HYPERLINK(showDetails(INDEX(data!$S6:$V6,MATCH(view!BB$3,data!$Y6:$AB6,0)),BB8),"●"),"●")) ->  | BC8: =IF(ISERROR(MATCH(view!BC$3,data!$Y6:$AB6,0)),"",IFERROR(HYPERLINK(showDetails(INDEX(data!$S6:$V6,MATCH(view!BC$3,data!$Y6:$AB6,0)),BC8),"●"),"●")) ->  | BD8: =IF(ISERROR(MATCH(view!BD$3,data!$Y6:$AB6,0)),"",IFERROR(HYPERLINK(showDetails(INDEX(data!$S6:$V6,MATCH(view!BD$3,data!$Y6:$AB6,0)),BD8),"●"),"●")) ->  | BE8: =IF(ISERROR(MATCH(view!BE$3,data!$Y6:$AB6,0)),"",IFERROR(HYPERLINK(showDetails(INDEX(data!$S6:$V6,MATCH(view!BE$3,data!$Y6:$AB6,0)),BE8),"●"),"●")) ->  | BF8: =IF(ISERROR(MATCH(view!BF$3,data!$Y6:$AB6,0)),"",IFERROR(HYPERLINK(showDetails(INDEX(data!$S6:$V6,MATCH(view!BF$3,data!$Y6:$AB6,0)),BF8),"●"),"●")) ->  | BG8: =IF(ISERROR(MATCH(view!BG$3,data!$Y6:$AB6,0)),"",IFERROR(HYPERLINK(showDetails(INDEX(data!$S6:$V6,MATCH(view!BG$3,data!$Y6:$AB6,0)),BG8),"●"),"●")) ->  | BH8: =IF(ISERROR(MATCH(view!BH$3,data!$Y6:$AB6,0)),"",IFERROR(HYPERLINK(showDetails(INDEX(data!$S6:$V6,MATCH(view!BH$3,data!$Y6:$AB6,0)),BH8),"●"),"●")) ->  | BI8: =IF(ISERROR(MATCH(view!BI$3,data!$Y6:$AB6,0)),"",IFERROR(HYPERLINK(showDetails(INDEX(data!$S6:$V6,MATCH(view!BI$3,data!$Y6:$AB6,0)),BI8),"●"),"●")) ->  | BJ8: =IF(ISERROR(MATCH(view!BJ$3,data!$Y6:$AB6,0)),"",IFERROR(HYPERLINK(showDetails(INDEX(data!$S6:$V6,MATCH(view!BJ$3,data!$Y6:$AB6,0)),BJ8),"●"),"●")) ->  | BK8: =IF(ISERROR(MATCH(view!BK$3,data!$Y6:$AB6,0)),"",IFERROR(HYPERLINK(showDetails(INDEX(data!$S6:$V6,MATCH(view!BK$3,data!$Y6:$AB6,0)),BK8),"●"),"●")) ->  | BL8: =IF(ISERROR(MATCH(view!BL$3,data!$Y6:$AB6,0)),"",IFERROR(HYPERLINK(showDetails(INDEX(data!$S6:$V6,MATCH(view!BL$3,data!$Y6:$AB6,0)),BL8),"●"),"●")) ->  | BM8: =IF(ISERROR(MATCH(view!BM$3,data!$Y6:$AB6,0)),"",IFERROR(HYPERLINK(showDetails(INDEX(data!$S6:$V6,MATCH(view!BM$3,data!$Y6:$AB6,0)),BM8),"●"),"●")) ->  | BN8: =IF(ISERROR(MATCH(view!BN$3,data!$Y6:$AB6,0)),"",IFERROR(HYPERLINK(showDetails(INDEX(data!$S6:$V6,MATCH(view!BN$3,data!$Y6:$AB6,0)),BN8),"●"),"●")) ->  | BO8: =IF(ISERROR(MATCH(view!BO$3,data!$Y6:$AB6,0)),"",IFERROR(HYPERLINK(showDetails(INDEX(data!$S6:$V6,MATCH(view!BO$3,data!$Y6:$AB6,0)),BO8),"●"),"●")) ->  | BP8: =IF(ISERROR(MATCH(view!BP$3,data!$Y6:$AB6,0)),"",IFERROR(HYPERLINK(showDetails(INDEX(data!$S6:$V6,MATCH(view!BP$3,data!$Y6:$AB6,0)),BP8),"●"),"●")) ->  | BQ8: =IF(ISERROR(MATCH(view!BQ$3,data!$Y6:$AB6,0)),"",IFERROR(HYPERLINK(showDetails(INDEX(data!$S6:$V6,MATCH(view!BQ$3,data!$Y6:$AB6,0)),BQ8),"●"),"●")) ->  | BR8: =IF(ISERROR(MATCH(view!BR$3,data!$Y6:$AB6,0)),"",IFERROR(HYPERLINK(showDetails(INDEX(data!$S6:$V6,MATCH(view!BR$3,data!$Y6:$AB6,0)),BR8),"●"),"●")) ->  | BS8: =IF(ISERROR(MATCH(view!BS$3,data!$Y6:$AB6,0)),"",IFERROR(HYPERLINK(showDetails(INDEX(data!$S6:$V6,MATCH(view!BS$3,data!$Y6:$AB6,0)),BS8),"●"),"●")) ->  | BT8: =IF(ISERROR(MATCH(view!BT$3,data!$Y6:$AB6,0)),"",IFERROR(HYPERLINK(showDetails(INDEX(data!$S6:$V6,MATCH(view!BT$3,data!$Y6:$AB6,0)),BT8),"●"),"●")) ->  | BU8: =IF(ISERROR(MATCH(view!BU$3,data!$Y6:$AB6,0)),"",IFERROR(HYPERLINK(showDetails(INDEX(data!$S6:$V6,MATCH(view!BU$3,data!$Y6:$AB6,0)),BU8),"●"),"●")) ->  | BV8: =IF(ISERROR(MATCH(view!BV$3,data!$Y6:$AB6,0)),"",IFERROR(HYPERLINK(showDetails(INDEX(data!$S6:$V6,MATCH(view!BV$3,data!$Y6:$AB6,0)),BV8),"●"),"●")) ->  | BW8: =IF(ISERROR(MATCH(view!BW$3,data!$Y6:$AB6,0)),"",IFERROR(HYPERLINK(showDetails(INDEX(data!$S6:$V6,MATCH(view!BW$3,data!$Y6:$AB6,0)),BW8),"●"),"●")) ->  | BX8: =IF(ISERROR(MATCH(view!BX$3,data!$Y6:$AB6,0)),"",IFERROR(HYPERLINK(showDetails(INDEX(data!$S6:$V6,MATCH(view!BX$3,data!$Y6:$AB6,0)),BX8),"●"),"●")) ->  | BY8: =IF(ISERROR(MATCH(view!BY$3,data!$Y6:$AB6,0)),"",IFERROR(HYPERLINK(showDetails(INDEX(data!$S6:$V6,MATCH(view!BY$3,data!$Y6:$AB6,0)),BY8),"●"),"●")) ->  | BZ8: =IF(ISERROR(MATCH(view!BZ$3,data!$Y6:$AB6,0)),"",IFERROR(HYPERLINK(showDetails(INDEX(data!$S6:$V6,MATCH(view!BZ$3,data!$Y6:$AB6,0)),BZ8),"●"),"●")) ->  | CA8: =IF(ISERROR(MATCH(view!CA$3,data!$Y6:$AB6,0)),"",IFERROR(HYPERLINK(showDetails(INDEX(data!$S6:$V6,MATCH(view!CA$3,data!$Y6:$AB6,0)),CA8),"●"),"●")) ->  | CB8: =IF(ISERROR(MATCH(view!CB$3,data!$Y6:$AB6,0)),"",IFERROR(HYPERLINK(showDetails(INDEX(data!$S6:$V6,MATCH(view!CB$3,data!$Y6:$AB6,0)),CB8),"●"),"●")) ->  | CC8: =IF(ISERROR(MATCH(view!CC$3,data!$Y6:$AB6,0)),"",IFERROR(HYPERLINK(showDetails(INDEX(data!$S6:$V6,MATCH(view!CC$3,data!$Y6:$AB6,0)),CC8),"●"),"●")) ->  | CD8: =IF(ISERROR(MATCH(view!CD$3,data!$Y6:$AB6,0)),"",IFERROR(HYPERLINK(showDetails(INDEX(data!$S6:$V6,MATCH(view!CD$3,data!$Y6:$AB6,0)),CD8),"●"),"●")) ->  | CE8: =IF(ISERROR(MATCH(view!CE$3,data!$Y6:$AB6,0)),"",IFERROR(HYPERLINK(showDetails(INDEX(data!$S6:$V6,MATCH(view!CE$3,data!$Y6:$AB6,0)),CE8),"●"),"●")) ->  | CF8: =IF(ISERROR(MATCH(view!CF$3,data!$Y6:$AB6,0)),"",IFERROR(HYPERLINK(showDetails(INDEX(data!$S6:$V6,MATCH(view!CF$3,data!$Y6:$AB6,0)),CF8),"●"),"●")) ->  | CG8: =IF(ISERROR(MATCH(view!CG$3,data!$Y6:$AB6,0)),"",IFERROR(HYPERLINK(showDetails(INDEX(data!$S6:$V6,MATCH(view!CG$3,data!$Y6:$AB6,0)),CG8),"●"),"●")) ->  | CH8: =IF(ISERROR(MATCH(view!CH$3,data!$Y6:$AB6,0)),"",IFERROR(HYPERLINK(showDetails(INDEX(data!$S6:$V6,MATCH(view!CH$3,data!$Y6:$AB6,0)),CH8),"●"),"●")) ->  | CI8: =IF(ISERROR(MATCH(view!CI$3,data!$Y6:$AB6,0)),"",IFERROR(HYPERLINK(showDetails(INDEX(data!$S6:$V6,MATCH(view!CI$3,data!$Y6:$AB6,0)),CI8),"●"),"●")) ->  | CJ8: =IF(ISERROR(MATCH(view!CJ$3,data!$Y6:$AB6,0)),"",IFERROR(HYPERLINK(showDetails(INDEX(data!$S6:$V6,MATCH(view!CJ$3,data!$Y6:$AB6,0)),CJ8),"●"),"●")) ->  | CK8: =IF(ISERROR(MATCH(view!CK$3,data!$Y6:$AB6,0)),"",IFERROR(HYPERLINK(showDetails(INDEX(data!$S6:$V6,MATCH(view!CK$3,data!$Y6:$AB6,0)),CK8),"●"),"●")) ->  | CL8: =IF(ISERROR(MATCH(view!CL$3,data!$Y6:$AB6,0)),"",IFERROR(HYPERLINK(showDetails(INDEX(data!$S6:$V6,MATCH(view!CL$3,data!$Y6:$AB6,0)),CL8),"●"),"●")) ->  | CM8: =IF(ISERROR(MATCH(view!CM$3,data!$Y6:$AB6,0)),"",IFERROR(HYPERLINK(showDetails(INDEX(data!$S6:$V6,MATCH(view!CM$3,data!$Y6:$AB6,0)),CM8),"●"),"●")) ->  | CN8: =IF(ISERROR(MATCH(view!CN$3,data!$Y6:$AB6,0)),"",IFERROR(HYPERLINK(showDetails(INDEX(data!$S6:$V6,MATCH(view!CN$3,data!$Y6:$AB6,0)),CN8),"●"),"●")) ->  | CO8: =IF(ISERROR(MATCH(view!CO$3,data!$Y6:$AB6,0)),"",IFERROR(HYPERLINK(showDetails(INDEX(data!$S6:$V6,MATCH(view!CO$3,data!$Y6:$AB6,0)),CO8),"●"),"●")) ->  | CP8: =IF(ISERROR(MATCH(view!CP$3,data!$Y6:$AB6,0)),"",IFERROR(HYPERLINK(showDetails(INDEX(data!$S6:$V6,MATCH(view!CP$3,data!$Y6:$AB6,0)),CP8),"●"),"●")) ->  | CQ8: =IF(ISERROR(MATCH(view!CQ$3,data!$Y6:$AB6,0)),"",IFERROR(HYPERLINK(showDetails(INDEX(data!$S6:$V6,MATCH(view!CQ$3,data!$Y6:$AB6,0)),CQ8),"●"),"●")) ->  | CR8: =IF(ISERROR(MATCH(view!CR$3,data!$Y6:$AB6,0)),"",IFERROR(HYPERLINK(showDetails(INDEX(data!$S6:$V6,MATCH(view!CR$3,data!$Y6:$AB6,0)),CR8),"●"),"●")) ->  | CS8: =IF(ISERROR(MATCH(view!CS$3,data!$Y6:$AB6,0)),"",IFERROR(HYPERLINK(showDetails(INDEX(data!$S6:$V6,MATCH(view!CS$3,data!$Y6:$AB6,0)),CS8),"●"),"●")) ->  | CT8: =IF(ISERROR(MATCH(view!CT$3,data!$Y6:$AB6,0)),"",IFERROR(HYPERLINK(showDetails(INDEX(data!$S6:$V6,MATCH(view!CT$3,data!$Y6:$AB6,0)),CT8),"●"),"●")) ->  | CU8: =IF(ISERROR(MATCH(view!CU$3,data!$Y6:$AB6,0)),"",IFERROR(HYPERLINK(showDetails(INDEX(data!$S6:$V6,MATCH(view!CU$3,data!$Y6:$AB6,0)),CU8),"●"),"●")) ->  | CV8: =IF(ISERROR(MATCH(view!CV$3,data!$Y6:$AB6,0)),"",IFERROR(HYPERLINK(showDetails(INDEX(data!$S6:$V6,MATCH(view!CV$3,data!$Y6:$AB6,0)),CV8),"●"),"●")) ->  | CW8: =IF(ISERROR(MATCH(view!CW$3,data!$Y6:$AB6,0)),"",IFERROR(HYPERLINK(showDetails(INDEX(data!$S6:$V6,MATCH(view!CW$3,data!$Y6:$AB6,0)),CW8),"●"),"●")) ->  | CX8: =IF(ISERROR(MATCH(view!CX$3,data!$Y6:$AB6,0)),"",IFERROR(HYPERLINK(showDetails(INDEX(data!$S6:$V6,MATCH(view!CX$3,data!$Y6:$AB6,0)),CX8),"●"),"●")) -> ● | CY8: =IF(ISERROR(MATCH(view!CY$3,data!$Y6:$AB6,0)),"",IFERROR(HYPERLINK(showDetails(INDEX(data!$S6:$V6,MATCH(view!CY$3,data!$Y6:$AB6,0)),CY8),"●"),"●")) ->  | CZ8: =IF(ISERROR(MATCH(view!CZ$3,data!$Y6:$AB6,0)),"",IFERROR(HYPERLINK(showDetails(INDEX(data!$S6:$V6,MATCH(view!CZ$3,data!$Y6:$AB6,0)),CZ8),"●"),"●")) ->  | DA8: =IF(ISERROR(MATCH(view!DA$3,data!$Y6:$AB6,0)),"",IFERROR(HYPERLINK(showDetails(INDEX(data!$S6:$V6,MATCH(view!DA$3,data!$Y6:$AB6,0)),DA8),"●"),"●")) -> ● | DB8: =IF(ISERROR(MATCH(view!DB$3,data!$Y6:$AB6,0)),"",IFERROR(HYPERLINK(showDetails(INDEX(data!$S6:$V6,MATCH(view!DB$3,data!$Y6:$AB6,0)),DB8),"●"),"●")) ->  | DC8: =IF(ISERROR(MATCH(view!DC$3,data!$Y6:$AB6,0)),"",IFERROR(HYPERLINK(showDetails(INDEX(data!$S6:$V6,MATCH(view!DC$3,data!$Y6:$AB6,0)),DC8),"●"),"●")) ->  | DD8: =IF(ISERROR(MATCH(view!DD$3,data!$Y6:$AB6,0)),"",IFERROR(HYPERLINK(showDetails(INDEX(data!$S6:$V6,MATCH(view!DD$3,data!$Y6:$AB6,0)),DD8),"●"),"●")) ->  | DE8: =IF(ISERROR(MATCH(view!DE$3,data!$Y6:$AB6,0)),"",IFERROR(HYPERLINK(showDetails(INDEX(data!$S6:$V6,MATCH(view!DE$3,data!$Y6:$AB6,0)),DE8),"●"),"●")) ->  | DF8: =IF(ISERROR(MATCH(view!DF$3,data!$Y6:$AB6,0)),"",IFERROR(HYPERLINK(showDetails(INDEX(data!$S6:$V6,MATCH(view!DF$3,data!$Y6:$AB6,0)),DF8),"●"),"●")) ->  | DG8: =IF(ISERROR(MATCH(view!DG$3,data!$Y6:$AB6,0)),"",IFERROR(HYPERLINK(showDetails(INDEX(data!$S6:$V6,MATCH(view!DG$3,data!$Y6:$AB6,0)),DG8),"●"),"●")) -> ● | DH8: =IF(ISERROR(MATCH(view!DH$3,data!$Y6:$AB6,0)),"",IFERROR(HYPERLINK(showDetails(INDEX(data!$S6:$V6,MATCH(view!DH$3,data!$Y6:$AB6,0)),DH8),"●"),"●")) ->  | DI8: =IF(ISERROR(MATCH(view!DI$3,data!$Y6:$AB6,0)),"",IFERROR(HYPERLINK(showDetails(INDEX(data!$S6:$V6,MATCH(view!DI$3,data!$Y6:$AB6,0)),DI8),"●"),"●")) ->  | DJ8: =IF(ISERROR(MATCH(view!DJ$3,data!$Y6:$AB6,0)),"",IFERROR(HYPERLINK(showDetails(INDEX(data!$S6:$V6,MATCH(view!DJ$3,data!$Y6:$AB6,0)),DJ8),"●"),"●")) ->  | DK8: =IF(ISERROR(MATCH(view!DK$3,data!$Y6:$AB6,0)),"",IFERROR(HYPERLINK(showDetails(INDEX(data!$S6:$V6,MATCH(view!DK$3,data!$Y6:$AB6,0)),DK8),"●"),"●")) ->  | DL8: =IF(ISERROR(MATCH(view!DL$3,data!$Y6:$AB6,0)),"",IFERROR(HYPERLINK(showDetails(INDEX(data!$S6:$V6,MATCH(view!DL$3,data!$Y6:$AB6,0)),DL8),"●"),"●")) ->  | DM8: =IF(ISERROR(MATCH(view!DM$3,data!$Y6:$AB6,0)),"",IFERROR(HYPERLINK(showDetails(INDEX(data!$S6:$V6,MATCH(view!DM$3,data!$Y6:$AB6,0)),DM8),"●"),"●")) ->  | DN8: =IF(ISERROR(MATCH(view!DN$3,data!$Y6:$AB6,0)),"",IFERROR(HYPERLINK(showDetails(INDEX(data!$S6:$V6,MATCH(view!DN$3,data!$Y6:$AB6,0)),DN8),"●"),"●")) ->  | DO8: =IF(ISERROR(MATCH(view!DO$3,data!$Y6:$AB6,0)),"",IFERROR(HYPERLINK(showDetails(INDEX(data!$S6:$V6,MATCH(view!DO$3,data!$Y6:$AB6,0)),DO8),"●"),"●")) ->  | DP8: =IF(ISERROR(MATCH(view!DP$3,data!$Y6:$AB6,0)),"",IFERROR(HYPERLINK(showDetails(INDEX(data!$S6:$V6,MATCH(view!DP$3,data!$Y6:$AB6,0)),DP8),"●"),"●")) ->  | DQ8: =IF(ISERROR(MATCH(view!DQ$3,data!$Y6:$AB6,0)),"",IFERROR(HYPERLINK(showDetails(INDEX(data!$S6:$V6,MATCH(view!DQ$3,data!$Y6:$AB6,0)),DQ8),"●"),"●")) ->  | DR8: =IF(ISERROR(MATCH(view!DR$3,data!$Y6:$AB6,0)),"",IFERROR(HYPERLINK(showDetails(INDEX(data!$S6:$V6,MATCH(view!DR$3,data!$Y6:$AB6,0)),DR8),"●"),"●")) ->  | DS8: =IF(ISERROR(MATCH(view!DS$3,data!$Y6:$AB6,0)),"",IFERROR(HYPERLINK(showDetails(INDEX(data!$S6:$V6,MATCH(view!DS$3,data!$Y6:$AB6,0)),DS8),"●"),"●")) ->  | DT8: =INDEX(lstYears,A8) &" - "&INDEX(data!$W$3:$W$30,A8) -> 2000 - Sydney
A9: 5 | C9: =IF(ISERROR(MATCH(view!C$3,data!$Y7:$AB7,0)),"",IFERROR(HYPERLINK(showDetails(INDEX(data!$S7:$V7,MATCH(view!C$3,data!$Y7:$AB7,0)),C9),"●"),"●")) ->  | D9: =IF(ISERROR(MATCH(view!D$3,data!$Y7:$AB7,0)),"",IFERROR(HYPERLINK(showDetails(INDEX(data!$S7:$V7,MATCH(view!D$3,data!$Y7:$AB7,0)),D9),"●"),"●")) ->  | E9: =IF(ISERROR(MATCH(view!E$3,data!$Y7:$AB7,0)),"",IFERROR(HYPERLINK(showDetails(INDEX(data!$S7:$V7,MATCH(view!E$3,data!$Y7:$AB7,0)),E9),"●"),"●")) ->  | F9: =IF(ISERROR(MATCH(view!F$3,data!$Y7:$AB7,0)),"",IFERROR(HYPERLINK(showDetails(INDEX(data!$S7:$V7,MATCH(view!F$3,data!$Y7:$AB7,0)),F9),"●"),"●")) ->  | G9: =IF(ISERROR(MATCH(view!G$3,data!$Y7:$AB7,0)),"",IFERROR(HYPERLINK(showDetails(INDEX(data!$S7:$V7,MATCH(view!G$3,data!$Y7:$AB7,0)),G9),"●"),"●")) ->  | H9: =IF(ISERROR(MATCH(view!H$3,data!$Y7:$AB7,0)),"",IFERROR(HYPERLINK(showDetails(INDEX(data!$S7:$V7,MATCH(view!H$3,data!$Y7:$AB7,0)),H9),"●"),"●")) ->  | I9: =IF(ISERROR(MATCH(view!I$3,data!$Y7:$AB7,0)),"",IFERROR(HYPERLINK(showDetails(INDEX(data!$S7:$V7,MATCH(view!I$3,data!$Y7:$AB7,0)),I9),"●"),"●")) ->  | J9: =IF(ISERROR(MATCH(view!J$3,data!$Y7:$AB7,0)),"",IFERROR(HYPERLINK(showDetails(INDEX(data!$S7:$V7,MATCH(view!J$3,data!$Y7:$AB7,0)),J9),"●"),"●")) ->  | K9: =IF(ISERROR(MATCH(view!K$3,data!$Y7:$AB7,0)),"",IFERROR(HYPERLINK(showDetails(INDEX(data!$S7:$V7,MATCH(view!K$3,data!$Y7:$AB7,0)),K9),"●"),"●")) ->  | L9: =IF(ISERROR(MATCH(view!L$3,data!$Y7:$AB7,0)),"",IFERROR(HYPERLINK(showDetails(INDEX(data!$S7:$V7,MATCH(view!L$3,data!$Y7:$AB7,0)),L9),"●"),"●")) ->  | M9: =IF(ISERROR(MATCH(view!M$3,data!$Y7:$AB7,0)),"",IFERROR(HYPERLINK(showDetails(INDEX(data!$S7:$V7,MATCH(view!M$3,data!$Y7:$AB7,0)),M9),"●"),"●")) ->  | N9: =IF(ISERROR(MATCH(view!N$3,data!$Y7:$AB7,0)),"",IFERROR(HYPERLINK(showDetails(INDEX(data!$S7:$V7,MATCH(view!N$3,data!$Y7:$AB7,0)),N9),"●"),"●")) ->  | O9: =IF(ISERROR(MATCH(view!O$3,data!$Y7:$AB7,0)),"",IFERROR(HYPERLINK(showDetails(INDEX(data!$S7:$V7,MATCH(view!O$3,data!$Y7:$AB7,0)),O9),"●"),"●")) ->  | P9: =IF(ISERROR(MATCH(view!P$3,data!$Y7:$AB7,0)),"",IFERROR(HYPERLINK(showDetails(INDEX(data!$S7:$V7,MATCH(view!P$3,data!$Y7:$AB7,0)),P9),"●"),"●")) ->  | Q9: =IF(ISERROR(MATCH(view!Q$3,data!$Y7:$AB7,0)),"",IFERROR(HYPERLINK(showDetails(INDEX(data!$S7:$V7,MATCH(view!Q$3,data!$Y7:$AB7,0)),Q9),"●"),"●")) ->  | R9: =IF(ISERROR(MATCH(view!R$3,data!$Y7:$AB7,0)),"",IFERROR(HYPERLINK(showDetails(INDEX(data!$S7:$V7,MATCH(view!R$3,data!$Y7:$AB7,0)),R9),"●"),"●")) ->  | S9: =IF(ISERROR(MATCH(view!S$3,data!$Y7:$AB7,0)),"",IFERROR(HYPERLINK(showDetails(INDEX(data!$S7:$V7,MATCH(view!S$3,data!$Y7:$AB7,0)),S9),"●"),"●")) ->  | T9: =IF(ISERROR(MATCH(view!T$3,data!$Y7:$AB7,0)),"",IFERROR(HYPERLINK(showDetails(INDEX(data!$S7:$V7,MATCH(view!T$3,data!$Y7:$AB7,0)),T9),"●"),"●")) ->  | U9: =IF(ISERROR(MATCH(view!U$3,data!$Y7:$AB7,0)),"",IFERROR(HYPERLINK(showDetails(INDEX(data!$S7:$V7,MATCH(view!U$3,data!$Y7:$AB7,0)),U9),"●"),"●")) ->  | V9: =IF(ISERROR(MATCH(view!V$3,data!$Y7:$AB7,0)),"",IFERROR(HYPERLINK(showDetails(INDEX(data!$S7:$V7,MATCH(view!V$3,data!$Y7:$AB7,0)),V9),"●"),"●")) ->  | W9: =IF(ISERROR(MATCH(view!W$3,data!$Y7:$AB7,0)),"",IFERROR(HYPERLINK(showDetails(INDEX(data!$S7:$V7,MATCH(view!W$3,data!$Y7:$AB7,0)),W9),"●"),"●")) ->  | X9: =IF(ISERROR(MATCH(view!X$3,data!$Y7:$AB7,0)),"",IFERROR(HYPERLINK(showDetails(INDEX(data!$S7:$V7,MATCH(view!X$3,data!$Y7:$AB7,0)),X9),"●"),"●")) ->  | Y9: =IF(ISERROR(MATCH(view!Y$3,data!$Y7:$AB7,0)),"",IFERROR(HYPERLINK(showDetails(INDEX(data!$S7:$V7,MATCH(view!Y$3,data!$Y7:$AB7,0)),Y9),"●"),"●")) ->  | Z9: =IF(ISERROR(MATCH(view!Z$3,data!$Y7:$AB7,0)),"",IFERROR(HYPERLINK(showDetails(INDEX(data!$S7:$V7,MATCH(view!Z$3,data!$Y7:$AB7,0)),Z9),"●"),"●")) ->  | AA9: =IF(ISERROR(MATCH(view!AA$3,data!$Y7:$AB7,0)),"",IFERROR(HYPERLINK(showDetails(INDEX(data!$S7:$V7,MATCH(view!AA$3,data!$Y7:$AB7,0)),AA9),"●"),"●")) ->  | AB9: =IF(ISERROR(MATCH(view!AB$3,data!$Y7:$AB7,0)),"",IFERROR(HYPERLINK(showDetails(INDEX(data!$S7:$V7,MATCH(view!AB$3,data!$Y7:$AB7,0)),AB9),"●"),"●")) ->  | AC9: =IF(ISERROR(MATCH(view!AC$3,data!$Y7:$AB7,0)),"",IFERROR(HYPERLINK(showDetails(INDEX(data!$S7:$V7,MATCH(view!AC$3,data!$Y7:$AB7,0)),AC9),"●"),"●")) ->  | AD9: =IF(ISERROR(MATCH(view!AD$3,data!$Y7:$AB7,0)),"",IFERROR(HYPERLINK(showDetails(INDEX(data!$S7:$V7,MATCH(view!AD$3,data!$Y7:$AB7,0)),AD9),"●"),"●")) ->  | AE9: =IF(ISERROR(MATCH(view!AE$3,data!$Y7:$AB7,0)),"",IFERROR(HYPERLINK(showDetails(INDEX(data!$S7:$V7,MATCH(view!AE$3,data!$Y7:$AB7,0)),AE9),"●"),"●")) ->  | AF9: =IF(ISERROR(MATCH(view!AF$3,data!$Y7:$AB7,0)),"",IFERROR(HYPERLINK(showDetails(INDEX(data!$S7:$V7,MATCH(view!AF$3,data!$Y7:$AB7,0)),AF9),"●"),"●")) ->  | AG9: =IF(ISERROR(MATCH(view!AG$3,data!$Y7:$AB7,0)),"",IFERROR(HYPERLINK(showDetails(INDEX(data!$S7:$V7,MATCH(view!AG$3,data!$Y7:$AB7,0)),AG9),"●"),"●")) ->  | AH9: =IF(ISERROR(MATCH(view!AH$3,data!$Y7:$AB7,0)),"",IFERROR(HYPERLINK(showDetails(INDEX(data!$S7:$V7,MATCH(view!AH$3,data!$Y7:$AB7,0)),AH9),"●"),"●")) ->  | AI9: =IF(ISERROR(MATCH(view!AI$3,data!$Y7:$AB7,0)),"",IFERROR(HYPERLINK(showDetails(INDEX(data!$S7:$V7,MATCH(view!AI$3,data!$Y7:$AB7,0)),AI9),"●"),"●")) ->  | AJ9: =IF(ISERROR(MATCH(view!AJ$3,data!$Y7:$AB7,0)),"",IFERROR(HYPERLINK(showDetails(INDEX(data!$S7:$V7,MATCH(view!AJ$3,data!$Y7:$AB7,0)),AJ9),"●"),"●")) ->  | AK9: =IF(ISERROR(MATCH(view!AK$3,data!$Y7:$AB7,0)),"",IFERROR(HYPERLINK(showDetails(INDEX(data!$S7:$V7,MATCH(view!AK$3,data!$Y7:$AB7,0)),AK9),"●"),"●")) ->  | AL9: =IF(ISERROR(MATCH(view!AL$3,data!$Y7:$AB7,0)),"",IFERROR(HYPERLINK(showDetails(INDEX(data!$S7:$V7,MATCH(view!AL$3,data!$Y7:$AB7,0)),AL9),"●"),"●")) ->  | AM9: =IF(ISERROR(MATCH(view!AM$3,data!$Y7:$AB7,0)),"",IFERROR(HYPERLINK(showDetails(INDEX(data!$S7:$V7,MATCH(view!AM$3,data!$Y7:$AB7,0)),AM9),"●"),"●")) ->  | AN9: =IF(ISERROR(MATCH(view!AN$3,data!$Y7:$AB7,0)),"",IFERROR(HYPERLINK(showDetails(INDEX(data!$S7:$V7,MATCH(view!AN$3,data!$Y7:$AB7,0)),AN9),"●"),"●")) ->  | AO9: =IF(ISERROR(MATCH(view!AO$3,data!$Y7:$AB7,0)),"",IFERROR(HYPERLINK(showDetails(INDEX(data!$S7:$V7,MATCH(view!AO$3,data!$Y7:$AB7,0)),AO9),"●"),"●")) ->  | AP9: =IF(ISERROR(MATCH(view!AP$3,data!$Y7:$AB7,0)),"",IFERROR(HYPERLINK(showDetails(INDEX(data!$S7:$V7,MATCH(view!AP$3,data!$Y7:$AB7,0)),AP9),"●"),"●")) ->  | AQ9: =IF(ISERROR(MATCH(view!AQ$3,data!$Y7:$AB7,0)),"",IFERROR(HYPERLINK(showDetails(INDEX(data!$S7:$V7,MATCH(view!AQ$3,data!$Y7:$AB7,0)),AQ9),"●"),"●")) ->  | AR9: =IF(ISERROR(MATCH(view!AR$3,data!$Y7:$AB7,0)),"",IFERROR(HYPERLINK(showDetails(INDEX(data!$S7:$V7,MATCH(view!AR$3,data!$Y7:$AB7,0)),AR9),"●"),"●")) ->  | AS9: =IF(ISERROR(MATCH(view!AS$3,data!$Y7:$AB7,0)),"",IFERROR(HYPERLINK(showDetails(INDEX(data!$S7:$V7,MATCH(view!AS$3,data!$Y7:$AB7,0)),AS9),"●"),"●")) ->  | AT9: =IF(ISERROR(MATCH(view!AT$3,data!$Y7:$AB7,0)),"",IFERROR(HYPERLINK(showDetails(INDEX(data!$S7:$V7,MATCH(view!AT$3,data!$Y7:$AB7,0)),AT9),"●"),"●")) ->  | AU9: =IF(ISERROR(MATCH(view!AU$3,data!$Y7:$AB7,0)),"",IFERROR(HYPERLINK(showDetails(INDEX(data!$S7:$V7,MATCH(view!AU$3,data!$Y7:$AB7,0)),AU9),"●"),"●")) ->  | AV9: =IF(ISERROR(MATCH(view!AV$3,data!$Y7:$AB7,0)),"",IFERROR(HYPERLINK(showDetails(INDEX(data!$S7:$V7,MATCH(view!AV$3,data!$Y7:$AB7,0)),AV9),"●"),"●")) ->  | AW9: =IF(ISERROR(MATCH(view!AW$3,data!$Y7:$AB7,0)),"",IFERROR(HYPERLINK(showDetails(INDEX(data!$S7:$V7,MATCH(view!AW$3,data!$Y7:$AB7,0)),AW9),"●"),"●")) ->  | AX9: =IF(ISERROR(MATCH(view!AX$3,data!$Y7:$AB7,0)),"",IFERROR(HYPERLINK(showDetails(INDEX(data!$S7:$V7,MATCH(view!AX$3,data!$Y7:$AB7,0)),AX9),"●"),"●")) ->  | AY9: =IF(ISERROR(MATCH(view!AY$3,data!$Y7:$AB7,0)),"",IFERROR(HYPERLINK(showDetails(INDEX(data!$S7:$V7,MATCH(view!AY$3,data!$Y7:$AB7,0)),AY9),"●"),"●")) ->  | AZ9: =IF(ISERROR(MATCH(view!AZ$3,data!$Y7:$AB7,0)),"",IFERROR(HYPERLINK(showDetails(INDEX(data!$S7:$V7,MATCH(view!AZ$3,data!$Y7:$AB7,0)),AZ9),"●"),"●")) ->  | BA9: =IF(ISERROR(MATCH(view!BA$3,data!$Y7:$AB7,0)),"",IFERROR(HYPERLINK(showDetails(INDEX(data!$S7:$V7,MATCH(view!BA$3,data!$Y7:$AB7,0)),BA9),"●"),"●")) ->  | BB9: =IF(ISERROR(MATCH(view!BB$3,data!$Y7:$AB7,0)),"",IFERROR(HYPERLINK(showDetails(INDEX(data!$S7:$V7,MATCH(view!BB$3,data!$Y7:$AB7,0)),BB9),"●"),"●")) ->  | BC9: =IF(ISERROR(MATCH(view!BC$3,data!$Y7:$AB7,0)),"",IFERROR(HYPERLINK(showDetails(INDEX(data!$S7:$V7,MATCH(view!BC$3,data!$Y7:$AB7,0)),BC9),"●"),"●")) ->  | BD9: =IF(ISERROR(MATCH(view!BD$3,data!$Y7:$AB7,0)),"",IFERROR(HYPERLINK(showDetails(INDEX(data!$S7:$V7,MATCH(view!BD$3,data!$Y7:$AB7,0)),BD9),"●"),"●")) ->  | BE9: =IF(ISERROR(MATCH(view!BE$3,data!$Y7:$AB7,0)),"",IFERROR(HYPERLINK(showDetails(INDEX(data!$S7:$V7,MATCH(view!BE$3,data!$Y7:$AB7,0)),BE9),"●"),"●")) ->  | BF9: =IF(ISERROR(MATCH(view!BF$3,data!$Y7:$AB7,0)),"",IFERROR(HYPERLINK(showDetails(INDEX(data!$S7:$V7,MATCH(view!BF$3,data!$Y7:$AB7,0)),BF9),"●"),"●")) ->  | BG9: =IF(ISERROR(MATCH(view!BG$3,data!$Y7:$AB7,0)),"",IFERROR(HYPERLINK(showDetails(INDEX(data!$S7:$V7,MATCH(view!BG$3,data!$Y7:$AB7,0)),BG9),"●"),"●")) ->  | BH9: =IF(ISERROR(MATCH(view!BH$3,data!$Y7:$AB7,0)),"",IFERROR(HYPERLINK(showDetails(INDEX(data!$S7:$V7,MATCH(view!BH$3,data!$Y7:$AB7,0)),BH9),"●"),"●")) ->  | BI9: =IF(ISERROR(MATCH(view!BI$3,data!$Y7:$AB7,0)),"",IFERROR(HYPERLINK(showDetails(INDEX(data!$S7:$V7,MATCH(view!BI$3,data!$Y7:$AB7,0)),BI9),"●"),"●")) ->  | BJ9: =IF(ISERROR(MATCH(view!BJ$3,data!$Y7:$AB7,0)),"",IFERROR(HYPERLINK(showDetails(INDEX(data!$S7:$V7,MATCH(view!BJ$3,data!$Y7:$AB7,0)),BJ9),"●"),"●")) ->  | BK9: =IF(ISERROR(MATCH(view!BK$3,data!$Y7:$AB7,0)),"",IFERROR(HYPERLINK(showDetails(INDEX(data!$S7:$V7,MATCH(view!BK$3,data!$Y7:$AB7,0)),BK9),"●"),"●")) ->  | BL9: =IF(ISERROR(MATCH(view!BL$3,data!$Y7:$AB7,0)),"",IFERROR(HYPERLINK(showDetails(INDEX(data!$S7:$V7,MATCH(view!BL$3,data!$Y7:$AB7,0)),BL9),"●"),"●")) ->  | BM9: =IF(ISERROR(MATCH(view!BM$3,data!$Y7:$AB7,0)),"",IFERROR(HYPERLINK(showDetails(INDEX(data!$S7:$V7,MATCH(view!BM$3,data!$Y7:$AB7,0)),BM9),"●"),"●")) ->  | BN9: =IF(ISERROR(MATCH(view!BN$3,data!$Y7:$AB7,0)),"",IFERROR(HYPERLINK(showDetails(INDEX(data!$S7:$V7,MATCH(view!BN$3,data!$Y7:$AB7,0)),BN9),"●"),"●")) ->  | BO9: =IF(ISERROR(MATCH(view!BO$3,data!$Y7:$AB7,0)),"",IFERROR(HYPERLINK(showDetails(INDEX(data!$S7:$V7,MATCH(view!BO$3,data!$Y7:$AB7,0)),BO9),"●"),"●")) ->  | BP9: =IF(ISERROR(MATCH(view!BP$3,data!$Y7:$AB7,0)),"",IFERROR(HYPERLINK(showDetails(INDEX(data!$S7:$V7,MATCH(view!BP$3,data!$Y7:$AB7,0)),BP9),"●"),"●")) ->  | BQ9: =IF(ISERROR(MATCH(view!BQ$3,data!$Y7:$AB7,0)),"",IFERROR(HYPERLINK(showDetails(INDEX(data!$S7:$V7,MATCH(view!BQ$3,data!$Y7:$AB7,0)),BQ9),"●"),"●")) ->  | BR9: =IF(ISERROR(MATCH(view!BR$3,data!$Y7:$AB7,0)),"",IFERROR(HYPERLINK(showDetails(INDEX(data!$S7:$V7,MATCH(view!BR$3,data!$Y7:$AB7,0)),BR9),"●"),"●")) ->  | BS9: =IF(ISERROR(MATCH(view!BS$3,data!$Y7:$AB7,0)),"",IFERROR(HYPERLINK(showDetails(INDEX(data!$S7:$V7,MATCH(view!BS$3,data!$Y7:$AB7,0)),BS9),"●"),"●")) ->  | BT9: =IF(ISERROR(MATCH(view!BT$3,data!$Y7:$AB7,0)),"",IFERROR(HYPERLINK(showDetails(INDEX(data!$S7:$V7,MATCH(view!BT$3,data!$Y7:$AB7,0)),BT9),"●"),"●")) ->  | BU9: =IF(ISERROR(MATCH(view!BU$3,data!$Y7:$AB7,0)),"",IFERROR(HYPERLINK(showDetails(INDEX(data!$S7:$V7,MATCH(view!BU$3,data!$Y7:$AB7,0)),BU9),"●"),"●")) ->  | BV9: =IF(ISERROR(MATCH(view!BV$3,data!$Y7:$AB7,0)),"",IFERROR(HYPERLINK(showDetails(INDEX(data!$S7:$V7,MATCH(view!BV$3,data!$Y7:$AB7,0)),BV9),"●"),"●")) ->  | BW9: =IF(ISERROR(MATCH(view!BW$3,data!$Y7:$AB7,0)),"",IFERROR(HYPERLINK(showDetails(INDEX(data!$S7:$V7,MATCH(view!BW$3,data!$Y7:$AB7,0)),BW9),"●"),"●")) ->  | BX9: =IF(ISERROR(MATCH(view!BX$3,data!$Y7:$AB7,0)),"",IFERROR(HYPERLINK(showDetails(INDEX(data!$S7:$V7,MATCH(view!BX$3,data!$Y7:$AB7,0)),BX9),"●"),"●")) ->  | BY9: =IF(ISERROR(MATCH(view!BY$3,data!$Y7:$AB7,0)),"",IFERROR(HYPERLINK(showDetails(INDEX(data!$S7:$V7,MATCH(view!BY$3,data!$Y7:$AB7,0)),BY9),"●"),"●")) ->  | BZ9: =IF(ISERROR(MATCH(view!BZ$3,data!$Y7:$AB7,0)),"",IFERROR(HYPERLINK(showDetails(INDEX(data!$S7:$V7,MATCH(view!BZ$3,data!$Y7:$AB7,0)),BZ9),"●"),"●")) ->  | CA9: =IF(ISERROR(MATCH(view!CA$3,data!$Y7:$AB7,0)),"",IFERROR(HYPERLINK(showDetails(INDEX(data!$S7:$V7,MATCH(view!CA$3,data!$Y7:$AB7,0)),CA9),"●"),"●")) ->  | CB9: =IF(ISERROR(MATCH(view!CB$3,data!$Y7:$AB7,0)),"",IFERROR(HYPERLINK(showDetails(INDEX(data!$S7:$V7,MATCH(view!CB$3,data!$Y7:$AB7,0)),CB9),"●"),"●")) ->  | CC9: =IF(ISERROR(MATCH(view!CC$3,data!$Y7:$AB7,0)),"",IFERROR(HYPERLINK(showDetails(INDEX(data!$S7:$V7,MATCH(view!CC$3,data!$Y7:$AB7,0)),CC9),"●"),"●")) ->  | CD9: =IF(ISERROR(MATCH(view!CD$3,data!$Y7:$AB7,0)),"",IFERROR(HYPERLINK(showDetails(INDEX(data!$S7:$V7,MATCH(view!CD$3,data!$Y7:$AB7,0)),CD9),"●"),"●")) ->  | CE9: =IF(ISERROR(MATCH(view!CE$3,data!$Y7:$AB7,0)),"",IFERROR(HYPERLINK(showDetails(INDEX(data!$S7:$V7,MATCH(view!CE$3,data!$Y7:$AB7,0)),CE9),"●"),"●")) ->  | CF9: =IF(ISERROR(MATCH(view!CF$3,data!$Y7:$AB7,0)),"",IFERROR(HYPERLINK(showDetails(INDEX(data!$S7:$V7,MATCH(view!CF$3,data!$Y7:$AB7,0)),CF9),"●"),"●")) ->  | CG9: =IF(ISERROR(MATCH(view!CG$3,data!$Y7:$AB7,0)),"",IFERROR(HYPERLINK(showDetails(INDEX(data!$S7:$V7,MATCH(view!CG$3,data!$Y7:$AB7,0)),CG9),"●"),"●")) ->  | CH9: =IF(ISERROR(MATCH(view!CH$3,data!$Y7:$AB7,0)),"",IFERROR(HYPERLINK(showDetails(INDEX(data!$S7:$V7,MATCH(view!CH$3,data!$Y7:$AB7,0)),CH9),"●"),"●")) ->  | CI9: =IF(ISERROR(MATCH(view!CI$3,data!$Y7:$AB7,0)),"",IFERROR(HYPERLINK(showDetails(INDEX(data!$S7:$V7,MATCH(view!CI$3,data!$Y7:$AB7,0)),CI9),"●"),"●")) ->  | CJ9: =IF(ISERROR(MATCH(view!CJ$3,data!$Y7:$AB7,0)),"",IFERROR(HYPERLINK(showDetails(INDEX(data!$S7:$V7,MATCH(view!CJ$3,data!$Y7:$AB7,0)),CJ9),"●"),"●")) ->  | CK9: =IF(ISERROR(MATCH(view!CK$3,data!$Y7:$AB7,0)),"",IFERROR(HYPERLINK(showDetails(INDEX(data!$S7:$V7,MATCH(view!CK$3,data!$Y7:$AB7,0)),CK9),"●"),"●")) ->  | CL9: =IF(ISERROR(MATCH(view!CL$3,data!$Y7:$AB7,0)),"",IFERROR(HYPERLINK(showDetails(INDEX(data!$S7:$V7,MATCH(view!CL$3,data!$Y7:$AB7,0)),CL9),"●"),"●")) ->  | CM9: =IF(ISERROR(MATCH(view!CM$3,data!$Y7:$AB7,0)),"",IFERROR(HYPERLINK(showDetails(INDEX(data!$S7:$V7,MATCH(view!CM$3,data!$Y7:$AB7,0)),CM9),"●"),"●")) ->  | CN9: =IF(ISERROR(MATCH(view!CN$3,data!$Y7:$AB7,0)),"",IFERROR(HYPERLINK(showDetails(INDEX(data!$S7:$V7,MATCH(view!CN$3,data!$Y7:$AB7,0)),CN9),"●"),"●")) ->  | CO9: =IF(ISERROR(MATCH(view!CO$3,data!$Y7:$AB7,0)),"",IFERROR(HYPERLINK(showDetails(INDEX(data!$S7:$V7,MATCH(view!CO$3,data!$Y7:$AB7,0)),CO9),"●"),"●")) ->  | CP9: =IF(ISERROR(MATCH(view!CP$3,data!$Y7:$AB7,0)),"",IFERROR(HYPERLINK(showDetails(INDEX(data!$S7:$V7,MATCH(view!CP$3,data!$Y7:$AB7,0)),CP9),"●"),"●")) ->  | CQ9: =IF(ISERROR(MATCH(view!CQ$3,data!$Y7:$AB7,0)),"",IFERROR(HYPERLINK(showDetails(INDEX(data!$S7:$V7,MATCH(view!CQ$3,data!$Y7:$AB7,0)),CQ9),"●"),"●")) ->  | CR9: =IF(ISERROR(MATCH(view!CR$3,data!$Y7:$AB7,0)),"",IFERROR(HYPERLINK(showDetails(INDEX(data!$S7:$V7,MATCH(view!CR$3,data!$Y7:$AB7,0)),CR9),"●"),"●")) ->  | CS9: =IF(ISERROR(MATCH(view!CS$3,data!$Y7:$AB7,0)),"",IFERROR(HYPERLINK(showDetails(INDEX(data!$S7:$V7,MATCH(view!CS$3,data!$Y7:$AB7,0)),CS9),"●"),"●")) ->  | CT9: =IF(ISERROR(MATCH(view!CT$3,data!$Y7:$AB7,0)),"",IFERROR(HYPERLINK(showDetails(INDEX(data!$S7:$V7,MATCH(view!CT$3,data!$Y7:$AB7,0)),CT9),"●"),"●")) ->  | CU9: =IF(ISERROR(MATCH(view!CU$3,data!$Y7:$AB7,0)),"",IFERROR(HYPERLINK(showDetails(INDEX(data!$S7:$V7,MATCH(view!CU$3,data!$Y7:$AB7,0)),CU9),"●"),"●")) ->  | CV9: =IF(ISERROR(MATCH(view!CV$3,data!$Y7:$AB7,0)),"",IFERROR(HYPERLINK(showDetails(INDEX(data!$S7:$V7,MATCH(view!CV$3,data!$Y7:$AB7,0)),CV9),"●"),"●")) ->  | CW9: =IF(ISERROR(MATCH(view!CW$3,data!$Y7:$AB7,0)),"",IFERROR(HYPERLINK(showDetails(INDEX(data!$S7:$V7,MATCH(view!CW$3,data!$Y7:$AB7,0)),CW9),"●"),"●")) ->  | CX9: =IF(ISERROR(MATCH(view!CX$3,data!$Y7:$AB7,0)),"",IFERROR(HYPERLINK(showDetails(INDEX(data!$S7:$V7,MATCH(view!CX$3,data!$Y7:$AB7,0)),CX9),"●"),"●")) ->  | CY9: =IF(ISERROR(MATCH(view!CY$3,data!$Y7:$AB7,0)),"",IFERROR(HYPERLINK(showDetails(INDEX(data!$S7:$V7,MATCH(view!CY$3,data!$Y7:$AB7,0)),CY9),"●"),"●")) ->  | CZ9: =IF(ISERROR(MATCH(view!CZ$3,data!$Y7:$AB7,0)),"",IFERROR(HYPERLINK(showDetails(INDEX(data!$S7:$V7,MATCH(view!CZ$3,data!$Y7:$AB7,0)),CZ9),"●"),"●")) ->  | DA9: =IF(ISERROR(MATCH(view!DA$3,data!$Y7:$AB7,0)),"",IFERROR(HYPERLINK(showDetails(INDEX(data!$S7:$V7,MATCH(view!DA$3,data!$Y7:$AB7,0)),DA9),"●"),"●")) ->  | DB9: =IF(ISERROR(MATCH(view!DB$3,data!$Y7:$AB7,0)),"",IFERROR(HYPERLINK(showDetails(INDEX(data!$S7:$V7,MATCH(view!DB$3,data!$Y7:$AB7,0)),DB9),"●"),"●")) ->  | DC9: =IF(ISERROR(MATCH(view!DC$3,data!$Y7:$AB7,0)),"",IFERROR(HYPERLINK(showDetails(INDEX(data!$S7:$V7,MATCH(view!DC$3,data!$Y7:$AB7,0)),DC9),"●"),"●")) ->  | DD9: =IF(ISERROR(MATCH(view!DD$3,data!$Y7:$AB7,0)),"",IFERROR(HYPERLINK(showDetails(INDEX(data!$S7:$V7,MATCH(view!DD$3,data!$Y7:$AB7,0)),DD9),"●"),"●")) ->  | DE9: =IF(ISERROR(MATCH(view!DE$3,data!$Y7:$AB7,0)),"",IFERROR(HYPERLINK(showDetails(INDEX(data!$S7:$V7,MATCH(view!DE$3,data!$Y7:$AB7,0)),DE9),"●"),"●")) -> ● | DF9: =IF(ISERROR(MATCH(view!DF$3,data!$Y7:$AB7,0)),"",IFERROR(HYPERLINK(showDetails(INDEX(data!$S7:$V7,MATCH(view!DF$3,data!$Y7:$AB7,0)),DF9),"●"),"●")) -> ● | DG9: =IF(ISERROR(MATCH(view!DG$3,data!$Y7:$AB7,0)),"",IFERROR(HYPERLINK(showDetails(INDEX(data!$S7:$V7,MATCH(view!DG$3,data!$Y7:$AB7,0)),DG9),"●"),"●")) ->  | DH9: =IF(ISERROR(MATCH(view!DH$3,data!$Y7:$AB7,0)),"",IFERROR(HYPERLINK(showDetails(INDEX(data!$S7:$V7,MATCH(view!DH$3,data!$Y7:$AB7,0)),DH9),"●"),"●")) -> ● | DI9: =IF(ISERROR(MATCH(view!DI$3,data!$Y7:$AB7,0)),"",IFERROR(HYPERLINK(showDetails(INDEX(data!$S7:$V7,MATCH(view!DI$3,data!$Y7:$AB7,0)),DI9),"●"),"●")) ->  | DJ9: =IF(ISERROR(MATCH(view!DJ$3,data!$Y7:$AB7,0)),"",IFERROR(HYPERLINK(showDetails(INDEX(data!$S7:$V7,MATCH(view!DJ$3,data!$Y7:$AB7,0)),DJ9),"●"),"●")) ->  | DK9: =IF(ISERROR(MATCH(view!DK$3,data!$Y7:$AB7,0)),"",IFERROR(HYPERLINK(showDetails(INDEX(data!$S7:$V7,MATCH(view!DK$3,data!$Y7:$AB7,0)),DK9),"●"),"●")) ->  | DL9: =IF(ISERROR(MATCH(view!DL$3,data!$Y7:$AB7,0)),"",IFERROR(HYPERLINK(showDetails(INDEX(data!$S7:$V7,MATCH(view!DL$3,data!$Y7:$AB7,0)),DL9),"●"),"●")) ->  | DM9: =IF(ISERROR(MATCH(view!DM$3,data!$Y7:$AB7,0)),"",IFERROR(HYPERLINK(showDetails(INDEX(data!$S7:$V7,MATCH(view!DM$3,data!$Y7:$AB7,0)),DM9),"●"),"●")) ->  | DN9: =IF(ISERROR(MATCH(view!DN$3,data!$Y7:$AB7,0)),"",IFERROR(HYPERLINK(showDetails(INDEX(data!$S7:$V7,MATCH(view!DN$3,data!$Y7:$AB7,0)),DN9),"●"),"●")) ->  | DO9: =IF(ISERROR(MATCH(view!DO$3,data!$Y7:$AB7,0)),"",IFERROR(HYPERLINK(showDetails(INDEX(data!$S7:$V7,MATCH(view!DO$3,data!$Y7:$AB7,0)),DO9),"●"),"●")) ->  | DP9: =IF(ISERROR(MATCH(view!DP$3,data!$Y7:$AB7,0)),"",IFERROR(HYPERLINK(showDetails(INDEX(data!$S7:$V7,MATCH(view!DP$3,data!$Y7:$AB7,0)),DP9),"●"),"●")) ->  | DQ9: =IF(ISERROR(MATCH(view!DQ$3,data!$Y7:$AB7,0)),"",IFERROR(HYPERLINK(showDetails(INDEX(data!$S7:$V7,MATCH(view!DQ$3,data!$Y7:$AB7,0)),DQ9),"●"),"●")) ->  | DR9: =IF(ISERROR(MATCH(view!DR$3,data!$Y7:$AB7,0)),"",IFERROR(HYPERLINK(showDetails(INDEX(data!$S7:$V7,MATCH(view!DR$3,data!$Y7:$AB7,0)),DR9),"●"),"●")) ->  | DS9: =IF(ISERROR(MATCH(view!DS$3,data!$Y7:$AB7,0)),"",IFERROR(HYPERLINK(showDetails(INDEX(data!$S7:$V7,MATCH(view!DS$3,data!$Y7:$AB7,0)),DS9),"●"),"●")) ->  | DT9: =INDEX(lstYears,A9) &" - "&INDEX(data!$W$3:$W$30,A9) -> 1996 - Atlanta
A10: 6 | C10: =IF(ISERROR(MATCH(view!C$3,data!$Y8:$AB8,0)),"",IFERROR(HYPERLINK(showDetails(INDEX(data!$S8:$V8,MATCH(view!C$3,data!$Y8:$AB8,0)),C10),"●"),"●")) ->  | D10: =IF(ISERROR(MATCH(view!D$3,data!$Y8:$AB8,0)),"",IFERROR(HYPERLINK(showDetails(INDEX(data!$S8:$V8,MATCH(view!D$3,data!$Y8:$AB8,0)),D10),"●"),"●")) ->  | E10: =IF(ISERROR(MATCH(view!E$3,data!$Y8:$AB8,0)),"",IFERROR(HYPERLINK(showDetails(INDEX(data!$S8:$V8,MATCH(view!E$3,data!$Y8:$AB8,0)),E10),"●"),"●")) ->  | F10: =IF(ISERROR(MATCH(view!F$3,data!$Y8:$AB8,0)),"",IFERROR(HYPERLINK(showDetails(INDEX(data!$S8:$V8,MATCH(view!F$3,data!$Y8:$AB8,0)),F10),"●"),"●")) ->  | G10: =IF(ISERROR(MATCH(view!G$3,data!$Y8:$AB8,0)),"",IFERROR(HYPERLINK(showDetails(INDEX(data!$S8:$V8,MATCH(view!G$3,data!$Y8:$AB8,0)),G10),"●"),"●")) ->  | H10: =IF(ISERROR(MATCH(view!H$3,data!$Y8:$AB8,0)),"",IFERROR(HYPERLINK(showDetails(INDEX(data!$S8:$V8,MATCH(view!H$3,data!$Y8:$AB8,0)),H10),"●"),"●")) ->  | I10: =IF(ISERROR(MATCH(view!I$3,data!$Y8:$AB8,0)),"",IFERROR(HYPERLINK(showDetails(INDEX(data!$S8:$V8,MATCH(view!I$3,data!$Y8:$AB8,0)),I10),"●"),"●")) ->  | J10: =IF(ISERROR(MATCH(view!J$3,data!$Y8:$AB8,0)),"",IFERROR(HYPERLINK(showDetails(INDEX(data!$S8:$V8,MATCH(view!J$3,data!$Y8:$AB8,0)),J10),"●"),"●")) ->  | K10: =IF(ISERROR(MATCH(view!K$3,data!$Y8:$AB8,0)),"",IFERROR(HYPERLINK(showDetails(INDEX(data!$S8:$V8,MATCH(view!K$3,data!$Y8:$AB8,0)),K10),"●"),"●")) ->  | L10: =IF(ISERROR(MATCH(view!L$3,data!$Y8:$AB8,0)),"",IFERROR(HYPERLINK(showDetails(INDEX(data!$S8:$V8,MATCH(view!L$3,data!$Y8:$AB8,0)),L10),"●"),"●")) ->  | M10: =IF(ISERROR(MATCH(view!M$3,data!$Y8:$AB8,0)),"",IFERROR(HYPERLINK(showDetails(INDEX(data!$S8:$V8,MATCH(view!M$3,data!$Y8:$AB8,0)),M10),"●"),"●")) ->  | N10: =IF(ISERROR(MATCH(view!N$3,data!$Y8:$AB8,0)),"",IFERROR(HYPERLINK(showDetails(INDEX(data!$S8:$V8,MATCH(view!N$3,data!$Y8:$AB8,0)),N10),"●"),"●")) ->  | O10: =IF(ISERROR(MATCH(view!O$3,data!$Y8:$AB8,0)),"",IFERROR(HYPERLINK(showDetails(INDEX(data!$S8:$V8,MATCH(view!O$3,data!$Y8:$AB8,0)),O10),"●"),"●")) ->  | P10: =IF(ISERROR(MATCH(view!P$3,data!$Y8:$AB8,0)),"",IFERROR(HYPERLINK(showDetails(INDEX(data!$S8:$V8,MATCH(view!P$3,data!$Y8:$AB8,0)),P10),"●"),"●")) ->  | Q10: =IF(ISERROR(MATCH(view!Q$3,data!$Y8:$AB8,0)),"",IFERROR(HYPERLINK(showDetails(INDEX(data!$S8:$V8,MATCH(view!Q$3,data!$Y8:$AB8,0)),Q10),"●"),"●")) ->  | R10: =IF(ISERROR(MATCH(view!R$3,data!$Y8:$AB8,0)),"",IFERROR(HYPERLINK(showDetails(INDEX(data!$S8:$V8,MATCH(view!R$3,data!$Y8:$AB8,0)),R10),"●"),"●")) ->  | S10: =IF(ISERROR(MATCH(view!S$3,data!$Y8:$AB8,0)),"",IFERROR(HYPERLINK(showDetails(INDEX(data!$S8:$V8,MATCH(view!S$3,data!$Y8:$AB8,0)),S10),"●"),"●")) ->  | T10: =IF(ISERROR(MATCH(view!T$3,data!$Y8:$AB8,0)),"",IFERROR(HYPERLINK(showDetails(INDEX(data!$S8:$V8,MATCH(view!T$3,data!$Y8:$AB8,0)),T10),"●"),"●")) ->  | U10: =IF(ISERROR(MATCH(view!U$3,data!$Y8:$AB8,0)),"",IFERROR(HYPERLINK(showDetails(INDEX(data!$S8:$V8,MATCH(view!U$3,data!$Y8:$AB8,0)),U10),"●"),"●")) ->  | V10: =IF(ISERROR(MATCH(view!V$3,data!$Y8:$AB8,0)),"",IFERROR(HYPERLINK(showDetails(INDEX(data!$S8:$V8,MATCH(view!V$3,data!$Y8:$AB8,0)),V10),"●"),"●")) ->  | W10: =IF(ISERROR(MATCH(view!W$3,data!$Y8:$AB8,0)),"",IFERROR(HYPERLINK(showDetails(INDEX(data!$S8:$V8,MATCH(view!W$3,data!$Y8:$AB8,0)),W10),"●"),"●")) ->  | X10: =IF(ISERROR(MATCH(view!X$3,data!$Y8:$AB8,0)),"",IFERROR(HYPERLINK(showDetails(INDEX(data!$S8:$V8,MATCH(view!X$3,data!$Y8:$AB8,0)),X10),"●"),"●")) ->  | Y10: =IF(ISERROR(MATCH(view!Y$3,data!$Y8:$AB8,0)),"",IFERROR(HYPERLINK(showDetails(INDEX(data!$S8:$V8,MATCH(view!Y$3,data!$Y8:$AB8,0)),Y10),"●"),"●")) ->  | Z10: =IF(ISERROR(MATCH(view!Z$3,data!$Y8:$AB8,0)),"",IFERROR(HYPERLINK(showDetails(INDEX(data!$S8:$V8,MATCH(view!Z$3,data!$Y8:$AB8,0)),Z10),"●"),"●")) ->  | AA10: =IF(ISERROR(MATCH(view!AA$3,data!$Y8:$AB8,0)),"",IFERROR(HYPERLINK(showDetails(INDEX(data!$S8:$V8,MATCH(view!AA$3,data!$Y8:$AB8,0)),AA10),"●"),"●")) ->  | AB10: =IF(ISERROR(MATCH(view!AB$3,data!$Y8:$AB8,0)),"",IFERROR(HYPERLINK(showDetails(INDEX(data!$S8:$V8,MATCH(view!AB$3,data!$Y8:$AB8,0)),AB10),"●"),"●")) ->  | AC10: =IF(ISERROR(MATCH(view!AC$3,data!$Y8:$AB8,0)),"",IFERROR(HYPERLINK(showDetails(INDEX(data!$S8:$V8,MATCH(view!AC$3,data!$Y8:$AB8,0)),AC10),"●"),"●")) ->  | AD10: =IF(ISERROR(MATCH(view!AD$3,data!$Y8:$AB8,0)),"",IFERROR(HYPERLINK(showDetails(INDEX(data!$S8:$V8,MATCH(view!AD$3,data!$Y8:$AB8,0)),AD10),"●"),"●")) ->  | AE10: =IF(ISERROR(MATCH(view!AE$3,data!$Y8:$AB8,0)),"",IFERROR(HYPERLINK(showDetails(INDEX(data!$S8:$V8,MATCH(view!AE$3,data!$Y8:$AB8,0)),AE10),"●"),"●")) ->  | AF10: =IF(ISERROR(MATCH(view!AF$3,data!$Y8:$AB8,0)),"",IFERROR(HYPERLINK(showDetails(INDEX(data!$S8:$V8,MATCH(view!AF$3,data!$Y8:$AB8,0)),AF10),"●"),"●")) ->  | AG10: =IF(ISERROR(MATCH(view!AG$3,data!$Y8:$AB8,0)),"",IFERROR(HYPERLINK(showDetails(INDEX(data!$S8:$V8,MATCH(view!AG$3,data!$Y8:$AB8,0)),AG10),"●"),"●")) ->  | AH10: =IF(ISERROR(MATCH(view!AH$3,data!$Y8:$AB8,0)),"",IFERROR(HYPERLINK(showDetails(INDEX(data!$S8:$V8,MATCH(view!AH$3,data!$Y8:$AB8,0)),AH10),"●"),"●")) ->  | AI10: =IF(ISERROR(MATCH(view!AI$3,data!$Y8:$AB8,0)),"",IFERROR(HYPERLINK(showDetails(INDEX(data!$S8:$V8,MATCH(view!AI$3,data!$Y8:$AB8,0)),AI10),"●"),"●")) ->  | AJ10: =IF(ISERROR(MATCH(view!AJ$3,data!$Y8:$AB8,0)),"",IFERROR(HYPERLINK(showDetails(INDEX(data!$S8:$V8,MATCH(view!AJ$3,data!$Y8:$AB8,0)),AJ10),"●"),"●")) ->  | AK10: =IF(ISERROR(MATCH(view!AK$3,data!$Y8:$AB8,0)),"",IFERROR(HYPERLINK(showDetails(INDEX(data!$S8:$V8,MATCH(view!AK$3,data!$Y8:$AB8,0)),AK10),"●"),"●")) ->  | AL10: =IF(ISERROR(MATCH(view!AL$3,data!$Y8:$AB8,0)),"",IFERROR(HYPERLINK(showDetails(INDEX(data!$S8:$V8,MATCH(view!AL$3,data!$Y8:$AB8,0)),AL10),"●"),"●")) ->  | AM10: =IF(ISERROR(MATCH(view!AM$3,data!$Y8:$AB8,0)),"",IFERROR(HYPERLINK(showDetails(INDEX(data!$S8:$V8,MATCH(view!AM$3,data!$Y8:$AB8,0)),AM10),"●"),"●")) ->  | AN10: =IF(ISERROR(MATCH(view!AN$3,data!$Y8:$AB8,0)),"",IFERROR(HYPERLINK(showDetails(INDEX(data!$S8:$V8,MATCH(view!AN$3,data!$Y8:$AB8,0)),AN10),"●"),"●")) ->  | AO10: =IF(ISERROR(MATCH(view!AO$3,data!$Y8:$AB8,0)),"",IFERROR(HYPERLINK(showDetails(INDEX(data!$S8:$V8,MATCH(view!AO$3,data!$Y8:$AB8,0)),AO10),"●"),"●")) ->  | AP10: =IF(ISERROR(MATCH(view!AP$3,data!$Y8:$AB8,0)),"",IFERROR(HYPERLINK(showDetails(INDEX(data!$S8:$V8,MATCH(view!AP$3,data!$Y8:$AB8,0)),AP10),"●"),"●")) ->  | AQ10: =IF(ISERROR(MATCH(view!AQ$3,data!$Y8:$AB8,0)),"",IFERROR(HYPERLINK(showDetails(INDEX(data!$S8:$V8,MATCH(view!AQ$3,data!$Y8:$AB8,0)),AQ10),"●"),"●")) ->  | AR10: =IF(ISERROR(MATCH(view!AR$3,data!$Y8:$AB8,0)),"",IFERROR(HYPERLINK(showDetails(INDEX(data!$S8:$V8,MATCH(view!AR$3,data!$Y8:$AB8,0)),AR10),"●"),"●")) ->  | AS10: =IF(ISERROR(MATCH(view!AS$3,data!$Y8:$AB8,0)),"",IFERROR(HYPERLINK(showDetails(INDEX(data!$S8:$V8,MATCH(view!AS$3,data!$Y8:$AB8,0)),AS10),"●"),"●")) ->  | AT10: =IF(ISERROR(MATCH(view!AT$3,data!$Y8:$AB8,0)),"",IFERROR(HYPERLINK(showDetails(INDEX(data!$S8:$V8,MATCH(view!AT$3,data!$Y8:$AB8,0)),AT10),"●"),"●")) ->  | AU10: =IF(ISERROR(MATCH(view!AU$3,data!$Y8:$AB8,0)),"",IFERROR(HYPERLINK(showDetails(INDEX(data!$S8:$V8,MATCH(view!AU$3,data!$Y8:$AB8,0)),AU10),"●"),"●")) ->  | AV10: =IF(ISERROR(MATCH(view!AV$3,data!$Y8:$AB8,0)),"",IFERROR(HYPERLINK(showDetails(INDEX(data!$S8:$V8,MATCH(view!AV$3,data!$Y8:$AB8,0)),AV10),"●"),"●")) ->  | AW10: =IF(ISERROR(MATCH(view!AW$3,data!$Y8:$AB8,0)),"",IFERROR(HYPERLINK(showDetails(INDEX(data!$S8:$V8,MATCH(view!AW$3,data!$Y8:$AB8,0)),AW10),"●"),"●")) ->  | AX10: =IF(ISERROR(MATCH(view!AX$3,data!$Y8:$AB8,0)),"",IFERROR(HYPERLINK(showDetails(INDEX(data!$S8:$V8,MATCH(view!AX$3,data!$Y8:$AB8,0)),AX10),"●"),"●")) ->  | AY10: =IF(ISERROR(MATCH(view!AY$3,data!$Y8:$AB8,0)),"",IFERROR(HYPERLINK(showDetails(INDEX(data!$S8:$V8,MATCH(view!AY$3,data!$Y8:$AB8,0)),AY10),"●"),"●")) ->  | AZ10: =IF(ISERROR(MATCH(view!AZ$3,data!$Y8:$AB8,0)),"",IFERROR(HYPERLINK(showDetails(INDEX(data!$S8:$V8,MATCH(view!AZ$3,data!$Y8:$AB8,0)),AZ10),"●"),"●")) ->  | BA10: =IF(ISERROR(MATCH(view!BA$3,data!$Y8:$AB8,0)),"",IFERROR(HYPERLINK(showDetails(INDEX(data!$S8:$V8,MATCH(view!BA$3,data!$Y8:$AB8,0)),BA10),"●"),"●")) ->  | BB10: =IF(ISERROR(MATCH(view!BB$3,data!$Y8:$AB8,0)),"",IFERROR(HYPERLINK(showDetails(INDEX(data!$S8:$V8,MATCH(view!BB$3,data!$Y8:$AB8,0)),BB10),"●"),"●")) ->  | BC10: =IF(ISERROR(MATCH(view!BC$3,data!$Y8:$AB8,0)),"",IFERROR(HYPERLINK(showDetails(INDEX(data!$S8:$V8,MATCH(view!BC$3,data!$Y8:$AB8,0)),BC10),"●"),"●")) ->  | BD10: =IF(ISERROR(MATCH(view!BD$3,data!$Y8:$AB8,0)),"",IFERROR(HYPERLINK(showDetails(INDEX(data!$S8:$V8,MATCH(view!BD$3,data!$Y8:$AB8,0)),BD10),"●"),"●")) ->  | BE10: =IF(ISERROR(MATCH(view!BE$3,data!$Y8:$AB8,0)),"",IFERROR(HYPERLINK(showDetails(INDEX(data!$S8:$V8,MATCH(view!BE$3,data!$Y8:$AB8,0)),BE10),"●"),"●")) ->  | BF10: =IF(ISERROR(MATCH(view!BF$3,data!$Y8:$AB8,0)),"",IFERROR(HYPERLINK(showDetails(INDEX(data!$S8:$V8,MATCH(view!BF$3,data!$Y8:$AB8,0)),BF10),"●"),"●")) ->  | BG10: =IF(ISERROR(MATCH(view!BG$3,data!$Y8:$AB8,0)),"",IFERROR(HYPERLINK(showDetails(INDEX(data!$S8:$V8,MATCH(view!BG$3,data!$Y8:$AB8,0)),BG10),"●"),"●")) ->  | BH10: =IF(ISERROR(MATCH(view!BH$3,data!$Y8:$AB8,0)),"",IFERROR(HYPERLINK(showDetails(INDEX(data!$S8:$V8,MATCH(view!BH$3,data!$Y8:$AB8,0)),BH10),"●"),"●")) ->  | BI10: =IF(ISERROR(MATCH(view!BI$3,data!$Y8:$AB8,0)),"",IFERROR(HYPERLINK(showDetails(INDEX(data!$S8:$V8,MATCH(view!BI$3,data!$Y8:$AB8,0)),BI10),"●"),"●")) ->  | BJ10: =IF(ISERROR(MATCH(view!BJ$3,data!$Y8:$AB8,0)),"",IFERROR(HYPERLINK(showDetails(INDEX(data!$S8:$V8,MATCH(view!BJ$3,data!$Y8:$AB8,0)),BJ10),"●"),"●")) ->  | BK10: =IF(ISERROR(MATCH(view!BK$3,data!$Y8:$AB8,0)),"",IFERROR(HYPERLINK(showDetails(INDEX(data!$S8:$V8,MATCH(view!BK$3,data!$Y8:$AB8,0)),BK10),"●"),"●")) ->  | BL10: =IF(ISERROR(MATCH(view!BL$3,data!$Y8:$AB8,0)),"",IFERROR(HYPERLINK(showDetails(INDEX(data!$S8:$V8,MATCH(view!BL$3,data!$Y8:$AB8,0)),BL10),"●"),"●")) ->  | BM10: =IF(ISERROR(MATCH(view!BM$3,data!$Y8:$AB8,0)),"",IFERROR(HYPERLINK(showDetails(INDEX(data!$S8:$V8,MATCH(view!BM$3,data!$Y8:$AB8,0)),BM10),"●"),"●")) ->  | BN10: =IF(ISERROR(MATCH(view!BN$3,data!$Y8:$AB8,0)),"",IFERROR(HYPERLINK(showDetails(INDEX(data!$S8:$V8,MATCH(view!BN$3,data!$Y8:$AB8,0)),BN10),"●"),"●")) ->  | BO10: =IF(ISERROR(MATCH(view!BO$3,data!$Y8:$AB8,0)),"",IFERROR(HYPERLINK(showDetails(INDEX(data!$S8:$V8,MATCH(view!BO$3,data!$Y8:$AB8,0)),BO10),"●"),"●")) ->  | BP10: =IF(ISERROR(MATCH(view!BP$3,data!$Y8:$AB8,0)),"",IFERROR(HYPERLINK(showDetails(INDEX(data!$S8:$V8,MATCH(view!BP$3,data!$Y8:$AB8,0)),BP10),"●"),"●")) ->  | BQ10: =IF(ISERROR(MATCH(view!BQ$3,data!$Y8:$AB8,0)),"",IFERROR(HYPERLINK(showDetails(INDEX(data!$S8:$V8,MATCH(view!BQ$3,data!$Y8:$AB8,0)),BQ10),"●"),"●")) ->  | BR10: =IF(ISERROR(MATCH(view!BR$3,data!$Y8:$AB8,0)),"",IFERROR(HYPERLINK(showDetails(INDEX(data!$S8:$V8,MATCH(view!BR$3,data!$Y8:$AB8,0)),BR10),"●"),"●")) ->  | BS10: =IF(ISERROR(MATCH(view!BS$3,data!$Y8:$AB8,0)),"",IFERROR(HYPERLINK(showDetails(INDEX(data!$S8:$V8,MATCH(view!BS$3,data!$Y8:$AB8,0)),BS10),"●"),"●")) ->  | BT10: =IF(ISERROR(MATCH(view!BT$3,data!$Y8:$AB8,0)),"",IFERROR(HYPERLINK(showDetails(INDEX(data!$S8:$V8,MATCH(view!BT$3,data!$Y8:$AB8,0)),BT10),"●"),"●")) ->  | BU10: =IF(ISERROR(MATCH(view!BU$3,data!$Y8:$AB8,0)),"",IFERROR(HYPERLINK(showDetails(INDEX(data!$S8:$V8,MATCH(view!BU$3,data!$Y8:$AB8,0)),BU10),"●"),"●")) ->  | BV10: =IF(ISERROR(MATCH(view!BV$3,data!$Y8:$AB8,0)),"",IFERROR(HYPERLINK(showDetails(INDEX(data!$S8:$V8,MATCH(view!BV$3,data!$Y8:$AB8,0)),BV10),"●"),"●")) ->  | BW10: =IF(ISERROR(MATCH(view!BW$3,data!$Y8:$AB8,0)),"",IFERROR(HYPERLINK(showDetails(INDEX(data!$S8:$V8,MATCH(view!BW$3,data!$Y8:$AB8,0)),BW10),"●"),"●")) ->  | BX10: =IF(ISERROR(MATCH(view!BX$3,data!$Y8:$AB8,0)),"",IFERROR(HYPERLINK(showDetails(INDEX(data!$S8:$V8,MATCH(view!BX$3,data!$Y8:$AB8,0)),BX10),"●"),"●")) ->  | BY10: =IF(ISERROR(MATCH(view!BY$3,data!$Y8:$AB8,0)),"",IFERROR(HYPERLINK(showDetails(INDEX(data!$S8:$V8,MATCH(view!BY$3,data!$Y8:$AB8,0)),BY10),"●"),"●")) ->  | BZ10: =IF(ISERROR(MATCH(view!BZ$3,data!$Y8:$AB8,0)),"",IFERROR(HYPERLINK(showDetails(INDEX(data!$S8:$V8,MATCH(view!BZ$3,data!$Y8:$AB8,0)),BZ10),"●"),"●")) ->  | CA10: =IF(ISERROR(MATCH(view!CA$3,data!$Y8:$AB8,0)),"",IFERROR(HYPERLINK(showDetails(INDEX(data!$S8:$V8,MATCH(view!CA$3,data!$Y8:$AB8,0)),CA10),"●"),"●")) ->  | CB10: =IF(ISERROR(MATCH(view!CB$3,data!$Y8:$AB8,0)),"",IFERROR(HYPERLINK(showDetails(INDEX(data!$S8:$V8,MATCH(view!CB$3,data!$Y8:$AB8,0)),CB10),"●"),"●")) ->  | CC10: =IF(ISERROR(MATCH(view!CC$3,data!$Y8:$AB8,0)),"",IFERROR(HYPERLINK(showDetails(INDEX(data!$S8:$V8,MATCH(view!CC$3,data!$Y8:$AB8,0)),CC10),"●"),"●")) ->  | CD10: =IF(ISERROR(MATCH(view!CD$3,data!$Y8:$AB8,0)),"",IFERROR(HYPERLINK(showDetails(INDEX(data!$S8:$V8,MATCH(view!CD$3,data!$Y8:$AB8,0)),CD10),"●"),"●")) ->  | CE10: =IF(ISERROR(MATCH(view!CE$3,data!$Y8:$AB8,0)),"",IFERROR(HYPERLINK(showDetails(INDEX(data!$S8:$V8,MATCH(view!CE$3,data!$Y8:$AB8,0)),CE10),"●"),"●")) ->  | CF10: =IF(ISERROR(MATCH(view!CF$3,data!$Y8:$AB8,0)),"",IFERROR(HYPERLINK(showDetails(INDEX(data!$S8:$V8,MATCH(view!CF$3,data!$Y8:$AB8,0)),CF10),"●"),"●")) ->  | CG10: =IF(ISERROR(MATCH(view!CG$3,data!$Y8:$AB8,0)),"",IFERROR(HYPERLINK(showDetails(INDEX(data!$S8:$V8,MATCH(view!CG$3,data!$Y8:$AB8,0)),CG10),"●"),"●")) ->  | CH10: =IF(ISERROR(MATCH(view!CH$3,data!$Y8:$AB8,0)),"",IFERROR(HYPERLINK(showDetails(INDEX(data!$S8:$V8,MATCH(view!CH$3,data!$Y8:$AB8,0)),CH10),"●"),"●")) ->  | CI10: =IF(ISERROR(MATCH(view!CI$3,data!$Y8:$AB8,0)),"",IFERROR(HYPERLINK(showDetails(INDEX(data!$S8:$V8,MATCH(view!CI$3,data!$Y8:$AB8,0)),CI10),"●"),"●")) ->  | CJ10: =IF(ISERROR(MATCH(view!CJ$3,data!$Y8:$AB8,0)),"",IFERROR(HYPERLINK(showDetails(INDEX(data!$S8:$V8,MATCH(view!CJ$3,data!$Y8:$AB8,0)),CJ10),"●"),"●")) ->  | CK10: =IF(ISERROR(MATCH(view!CK$3,data!$Y8:$AB8,0)),"",IFERROR(HYPERLINK(showDetails(INDEX(data!$S8:$V8,MATCH(view!CK$3,data!$Y8:$AB8,0)),CK10),"●"),"●")) ->  | CL10: =IF(ISERROR(MATCH(view!CL$3,data!$Y8:$AB8,0)),"",IFERROR(HYPERLINK(showDetails(INDEX(data!$S8:$V8,MATCH(view!CL$3,data!$Y8:$AB8,0)),CL10),"●"),"●")) ->  | CM10: =IF(ISERROR(MATCH(view!CM$3,data!$Y8:$AB8,0)),"",IFERROR(HYPERLINK(showDetails(INDEX(data!$S8:$V8,MATCH(view!CM$3,data!$Y8:$AB8,0)),CM10),"●"),"●")) ->  | CN10: =IF(ISERROR(MATCH(view!CN$3,data!$Y8:$AB8,0)),"",IFERROR(HYPERLINK(showDetails(INDEX(data!$S8:$V8,MATCH(view!CN$3,data!$Y8:$AB8,0)),CN10),"●"),"●")) ->  | CO10: =IF(ISERROR(MATCH(view!CO$3,data!$Y8:$AB8,0)),"",IFERROR(HYPERLINK(showDetails(INDEX(data!$S8:$V8,MATCH(view!CO$3,data!$Y8:$AB8,0)),CO10),"●"),"●")) ->  | CP10: =IF(ISERROR(MATCH(view!CP$3,data!$Y8:$AB8,0)),"",IFERROR(HYPERLINK(showDetails(INDEX(data!$S8:$V8,MATCH(view!CP$3,data!$Y8:$AB8,0)),CP10),"●"),"●")) ->  | CQ10: =IF(ISERROR(MATCH(view!CQ$3,data!$Y8:$AB8,0)),"",IFERROR(HYPERLINK(showDetails(INDEX(data!$S8:$V8,MATCH(view!CQ$3,data!$Y8:$AB8,0)),CQ10),"●"),"●")) ->  | CR10: =IF(ISERROR(MATCH(view!CR$3,data!$Y8:$AB8,0)),"",IFERROR(HYPERLINK(showDetails(INDEX(data!$S8:$V8,MATCH(view!CR$3,data!$Y8:$AB8,0)),CR10),"●"),"●")) ->  | CS10: =IF(ISERROR(MATCH(view!CS$3,data!$Y8:$AB8,0)),"",IFERROR(HYPERLINK(showDetails(INDEX(data!$S8:$V8,MATCH(view!CS$3,data!$Y8:$AB8,0)),CS10),"●"),"●")) ->  | CT10: =IF(ISERROR(MATCH(view!CT$3,data!$Y8:$AB8,0)),"",IFERROR(HYPERLINK(showDetails(INDEX(data!$S8:$V8,MATCH(view!CT$3,data!$Y8:$AB8,0)),CT10),"●"),"●")) ->  | CU10: =IF(ISERROR(MATCH(view!CU$3,data!$Y8:$AB8,0)),"",IFERROR(HYPERLINK(showDetails(INDEX(data!$S8:$V8,MATCH(view!CU$3,data!$Y8:$AB8,0)),CU10),"●"),"●")) ->  | CV10: =IF(ISERROR(MATCH(view!CV$3,data!$Y8:$AB8,0)),"",IFERROR(HYPERLINK(showDetails(INDEX(data!$S8:$V8,MATCH(view!CV$3,data!$Y8:$AB8,0)),CV10),"●"),"●")) ->  | CW10: =IF(ISERROR(MATCH(view!CW$3,data!$Y8:$AB8,0)),"",IFERROR(HYPERLINK(showDetails(INDEX(data!$S8:$V8,MATCH(view!CW$3,data!$Y8:$AB8,0)),CW10),"●"),"●")) ->  | CX10: =IF(ISERROR(MATCH(view!CX$3,data!$Y8:$AB8,0)),"",IFERROR(HYPERLINK(showDetails(INDEX(data!$S8:$V8,MATCH(view!CX$3,data!$Y8:$AB8,0)),CX10),"●"),"●")) -> ● | CY10: =IF(ISERROR(MATCH(view!CY$3,data!$Y8:$AB8,0)),"",IFERROR(HYPERLINK(showDetails(INDEX(data!$S8:$V8,MATCH(view!CY$3,data!$Y8:$AB8,0)),CY10),"●"),"●")) -> ● | CZ10: =IF(ISERROR(MATCH(view!CZ$3,data!$Y8:$AB8,0)),"",IFERROR(HYPERLINK(showDetails(INDEX(data!$S8:$V8,MATCH(view!CZ$3,data!$Y8:$AB8,0)),CZ10),"●"),"●")) ->  | DA10: =IF(ISERROR(MATCH(view!DA$3,data!$Y8:$AB8,0)),"",IFERROR(HYPERLINK(showDetails(INDEX(data!$S8:$V8,MATCH(view!DA$3,data!$Y8:$AB8,0)),DA10),"●"),"●")) ->  | DB10: =IF(ISERROR(MATCH(view!DB$3,data!$Y8:$AB8,0)),"",IFERROR(HYPERLINK(showDetails(INDEX(data!$S8:$V8,MATCH(view!DB$3,data!$Y8:$AB8,0)),DB10),"●"),"●")) -> ● | DC10: =IF(ISERROR(MATCH(view!DC$3,data!$Y8:$AB8,0)),"",IFERROR(HYPERLINK(showDetails(INDEX(data!$S8:$V8,MATCH(view!DC$3,data!$Y8:$AB8,0)),DC10),"●"),"●")) ->  | DD10: =IF(ISERROR(MATCH(view!DD$3,data!$Y8:$AB8,0)),"",IFERROR(HYPERLINK(showDetails(INDEX(data!$S8:$V8,MATCH(view!DD$3,data!$Y8:$AB8,0)),DD10),"●"),"●")) ->  | DE10: =IF(ISERROR(MATCH(view!DE$3,data!$Y8:$AB8,0)),"",IFERROR(HYPERLINK(showDetails(INDEX(data!$S8:$V8,MATCH(view!DE$3,data!$Y8:$AB8,0)),DE10),"●"),"●")) ->  | DF10: =IF(ISERROR(MATCH(view!DF$3,data!$Y8:$AB8,0)),"",IFERROR(HYPERLINK(showDetails(INDEX(data!$S8:$V8,MATCH(view!DF$3,data!$Y8:$AB8,0)),DF10),"●"),"●")) ->  | DG10: =IF(ISERROR(MATCH(view!DG$3,data!$Y8:$AB8,0)),"",IFERROR(HYPERLINK(showDetails(INDEX(data!$S8:$V8,MATCH(view!DG$3,data!$Y8:$AB8,0)),DG10),"●"),"●")) ->  | DH10: =IF(ISERROR(MATCH(view!DH$3,data!$Y8:$AB8,0)),"",IFERROR(HYPERLINK(showDetails(INDEX(data!$S8:$V8,MATCH(view!DH$3,data!$Y8:$AB8,0)),DH10),"●"),"●")) ->  | DI10: =IF(ISERROR(MATCH(view!DI$3,data!$Y8:$AB8,0)),"",IFERROR(HYPERLINK(showDetails(INDEX(data!$S8:$V8,MATCH(view!DI$3,data!$Y8:$AB8,0)),DI10),"●"),"●")) ->  | DJ10: =IF(ISERROR(MATCH(view!DJ$3,data!$Y8:$AB8,0)),"",IFERROR(HYPERLINK(showDetails(INDEX(data!$S8:$V8,MATCH(view!DJ$3,data!$Y8:$AB8,0)),DJ10),"●"),"●")) ->  | DK10: =IF(ISERROR(MATCH(view!DK$3,data!$Y8:$AB8,0)),"",IFERROR(HYPERLINK(showDetails(INDEX(data!$S8:$V8,MATCH(view!DK$3,data!$Y8:$AB8,0)),DK10),"●"),"●")) ->  | DL10: =IF(ISERROR(MATCH(view!DL$3,data!$Y8:$AB8,0)),"",IFERROR(HYPERLINK(showDetails(INDEX(data!$S8:$V8,MATCH(view!DL$3,data!$Y8:$AB8,0)),DL10),"●"),"●")) ->  | DM10: =IF(ISERROR(MATCH(view!DM$3,data!$Y8:$AB8,0)),"",IFERROR(HYPERLINK(showDetails(INDEX(data!$S8:$V8,MATCH(view!DM$3,data!$Y8:$AB8,0)),DM10),"●"),"●")) ->  | DN10: =IF(ISERROR(MATCH(view!DN$3,data!$Y8:$AB8,0)),"",IFERROR(HYPERLINK(showDetails(INDEX(data!$S8:$V8,MATCH(view!DN$3,data!$Y8:$AB8,0)),DN10),"●"),"●")) ->  | DO10: =IF(ISERROR(MATCH(view!DO$3,data!$Y8:$AB8,0)),"",IFERROR(HYPERLINK(showDetails(INDEX(data!$S8:$V8,MATCH(view!DO$3,data!$Y8:$AB8,0)),DO10),"●"),"●")) ->  | DP10: =IF(ISERROR(MATCH(view!DP$3,data!$Y8:$AB8,0)),"",IFERROR(HYPERLINK(showDetails(INDEX(data!$S8:$V8,MATCH(view!DP$3,data!$Y8:$AB8,0)),DP10),"●"),"●")) ->  | DQ10: =IF(ISERROR(MATCH(view!DQ$3,data!$Y8:$AB8,0)),"",IFERROR(HYPERLINK(showDetails(INDEX(data!$S8:$V8,MATCH(view!DQ$3,data!$Y8:$AB8,0)),DQ10),"●"),"●")) ->  | DR10: =IF(ISERROR(MATCH(view!DR$3,data!$Y8:$AB8,0)),"",IFERROR(HYPERLINK(showDetails(INDEX(data!$S8:$V8,MATCH(view!DR$3,data!$Y8:$AB8,0)),DR10),"●"),"●")) ->  | DS10: =IF(ISERROR(MATCH(view!DS$3,data!$Y8:$AB8,0)),"",IFERROR(HYPERLINK(showDetails(INDEX(data!$S8:$V8,MATCH(view!DS$3,data!$Y8:$AB8,0)),DS10),"●"),"●")) ->  | DT10: =INDEX(lstYears,A10) &" - "&INDEX(data!$W$3:$W$30,A10) -> 1992 - Barcelona
A11: 7 | C11: =IF(ISERROR(MATCH(view!C$3,data!$Y9:$AB9,0)),"",IFERROR(HYPERLINK(showDetails(INDEX(data!$S9:$V9,MATCH(view!C$3,data!$Y9:$AB9,0)),C11),"●"),"●")) ->  | D11: =IF(ISERROR(MATCH(view!D$3,data!$Y9:$AB9,0)),"",IFERROR(HYPERLINK(showDetails(INDEX(data!$S9:$V9,MATCH(view!D$3,data!$Y9:$AB9,0)),D11),"●"),"●")) ->  | E11: =IF(ISERROR(MATCH(view!E$3,data!$Y9:$AB9,0)),"",IFERROR(HYPERLINK(showDetails(INDEX(data!$S9:$V9,MATCH(view!E$3,data!$Y9:$AB9,0)),E11),"●"),"●")) ->  | F11: =IF(ISERROR(MATCH(view!F$3,data!$Y9:$AB9,0)),"",IFERROR(HYPERLINK(showDetails(INDEX(data!$S9:$V9,MATCH(view!F$3,data!$Y9:$AB9,0)),F11),"●"),"●")) ->  | G11: =IF(ISERROR(MATCH(view!G$3,data!$Y9:$AB9,0)),"",IFERROR(HYPERLINK(showDetails(INDEX(data!$S9:$V9,MATCH(view!G$3,data!$Y9:$AB9,0)),G11),"●"),"●")) ->  | H11: =IF(ISERROR(MATCH(view!H$3,data!$Y9:$AB9,0)),"",IFERROR(HYPERLINK(showDetails(INDEX(data!$S9:$V9,MATCH(view!H$3,data!$Y9:$AB9,0)),H11),"●"),"●")) ->  | I11: =IF(ISERROR(MATCH(view!I$3,data!$Y9:$AB9,0)),"",IFERROR(HYPERLINK(showDetails(INDEX(data!$S9:$V9,MATCH(view!I$3,data!$Y9:$AB9,0)),I11),"●"),"●")) ->  | J11: =IF(ISERROR(MATCH(view!J$3,data!$Y9:$AB9,0)),"",IFERROR(HYPERLINK(showDetails(INDEX(data!$S9:$V9,MATCH(view!J$3,data!$Y9:$AB9,0)),J11),"●"),"●")) ->  | K11: =IF(ISERROR(MATCH(view!K$3,data!$Y9:$AB9,0)),"",IFERROR(HYPERLINK(showDetails(INDEX(data!$S9:$V9,MATCH(view!K$3,data!$Y9:$AB9,0)),K11),"●"),"●")) ->  | L11: =IF(ISERROR(MATCH(view!L$3,data!$Y9:$AB9,0)),"",IFERROR(HYPERLINK(showDetails(INDEX(data!$S9:$V9,MATCH(view!L$3,data!$Y9:$AB9,0)),L11),"●"),"●")) ->  | M11: =IF(ISERROR(MATCH(view!M$3,data!$Y9:$AB9,0)),"",IFERROR(HYPERLINK(showDetails(INDEX(data!$S9:$V9,MATCH(view!M$3,data!$Y9:$AB9,0)),M11),"●"),"●")) ->  | N11: =IF(ISERROR(MATCH(view!N$3,data!$Y9:$AB9,0)),"",IFERROR(HYPERLINK(showDetails(INDEX(data!$S9:$V9,MATCH(view!N$3,data!$Y9:$AB9,0)),N11),"●"),"●")) ->  | O11: =IF(ISERROR(MATCH(view!O$3,data!$Y9:$AB9,0)),"",IFERROR(HYPERLINK(showDetails(INDEX(data!$S9:$V9,MATCH(view!O$3,data!$Y9:$AB9,0)),O11),"●"),"●")) ->  | P11: =IF(ISERROR(MATCH(view!P$3,data!$Y9:$AB9,0)),"",IFERROR(HYPERLINK(showDetails(INDEX(data!$S9:$V9,MATCH(view!P$3,data!$Y9:$AB9,0)),P11),"●"),"●")) ->  | Q11: =IF(ISERROR(MATCH(view!Q$3,data!$Y9:$AB9,0)),"",IFERROR(HYPERLINK(showDetails(INDEX(data!$S9:$V9,MATCH(view!Q$3,data!$Y9:$AB9,0)),Q11),"●"),"●")) ->  | R11: =IF(ISERROR(MATCH(view!R$3,data!$Y9:$AB9,0)),"",IFERROR(HYPERLINK(showDetails(INDEX(data!$S9:$V9,MATCH(view!R$3,data!$Y9:$AB9,0)),R11),"●"),"●")) ->  | S11: =IF(ISERROR(MATCH(view!S$3,data!$Y9:$AB9,0)),"",IFERROR(HYPERLINK(showDetails(INDEX(data!$S9:$V9,MATCH(view!S$3,data!$Y9:$AB9,0)),S11),"●"),"●")) ->  | T11: =IF(ISERROR(MATCH(view!T$3,data!$Y9:$AB9,0)),"",IFERROR(HYPERLINK(showDetails(INDEX(data!$S9:$V9,MATCH(view!T$3,data!$Y9:$AB9,0)),T11),"●"),"●")) ->  | U11: =IF(ISERROR(MATCH(view!U$3,data!$Y9:$AB9,0)),"",IFERROR(HYPERLINK(showDetails(INDEX(data!$S9:$V9,MATCH(view!U$3,data!$Y9:$AB9,0)),U11),"●"),"●")) ->  | V11: =IF(ISERROR(MATCH(view!V$3,data!$Y9:$AB9,0)),"",IFERROR(HYPERLINK(showDetails(INDEX(data!$S9:$V9,MATCH(view!V$3,data!$Y9:$AB9,0)),V11),"●"),"●")) ->  | W11: =IF(ISERROR(MATCH(view!W$3,data!$Y9:$AB9,0)),"",IFERROR(HYPERLINK(showDetails(INDEX(data!$S9:$V9,MATCH(view!W$3,data!$Y9:$AB9,0)),W11),"●"),"●")) ->  | X11: =IF(ISERROR(MATCH(view!X$3,data!$Y9:$AB9,0)),"",IFERROR(HYPERLINK(showDetails(INDEX(data!$S9:$V9,MATCH(view!X$3,data!$Y9:$AB9,0)),X11),"●"),"●")) ->  | Y11: =IF(ISERROR(MATCH(view!Y$3,data!$Y9:$AB9,0)),"",IFERROR(HYPERLINK(showDetails(INDEX(data!$S9:$V9,MATCH(view!Y$3,data!$Y9:$AB9,0)),Y11),"●"),"●")) ->  | Z11: =IF(ISERROR(MATCH(view!Z$3,data!$Y9:$AB9,0)),"",IFERROR(HYPERLINK(showDetails(INDEX(data!$S9:$V9,MATCH(view!Z$3,data!$Y9:$AB9,0)),Z11),"●"),"●")) ->  | AA11: =IF(ISERROR(MATCH(view!AA$3,data!$Y9:$AB9,0)),"",IFERROR(HYPERLINK(showDetails(INDEX(data!$S9:$V9,MATCH(view!AA$3,data!$Y9:$AB9,0)),AA11),"●"),"●")) ->  | AB11: =IF(ISERROR(MATCH(view!AB$3,data!$Y9:$AB9,0)),"",IFERROR(HYPERLINK(showDetails(INDEX(data!$S9:$V9,MATCH(view!AB$3,data!$Y9:$AB9,0)),AB11),"●"),"●")) ->  | AC11: =IF(ISERROR(MATCH(view!AC$3,data!$Y9:$AB9,0)),"",IFERROR(HYPERLINK(showDetails(INDEX(data!$S9:$V9,MATCH(view!AC$3,data!$Y9:$AB9,0)),AC11),"●"),"●")) ->  | AD11: =IF(ISERROR(MATCH(view!AD$3,data!$Y9:$AB9,0)),"",IFERROR(HYPERLINK(showDetails(INDEX(data!$S9:$V9,MATCH(view!AD$3,data!$Y9:$AB9,0)),AD11),"●"),"●")) ->  | AE11: =IF(ISERROR(MATCH(view!AE$3,data!$Y9:$AB9,0)),"",IFERROR(HYPERLINK(showDetails(INDEX(data!$S9:$V9,MATCH(view!AE$3,data!$Y9:$AB9,0)),AE11),"●"),"●")) ->  | AF11: =IF(ISERROR(MATCH(view!AF$3,data!$Y9:$AB9,0)),"",IFERROR(HYPERLINK(showDetails(INDEX(data!$S9:$V9,MATCH(view!AF$3,data!$Y9:$AB9,0)),AF11),"●"),"●")) ->  | AG11: =IF(ISERROR(MATCH(view!AG$3,data!$Y9:$AB9,0)),"",IFERROR(HYPERLINK(showDetails(INDEX(data!$S9:$V9,MATCH(view!AG$3,data!$Y9:$AB9,0)),AG11),"●"),"●")) ->  | AH11: =IF(ISERROR(MATCH(view!AH$3,data!$Y9:$AB9,0)),"",IFERROR(HYPERLINK(showDetails(INDEX(data!$S9:$V9,MATCH(view!AH$3,data!$Y9:$AB9,0)),AH11),"●"),"●")) ->  | AI11: =IF(ISERROR(MATCH(view!AI$3,data!$Y9:$AB9,0)),"",IFERROR(HYPERLINK(showDetails(INDEX(data!$S9:$V9,MATCH(view!AI$3,data!$Y9:$AB9,0)),AI11),"●"),"●")) ->  | AJ11: =IF(ISERROR(MATCH(view!AJ$3,data!$Y9:$AB9,0)),"",IFERROR(HYPERLINK(showDetails(INDEX(data!$S9:$V9,MATCH(view!AJ$3,data!$Y9:$AB9,0)),AJ11),"●"),"●")) ->  | AK11: =IF(ISERROR(MATCH(view!AK$3,data!$Y9:$AB9,0)),"",IFERROR(HYPERLINK(showDetails(INDEX(data!$S9:$V9,MATCH(view!AK$3,data!$Y9:$AB9,0)),AK11),"●"),"●")) ->  | AL11: =IF(ISERROR(MATCH(view!AL$3,data!$Y9:$AB9,0)),"",IFERROR(HYPERLINK(showDetails(INDEX(data!$S9:$V9,MATCH(view!AL$3,data!$Y9:$AB9,0)),AL11),"●"),"●")) ->  | AM11: =IF(ISERROR(MATCH(view!AM$3,data!$Y9:$AB9,0)),"",IFERROR(HYPERLINK(showDetails(INDEX(data!$S9:$V9,MATCH(view!AM$3,data!$Y9:$AB9,0)),AM11),"●"),"●")) ->  | AN11: =IF(ISERROR(MATCH(view!AN$3,data!$Y9:$AB9,0)),"",IFERROR(HYPERLINK(showDetails(INDEX(data!$S9:$V9,MATCH(view!AN$3,data!$Y9:$AB9,0)),AN11),"●"),"●")) ->  | AO11: =IF(ISERROR(MATCH(view!AO$3,data!$Y9:$AB9,0)),"",IFERROR(HYPERLINK(showDetails(INDEX(data!$S9:$V9,MATCH(view!AO$3,data!$Y9:$AB9,0)),AO11),"●"),"●")) ->  | AP11: =IF(ISERROR(MATCH(view!AP$3,data!$Y9:$AB9,0)),"",IFERROR(HYPERLINK(showDetails(INDEX(data!$S9:$V9,MATCH(view!AP$3,data!$Y9:$AB9,0)),AP11),"●"),"●")) ->  | AQ11: =IF(ISERROR(MATCH(view!AQ$3,data!$Y9:$AB9,0)),"",IFERROR(HYPERLINK(showDetails(INDEX(data!$S9:$V9,MATCH(view!AQ$3,data!$Y9:$AB9,0)),AQ11),"●"),"●")) ->  | AR11: =IF(ISERROR(MATCH(view!AR$3,data!$Y9:$AB9,0)),"",IFERROR(HYPERLINK(showDetails(INDEX(data!$S9:$V9,MATCH(view!AR$3,data!$Y9:$AB9,0)),AR11),"●"),"●")) ->  | AS11: =IF(ISERROR(MATCH(view!AS$3,data!$Y9:$AB9,0)),"",IFERROR(HYPERLINK(showDetails(INDEX(data!$S9:$V9,MATCH(view!AS$3,data!$Y9:$AB9,0)),AS11),"●"),"●")) ->  | AT11: =IF(ISERROR(MATCH(view!AT$3,data!$Y9:$AB9,0)),"",IFERROR(HYPERLINK(showDetails(INDEX(data!$S9:$V9,MATCH(view!AT$3,data!$Y9:$AB9,0)),AT11),"●"),"●")) ->  | AU11: =IF(ISERROR(MATCH(view!AU$3,data!$Y9:$AB9,0)),"",IFERROR(HYPERLINK(showDetails(INDEX(data!$S9:$V9,MATCH(view!AU$3,data!$Y9:$AB9,0)),AU11),"●"),"●")) ->  | AV11: =IF(ISERROR(MATCH(view!AV$3,data!$Y9:$AB9,0)),"",IFERROR(HYPERLINK(showDetails(INDEX(data!$S9:$V9,MATCH(view!AV$3,data!$Y9:$AB9,0)),AV11),"●"),"●")) ->  | AW11: =IF(ISERROR(MATCH(view!AW$3,data!$Y9:$AB9,0)),"",IFERROR(HYPERLINK(showDetails(INDEX(data!$S9:$V9,MATCH(view!AW$3,data!$Y9:$AB9,0)),AW11),"●"),"●")) ->  | AX11: =IF(ISERROR(MATCH(view!AX$3,data!$Y9:$AB9,0)),"",IFERROR(HYPERLINK(showDetails(INDEX(data!$S9:$V9,MATCH(view!AX$3,data!$Y9:$AB9,0)),AX11),"●"),"●")) ->  | AY11: =IF(ISERROR(MATCH(view!AY$3,data!$Y9:$AB9,0)),"",IFERROR(HYPERLINK(showDetails(INDEX(data!$S9:$V9,MATCH(view!AY$3,data!$Y9:$AB9,0)),AY11),"●"),"●")) ->  | AZ11: =IF(ISERROR(MATCH(view!AZ$3,data!$Y9:$AB9,0)),"",IFERROR(HYPERLINK(showDetails(INDEX(data!$S9:$V9,MATCH(view!AZ$3,data!$Y9:$AB9,0)),AZ11),"●"),"●")) ->  | BA11: =IF(ISERROR(MATCH(view!BA$3,data!$Y9:$AB9,0)),"",IFERROR(HYPERLINK(showDetails(INDEX(data!$S9:$V9,MATCH(view!BA$3,data!$Y9:$AB9,0)),BA11),"●"),"●")) ->  | BB11: =IF(ISERROR(MATCH(view!BB$3,data!$Y9:$AB9,0)),"",IFERROR(HYPERLINK(showDetails(INDEX(data!$S9:$V9,MATCH(view!BB$3,data!$Y9:$AB9,0)),BB11),"●"),"●")) ->  | BC11: =IF(ISERROR(MATCH(view!BC$3,data!$Y9:$AB9,0)),"",IFERROR(HYPERLINK(showDetails(INDEX(data!$S9:$V9,MATCH(view!BC$3,data!$Y9:$AB9,0)),BC11),"●"),"●")) ->  | BD11: =IF(ISERROR(MATCH(view!BD$3,data!$Y9:$AB9,0)),"",IFERROR(HYPERLINK(showDetails(INDEX(data!$S9:$V9,MATCH(view!BD$3,data!$Y9:$AB9,0)),BD11),"●"),"●")) ->  | BE11: =IF(ISERROR(MATCH(view!BE$3,data!$Y9:$AB9,0)),"",IFERROR(HYPERLINK(showDetails(INDEX(data!$S9:$V9,MATCH(view!BE$3,data!$Y9:$AB9,0)),BE11),"●"),"●")) ->  | BF11: =IF(ISERROR(MATCH(view!BF$3,data!$Y9:$AB9,0)),"",IFERROR(HYPERLINK(showDetails(INDEX(data!$S9:$V9,MATCH(view!BF$3,data!$Y9:$AB9,0)),BF11),"●"),"●")) ->  | BG11: =IF(ISERROR(MATCH(view!BG$3,data!$Y9:$AB9,0)),"",IFERROR(HYPERLINK(showDetails(INDEX(data!$S9:$V9,MATCH(view!BG$3,data!$Y9:$AB9,0)),BG11),"●"),"●")) ->  | BH11: =IF(ISERROR(MATCH(view!BH$3,data!$Y9:$AB9,0)),"",IFERROR(HYPERLINK(showDetails(INDEX(data!$S9:$V9,MATCH(view!BH$3,data!$Y9:$AB9,0)),BH11),"●"),"●")) ->  | BI11: =IF(ISERROR(MATCH(view!BI$3,data!$Y9:$AB9,0)),"",IFERROR(HYPERLINK(showDetails(INDEX(data!$S9:$V9,MATCH(view!BI$3,data!$Y9:$AB9,0)),BI11),"●"),"●")) ->  | BJ11: =IF(ISERROR(MATCH(view!BJ$3,data!$Y9:$AB9,0)),"",IFERROR(HYPERLINK(showDetails(INDEX(data!$S9:$V9,MATCH(view!BJ$3,data!$Y9:$AB9,0)),BJ11),"●"),"●")) ->  | BK11: =IF(ISERROR(MATCH(view!BK$3,data!$Y9:$AB9,0)),"",IFERROR(HYPERLINK(showDetails(INDEX(data!$S9:$V9,MATCH(view!BK$3,data!$Y9:$AB9,0)),BK11),"●"),"●")) ->  | BL11: =IF(ISERROR(MATCH(view!BL$3,data!$Y9:$AB9,0)),"",IFERROR(HYPERLINK(showDetails(INDEX(data!$S9:$V9,MATCH(view!BL$3,data!$Y9:$AB9,0)),BL11),"●"),"●")) ->  | BM11: =IF(ISERROR(MATCH(view!BM$3,data!$Y9:$AB9,0)),"",IFERROR(HYPERLINK(showDetails(INDEX(data!$S9:$V9,MATCH(view!BM$3,data!$Y9:$AB9,0)),BM11),"●"),"●")) ->  | BN11: =IF(ISERROR(MATCH(view!BN$3,data!$Y9:$AB9,0)),"",IFERROR(HYPERLINK(showDetails(INDEX(data!$S9:$V9,MATCH(view!BN$3,data!$Y9:$AB9,0)),BN11),"●"),"●")) ->  | BO11: =IF(ISERROR(MATCH(view!BO$3,data!$Y9:$AB9,0)),"",IFERROR(HYPERLINK(showDetails(INDEX(data!$S9:$V9,MATCH(view!BO$3,data!$Y9:$AB9,0)),BO11),"●"),"●")) ->  | BP11: =IF(ISERROR(MATCH(view!BP$3,data!$Y9:$AB9,0)),"",IFERROR(HYPERLINK(showDetails(INDEX(data!$S9:$V9,MATCH(view!BP$3,data!$Y9:$AB9,0)),BP11),"●"),"●")) ->  | BQ11: =IF(ISERROR(MATCH(view!BQ$3,data!$Y9:$AB9,0)),"",IFERROR(HYPERLINK(showDetails(INDEX(data!$S9:$V9,MATCH(view!BQ$3,data!$Y9:$AB9,0)),BQ11),"●"),"●")) ->  | BR11: =IF(ISERROR(MATCH(view!BR$3,data!$Y9:$AB9,0)),"",IFERROR(HYPERLINK(showDetails(INDEX(data!$S9:$V9,MATCH(view!BR$3,data!$Y9:$AB9,0)),BR11),"●"),"●")) ->  | BS11: =IF(ISERROR(MATCH(view!BS$3,data!$Y9:$AB9,0)),"",IFERROR(HYPERLINK(showDetails(INDEX(data!$S9:$V9,MATCH(view!BS$3,data!$Y9:$AB9,0)),BS11),"●"),"●")) ->  | BT11: =IF(ISERROR(MATCH(view!BT$3,data!$Y9:$AB9,0)),"",IFERROR(HYPERLINK(showDetails(INDEX(data!$S9:$V9,MATCH(view!BT$3,data!$Y9:$AB9,0)),BT11),"●"),"●")) ->  | BU11: =IF(ISERROR(MATCH(view!BU$3,data!$Y9:$AB9,0)),"",IFERROR(HYPERLINK(showDetails(INDEX(data!$S9:$V9,MATCH(view!BU$3,data!$Y9:$AB9,0)),BU11),"●"),"●")) ->  | BV11: =IF(ISERROR(MATCH(view!BV$3,data!$Y9:$AB9,0)),"",IFERROR(HYPERLINK(showDetails(INDEX(data!$S9:$V9,MATCH(view!BV$3,data!$Y9:$AB9,0)),BV11),"●"),"●")) ->  | BW11: =IF(ISERROR(MATCH(view!BW$3,data!$Y9:$AB9,0)),"",IFERROR(HYPERLINK(showDetails(INDEX(data!$S9:$V9,MATCH(view!BW$3,data!$Y9:$AB9,0)),BW11),"●"),"●")) ->  | BX11: =IF(ISERROR(MATCH(view!BX$3,data!$Y9:$AB9,0)),"",IFERROR(HYPERLINK(showDetails(INDEX(data!$S9:$V9,MATCH(view!BX$3,data!$Y9:$AB9,0)),BX11),"●"),"●")) ->  | BY11: =IF(ISERROR(MATCH(view!BY$3,data!$Y9:$AB9,0)),"",IFERROR(HYPERLINK(showDetails(INDEX(data!$S9:$V9,MATCH(view!BY$3,data!$Y9:$AB9,0)),BY11),"●"),"●")) ->  | BZ11: =IF(ISERROR(MATCH(view!BZ$3,data!$Y9:$AB9,0)),"",IFERROR(HYPERLINK(showDetails(INDEX(data!$S9:$V9,MATCH(view!BZ$3,data!$Y9:$AB9,0)),BZ11),"●"),"●")) ->  | CA11: =IF(ISERROR(MATCH(view!CA$3,data!$Y9:$AB9,0)),"",IFERROR(HYPERLINK(showDetails(INDEX(data!$S9:$V9,MATCH(view!CA$3,data!$Y9:$AB9,0)),CA11),"●"),"●")) ->  | CB11: =IF(ISERROR(MATCH(view!CB$3,data!$Y9:$AB9,0)),"",IFERROR(HYPERLINK(showDetails(INDEX(data!$S9:$V9,MATCH(view!CB$3,data!$Y9:$AB9,0)),CB11),"●"),"●")) ->  | CC11: =IF(ISERROR(MATCH(view!CC$3,data!$Y9:$AB9,0)),"",IFERROR(HYPERLINK(showDetails(INDEX(data!$S9:$V9,MATCH(view!CC$3,data!$Y9:$AB9,0)),CC11),"●"),"●")) ->  | CD11: =IF(ISERROR(MATCH(view!CD$3,data!$Y9:$AB9,0)),"",IFERROR(HYPERLINK(showDetails(INDEX(data!$S9:$V9,MATCH(view!CD$3,data!$Y9:$AB9,0)),CD11),"●"),"●")) ->  | CE11: =IF(ISERROR(MATCH(view!CE$3,data!$Y9:$AB9,0)),"",IFERROR(HYPERLINK(showDetails(INDEX(data!$S9:$V9,MATCH(view!CE$3,data!$Y9:$AB9,0)),CE11),"●"),"●")) ->  | CF11: =IF(ISERROR(MATCH(view!CF$3,data!$Y9:$AB9,0)),"",IFERROR(HYPERLINK(showDetails(INDEX(data!$S9:$V9,MATCH(view!CF$3,data!$Y9:$AB9,0)),CF11),"●"),"●")) ->  | CG11: =IF(ISERROR(MATCH(view!CG$3,data!$Y9:$AB9,0)),"",IFERROR(HYPERLINK(showDetails(INDEX(data!$S9:$V9,MATCH(view!CG$3,data!$Y9:$AB9,0)),CG11),"●"),"●")) ->  | CH11: =IF(ISERROR(MATCH(view!CH$3,data!$Y9:$AB9,0)),"",IFERROR(HYPERLINK(showDetails(INDEX(data!$S9:$V9,MATCH(view!CH$3,data!$Y9:$AB9,0)),CH11),"●"),"●")) ->  | CI11: =IF(ISERROR(MATCH(view!CI$3,data!$Y9:$AB9,0)),"",IFERROR(HYPERLINK(showDetails(INDEX(data!$S9:$V9,MATCH(view!CI$3,data!$Y9:$AB9,0)),CI11),"●"),"●")) ->  | CJ11: =IF(ISERROR(MATCH(view!CJ$3,data!$Y9:$AB9,0)),"",IFERROR(HYPERLINK(showDetails(INDEX(data!$S9:$V9,MATCH(view!CJ$3,data!$Y9:$AB9,0)),CJ11),"●"),"●")) ->  | CK11: =IF(ISERROR(MATCH(view!CK$3,data!$Y9:$AB9,0)),"",IFERROR(HYPERLINK(showDetails(INDEX(data!$S9:$V9,MATCH(view!CK$3,data!$Y9:$AB9,0)),CK11),"●"),"●")) ->  | CL11: =IF(ISERROR(MATCH(view!CL$3,data!$Y9:$AB9,0)),"",IFERROR(HYPERLINK(showDetails(INDEX(data!$S9:$V9,MATCH(view!CL$3,data!$Y9:$AB9,0)),CL11),"●"),"●")) ->  | CM11: =IF(ISERROR(MATCH(view!CM$3,data!$Y9:$AB9,0)),"",IFERROR(HYPERLINK(showDetails(INDEX(data!$S9:$V9,MATCH(view!CM$3,data!$Y9:$AB9,0)),CM11),"●"),"●")) ->  | CN11: =IF(ISERROR(MATCH(view!CN$3,data!$Y9:$AB9,0)),"",IFERROR(HYPERLINK(showDetails(INDEX(data!$S9:$V9,MATCH(view!CN$3,data!$Y9:$AB9,0)),CN11),"●"),"●")) ->  | CO11: =IF(ISERROR(MATCH(view!CO$3,data!$Y9:$AB9,0)),"",IFERROR(HYPERLINK(showDetails(INDEX(data!$S9:$V9,MATCH(view!CO$3,data!$Y9:$AB9,0)),CO11),"●"),"●")) ->  | CP11: =IF(ISERROR(MATCH(view!CP$3,data!$Y9:$AB9,0)),"",IFERROR(HYPERLINK(showDetails(INDEX(data!$S9:$V9,MATCH(view!CP$3,data!$Y9:$AB9,0)),CP11),"●"),"●")) ->  | CQ11: =IF(ISERROR(MATCH(view!CQ$3,data!$Y9:$AB9,0)),"",IFERROR(HYPERLINK(showDetails(INDEX(data!$S9:$V9,MATCH(view!CQ$3,data!$Y9:$AB9,0)),CQ11),"●"),"●")) ->  | CR11: =IF(ISERROR(MATCH(view!CR$3,data!$Y9:$AB9,0)),"",IFERROR(HYPERLINK(showDetails(INDEX(data!$S9:$V9,MATCH(view!CR$3,data!$Y9:$AB9,0)),CR11),"●"),"●")) ->  | CS11: =IF(ISERROR(MATCH(view!CS$3,data!$Y9:$AB9,0)),"",IFERROR(HYPERLINK(showDetails(INDEX(data!$S9:$V9,MATCH(view!CS$3,data!$Y9:$AB9,0)),CS11),"●"),"●")) ->  | CT11: =IF(ISERROR(MATCH(view!CT$3,data!$Y9:$AB9,0)),"",IFERROR(HYPERLINK(showDetails(INDEX(data!$S9:$V9,MATCH(view!CT$3,data!$Y9:$AB9,0)),CT11),"●"),"●")) ->  | CU11: =IF(ISERROR(MATCH(view!CU$3,data!$Y9:$AB9,0)),"",IFERROR(HYPERLINK(showDetails(INDEX(data!$S9:$V9,MATCH(view!CU$3,data!$Y9:$AB9,0)),CU11),"●"),"●")) ->  | CV11: =IF(ISERROR(MATCH(view!CV$3,data!$Y9:$AB9,0)),"",IFERROR(HYPERLINK(showDetails(INDEX(data!$S9:$V9,MATCH(view!CV$3,data!$Y9:$AB9,0)),CV11),"●"),"●")) ->  | CW11: =IF(ISERROR(MATCH(view!CW$3,data!$Y9:$AB9,0)),"",IFERROR(HYPERLINK(showDetails(INDEX(data!$S9:$V9,MATCH(view!CW$3,data!$Y9:$AB9,0)),CW11),"●"),"●")) ->  | CX11: =IF(ISERROR(MATCH(view!CX$3,data!$Y9:$AB9,0)),"",IFERROR(HYPERLINK(showDetails(INDEX(data!$S9:$V9,MATCH(view!CX$3,data!$Y9:$AB9,0)),CX11),"●"),"●")) ->  | CY11: =IF(ISERROR(MATCH(view!CY$3,data!$Y9:$AB9,0)),"",IFERROR(HYPERLINK(showDetails(INDEX(data!$S9:$V9,MATCH(view!CY$3,data!$Y9:$AB9,0)),CY11),"●"),"●")) ->  | CZ11: =IF(ISERROR(MATCH(view!CZ$3,data!$Y9:$AB9,0)),"",IFERROR(HYPERLINK(showDetails(INDEX(data!$S9:$V9,MATCH(view!CZ$3,data!$Y9:$AB9,0)),CZ11),"●"),"●")) ->  | DA11: =IF(ISERROR(MATCH(view!DA$3,data!$Y9:$AB9,0)),"",IFERROR(HYPERLINK(showDetails(INDEX(data!$S9:$V9,MATCH(view!DA$3,data!$Y9:$AB9,0)),DA11),"●"),"●")) -> ● | DB11: =IF(ISERROR(MATCH(view!DB$3,data!$Y9:$AB9,0)),"",IFERROR(HYPERLINK(showDetails(INDEX(data!$S9:$V9,MATCH(view!DB$3,data!$Y9:$AB9,0)),DB11),"●"),"●")) -> ● | DC11: =IF(ISERROR(MATCH(view!DC$3,data!$Y9:$AB9,0)),"",IFERROR(HYPERLINK(showDetails(INDEX(data!$S9:$V9,MATCH(view!DC$3,data!$Y9:$AB9,0)),DC11),"●"),"●")) ->  | DD11: =IF(ISERROR(MATCH(view!DD$3,data!$Y9:$AB9,0)),"",IFERROR(HYPERLINK(showDetails(INDEX(data!$S9:$V9,MATCH(view!DD$3,data!$Y9:$AB9,0)),DD11),"●"),"●")) -> ● | DE11: =IF(ISERROR(MATCH(view!DE$3,data!$Y9:$AB9,0)),"",IFERROR(HYPERLINK(showDetails(INDEX(data!$S9:$V9,MATCH(view!DE$3,data!$Y9:$AB9,0)),DE11),"●"),"●")) ->  | DF11: =IF(ISERROR(MATCH(view!DF$3,data!$Y9:$AB9,0)),"",IFERROR(HYPERLINK(showDetails(INDEX(data!$S9:$V9,MATCH(view!DF$3,data!$Y9:$AB9,0)),DF11),"●"),"●")) ->  | DG11: =IF(ISERROR(MATCH(view!DG$3,data!$Y9:$AB9,0)),"",IFERROR(HYPERLINK(showDetails(INDEX(data!$S9:$V9,MATCH(view!DG$3,data!$Y9:$AB9,0)),DG11),"●"),"●")) ->  | DH11: =IF(ISERROR(MATCH(view!DH$3,data!$Y9:$AB9,0)),"",IFERROR(HYPERLINK(showDetails(INDEX(data!$S9:$V9,MATCH(view!DH$3,data!$Y9:$AB9,0)),DH11),"●"),"●")) ->  | DI11: =IF(ISERROR(MATCH(view!DI$3,data!$Y9:$AB9,0)),"",IFERROR(HYPERLINK(showDetails(INDEX(data!$S9:$V9,MATCH(view!DI$3,data!$Y9:$AB9,0)),DI11),"●"),"●")) ->  | DJ11: =IF(ISERROR(MATCH(view!DJ$3,data!$Y9:$AB9,0)),"",IFERROR(HYPERLINK(showDetails(INDEX(data!$S9:$V9,MATCH(view!DJ$3,data!$Y9:$AB9,0)),DJ11),"●"),"●")) ->  | DK11: =IF(ISERROR(MATCH(view!DK$3,data!$Y9:$AB9,0)),"",IFERROR(HYPERLINK(showDetails(INDEX(data!$S9:$V9,MATCH(view!DK$3,data!$Y9:$AB9,0)),DK11),"●"),"●")) ->  | DL11: =IF(ISERROR(MATCH(view!DL$3,data!$Y9:$AB9,0)),"",IFERROR(HYPERLINK(showDetails(INDEX(data!$S9:$V9,MATCH(view!DL$3,data!$Y9:$AB9,0)),DL11),"●"),"●")) ->  | DM11: =IF(ISERROR(MATCH(view!DM$3,data!$Y9:$AB9,0)),"",IFERROR(HYPERLINK(showDetails(INDEX(data!$S9:$V9,MATCH(view!DM$3,data!$Y9:$AB9,0)),DM11),"●"),"●")) ->  | DN11: =IF(ISERROR(MATCH(view!DN$3,data!$Y9:$AB9,0)),"",IFERROR(HYPERLINK(showDetails(INDEX(data!$S9:$V9,MATCH(view!DN$3,data!$Y9:$AB9,0)),DN11),"●"),"●")) ->  | DO11: =IF(ISERROR(MATCH(view!DO$3,data!$Y9:$AB9,0)),"",IFERROR(HYPERLINK(showDetails(INDEX(data!$S9:$V9,MATCH(view!DO$3,data!$Y9:$AB9,0)),DO11),"●"),"●")) ->  | DP11: =IF(ISERROR(MATCH(view!DP$3,data!$Y9:$AB9,0)),"",IFERROR(HYPERLINK(showDetails(INDEX(data!$S9:$V9,MATCH(view!DP$3,data!$Y9:$AB9,0)),DP11),"●"),"●")) ->  | DQ11: =IF(ISERROR(MATCH(view!DQ$3,data!$Y9:$AB9,0)),"",IFERROR(HYPERLINK(showDetails(INDEX(data!$S9:$V9,MATCH(view!DQ$3,data!$Y9:$AB9,0)),DQ11),"●"),"●")) ->  | DR11: =IF(ISERROR(MATCH(view!DR$3,data!$Y9:$AB9,0)),"",IFERROR(HYPERLINK(showDetails(INDEX(data!$S9:$V9,MATCH(view!DR$3,data!$Y9:$AB9,0)),DR11),"●"),"●")) ->  | DS11: =IF(ISERROR(MATCH(view!DS$3,data!$Y9:$AB9,0)),"",IFERROR(HYPERLINK(showDetails(INDEX(data!$S9:$V9,MATCH(view!DS$3,data!$Y9:$AB9,0)),DS11),"●"),"●")) ->  | DT11: =INDEX(lstYears,A11) &" - "&INDEX(data!$W$3:$W$30,A11) -> 1988 - Seoul
A12: 8 | C12: =IF(ISERROR(MATCH(view!C$3,data!$Y10:$AB10,0)),"",IFERROR(HYPERLINK(showDetails(INDEX(data!$S10:$V10,MATCH(view!C$3,data!$Y10:$AB10,0)),C12),"●"),"●")) ->  | D12: =IF(ISERROR(MATCH(view!D$3,data!$Y10:$AB10,0)),"",IFERROR(HYPERLINK(showDetails(INDEX(data!$S10:$V10,MATCH(view!D$3,data!$Y10:$AB10,0)),D12),"●"),"●")) ->  | E12: =IF(ISERROR(MATCH(view!E$3,data!$Y10:$AB10,0)),"",IFERROR(HYPERLINK(showDetails(INDEX(data!$S10:$V10,MATCH(view!E$3,data!$Y10:$AB10,0)),E12),"●"),"●")) ->  | F12: =IF(ISERROR(MATCH(view!F$3,data!$Y10:$AB10,0)),"",IFERROR(HYPERLINK(showDetails(INDEX(data!$S10:$V10,MATCH(view!F$3,data!$Y10:$AB10,0)),F12),"●"),"●")) ->  | G12: =IF(ISERROR(MATCH(view!G$3,data!$Y10:$AB10,0)),"",IFERROR(HYPERLINK(showDetails(INDEX(data!$S10:$V10,MATCH(view!G$3,data!$Y10:$AB10,0)),G12),"●"),"●")) ->  | H12: =IF(ISERROR(MATCH(view!H$3,data!$Y10:$AB10,0)),"",IFERROR(HYPERLINK(showDetails(INDEX(data!$S10:$V10,MATCH(view!H$3,data!$Y10:$AB10,0)),H12),"●"),"●")) ->  | I12: =IF(ISERROR(MATCH(view!I$3,data!$Y10:$AB10,0)),"",IFERROR(HYPERLINK(showDetails(INDEX(data!$S10:$V10,MATCH(view!I$3,data!$Y10:$AB10,0)),I12),"●"),"●")) ->  | J12: =IF(ISERROR(MATCH(view!J$3,data!$Y10:$AB10,0)),"",IFERROR(HYPERLINK(showDetails(INDEX(data!$S10:$V10,MATCH(view!J$3,data!$Y10:$AB10,0)),J12),"●"),"●")) ->  | K12: =IF(ISERROR(MATCH(view!K$3,data!$Y10:$AB10,0)),"",IFERROR(HYPERLINK(showDetails(INDEX(data!$S10:$V10,MATCH(view!K$3,data!$Y10:$AB10,0)),K12),"●"),"●")) ->  | L12: =IF(ISERROR(MATCH(view!L$3,data!$Y10:$AB10,0)),"",IFERROR(HYPERLINK(showDetails(INDEX(data!$S10:$V10,MATCH(view!L$3,data!$Y10:$AB10,0)),L12),"●"),"●")) ->  | M12: =IF(ISERROR(MATCH(view!M$3,data!$Y10:$AB10,0)),"",IFERROR(HYPERLINK(showDetails(INDEX(data!$S10:$V10,MATCH(view!M$3,data!$Y10:$AB10,0)),M12),"●"),"●")) ->  | N12: =IF(ISERROR(MATCH(view!N$3,data!$Y10:$AB10,0)),"",IFERROR(HYPERLINK(showDetails(INDEX(data!$S10:$V10,MATCH(view!N$3,data!$Y10:$AB10,0)),N12),"●"),"●")) ->  | O12: =IF(ISERROR(MATCH(view!O$3,data!$Y10:$AB10,0)),"",IFERROR(HYPERLINK(showDetails(INDEX(data!$S10:$V10,MATCH(view!O$3,data!$Y10:$AB10,0)),O12),"●"),"●")) ->  | P12: =IF(ISERROR(MATCH(view!P$3,data!$Y10:$AB10,0)),"",IFERROR(HYPERLINK(showDetails(INDEX(data!$S10:$V10,MATCH(view!P$3,data!$Y10:$AB10,0)),P12),"●"),"●")) ->  | Q12: =IF(ISERROR(MATCH(view!Q$3,data!$Y10:$AB10,0)),"",IFERROR(HYPERLINK(showDetails(INDEX(data!$S10:$V10,MATCH(view!Q$3,data!$Y10:$AB10,0)),Q12),"●"),"●")) ->  | R12: =IF(ISERROR(MATCH(view!R$3,data!$Y10:$AB10,0)),"",IFERROR(HYPERLINK(showDetails(INDEX(data!$S10:$V10,MATCH(view!R$3,data!$Y10:$AB10,0)),R12),"●"),"●")) ->  | S12: =IF(ISERROR(MATCH(view!S$3,data!$Y10:$AB10,0)),"",IFERROR(HYPERLINK(showDetails(INDEX(data!$S10:$V10,MATCH(view!S$3,data!$Y10:$AB10,0)),S12),"●"),"●")) ->  | T12: =IF(ISERROR(MATCH(view!T$3,data!$Y10:$AB10,0)),"",IFERROR(HYPERLINK(showDetails(INDEX(data!$S10:$V10,MATCH(view!T$3,data!$Y10:$AB10,0)),T12),"●"),"●")) ->  | U12: =IF(ISERROR(MATCH(view!U$3,data!$Y10:$AB10,0)),"",IFERROR(HYPERLINK(showDetails(INDEX(data!$S10:$V10,MATCH(view!U$3,data!$Y10:$AB10,0)),U12),"●"),"●")) ->  | V12: =IF(ISERROR(MATCH(view!V$3,data!$Y10:$AB10,0)),"",IFERROR(HYPERLINK(showDetails(INDEX(data!$S10:$V10,MATCH(view!V$3,data!$Y10:$AB10,0)),V12),"●"),"●")) ->  | W12: =IF(ISERROR(MATCH(view!W$3,data!$Y10:$AB10,0)),"",IFERROR(HYPERLINK(showDetails(INDEX(data!$S10:$V10,MATCH(view!W$3,data!$Y10:$AB10,0)),W12),"●"),"●")) ->  | X12: =IF(ISERROR(MATCH(view!X$3,data!$Y10:$AB10,0)),"",IFERROR(HYPERLINK(showDetails(INDEX(data!$S10:$V10,MATCH(view!X$3,data!$Y10:$AB10,0)),X12),"●"),"●")) ->  | Y12: =IF(ISERROR(MATCH(view!Y$3,data!$Y10:$AB10,0)),"",IFERROR(HYPERLINK(showDetails(INDEX(data!$S10:$V10,MATCH(view!Y$3,data!$Y10:$AB10,0)),Y12),"●"),"●")) ->  | Z12: =IF(ISERROR(MATCH(view!Z$3,data!$Y10:$AB10,0)),"",IFERROR(HYPERLINK(showDetails(INDEX(data!$S10:$V10,MATCH(view!Z$3,data!$Y10:$AB10,0)),Z12),"●"),"●")) ->  | AA12: =IF(ISERROR(MATCH(view!AA$3,data!$Y10:$AB10,0)),"",IFERROR(HYPERLINK(showDetails(INDEX(data!$S10:$V10,MATCH(view!AA$3,data!$Y10:$AB10,0)),AA12),"●"),"●")) ->  | AB12: =IF(ISERROR(MATCH(view!AB$3,data!$Y10:$AB10,0)),"",IFERROR(HYPERLINK(showDetails(INDEX(data!$S10:$V10,MATCH(view!AB$3,data!$Y10:$AB10,0)),AB12),"●"),"●")) ->  | AC12: =IF(ISERROR(MATCH(view!AC$3,data!$Y10:$AB10,0)),"",IFERROR(HYPERLINK(showDetails(INDEX(data!$S10:$V10,MATCH(view!AC$3,data!$Y10:$AB10,0)),AC12),"●"),"●")) ->  | AD12: =IF(ISERROR(MATCH(view!AD$3,data!$Y10:$AB10,0)),"",IFERROR(HYPERLINK(showDetails(INDEX(data!$S10:$V10,MATCH(view!AD$3,data!$Y10:$AB10,0)),AD12),"●"),"●")) ->  | AE12: =IF(ISERROR(MATCH(view!AE$3,data!$Y10:$AB10,0)),"",IFERROR(HYPERLINK(showDetails(INDEX(data!$S10:$V10,MATCH(view!AE$3,data!$Y10:$AB10,0)),AE12),"●"),"●")) ->  | AF12: =IF(ISERROR(MATCH(view!AF$3,data!$Y10:$AB10,0)),"",IFERROR(HYPERLINK(showDetails(INDEX(data!$S10:$V10,MATCH(view!AF$3,data!$Y10:$AB10,0)),AF12),"●"),"●")) ->  | AG12: =IF(ISERROR(MATCH(view!AG$3,data!$Y10:$AB10,0)),"",IFERROR(HYPERLINK(showDetails(INDEX(data!$S10:$V10,MATCH(view!AG$3,data!$Y10:$AB10,0)),AG12),"●"),"●")) ->  | AH12: =IF(ISERROR(MATCH(view!AH$3,data!$Y10:$AB10,0)),"",IFERROR(HYPERLINK(showDetails(INDEX(data!$S10:$V10,MATCH(view!AH$3,data!$Y10:$AB10,0)),AH12),"●"),"●")) ->  | AI12: =IF(ISERROR(MATCH(view!AI$3,data!$Y10:$AB10,0)),"",IFERROR(HYPERLINK(showDetails(INDEX(data!$S10:$V10,MATCH(view!AI$3,data!$Y10:$AB10,0)),AI12),"●"),"●")) ->  | AJ12: =IF(ISERROR(MATCH(view!AJ$3,data!$Y10:$AB10,0)),"",IFERROR(HYPERLINK(showDetails(INDEX(data!$S10:$V10,MATCH(view!AJ$3,data!$Y10:$AB10,0)),AJ12),"●"),"●")) ->  | AK12: =IF(ISERROR(MATCH(view!AK$3,data!$Y10:$AB10,0)),"",IFERROR(HYPERLINK(showDetails(INDEX(data!$S10:$V10,MATCH(view!AK$3,data!$Y10:$AB10,0)),AK12),"●"),"●")) ->  | AL12: =IF(ISERROR(MATCH(view!AL$3,data!$Y10:$AB10,0)),"",IFERROR(HYPERLINK(showDetails(INDEX(data!$S10:$V10,MATCH(view!AL$3,data!$Y10:$AB10,0)),AL12),"●"),"●")) ->  | AM12: =IF(ISERROR(MATCH(view!AM$3,data!$Y10:$AB10,0)),"",IFERROR(HYPERLINK(showDetails(INDEX(data!$S10:$V10,MATCH(view!AM$3,data!$Y10:$AB10,0)),AM12),"●"),"●")) ->  | AN12: =IF(ISERROR(MATCH(view!AN$3,data!$Y10:$AB10,0)),"",IFERROR(HYPERLINK(showDetails(INDEX(data!$S10:$V10,MATCH(view!AN$3,data!$Y10:$AB10,0)),AN12),"●"),"●")) ->  | AO12: =IF(ISERROR(MATCH(view!AO$3,data!$Y10:$AB10,0)),"",IFERROR(HYPERLINK(showDetails(INDEX(data!$S10:$V10,MATCH(view!AO$3,data!$Y10:$AB10,0)),AO12),"●"),"●")) ->  | AP12: =IF(ISERROR(MATCH(view!AP$3,data!$Y10:$AB10,0)),"",IFERROR(HYPERLINK(showDetails(INDEX(data!$S10:$V10,MATCH(view!AP$3,data!$Y10:$AB10,0)),AP12),"●"),"●")) ->  | AQ12: =IF(ISERROR(MATCH(view!AQ$3,data!$Y10:$AB10,0)),"",IFERROR(HYPERLINK(showDetails(INDEX(data!$S10:$V10,MATCH(view!AQ$3,data!$Y10:$AB10,0)),AQ12),"●"),"●")) ->  | AR12: =IF(ISERROR(MATCH(view!AR$3,data!$Y10:$AB10,0)),"",IFERROR(HYPERLINK(showDetails(INDEX(data!$S10:$V10,MATCH(view!AR$3,data!$Y10:$AB10,0)),AR12),"●"),"●")) ->  | AS12: =IF(ISERROR(MATCH(view!AS$3,data!$Y10:$AB10,0)),"",IFERROR(HYPERLINK(showDetails(INDEX(data!$S10:$V10,MATCH(view!AS$3,data!$Y10:$AB10,0)),AS12),"●"),"●")) ->  | AT12: =IF(ISERROR(MATCH(view!AT$3,data!$Y10:$AB10,0)),"",IFERROR(HYPERLINK(showDetails(INDEX(data!$S10:$V10,MATCH(view!AT$3,data!$Y10:$AB10,0)),AT12),"●"),"●")) ->  | AU12: =IF(ISERROR(MATCH(view!AU$3,data!$Y10:$AB10,0)),"",IFERROR(HYPERLINK(showDetails(INDEX(data!$S10:$V10,MATCH(view!AU$3,data!$Y10:$AB10,0)),AU12),"●"),"●")) ->  | AV12: =IF(ISERROR(MATCH(view!AV$3,data!$Y10:$AB10,0)),"",IFERROR(HYPERLINK(showDetails(INDEX(data!$S10:$V10,MATCH(view!AV$3,data!$Y10:$AB10,0)),AV12),"●"),"●")) ->  | AW12: =IF(ISERROR(MATCH(view!AW$3,data!$Y10:$AB10,0)),"",IFERROR(HYPERLINK(showDetails(INDEX(data!$S10:$V10,MATCH(view!AW$3,data!$Y10:$AB10,0)),AW12),"●"),"●")) ->  | AX12: =IF(ISERROR(MATCH(view!AX$3,data!$Y10:$AB10,0)),"",IFERROR(HYPERLINK(showDetails(INDEX(data!$S10:$V10,MATCH(view!AX$3,data!$Y10:$AB10,0)),AX12),"●"),"●")) ->  | AY12: =IF(ISERROR(MATCH(view!AY$3,data!$Y10:$AB10,0)),"",IFERROR(HYPERLINK(showDetails(INDEX(data!$S10:$V10,MATCH(view!AY$3,data!$Y10:$AB10,0)),AY12),"●"),"●")) ->  | AZ12: =IF(ISERROR(MATCH(view!AZ$3,data!$Y10:$AB10,0)),"",IFERROR(HYPERLINK(showDetails(INDEX(data!$S10:$V10,MATCH(view!AZ$3,data!$Y10:$AB10,0)),AZ12),"●"),"●")) ->  | BA12: =IF(ISERROR(MATCH(view!BA$3,data!$Y10:$AB10,0)),"",IFERROR(HYPERLINK(showDetails(INDEX(data!$S10:$V10,MATCH(view!BA$3,data!$Y10:$AB10,0)),BA12),"●"),"●")) ->  | BB12: =IF(ISERROR(MATCH(view!BB$3,data!$Y10:$AB10,0)),"",IFERROR(HYPERLINK(showDetails(INDEX(data!$S10:$V10,MATCH(view!BB$3,data!$Y10:$AB10,0)),BB12),"●"),"●")) ->  | BC12: =IF(ISERROR(MATCH(view!BC$3,data!$Y10:$AB10,0)),"",IFERROR(HYPERLINK(showDetails(INDEX(data!$S10:$V10,MATCH(view!BC$3,data!$Y10:$AB10,0)),BC12),"●"),"●")) ->  | BD12: =IF(ISERROR(MATCH(view!BD$3,data!$Y10:$AB10,0)),"",IFERROR(HYPERLINK(showDetails(INDEX(data!$S10:$V10,MATCH(view!BD$3,data!$Y10:$AB10,0)),BD12),"●"),"●")) ->  | BE12: =IF(ISERROR(MATCH(view!BE$3,data!$Y10:$AB10,0)),"",IFERROR(HYPERLINK(showDetails(INDEX(data!$S10:$V10,MATCH(view!BE$3,data!$Y10:$AB10,0)),BE12),"●"),"●")) ->  | BF12: =IF(ISERROR(MATCH(view!BF$3,data!$Y10:$AB10,0)),"",IFERROR(HYPERLINK(showDetails(INDEX(data!$S10:$V10,MATCH(view!BF$3,data!$Y10:$AB10,0)),BF12),"●"),"●")) ->  | BG12: =IF(ISERROR(MATCH(view!BG$3,data!$Y10:$AB10,0)),"",IFERROR(HYPERLINK(showDetails(INDEX(data!$S10:$V10,MATCH(view!BG$3,data!$Y10:$AB10,0)),BG12),"●"),"●")) ->  | BH12: =IF(ISERROR(MATCH(view!BH$3,data!$Y10:$AB10,0)),"",IFERROR(HYPERLINK(showDetails(INDEX(data!$S10:$V10,MATCH(view!BH$3,data!$Y10:$AB10,0)),BH12),"●"),"●")) ->  | BI12: =IF(ISERROR(MATCH(view!BI$3,data!$Y10:$AB10,0)),"",IFERROR(HYPERLINK(showDetails(INDEX(data!$S10:$V10,MATCH(view!BI$3,data!$Y10:$AB10,0)),BI12),"●"),"●")) ->  | BJ12: =IF(ISERROR(MATCH(view!BJ$3,data!$Y10:$AB10,0)),"",IFERROR(HYPERLINK(showDetails(INDEX(data!$S10:$V10,MATCH(view!BJ$3,data!$Y10:$AB10,0)),BJ12),"●"),"●")) ->  | BK12: =IF(ISERROR(MATCH(view!BK$3,data!$Y10:$AB10,0)),"",IFERROR(HYPERLINK(showDetails(INDEX(data!$S10:$V10,MATCH(view!BK$3,data!$Y10:$AB10,0)),BK12),"●"),"●")) ->  | BL12: =IF(ISERROR(MATCH(view!BL$3,data!$Y10:$AB10,0)),"",IFERROR(HYPERLINK(showDetails(INDEX(data!$S10:$V10,MATCH(view!BL$3,data!$Y10:$AB10,0)),BL12),"●"),"●")) ->  | BM12: =IF(ISERROR(MATCH(view!BM$3,data!$Y10:$AB10,0)),"",IFERROR(HYPERLINK(showDetails(INDEX(data!$S10:$V10,MATCH(view!BM$3,data!$Y10:$AB10,0)),BM12),"●"),"●")) ->  | BN12: =IF(ISERROR(MATCH(view!BN$3,data!$Y10:$AB10,0)),"",IFERROR(HYPERLINK(showDetails(INDEX(data!$S10:$V10,MATCH(view!BN$3,data!$Y10:$AB10,0)),BN12),"●"),"●")) ->  | BO12: =IF(ISERROR(MATCH(view!BO$3,data!$Y10:$AB10,0)),"",IFERROR(HYPERLINK(showDetails(INDEX(data!$S10:$V10,MATCH(view!BO$3,data!$Y10:$AB10,0)),BO12),"●"),"●")) ->  | BP12: =IF(ISERROR(MATCH(view!BP$3,data!$Y10:$AB10,0)),"",IFERROR(HYPERLINK(showDetails(INDEX(data!$S10:$V10,MATCH(view!BP$3,data!$Y10:$AB10,0)),BP12),"●"),"●")) ->  | BQ12: =IF(ISERROR(MATCH(view!BQ$3,data!$Y10:$AB10,0)),"",IFERROR(HYPERLINK(showDetails(INDEX(data!$S10:$V10,MATCH(view!BQ$3,data!$Y10:$AB10,0)),BQ12),"●"),"●")) ->  | BR12: =IF(ISERROR(MATCH(view!BR$3,data!$Y10:$AB10,0)),"",IFERROR(HYPERLINK(showDetails(INDEX(data!$S10:$V10,MATCH(view!BR$3,data!$Y10:$AB10,0)),BR12),"●"),"●")) ->  | BS12: =IF(ISERROR(MATCH(view!BS$3,data!$Y10:$AB10,0)),"",IFERROR(HYPERLINK(showDetails(INDEX(data!$S10:$V10,MATCH(view!BS$3,data!$Y10:$AB10,0)),BS12),"●"),"●")) ->  | BT12: =IF(ISERROR(MATCH(view!BT$3,data!$Y10:$AB10,0)),"",IFERROR(HYPERLINK(showDetails(INDEX(data!$S10:$V10,MATCH(view!BT$3,data!$Y10:$AB10,0)),BT12),"●"),"●")) ->  | BU12: =IF(ISERROR(MATCH(view!BU$3,data!$Y10:$AB10,0)),"",IFERROR(HYPERLINK(showDetails(INDEX(data!$S10:$V10,MATCH(view!BU$3,data!$Y10:$AB10,0)),BU12),"●"),"●")) ->  | BV12: =IF(ISERROR(MATCH(view!BV$3,data!$Y10:$AB10,0)),"",IFERROR(HYPERLINK(showDetails(INDEX(data!$S10:$V10,MATCH(view!BV$3,data!$Y10:$AB10,0)),BV12),"●"),"●")) ->  | BW12: =IF(ISERROR(MATCH(view!BW$3,data!$Y10:$AB10,0)),"",IFERROR(HYPERLINK(showDetails(INDEX(data!$S10:$V10,MATCH(view!BW$3,data!$Y10:$AB10,0)),BW12),"●"),"●")) ->  | BX12: =IF(ISERROR(MATCH(view!BX$3,data!$Y10:$AB10,0)),"",IFERROR(HYPERLINK(showDetails(INDEX(data!$S10:$V10,MATCH(view!BX$3,data!$Y10:$AB10,0)),BX12),"●"),"●")) ->  | BY12: =IF(ISERROR(MATCH(view!BY$3,data!$Y10:$AB10,0)),"",IFERROR(HYPERLINK(showDetails(INDEX(data!$S10:$V10,MATCH(view!BY$3,data!$Y10:$AB10,0)),BY12),"●"),"●")) ->  | BZ12: =IF(ISERROR(MATCH(view!BZ$3,data!$Y10:$AB10,0)),"",IFERROR(HYPERLINK(showDetails(INDEX(data!$S10:$V10,MATCH(view!BZ$3,data!$Y10:$AB10,0)),BZ12),"●"),"●")) ->  | CA12: =IF(ISERROR(MATCH(view!CA$3,data!$Y10:$AB10,0)),"",IFERROR(HYPERLINK(showDetails(INDEX(data!$S10:$V10,MATCH(view!CA$3,data!$Y10:$AB10,0)),CA12),"●"),"●")) ->  | CB12: =IF(ISERROR(MATCH(view!CB$3,data!$Y10:$AB10,0)),"",IFERROR(HYPERLINK(showDetails(INDEX(data!$S10:$V10,MATCH(view!CB$3,data!$Y10:$AB10,0)),CB12),"●"),"●")) ->  | CC12: =IF(ISERROR(MATCH(view!CC$3,data!$Y10:$AB10,0)),"",IFERROR(HYPERLINK(showDetails(INDEX(data!$S10:$V10,MATCH(view!CC$3,data!$Y10:$AB10,0)),CC12),"●"),"●")) ->  | CD12: =IF(ISERROR(MATCH(view!CD$3,data!$Y10:$AB10,0)),"",IFERROR(HYPERLINK(showDetails(INDEX(data!$S10:$V10,MATCH(view!CD$3,data!$Y10:$AB10,0)),CD12),"●"),"●")) ->  | CE12: =IF(ISERROR(MATCH(view!CE$3,data!$Y10:$AB10,0)),"",IFERROR(HYPERLINK(showDetails(INDEX(data!$S10:$V10,MATCH(view!CE$3,data!$Y10:$AB10,0)),CE12),"●"),"●")) ->  | CF12: =IF(ISERROR(MATCH(view!CF$3,data!$Y10:$AB10,0)),"",IFERROR(HYPERLINK(showDetails(INDEX(data!$S10:$V10,MATCH(view!CF$3,data!$Y10:$AB10,0)),CF12),"●"),"●")) ->  | CG12: =IF(ISERROR(MATCH(view!CG$3,data!$Y10:$AB10,0)),"",IFERROR(HYPERLINK(showDetails(INDEX(data!$S10:$V10,MATCH(view!CG$3,data!$Y10:$AB10,0)),CG12),"●"),"●")) ->  | CH12: =IF(ISERROR(MATCH(view!CH$3,data!$Y10:$AB10,0)),"",IFERROR(HYPERLINK(showDetails(INDEX(data!$S10:$V10,MATCH(view!CH$3,data!$Y10:$AB10,0)),CH12),"●"),"●")) ->  | CI12: =IF(ISERROR(MATCH(view!CI$3,data!$Y10:$AB10,0)),"",IFERROR(HYPERLINK(showDetails(INDEX(data!$S10:$V10,MATCH(view!CI$3,data!$Y10:$AB10,0)),CI12),"●"),"●")) ->  | CJ12: =IF(ISERROR(MATCH(view!CJ$3,data!$Y10:$AB10,0)),"",IFERROR(HYPERLINK(showDetails(INDEX(data!$S10:$V10,MATCH(view!CJ$3,data!$Y10:$AB10,0)),CJ12),"●"),"●")) ->  | CK12: =IF(ISERROR(MATCH(view!CK$3,data!$Y10:$AB10,0)),"",IFERROR(HYPERLINK(showDetails(INDEX(data!$S10:$V10,MATCH(view!CK$3,data!$Y10:$AB10,0)),CK12),"●"),"●")) ->  | CL12: =IF(ISERROR(MATCH(view!CL$3,data!$Y10:$AB10,0)),"",IFERROR(HYPERLINK(showDetails(INDEX(data!$S10:$V10,MATCH(view!CL$3,data!$Y10:$AB10,0)),CL12),"●"),"●")) ->  | CM12: =IF(ISERROR(MATCH(view!CM$3,data!$Y10:$AB10,0)),"",IFERROR(HYPERLINK(showDetails(INDEX(data!$S10:$V10,MATCH(view!CM$3,data!$Y10:$AB10,0)),CM12),"●"),"●")) ->  | CN12: =IF(ISERROR(MATCH(view!CN$3,data!$Y10:$AB10,0)),"",IFERROR(HYPERLINK(showDetails(INDEX(data!$S10:$V10,MATCH(view!CN$3,data!$Y10:$AB10,0)),CN12),"●"),"●")) ->  | CO12: =IF(ISERROR(MATCH(view!CO$3,data!$Y10:$AB10,0)),"",IFERROR(HYPERLINK(showDetails(INDEX(data!$S10:$V10,MATCH(view!CO$3,data!$Y10:$AB10,0)),CO12),"●"),"●")) ->  | CP12: =IF(ISERROR(MATCH(view!CP$3,data!$Y10:$AB10,0)),"",IFERROR(HYPERLINK(showDetails(INDEX(data!$S10:$V10,MATCH(view!CP$3,data!$Y10:$AB10,0)),CP12),"●"),"●")) -> ● | CQ12: =IF(ISERROR(MATCH(view!CQ$3,data!$Y10:$AB10,0)),"",IFERROR(HYPERLINK(showDetails(INDEX(data!$S10:$V10,MATCH(view!CQ$3,data!$Y10:$AB10,0)),CQ12),"●"),"●")) -> ● | CR12: =IF(ISERROR(MATCH(view!CR$3,data!$Y10:$AB10,0)),"",IFERROR(HYPERLINK(showDetails(INDEX(data!$S10:$V10,MATCH(view!CR$3,data!$Y10:$AB10,0)),CR12),"●"),"●")) ->  | CS12: =IF(ISERROR(MATCH(view!CS$3,data!$Y10:$AB10,0)),"",IFERROR(HYPERLINK(showDetails(INDEX(data!$S10:$V10,MATCH(view!CS$3,data!$Y10:$AB10,0)),CS12),"●"),"●")) ->  | CT12: =IF(ISERROR(MATCH(view!CT$3,data!$Y10:$AB10,0)),"",IFERROR(HYPERLINK(showDetails(INDEX(data!$S10:$V10,MATCH(view!CT$3,data!$Y10:$AB10,0)),CT12),"●"),"●")) ->  | CU12: =IF(ISERROR(MATCH(view!CU$3,data!$Y10:$AB10,0)),"",IFERROR(HYPERLINK(showDetails(INDEX(data!$S10:$V10,MATCH(view!CU$3,data!$Y10:$AB10,0)),CU12),"●"),"●")) ->  | CV12: =IF(ISERROR(MATCH(view!CV$3,data!$Y10:$AB10,0)),"",IFERROR(HYPERLINK(showDetails(INDEX(data!$S10:$V10,MATCH(view!CV$3,data!$Y10:$AB10,0)),CV12),"●"),"●")) ->  | CW12: =IF(ISERROR(MATCH(view!CW$3,data!$Y10:$AB10,0)),"",IFERROR(HYPERLINK(showDetails(INDEX(data!$S10:$V10,MATCH(view!CW$3,data!$Y10:$AB10,0)),CW12),"●"),"●")) ->  | CX12: =IF(ISERROR(MATCH(view!CX$3,data!$Y10:$AB10,0)),"",IFERROR(HYPERLINK(showDetails(INDEX(data!$S10:$V10,MATCH(view!CX$3,data!$Y10:$AB10,0)),CX12),"●"),"●")) ->  | CY12: =IF(ISERROR(MATCH(view!CY$3,data!$Y10:$AB10,0)),"",IFERROR(HYPERLINK(showDetails(INDEX(data!$S10:$V10,MATCH(view!CY$3,data!$Y10:$AB10,0)),CY12),"●"),"●")) ->  | CZ12: =IF(ISERROR(MATCH(view!CZ$3,data!$Y10:$AB10,0)),"",IFERROR(HYPERLINK(showDetails(INDEX(data!$S10:$V10,MATCH(view!CZ$3,data!$Y10:$AB10,0)),CZ12),"●"),"●")) ->  | DA12: =IF(ISERROR(MATCH(view!DA$3,data!$Y10:$AB10,0)),"",IFERROR(HYPERLINK(showDetails(INDEX(data!$S10:$V10,MATCH(view!DA$3,data!$Y10:$AB10,0)),DA12),"●"),"●")) -> ● | DB12: =IF(ISERROR(MATCH(view!DB$3,data!$Y10:$AB10,0)),"",IFERROR(HYPERLINK(showDetails(INDEX(data!$S10:$V10,MATCH(view!DB$3,data!$Y10:$AB10,0)),DB12),"●"),"●")) ->  | DC12: =IF(ISERROR(MATCH(view!DC$3,data!$Y10:$AB10,0)),"",IFERROR(HYPERLINK(showDetails(INDEX(data!$S10:$V10,MATCH(view!DC$3,data!$Y10:$AB10,0)),DC12),"●"),"●")) ->  | DD12: =IF(ISERROR(MATCH(view!DD$3,data!$Y10:$AB10,0)),"",IFERROR(HYPERLINK(showDetails(INDEX(data!$S10:$V10,MATCH(view!DD$3,data!$Y10:$AB10,0)),DD12),"●"),"●")) ->  | DE12: =IF(ISERROR(MATCH(view!DE$3,data!$Y10:$AB10,0)),"",IFERROR(HYPERLINK(showDetails(INDEX(data!$S10:$V10,MATCH(view!DE$3,data!$Y10:$AB10,0)),DE12),"●"),"●")) ->  | DF12: =IF(ISERROR(MATCH(view!DF$3,data!$Y10:$AB10,0)),"",IFERROR(HYPERLINK(showDetails(INDEX(data!$S10:$V10,MATCH(view!DF$3,data!$Y10:$AB10,0)),DF12),"●"),"●")) ->  | DG12: =IF(ISERROR(MATCH(view!DG$3,data!$Y10:$AB10,0)),"",IFERROR(HYPERLINK(showDetails(INDEX(data!$S10:$V10,MATCH(view!DG$3,data!$Y10:$AB10,0)),DG12),"●"),"●")) ->  | DH12: =IF(ISERROR(MATCH(view!DH$3,data!$Y10:$AB10,0)),"",IFERROR(HYPERLINK(showDetails(INDEX(data!$S10:$V10,MATCH(view!DH$3,data!$Y10:$AB10,0)),DH12),"●"),"●")) ->  | DI12: =IF(ISERROR(MATCH(view!DI$3,data!$Y10:$AB10,0)),"",IFERROR(HYPERLINK(showDetails(INDEX(data!$S10:$V10,MATCH(view!DI$3,data!$Y10:$AB10,0)),DI12),"●"),"●")) ->  | DJ12: =IF(ISERROR(MATCH(view!DJ$3,data!$Y10:$AB10,0)),"",IFERROR(HYPERLINK(showDetails(INDEX(data!$S10:$V10,MATCH(view!DJ$3,data!$Y10:$AB10,0)),DJ12),"●"),"●")) ->  | DK12: =IF(ISERROR(MATCH(view!DK$3,data!$Y10:$AB10,0)),"",IFERROR(HYPERLINK(showDetails(INDEX(data!$S10:$V10,MATCH(view!DK$3,data!$Y10:$AB10,0)),DK12),"●"),"●")) ->  | DL12: =IF(ISERROR(MATCH(view!DL$3,data!$Y10:$AB10,0)),"",IFERROR(HYPERLINK(showDetails(INDEX(data!$S10:$V10,MATCH(view!DL$3,data!$Y10:$AB10,0)),DL12),"●"),"●")) ->  | DM12: =IF(ISERROR(MATCH(view!DM$3,data!$Y10:$AB10,0)),"",IFERROR(HYPERLINK(showDetails(INDEX(data!$S10:$V10,MATCH(view!DM$3,data!$Y10:$AB10,0)),DM12),"●"),"●")) ->  | DN12: =IF(ISERROR(MATCH(view!DN$3,data!$Y10:$AB10,0)),"",IFERROR(HYPERLINK(showDetails(INDEX(data!$S10:$V10,MATCH(view!DN$3,data!$Y10:$AB10,0)),DN12),"●"),"●")) ->  | DO12: =IF(ISERROR(MATCH(view!DO$3,data!$Y10:$AB10,0)),"",IFERROR(HYPERLINK(showDetails(INDEX(data!$S10:$V10,MATCH(view!DO$3,data!$Y10:$AB10,0)),DO12),"●"),"●")) ->  | DP12: =IF(ISERROR(MATCH(view!DP$3,data!$Y10:$AB10,0)),"",IFERROR(HYPERLINK(showDetails(INDEX(data!$S10:$V10,MATCH(view!DP$3,data!$Y10:$AB10,0)),DP12),"●"),"●")) ->  | DQ12: =IF(ISERROR(MATCH(view!DQ$3,data!$Y10:$AB10,0)),"",IFERROR(HYPERLINK(showDetails(INDEX(data!$S10:$V10,MATCH(view!DQ$3,data!$Y10:$AB10,0)),DQ12),"●"),"●")) ->  | DR12: =IF(ISERROR(MATCH(view!DR$3,data!$Y10:$AB10,0)),"",IFERROR(HYPERLINK(showDetails(INDEX(data!$S10:$V10,MATCH(view!DR$3,data!$Y10:$AB10,0)),DR12),"●"),"●")) ->  | DS12: =IF(ISERROR(MATCH(view!DS$3,data!$Y10:$AB10,0)),"",IFERROR(HYPERLINK(showDetails(INDEX(data!$S10:$V10,MATCH(view!DS$3,data!$Y10:$AB10,0)),DS12),"●"),"●")) ->  | DT12: =INDEX(lstYears,A12) &" - "&INDEX(data!$W$3:$W$30,A12) -> 1984 - Los Angeles
A13: 9 | C13: =IF(ISERROR(MATCH(view!C$3,data!$Y11:$AB11,0)),"",IFERROR(HYPERLINK(showDetails(INDEX(data!$S11:$V11,MATCH(view!C$3,data!$Y11:$AB11,0)),C13),"●"),"●")) ->  | D13: =IF(ISERROR(MATCH(view!D$3,data!$Y11:$AB11,0)),"",IFERROR(HYPERLINK(showDetails(INDEX(data!$S11:$V11,MATCH(view!D$3,data!$Y11:$AB11,0)),D13),"●"),"●")) ->  | E13: =IF(ISERROR(MATCH(view!E$3,data!$Y11:$AB11,0)),"",IFERROR(HYPERLINK(showDetails(INDEX(data!$S11:$V11,MATCH(view!E$3,data!$Y11:$AB11,0)),E13),"●"),"●")) ->  | F13: =IF(ISERROR(MATCH(view!F$3,data!$Y11:$AB11,0)),"",IFERROR(HYPERLINK(showDetails(INDEX(data!$S11:$V11,MATCH(view!F$3,data!$Y11:$AB11,0)),F13),"●"),"●")) ->  | G13: =IF(ISERROR(MATCH(view!G$3,data!$Y11:$AB11,0)),"",IFERROR(HYPERLINK(showDetails(INDEX(data!$S11:$V11,MATCH(view!G$3,data!$Y11:$AB11,0)),G13),"●"),"●")) ->  | H13: =IF(ISERROR(MATCH(view!H$3,data!$Y11:$AB11,0)),"",IFERROR(HYPERLINK(showDetails(INDEX(data!$S11:$V11,MATCH(view!H$3,data!$Y11:$AB11,0)),H13),"●"),"●")) ->  | I13: =IF(ISERROR(MATCH(view!I$3,data!$Y11:$AB11,0)),"",IFERROR(HYPERLINK(showDetails(INDEX(data!$S11:$V11,MATCH(view!I$3,data!$Y11:$AB11,0)),I13),"●"),"●")) ->  | J13: =IF(ISERROR(MATCH(view!J$3,data!$Y11:$AB11,0)),"",IFERROR(HYPERLINK(showDetails(INDEX(data!$S11:$V11,MATCH(view!J$3,data!$Y11:$AB11,0)),J13),"●"),"●")) ->  | K13: =IF(ISERROR(MATCH(view!K$3,data!$Y11:$AB11,0)),"",IFERROR(HYPERLINK(showDetails(INDEX(data!$S11:$V11,MATCH(view!K$3,data!$Y11:$AB11,0)),K13),"●"),"●")) ->  | L13: =IF(ISERROR(MATCH(view!L$3,data!$Y11:$AB11,0)),"",IFERROR(HYPERLINK(showDetails(INDEX(data!$S11:$V11,MATCH(view!L$3,data!$Y11:$AB11,0)),L13),"●"),"●")) ->  | M13: =IF(ISERROR(MATCH(view!M$3,data!$Y11:$AB11,0)),"",IFERROR(HYPERLINK(showDetails(INDEX(data!$S11:$V11,MATCH(view!M$3,data!$Y11:$AB11,0)),M13),"●"),"●")) ->  | N13: =IF(ISERROR(MATCH(view!N$3,data!$Y11:$AB11,0)),"",IFERROR(HYPERLINK(showDetails(INDEX(data!$S11:$V11,MATCH(view!N$3,data!$Y11:$AB11,0)),N13),"●"),"●")) ->  | O13: =IF(ISERROR(MATCH(view!O$3,data!$Y11:$AB11,0)),"",IFERROR(HYPERLINK(showDetails(INDEX(data!$S11:$V11,MATCH(view!O$3,data!$Y11:$AB11,0)),O13),"●"),"●")) ->  | P13: =IF(ISERROR(MATCH(view!P$3,data!$Y11:$AB11,0)),"",IFERROR(HYPERLINK(showDetails(INDEX(data!$S11:$V11,MATCH(view!P$3,data!$Y11:$AB11,0)),P13),"●"),"●")) ->  | Q13: =IF(ISERROR(MATCH(view!Q$3,data!$Y11:$AB11,0)),"",IFERROR(HYPERLINK(showDetails(INDEX(data!$S11:$V11,MATCH(view!Q$3,data!$Y11:$AB11,0)),Q13),"●"),"●")) ->  | R13: =IF(ISERROR(MATCH(view!R$3,data!$Y11:$AB11,0)),"",IFERROR(HYPERLINK(showDetails(INDEX(data!$S11:$V11,MATCH(view!R$3,data!$Y11:$AB11,0)),R13),"●"),"●")) ->  | S13: =IF(ISERROR(MATCH(view!S$3,data!$Y11:$AB11,0)),"",IFERROR(HYPERLINK(showDetails(INDEX(data!$S11:$V11,MATCH(view!S$3,data!$Y11:$AB11,0)),S13),"●"),"●")) ->  | T13: =IF(ISERROR(MATCH(view!T$3,data!$Y11:$AB11,0)),"",IFERROR(HYPERLINK(showDetails(INDEX(data!$S11:$V11,MATCH(view!T$3,data!$Y11:$AB11,0)),T13),"●"),"●")) ->  | U13: =IF(ISERROR(MATCH(view!U$3,data!$Y11:$AB11,0)),"",IFERROR(HYPERLINK(showDetails(INDEX(data!$S11:$V11,MATCH(view!U$3,data!$Y11:$AB11,0)),U13),"●"),"●")) ->  | V13: =IF(ISERROR(MATCH(view!V$3,data!$Y11:$AB11,0)),"",IFERROR(HYPERLINK(showDetails(INDEX(data!$S11:$V11,MATCH(view!V$3,data!$Y11:$AB11,0)),V13),"●"),"●")) ->  | W13: =IF(ISERROR(MATCH(view!W$3,data!$Y11:$AB11,0)),"",IFERROR(HYPERLINK(showDetails(INDEX(data!$S11:$V11,MATCH(view!W$3,data!$Y11:$AB11,0)),W13),"●"),"●")) ->  | X13: =IF(ISERROR(MATCH(view!X$3,data!$Y11:$AB11,0)),"",IFERROR(HYPERLINK(showDetails(INDEX(data!$S11:$V11,MATCH(view!X$3,data!$Y11:$AB11,0)),X13),"●"),"●")) ->  | Y13: =IF(ISERROR(MATCH(view!Y$3,data!$Y11:$AB11,0)),"",IFERROR(HYPERLINK(showDetails(INDEX(data!$S11:$V11,MATCH(view!Y$3,data!$Y11:$AB11,0)),Y13),"●"),"●")) ->  | Z13: =IF(ISERROR(MATCH(view!Z$3,data!$Y11:$AB11,0)),"",IFERROR(HYPERLINK(showDetails(INDEX(data!$S11:$V11,MATCH(view!Z$3,data!$Y11:$AB11,0)),Z13),"●"),"●")) ->  | AA13: =IF(ISERROR(MATCH(view!AA$3,data!$Y11:$AB11,0)),"",IFERROR(HYPERLINK(showDetails(INDEX(data!$S11:$V11,MATCH(view!AA$3,data!$Y11:$AB11,0)),AA13),"●"),"●")) ->  | AB13: =IF(ISERROR(MATCH(view!AB$3,data!$Y11:$AB11,0)),"",IFERROR(HYPERLINK(showDetails(INDEX(data!$S11:$V11,MATCH(view!AB$3,data!$Y11:$AB11,0)),AB13),"●"),"●")) ->  | AC13: =IF(ISERROR(MATCH(view!AC$3,data!$Y11:$AB11,0)),"",IFERROR(HYPERLINK(showDetails(INDEX(data!$S11:$V11,MATCH(view!AC$3,data!$Y11:$AB11,0)),AC13),"●"),"●")) ->  | AD13: =IF(ISERROR(MATCH(view!AD$3,data!$Y11:$AB11,0)),"",IFERROR(HYPERLINK(showDetails(INDEX(data!$S11:$V11,MATCH(view!AD$3,data!$Y11:$AB11,0)),AD13),"●"),"●")) ->  | AE13: =IF(ISERROR(MATCH(view!AE$3,data!$Y11:$AB11,0)),"",IFERROR(HYPERLINK(showDetails(INDEX(data!$S11:$V11,MATCH(view!AE$3,data!$Y11:$AB11,0)),AE13),"●"),"●")) ->  | AF13: =IF(ISERROR(MATCH(view!AF$3,data!$Y11:$AB11,0)),"",IFERROR(HYPERLINK(showDetails(INDEX(data!$S11:$V11,MATCH(view!AF$3,data!$Y11:$AB11,0)),AF13),"●"),"●")) ->  | AG13: =IF(ISERROR(MATCH(view!AG$3,data!$Y11:$AB11,0)),"",IFERROR(HYPERLINK(showDetails(INDEX(data!$S11:$V11,MATCH(view!AG$3,data!$Y11:$AB11,0)),AG13),"●"),"●")) ->  | AH13: =IF(ISERROR(MATCH(view!AH$3,data!$Y11:$AB11,0)),"",IFERROR(HYPERLINK(showDetails(INDEX(data!$S11:$V11,MATCH(view!AH$3,data!$Y11:$AB11,0)),AH13),"●"),"●")) ->  | AI13: =IF(ISERROR(MATCH(view!AI$3,data!$Y11:$AB11,0)),"",IFERROR(HYPERLINK(showDetails(INDEX(data!$S11:$V11,MATCH(view!AI$3,data!$Y11:$AB11,0)),AI13),"●"),"●")) ->  | AJ13: =IF(ISERROR(MATCH(view!AJ$3,data!$Y11:$AB11,0)),"",IFERROR(HYPERLINK(showDetails(INDEX(data!$S11:$V11,MATCH(view!AJ$3,data!$Y11:$AB11,0)),AJ13),"●"),"●")) ->  | AK13: =IF(ISERROR(MATCH(view!AK$3,data!$Y11:$AB11,0)),"",IFERROR(HYPERLINK(showDetails(INDEX(data!$S11:$V11,MATCH(view!AK$3,data!$Y11:$AB11,0)),AK13),"●"),"●")) ->  | AL13: =IF(ISERROR(MATCH(view!AL$3,data!$Y11:$AB11,0)),"",IFERROR(HYPERLINK(showDetails(INDEX(data!$S11:$V11,MATCH(view!AL$3,data!$Y11:$AB11,0)),AL13),"●"),"●")) ->  | AM13: =IF(ISERROR(MATCH(view!AM$3,data!$Y11:$AB11,0)),"",IFERROR(HYPERLINK(showDetails(INDEX(data!$S11:$V11,MATCH(view!AM$3,data!$Y11:$AB11,0)),AM13),"●"),"●")) ->  | AN13: =IF(ISERROR(MATCH(view!AN$3,data!$Y11:$AB11,0)),"",IFERROR(HYPERLINK(showDetails(INDEX(data!$S11:$V11,MATCH(view!AN$3,data!$Y11:$AB11,0)),AN13),"●"),"●")) ->  | AO13: =IF(ISERROR(MATCH(view!AO$3,data!$Y11:$AB11,0)),"",IFERROR(HYPERLINK(showDetails(INDEX(data!$S11:$V11,MATCH(view!AO$3,data!$Y11:$AB11,0)),AO13),"●"),"●")) ->  | AP13: =IF(ISERROR(MATCH(view!AP$3,data!$Y11:$AB11,0)),"",IFERROR(HYPERLINK(showDetails(INDEX(data!$S11:$V11,MATCH(view!AP$3,data!$Y11:$AB11,0)),AP13),"●"),"●")) ->  | AQ13: =IF(ISERROR(MATCH(view!AQ$3,data!$Y11:$AB11,0)),"",IFERROR(HYPERLINK(showDetails(INDEX(data!$S11:$V11,MATCH(view!AQ$3,data!$Y11:$AB11,0)),AQ13),"●"),"●")) ->  | AR13: =IF(ISERROR(MATCH(view!AR$3,data!$Y11:$AB11,0)),"",IFERROR(HYPERLINK(showDetails(INDEX(data!$S11:$V11,MATCH(view!AR$3,data!$Y11:$AB11,0)),AR13),"●"),"●")) ->  | AS13: =IF(ISERROR(MATCH(view!AS$3,data!$Y11:$AB11,0)),"",IFERROR(HYPERLINK(showDetails(INDEX(data!$S11:$V11,MATCH(view!AS$3,data!$Y11:$AB11,0)),AS13),"●"),"●")) ->  | AT13: =IF(ISERROR(MATCH(view!AT$3,data!$Y11:$AB11,0)),"",IFERROR(HYPERLINK(showDetails(INDEX(data!$S11:$V11,MATCH(view!AT$3,data!$Y11:$AB11,0)),AT13),"●"),"●")) ->  | AU13: =IF(ISERROR(MATCH(view!AU$3,data!$Y11:$AB11,0)),"",IFERROR(HYPERLINK(showDetails(INDEX(data!$S11:$V11,MATCH(view!AU$3,data!$Y11:$AB11,0)),AU13),"●"),"●")) ->  | AV13: =IF(ISERROR(MATCH(view!AV$3,data!$Y11:$AB11,0)),"",IFERROR(HYPERLINK(showDetails(INDEX(data!$S11:$V11,MATCH(view!AV$3,data!$Y11:$AB11,0)),AV13),"●"),"●")) ->  | AW13: =IF(ISERROR(MATCH(view!AW$3,data!$Y11:$AB11,0)),"",IFERROR(HYPERLINK(showDetails(INDEX(data!$S11:$V11,MATCH(view!AW$3,data!$Y11:$AB11,0)),AW13),"●"),"●")) ->  | AX13: =IF(ISERROR(MATCH(view!AX$3,data!$Y11:$AB11,0)),"",IFERROR(HYPERLINK(showDetails(INDEX(data!$S11:$V11,MATCH(view!AX$3,data!$Y11:$AB11,0)),AX13),"●"),"●")) ->  | AY13: =IF(ISERROR(MATCH(view!AY$3,data!$Y11:$AB11,0)),"",IFERROR(HYPERLINK(showDetails(INDEX(data!$S11:$V11,MATCH(view!AY$3,data!$Y11:$AB11,0)),AY13),"●"),"●")) ->  | AZ13: =IF(ISERROR(MATCH(view!AZ$3,data!$Y11:$AB11,0)),"",IFERROR(HYPERLINK(showDetails(INDEX(data!$S11:$V11,MATCH(view!AZ$3,data!$Y11:$AB11,0)),AZ13),"●"),"●")) ->  | BA13: =IF(ISERROR(MATCH(view!BA$3,data!$Y11:$AB11,0)),"",IFERROR(HYPERLINK(showDetails(INDEX(data!$S11:$V11,MATCH(view!BA$3,data!$Y11:$AB11,0)),BA13),"●"),"●")) ->  | BB13: =IF(ISERROR(MATCH(view!BB$3,data!$Y11:$AB11,0)),"",IFERROR(HYPERLINK(showDetails(INDEX(data!$S11:$V11,MATCH(view!BB$3,data!$Y11:$AB11,0)),BB13),"●"),"●")) ->  | BC13: =IF(ISERROR(MATCH(view!BC$3,data!$Y11:$AB11,0)),"",IFERROR(HYPERLINK(showDetails(INDEX(data!$S11:$V11,MATCH(view!BC$3,data!$Y11:$AB11,0)),BC13),"●"),"●")) ->  | BD13: =IF(ISERROR(MATCH(view!BD$3,data!$Y11:$AB11,0)),"",IFERROR(HYPERLINK(showDetails(INDEX(data!$S11:$V11,MATCH(view!BD$3,data!$Y11:$AB11,0)),BD13),"●"),"●")) ->  | BE13: =IF(ISERROR(MATCH(view!BE$3,data!$Y11:$AB11,0)),"",IFERROR(HYPERLINK(showDetails(INDEX(data!$S11:$V11,MATCH(view!BE$3,data!$Y11:$AB11,0)),BE13),"●"),"●")) ->  | BF13: =IF(ISERROR(MATCH(view!BF$3,data!$Y11:$AB11,0)),"",IFERROR(HYPERLINK(showDetails(INDEX(data!$S11:$V11,MATCH(view!BF$3,data!$Y11:$AB11,0)),BF13),"●"),"●")) ->  | BG13: =IF(ISERROR(MATCH(view!BG$3,data!$Y11:$AB11,0)),"",IFERROR(HYPERLINK(showDetails(INDEX(data!$S11:$V11,MATCH(view!BG$3,data!$Y11:$AB11,0)),BG13),"●"),"●")) ->  | BH13: =IF(ISERROR(MATCH(view!BH$3,data!$Y11:$AB11,0)),"",IFERROR(HYPERLINK(showDetails(INDEX(data!$S11:$V11,MATCH(view!BH$3,data!$Y11:$AB11,0)),BH13),"●"),"●")) ->  | BI13: =IF(ISERROR(MATCH(view!BI$3,data!$Y11:$AB11,0)),"",IFERROR(HYPERLINK(showDetails(INDEX(data!$S11:$V11,MATCH(view!BI$3,data!$Y11:$AB11,0)),BI13),"●"),"●")) ->  | BJ13: =IF(ISERROR(MATCH(view!BJ$3,data!$Y11:$AB11,0)),"",IFERROR(HYPERLINK(showDetails(INDEX(data!$S11:$V11,MATCH(view!BJ$3,data!$Y11:$AB11,0)),BJ13),"●"),"●")) ->  | BK13: =IF(ISERROR(MATCH(view!BK$3,data!$Y11:$AB11,0)),"",IFERROR(HYPERLINK(showDetails(INDEX(data!$S11:$V11,MATCH(view!BK$3,data!$Y11:$AB11,0)),BK13),"●"),"●")) ->  | BL13: =IF(ISERROR(MATCH(view!BL$3,data!$Y11:$AB11,0)),"",IFERROR(HYPERLINK(showDetails(INDEX(data!$S11:$V11,MATCH(view!BL$3,data!$Y11:$AB11,0)),BL13),"●"),"●")) ->  | BM13: =IF(ISERROR(MATCH(view!BM$3,data!$Y11:$AB11,0)),"",IFERROR(HYPERLINK(showDetails(INDEX(data!$S11:$V11,MATCH(view!BM$3,data!$Y11:$AB11,0)),BM13),"●"),"●")) ->  | BN13: =IF(ISERROR(MATCH(view!BN$3,data!$Y11:$AB11,0)),"",IFERROR(HYPERLINK(showDetails(INDEX(data!$S11:$V11,MATCH(view!BN$3,data!$Y11:$AB11,0)),BN13),"●"),"●")) ->  | BO13: =IF(ISERROR(MATCH(view!BO$3,data!$Y11:$AB11,0)),"",IFERROR(HYPERLINK(showDetails(INDEX(data!$S11:$V11,MATCH(view!BO$3,data!$Y11:$AB11,0)),BO13),"●"),"●")) ->  | BP13: =IF(ISERROR(MATCH(view!BP$3,data!$Y11:$AB11,0)),"",IFERROR(HYPERLINK(showDetails(INDEX(data!$S11:$V11,MATCH(view!BP$3,data!$Y11:$AB11,0)),BP13),"●"),"●")) ->  | BQ13: =IF(ISERROR(MATCH(view!BQ$3,data!$Y11:$AB11,0)),"",IFERROR(HYPERLINK(showDetails(INDEX(data!$S11:$V11,MATCH(view!BQ$3,data!$Y11:$AB11,0)),BQ13),"●"),"●")) ->  | BR13: =IF(ISERROR(MATCH(view!BR$3,data!$Y11:$AB11,0)),"",IFERROR(HYPERLINK(showDetails(INDEX(data!$S11:$V11,MATCH(view!BR$3,data!$Y11:$AB11,0)),BR13),"●"),"●")) ->  | BS13: =IF(ISERROR(MATCH(view!BS$3,data!$Y11:$AB11,0)),"",IFERROR(HYPERLINK(showDetails(INDEX(data!$S11:$V11,MATCH(view!BS$3,data!$Y11:$AB11,0)),BS13),"●"),"●")) ->  | BT13: =IF(ISERROR(MATCH(view!BT$3,data!$Y11:$AB11,0)),"",IFERROR(HYPERLINK(showDetails(INDEX(data!$S11:$V11,MATCH(view!BT$3,data!$Y11:$AB11,0)),BT13),"●"),"●")) ->  | BU13: =IF(ISERROR(MATCH(view!BU$3,data!$Y11:$AB11,0)),"",IFERROR(HYPERLINK(showDetails(INDEX(data!$S11:$V11,MATCH(view!BU$3,data!$Y11:$AB11,0)),BU13),"●"),"●")) ->  | BV13: =IF(ISERROR(MATCH(view!BV$3,data!$Y11:$AB11,0)),"",IFERROR(HYPERLINK(showDetails(INDEX(data!$S11:$V11,MATCH(view!BV$3,data!$Y11:$AB11,0)),BV13),"●"),"●")) ->  | BW13: =IF(ISERROR(MATCH(view!BW$3,data!$Y11:$AB11,0)),"",IFERROR(HYPERLINK(showDetails(INDEX(data!$S11:$V11,MATCH(view!BW$3,data!$Y11:$AB11,0)),BW13),"●"),"●")) ->  | BX13: =IF(ISERROR(MATCH(view!BX$3,data!$Y11:$AB11,0)),"",IFERROR(HYPERLINK(showDetails(INDEX(data!$S11:$V11,MATCH(view!BX$3,data!$Y11:$AB11,0)),BX13),"●"),"●")) ->  | BY13: =IF(ISERROR(MATCH(view!BY$3,data!$Y11:$AB11,0)),"",IFERROR(HYPERLINK(showDetails(INDEX(data!$S11:$V11,MATCH(view!BY$3,data!$Y11:$AB11,0)),BY13),"●"),"●")) ->  | BZ13: =IF(ISERROR(MATCH(view!BZ$3,data!$Y11:$AB11,0)),"",IFERROR(HYPERLINK(showDetails(INDEX(data!$S11:$V11,MATCH(view!BZ$3,data!$Y11:$AB11,0)),BZ13),"●"),"●")) ->  | CA13: =IF(ISERROR(MATCH(view!CA$3,data!$Y11:$AB11,0)),"",IFERROR(HYPERLINK(showDetails(INDEX(data!$S11:$V11,MATCH(view!CA$3,data!$Y11:$AB11,0)),CA13),"●"),"●")) ->  | CB13: =IF(ISERROR(MATCH(view!CB$3,data!$Y11:$AB11,0)),"",IFERROR(HYPERLINK(showDetails(INDEX(data!$S11:$V11,MATCH(view!CB$3,data!$Y11:$AB11,0)),CB13),"●"),"●")) ->  | CC13: =IF(ISERROR(MATCH(view!CC$3,data!$Y11:$AB11,0)),"",IFERROR(HYPERLINK(showDetails(INDEX(data!$S11:$V11,MATCH(view!CC$3,data!$Y11:$AB11,0)),CC13),"●"),"●")) ->  | CD13: =IF(ISERROR(MATCH(view!CD$3,data!$Y11:$AB11,0)),"",IFERROR(HYPERLINK(showDetails(INDEX(data!$S11:$V11,MATCH(view!CD$3,data!$Y11:$AB11,0)),CD13),"●"),"●")) ->  | CE13: =IF(ISERROR(MATCH(view!CE$3,data!$Y11:$AB11,0)),"",IFERROR(HYPERLINK(showDetails(INDEX(data!$S11:$V11,MATCH(view!CE$3,data!$Y11:$AB11,0)),CE13),"●"),"●")) ->  | CF13: =IF(ISERROR(MATCH(view!CF$3,data!$Y11:$AB11,0)),"",IFERROR(HYPERLINK(showDetails(INDEX(data!$S11:$V11,MATCH(view!CF$3,data!$Y11:$AB11,0)),CF13),"●"),"●")) ->  | CG13: =IF(ISERROR(MATCH(view!CG$3,data!$Y11:$AB11,0)),"",IFERROR(HYPERLINK(showDetails(INDEX(data!$S11:$V11,MATCH(view!CG$3,data!$Y11:$AB11,0)),CG13),"●"),"●")) ->  | CH13: =IF(ISERROR(MATCH(view!CH$3,data!$Y11:$AB11,0)),"",IFERROR(HYPERLINK(showDetails(INDEX(data!$S11:$V11,MATCH(view!CH$3,data!$Y11:$AB11,0)),CH13),"●"),"●")) -> ● | CI13: =IF(ISERROR(MATCH(view!CI$3,data!$Y11:$AB11,0)),"",IFERROR(HYPERLINK(showDetails(INDEX(data!$S11:$V11,MATCH(view!CI$3,data!$Y11:$AB11,0)),CI13),"●"),"●")) ->  | CJ13: =IF(ISERROR(MATCH(view!CJ$3,data!$Y11:$AB11,0)),"",IFERROR(HYPERLINK(showDetails(INDEX(data!$S11:$V11,MATCH(view!CJ$3,data!$Y11:$AB11,0)),CJ13),"●"),"●")) ->  | CK13: =IF(ISERROR(MATCH(view!CK$3,data!$Y11:$AB11,0)),"",IFERROR(HYPERLINK(showDetails(INDEX(data!$S11:$V11,MATCH(view!CK$3,data!$Y11:$AB11,0)),CK13),"●"),"●")) ->  | CL13: =IF(ISERROR(MATCH(view!CL$3,data!$Y11:$AB11,0)),"",IFERROR(HYPERLINK(showDetails(INDEX(data!$S11:$V11,MATCH(view!CL$3,data!$Y11:$AB11,0)),CL13),"●"),"●")) ->  | CM13: =IF(ISERROR(MATCH(view!CM$3,data!$Y11:$AB11,0)),"",IFERROR(HYPERLINK(showDetails(INDEX(data!$S11:$V11,MATCH(view!CM$3,data!$Y11:$AB11,0)),CM13),"●"),"●")) ->  | CN13: =IF(ISERROR(MATCH(view!CN$3,data!$Y11:$AB11,0)),"",IFERROR(HYPERLINK(showDetails(INDEX(data!$S11:$V11,MATCH(view!CN$3,data!$Y11:$AB11,0)),CN13),"●"),"●")) ->  | CO13: =IF(ISERROR(MATCH(view!CO$3,data!$Y11:$AB11,0)),"",IFERROR(HYPERLINK(showDetails(INDEX(data!$S11:$V11,MATCH(view!CO$3,data!$Y11:$AB11,0)),CO13),"●"),"●")) -> ● | CP13: =IF(ISERROR(MATCH(view!CP$3,data!$Y11:$AB11,0)),"",IFERROR(HYPERLINK(showDetails(INDEX(data!$S11:$V11,MATCH(view!CP$3,data!$Y11:$AB11,0)),CP13),"●"),"●")) ->  | CQ13: =IF(ISERROR(MATCH(view!CQ$3,data!$Y11:$AB11,0)),"",IFERROR(HYPERLINK(showDetails(INDEX(data!$S11:$V11,MATCH(view!CQ$3,data!$Y11:$AB11,0)),CQ13),"●"),"●")) ->  | CR13: =IF(ISERROR(MATCH(view!CR$3,data!$Y11:$AB11,0)),"",IFERROR(HYPERLINK(showDetails(INDEX(data!$S11:$V11,MATCH(view!CR$3,data!$Y11:$AB11,0)),CR13),"●"),"●")) ->  | CS13: =IF(ISERROR(MATCH(view!CS$3,data!$Y11:$AB11,0)),"",IFERROR(HYPERLINK(showDetails(INDEX(data!$S11:$V11,MATCH(view!CS$3,data!$Y11:$AB11,0)),CS13),"●"),"●")) ->  | CT13: =IF(ISERROR(MATCH(view!CT$3,data!$Y11:$AB11,0)),"",IFERROR(HYPERLINK(showDetails(INDEX(data!$S11:$V11,MATCH(view!CT$3,data!$Y11:$AB11,0)),CT13),"●"),"●")) ->  | CU13: =IF(ISERROR(MATCH(view!CU$3,data!$Y11:$AB11,0)),"",IFERROR(HYPERLINK(showDetails(INDEX(data!$S11:$V11,MATCH(view!CU$3,data!$Y11:$AB11,0)),CU13),"●"),"●")) ->  | CV13: =IF(ISERROR(MATCH(view!CV$3,data!$Y11:$AB11,0)),"",IFERROR(HYPERLINK(showDetails(INDEX(data!$S11:$V11,MATCH(view!CV$3,data!$Y11:$AB11,0)),CV13),"●"),"●")) ->  | CW13: =IF(ISERROR(MATCH(view!CW$3,data!$Y11:$AB11,0)),"",IFERROR(HYPERLINK(showDetails(INDEX(data!$S11:$V11,MATCH(view!CW$3,data!$Y11:$AB11,0)),CW13),"●"),"●")) ->  | CX13: =IF(ISERROR(MATCH(view!CX$3,data!$Y11:$AB11,0)),"",IFERROR(HYPERLINK(showDetails(INDEX(data!$S11:$V11,MATCH(view!CX$3,data!$Y11:$AB11,0)),CX13),"●"),"●")) ->  | CY13: =IF(ISERROR(MATCH(view!CY$3,data!$Y11:$AB11,0)),"",IFERROR(HYPERLINK(showDetails(INDEX(data!$S11:$V11,MATCH(view!CY$3,data!$Y11:$AB11,0)),CY13),"●"),"●")) ->  | CZ13: =IF(ISERROR(MATCH(view!CZ$3,data!$Y11:$AB11,0)),"",IFERROR(HYPERLINK(showDetails(INDEX(data!$S11:$V11,MATCH(view!CZ$3,data!$Y11:$AB11,0)),CZ13),"●"),"●")) ->  | DA13: =IF(ISERROR(MATCH(view!DA$3,data!$Y11:$AB11,0)),"",IFERROR(HYPERLINK(showDetails(INDEX(data!$S11:$V11,MATCH(view!DA$3,data!$Y11:$AB11,0)),DA13),"●"),"●")) ->  | DB13: =IF(ISERROR(MATCH(view!DB$3,data!$Y11:$AB11,0)),"",IFERROR(HYPERLINK(showDetails(INDEX(data!$S11:$V11,MATCH(view!DB$3,data!$Y11:$AB11,0)),DB13),"●"),"●")) ->  | DC13: =IF(ISERROR(MATCH(view!DC$3,data!$Y11:$AB11,0)),"",IFERROR(HYPERLINK(showDetails(INDEX(data!$S11:$V11,MATCH(view!DC$3,data!$Y11:$AB11,0)),DC13),"●"),"●")) ->  | DD13: =IF(ISERROR(MATCH(view!DD$3,data!$Y11:$AB11,0)),"",IFERROR(HYPERLINK(showDetails(INDEX(data!$S11:$V11,MATCH(view!DD$3,data!$Y11:$AB11,0)),DD13),"●"),"●")) ->  | DE13: =IF(ISERROR(MATCH(view!DE$3,data!$Y11:$AB11,0)),"",IFERROR(HYPERLINK(showDetails(INDEX(data!$S11:$V11,MATCH(view!DE$3,data!$Y11:$AB11,0)),DE13),"●"),"●")) ->  | DF13: =IF(ISERROR(MATCH(view!DF$3,data!$Y11:$AB11,0)),"",IFERROR(HYPERLINK(showDetails(INDEX(data!$S11:$V11,MATCH(view!DF$3,data!$Y11:$AB11,0)),DF13),"●"),"●")) ->  | DG13: =IF(ISERROR(MATCH(view!DG$3,data!$Y11:$AB11,0)),"",IFERROR(HYPERLINK(showDetails(INDEX(data!$S11:$V11,MATCH(view!DG$3,data!$Y11:$AB11,0)),DG13),"●"),"●")) ->  | DH13: =IF(ISERROR(MATCH(view!DH$3,data!$Y11:$AB11,0)),"",IFERROR(HYPERLINK(showDetails(INDEX(data!$S11:$V11,MATCH(view!DH$3,data!$Y11:$AB11,0)),DH13),"●"),"●")) ->  | DI13: =IF(ISERROR(MATCH(view!DI$3,data!$Y11:$AB11,0)),"",IFERROR(HYPERLINK(showDetails(INDEX(data!$S11:$V11,MATCH(view!DI$3,data!$Y11:$AB11,0)),DI13),"●"),"●")) ->  | DJ13: =IF(ISERROR(MATCH(view!DJ$3,data!$Y11:$AB11,0)),"",IFERROR(HYPERLINK(showDetails(INDEX(data!$S11:$V11,MATCH(view!DJ$3,data!$Y11:$AB11,0)),DJ13),"●"),"●")) ->  | DK13: =IF(ISERROR(MATCH(view!DK$3,data!$Y11:$AB11,0)),"",IFERROR(HYPERLINK(showDetails(INDEX(data!$S11:$V11,MATCH(view!DK$3,data!$Y11:$AB11,0)),DK13),"●"),"●")) ->  | DL13: =IF(ISERROR(MATCH(view!DL$3,data!$Y11:$AB11,0)),"",IFERROR(HYPERLINK(showDetails(INDEX(data!$S11:$V11,MATCH(view!DL$3,data!$Y11:$AB11,0)),DL13),"●"),"●")) ->  | DM13: =IF(ISERROR(MATCH(view!DM$3,data!$Y11:$AB11,0)),"",IFERROR(HYPERLINK(showDetails(INDEX(data!$S11:$V11,MATCH(view!DM$3,data!$Y11:$AB11,0)),DM13),"●"),"●")) ->  | DN13: =IF(ISERROR(MATCH(view!DN$3,data!$Y11:$AB11,0)),"",IFERROR(HYPERLINK(showDetails(INDEX(data!$S11:$V11,MATCH(view!DN$3,data!$Y11:$AB11,0)),DN13),"●"),"●")) ->  | DO13: =IF(ISERROR(MATCH(view!DO$3,data!$Y11:$AB11,0)),"",IFERROR(HYPERLINK(showDetails(INDEX(data!$S11:$V11,MATCH(view!DO$3,data!$Y11:$AB11,0)),DO13),"●"),"●")) ->  | DP13: =IF(ISERROR(MATCH(view!DP$3,data!$Y11:$AB11,0)),"",IFERROR(HYPERLINK(showDetails(INDEX(data!$S11:$V11,MATCH(view!DP$3,data!$Y11:$AB11,0)),DP13),"●"),"●")) ->  | DQ13: =IF(ISERROR(MATCH(view!DQ$3,data!$Y11:$AB11,0)),"",IFERROR(HYPERLINK(showDetails(INDEX(data!$S11:$V11,MATCH(view!DQ$3,data!$Y11:$AB11,0)),DQ13),"●"),"●")) ->  | DR13: =IF(ISERROR(MATCH(view!DR$3,data!$Y11:$AB11,0)),"",IFERROR(HYPERLINK(showDetails(INDEX(data!$S11:$V11,MATCH(view!DR$3,data!$Y11:$AB11,0)),DR13),"●"),"●")) ->  | DS13: =IF(ISERROR(MATCH(view!DS$3,data!$Y11:$AB11,0)),"",IFERROR(HYPERLINK(showDetails(INDEX(data!$S11:$V11,MATCH(view!DS$3,data!$Y11:$AB11,0)),DS13),"●"),"●")) ->  | DT13: =INDEX(lstYears,A13) &" - "&INDEX(data!$W$3:$W$30,A13) -> 1980 - Moscow
